Workbook

Sheet CycleTime
L1: ↓ L～AR 「表示しない」列 ↓ ↓ L～AR 「表示しない」列 ↓ ↓ L～AR 「表示しない」列 ↓ ↓ L～AR 「表示しない」列 ↓ ↓ L～AR 「表示しない」列 ↓ ↓ L～AR 「表示しない」列 ↓ ↓ L～AR 「表示しない」列 ↓ ↓ L～AR 「表示しない」列 ↓ ↓ L～AR 「表示しない」列 ↓ ↓ L～AR 「表示しない」列 | AT1: 残す列 | AV1: 残す列
L2: 参考表示
L3: Vmax[㎜/s] | N3: =SQRT(D14*(2*N4*N5)/(N4+N5)) -> 700.2374597 | AB3: feedforward | AE3: 物理計算用変換係数
A4: <a> | B4: シリーズ | C4: RCS4 | L4: =IF(AE33=0,"加速度[㎜/s^2]","加速度[deg/s^2]") -> 加速度[㎜/s^2] | N4: =D20*AH5*1000 -> 9806.65 | AB4: =AF45/100 -> 0 | AE4: ﾓｰﾀ軸角速度及び角加速度 | AH4: Ｇ
L5: =IF(AE33=0,"減速度[㎜/s^2]","減速度[deg/s^2]") -> 減速度[㎜/s^2] | N5: =D22*AH5*1000 -> 9806.65 | AB5: Kf | AC5: =IF( AB4=1,1,1-EXP(-((N11/(1-AB4))-N11)*N8) ) -> 0 | AE5: =IF(AE33=0,1000,360/(2*PI())) -> 1000 | AH5: =LeadData!$A$1 -> 9.80665
A6: <b> | B6: 型式 | C6: RCS4-SA4C-60 | L6: 最高速度[㎜/s] | N6: =IF(D18<N3,D18,N3) -> 150 | AO6: (Tkp+2Kf) | AP6: =($N$8*$N$11+2*$AB$4) -> 0.006392953726
L7: 分割数 | N7: =ROUND(3200/(AP18+AP20*10)*AP18,0) -> 1636 | AO7: (Tkp-2Kf) | AP7: =($N$8*$N$11-2*$AB$4) -> 0.006392953726
A8: <c> | B8: =IF(AE33=0,"リード","減速比") -> リード | C8: 2.5 | D8: =IF(AE33=0,"㎜","：1") -> ㎜ | L8: ⊿ｔ[s] | N8: =AT32-AT31 -> 0.0002130984575 | AO8: (2+TKp) | AP8: =(2+$N$8*$N$11) -> 2.006392954
L9: 最終時刻[s] | N9: =AT3231 -> 0.6819150641 | AO9: (2-TKp) | AP9: =(2-$N$8*$N$11) -> 1.993607046
A10: <d> | B10: ストローク | C10: 50 | D10: ㎜ | L10: 最終位置[㎜] | N10: =AV3231 -> 49.99981771 | AO10: 減速時間 | AP10: =N6/N5 -> 0.01529574319 | AQ10: s
L11: 位置ｹﾞｲﾝ | N11: =AE45 -> 30 | AO11: 減速距離 | AP11: =N5*AP10*AP10/2 -> 1.14718074 | AQ11: ㎜
A12: <e> | B12: 設置姿勢 | C12: 水平 | L12: 速度制御帯域 | N12: =AG45 -> 245 | AO12: 加速時間 | AP12: =N6/N4 -> 0.01529574319 | AQ12: s
AO13: 加速距離 | AP13: =N4*AP12*AP12/2 -> 1.14718074 | AQ13: ㎜
A14: <1> | B14: 移動距離[㎜] | D14: 50 | L14: 移動可能距離[㎜] | N14: =X45+Y45 -> 50 | AO14: 等速時間 | AP14: =IF(D18<N3,(D14-AP13-AP11)/D18,0) -> 0.3180375901 | AQ14: s
AO15: 等速距離 | AP15: =AP14*N6 -> 47.70563852 | AQ15: ㎜
A16: <2> | B16: =IF(AE33=0,"搬送質量[kg]","搬送ｲﾅｰｼｬ[kgm^2]") -> 搬送質量[kg] | D16: 20 | AO16: 減速時刻 | AP16: =AP12+AP14 -> 0.3333333333 | AQ16: s
AO17: 減速位置 | AP17: =AP13+AP15 -> 48.85281926 | AQ17: ㎜
A18: <3> | B18: 速度[㎜/s] | D18: 150 | G18: ●計算結果 | AO18: TotalTime | AP18: =AP14+AP12+AP10 -> 0.3486290765 | AQ18: s
AE19: 運転姿勢 | AF19: ←初期値 | AO19: Spdτ | AP19: =1/N12 -> 0.004081632653 | AQ19: s
A20: <4> | B20: 加速度[G] | D20: 1 | G20: 位置決め時間 [s] | I20: =LOOKUP((D14-D24),AV31:AV3231,AT31:AT3231) -> 0.4715868865 | AE20: 水平 | AF20: 水平 | AO20: Posτ | AP20: =1/N11 -> 0.03333333333 | AQ20: s
AE21: 垂直 | AO21: 収束時間 | AP21: =I20-AP18 -> 0.12295781 | AQ21: s
A22: <5> | B22: 減速度[G] | D22: 1
A24: <6> | B24: 位置決め幅 [㎜] | D24: 0.1 | J24: =IF(N9<=I20,"位置決め時間を正しく計算できていません","※位置決め幅に到達するまでの時間を表します。") -> ※位置決め幅に到達するまでの時間を表します。
A28: 1 | B28: =A28+1 -> 2 | C28: 3 | D28: 4 | E28: 5 | F28: 6 | G28: 7 | H28: 8 | I28: 9 | J28: 10 | K28: 11 | L28: 12 | M28: 13 | N28: 14 | O28: 15 | P28: =O28+1 -> 16 | Q28: =P28+1 -> 17 | R28: =Q28+1 -> 18 | S28: =R28+1 -> 19 | T28: =S28+1 -> 20 | U28: 21 | V28: 22 | W28: 23 | X28: 24 | Y28: 25 | Z28: 26 | AA28: 27 | AB28: 28 | AC28: 29 | AD28: 30 | AE28: 31 | AF28: 32 | AG28: 33 | AH28: 34 | AI28: 35 | AJ28: 36 | AK28: 37 | AL28: 38 | AM28: 39 | AN28: 40 | AO28: 41 | AP28: 42 | AQ28: 43 | AR28: 44 | AS28: 45 | AT28: 46 | AU28: 47 | AV28: 48
O29: ↓↓↓↓↓↓↓↓ フォント色を白にする列 O29～U193 ↓↓↓↓↓↓↓↓ | AS29: ↓↓↓↓↓↓↓↓↓↓↓↓↓↓↓ フォント色を白に、数式は非表示に、する列 AS29～BB3231 ↓↓↓↓↓↓↓↓↓↓↓↓↓↓↓
B30: 可搬質量 | C30: 加減速度 | D30: 最高速度 | E30: 実加速度 | F30: 到達速度 | G30: 運転時間 | H30: 三角速度 | O30: № | P30: メカ型式リスト | Q30: 絞込み | R30: ﾀｲﾌﾟﾘｽﾄ | S30: ﾘｰﾄﾞﾘｽﾄ | T30: ｽﾄﾛｰｸﾘｽﾄ | U30: 型式総数 | W30: =DataSerch!B1 -> メカ機種データレコード | AS30: № | AT30: 時刻 | AU30: 位置計画 | AV30: 位置
A31: =A30+1 -> 1 | B31: 11 | C31: 1.5 | D31: 150 | E31: 14709.975 | F31: 150 | G31: 0.3435304955 | H31: 857.6122376 | O31: 1 | P31: ISB-SXM-60 | Q31: RCS4-SA4C-60 | R31: ISB | S31: 2.5 | T31: 50 | U31: 84 | W31: ﾚｺｰﾄﾞ№ | X31: =DataSerch!$C$2 -> ｱｸﾁｭｴｰﾀ型式 | Z31: =DataSerch!$E$2 -> 0 | AA31: =DataSerch!$F$2 -> 0 | AB31: =DataSerch!$G$2 -> 0 | AC31: =DataSerch!$H$2 -> 最小ｽﾄﾛｰｸ | AD31: =DataSerch!$I$2 -> 最大ｽﾄﾛｰｸ | AE31: =DataSerch!$J$2 -> 動作種別 | AF31: =DataSerch!$K$2 -> 0 | AS31: 0 | AT31: =$AP$18/$N$7*AS31 -> 0 | AU31: 0 | AV31: 0
A32: 2 | B32: 17 | C32: 1.2 | D32: 150 | E32: 11767.98 | F32: 150 | G32: 0.346079786 | H32: 767.0717046 | O32: =O31+1 -> 2 | P32: ISB-MXM-100 | Q32: RCS4-SA4R-60 | R32: ISDB | S32: 5 | T32: 100 | U32: 絞込み数 | W32: =DataSerch!$B$3 -> 69 | X32: =DataSerch!$C$3 -> RCS4-SA4C-60 | Z32: =DataSerch!$E$4 -> [kg] | AA32: =DataSerch!$F$4 -> [mm] | AB32: =DataSerch!$G$4 -> [mm] | AC32: =DataSerch!$H$4 -> [mm] | AD32: =DataSerch!$I$4 -> [mm] | AE32: =DataSerch!$J$4 -> 0/1 | AF32: =DataSerch!$K$4 -> [K] | AS32: =AS31+1 -> 1 | AT32: 0.0002130984575 | AU32: =IF(($N$4*AT32^2/2)<=$AP$13,($N$4*AT32^2/2), IF(($AP$13+$N$6*(AT32-$AP$12))<=$AP$17, ($AP$13+$N$6*(AT32-$AP$12)), IF(AU31<$D$14, ($AP$17+($N$6-$N$5*(AT32-$AP$16)/2)*(AT32-$AP$16)), $D$14))) -> 0.0002226646592 | AV32: =( $AP$6*AU32 + $AP$7*AU31 + $AP$9*AV31 )/$AP$8 -> 7.094746121e-07
A33: 3 | B33: 20 | C33: 0.3 | D33: 150 | E33: 2941.995 | F33: 150 | G33: 0.384319144 | H33: 383.5358523 | O33: 3 | P33: ISB-MXM-200 | Q33: RCS4-SA6C-100 | R33: SSP | S33: 10 | T33: 150 | U33: 16 | Z33: =DataSerch!$E$5 -> 0 | AA33: =DataSerch!$F$5 -> 0 | AB33: =DataSerch!$G$5 -> 0 | AC33: =DataSerch!$H$5 -> 50 | AD33: =DataSerch!$I$5 -> 500 | AE33: =DataSerch!$J$5 -> 0 | AS33: =AS32+1 -> 2 | AT33: 0.0004261969151 | AU33: 0.0008906586367 | AV33: =( $AP$6*AU33 + $AP$7*AU32 + $AP$9*AV32 )/$AP$8 -> 4.252326486e-06
A34: 4 | B34: 20 | C34: 0.5 | D34: 150 | E34: 4903.325 | F34: 150 | G34: 0.3639248197 | H34: 495.1426562 | O34: 4 | P34: ISB-LXM-200 | Q34: RCS4-SA6R-100 | R34: RCS4 | S34: 16 | T34: 200 | AS34: 3 | AT34: 0.0006392953726 | AU34: 0.002003981933 | AV34: 1.344839814e-05
A35: 5 | B35: 20 | C35: 0.7 | D35: 150 | E35: 6864.655 | F35: 150 | G35: 0.355184395 | H35: 585.8606916 | O35: 5 | P35: ISB-LXM-400 | Q35: RCS4-SA7C-200 | R35: RCS3 | S35: - - - | T35: 250 | U35: ﾘｰﾄﾞ総数 | W35: リードデータレコード | AS35: 4 | AT35: 0.0008523938301 | AU35: 0.003562634547 | AV35: 3.109956239e-05
A36: 6 | B36: 20 | C36: 1 | D36: 150 | E36: 9806.65 | F36: 150 | G36: 0.3486290765 | H36: 700.2374597 | O36: 6 | P36: ISB-SXL-60 | Q36: RCS4-SA7R-200 | R36: RCS2 | S36: - - - | T36: 300 | U36: 4 | W36: リスト№ | X36: =DataSerch!$F$24 -> ﾘｰﾄﾞ長 | Y36: =DataSerch!$G$24 -> 0 | Z36: =DataSerch!$H$24 -> 水平定格加速度 | AA36: =DataSerch!$I$24 -> 垂直定格加速度 | AB36: =DataSerch!$J$24 -> 水平最大加速度 | AC36: =DataSerch!$K$24 -> 垂直最大加速度 | AD36: =DataSerch!$L$24 -> 0 | AE36: =DataSerch!$M$24 -> 0 | AF36: =DataSerch!$N$24 -> 0 | AG36: =DataSerch!$O$24 -> ｷﾞｱ比分子 | AH36: =DataSerch!$P$24 -> ｷﾞｱ比分母 | AI36: =DataSerch!$Q$24 -> 0 | AJ36: =DataSerch!$R$24 -> ｽﾄﾛｰｸ刻み | AS36: 5 | AT36: 0.001065492288 | AU36: 0.005566616479 | AV36: 5.998983692e-05
A37: 7 | B37: -1 | C37: -1 | D37: -1 | E37: -1 | F37: -1 | G37: -1 | H37: -1 | O37: 7 | P37: ISB-MXL-100 | Q37: RCS4-SA8C-400 | S37: - - - | T37: 350 | AS37: 6 | AT37: 0.001278590745 | AU37: 0.00801592773 | AV37: 0.000102885498
A38: 8 | B38: -1 | C38: -1 | D38: -1 | E38: -1 | F38: -1 | G38: -1 | H38: -1 | O38: 8 | P38: ISB-MXL-200 | Q38: RCS4-SA8R-400 | S38: - - - | T38: 400 | U38: ｽﾄﾛｰｸ総数 | W38: =DataSerch!$D$35 -> 1 | X38: =DataSerch!$F$25 -> [mm] | Y38: =DataSerch!$G$25 -> [kgm^2] | Z38: =DataSerch!$H$25 -> [m/s^2] | AA38: =DataSerch!$I$25 -> [m/s^2] | AB38: =DataSerch!$J$25 -> [m/s^2] | AC38: =DataSerch!$K$25 -> [m/s^2] | AD38: =DataSerch!$L$25 -> [Nm] | AE38: =DataSerch!$M$25 -> [Nms] | AF38: =DataSerch!$N$25 -> [Nm] | AG38: =DataSerch!$O$25 -> 0 | AH38: =DataSerch!$P$25 -> 0 | AI38: =DataSerch!$Q$25 -> 0 | AJ38: =DataSerch!$R$25 -> [mm] | AS38: 7 | AT38: 0.001491689203 | AU38: 0.0109105683 | AV38: 0.0001625351935
A39: 9 | B39: -1 | C39: -1 | D39: -1 | E39: -1 | F39: -1 | G39: -1 | H39: -1 | O39: 9 | P39: ISB-LXL-200 | Q39: RCS4-WSA10C-60 | T39: 450 | U39: 10 | X39: =LOOKUP(W38,DataSerch!$B$26:$B$33,DataSerch!$F$26:$F$33) -> 2.5 | Y39: =LOOKUP(W38,DataSerch!$B$26:$B$33,DataSerch!$G$26:$G$33) -> 0 | Z39: =LOOKUP(W38,DataSerch!$B$26:$B$33,DataSerch!$H$26:$H$33) -> 2.941995 | AA39: =LOOKUP(W38,DataSerch!$B$26:$B$33,DataSerch!$I$26:$I$33) -> 2.941995 | AB39: =LOOKUP(W38,DataSerch!$B$26:$B$33,DataSerch!$J$26:$J$33) -> 14.709975 | AC39: =LOOKUP(W38,DataSerch!$B$26:$B$33,DataSerch!$K$26:$K$33) -> 14.709975 | AG39: =LOOKUP(W38,DataSerch!$B$26:$B$33,DataSerch!$O$26:$O$33) -> 1 | AH39: =LOOKUP(W38,DataSerch!$B$26:$B$33,DataSerch!$P$26:$P$33) -> 1 | AJ39: =LOOKUP(W38,DataSerch!$B$26:$B$33,DataSerch!$R$26:$R$33) -> 50 | AS39: 8 | AT39: 0.00170478766 | AU39: 0.01425053819 | AV39: 0.0002416700556
A40: 10 | B40: -1 | C40: -1 | D40: -1 | E40: -1 | F40: -1 | G40: -1 | H40: -1 | O40: 10 | P40: ISB-LXL-400 | Q40: RCS4-WSA10R-60 | T40: 500 | AS40: 9 | AT40: 0.001917886118 | AU40: 0.01803583739 | AV40: 0.0003430038116
A41: 11 | B41: -1 | C41: -1 | D41: -1 | E41: -1 | F41: -1 | G41: -1 | H41: -1 | O41: 11 | P41: ISDB-S-60 | Q41: RCS4-WSA12C-100 | T41: - - - | W41: ストロークデータレコード | AS41: 10 | AT41: 0.002130984575 | AU41: 0.02226646592 | AV41: 0.0004692328958
A42: 12 | B42: -1 | C42: -1 | D42: -1 | E42: -1 | F42: -1 | G42: -1 | H42: -1 | O42: 12 | P42: ISDB-M-100 | Q42: RCS4-WSA12R-100 | T42: - - - | W42: リスト№ | X42: =DataSerch!$E$58 -> ｽﾄﾛｰｸ長 | Y42: =DataSerch!$G$58 -> 有効ｽﾄﾛｰｸ補正 | Z42: =DataSerch!$H$58 -> 0 | AA42: =DataSerch!$I$58 -> 基準ｹﾞｲﾝ用搬送質量 | AB42: =DataSerch!$J$58 -> 水平可搬質量 | AC42: =DataSerch!$K$58 -> 垂直可搬質量 | AD42: =DataSerch!$L$58 -> 最大速度 | AE42: =DataSerch!$M$58 -> 位置ｹﾞｲﾝ | AF42: =DataSerch!$N$58 -> FFｹﾞｲﾝ | AG42: =DataSerch!$O$58 -> 速度制御帯域 | AH42: =DataSerch!$P$58 -> 0 | AI42: =DataSerch!$Q$58 -> 0 | AJ42: =DataSerch!$R$58 -> 0 | AK42: =DataSerch!$S$58 -> 0 | AL42: =DataSerch!$T$58 -> 0 | AS42: 11 | AT42: 0.002344083033 | AU42: 0.02694242376 | AV42: 0.0006230365591
A43: 13 | B43: -1 | C43: -1 | D43: -1 | E43: -1 | F43: -1 | G43: -1 | H43: -1 | O43: 13 | P43: ISDB-M-200 | Q43: RCS4-WSA14C-200 | T43: - - - | AS43: 12 | AT43: 0.00255718149 | AU43: 0.03206371092 | AV43: 0.0008070769785
A44: 14 | B44: -1 | C44: -1 | D44: -1 | E44: -1 | F44: -1 | G44: -1 | H44: -1 | O44: 14 | P44: ISDB-L-200 | Q44: RCS4-WSA14R-200 | T44: - - - | W44: =MATCH(C10,DataSerch!$E$60:$E$109,0) -> 1 | X44: =DataSerch!$E$59 -> [mm] | Y44: =DataSerch!$G$59 -> [mm] | Z44: =DataSerch!$H$59 -> [kg/mm] | AA44: =DataSerch!$I$59 -> [kg] | AB44: =DataSerch!$J$59 -> [kg] | AC44: =DataSerch!$K$59 -> [kg] | AD44: =DataSerch!$L$59 -> [mm/s] | AE44: =DataSerch!$M$59 -> [1/s] | AF44: =DataSerch!$N$59 -> [%] | AG44: =DataSerch!$O$59 -> [rad/s] | AH44: =DataSerch!$P$59 -> 0 | AI44: =DataSerch!$Q$59 -> [s] | AJ44: =DataSerch!$R$59 -> 0 | AK44: =DataSerch!$S$59 -> 0 | AL44: =DataSerch!$T$59 -> [Nm/rad] | AS44: 13 | AT44: 0.002770279948 | AU44: 0.0376303274 | AV44: 0.001023999366
A45: 15 | B45: -1 | C45: -1 | D45: -1 | E45: -1 | F45: -1 | G45: -1 | H45: -1 | O45: 15 | P45: ISDB-L-400 | Q45: RCS4-WSA16C-400 | T45: - - - | X45: =LOOKUP(W44,DataSerch!$D$60:$D$109,DataSerch!$E$60:$E$109) -> 50 | Y45: =LOOKUP(W44,DataSerch!$D$60:$D$109,DataSerch!$G$60:$G$109) -> 0 | Z45: =LOOKUP(W44,DataSerch!$D$60:$D$109,DataSerch!$H$60:$H$109) -> 0 | AA45: =LOOKUP(W44,DataSerch!$D$60:$D$109,DataSerch!$I$60:$I$109) -> 20 | AB45: =LOOKUP(W44,DataSerch!$D$60:$D$109,DataSerch!$J$60:$J$109) -> 20 | AC45: =LOOKUP(W44,DataSerch!$D$60:$D$109,DataSerch!$K$60:$K$109) -> 12 | AD45: =LOOKUP(W44,DataSerch!$D$60:$D$109,DataSerch!$L$60:$L$109) -> 150 | AE45: =LOOKUP(W44,DataSerch!$D$60:$D$109,DataSerch!$M$60:$M$109) -> 30 | AF45: =LOOKUP(W44,DataSerch!$D$60:$D$109,DataSerch!$N$60:$N$109) -> 0 | AG45: =LOOKUP(W44,DataSerch!$D$60:$D$109,DataSerch!$O$60:$O$109) -> 245 | AH45: =LOOKUP(W44,DataSerch!$D$60:$D$109,DataSerch!$P$60:$P$109) -> 0 | AI45: =LOOKUP(W44,DataSerch!$D$60:$D$109,DataSerch!$Q$60:$Q$109) -> 0 | AJ45: =LOOKUP(W44,DataSerch!$D$60:$D$109,DataSerch!$R$60:$R$109) -> 0 | AK45: =LOOKUP(W44,DataSerch!$D$60:$D$109,DataSerch!$S$60:$S$109) -> 0 | AL45: =LOOKUP(W44,DataSerch!$D$60:$D$109,DataSerch!$T$60:$T$109) -> 0 | AS45: 14 | AT45: 0.002983378405 | AU45: 0.0436422732 | AV45: 0.001276432078
A46: 16 | B46: -1 | C46: -1 | D46: -1 | E46: -1 | F46: -1 | G46: -1 | H46: -1 | O46: 16 | P46: ISDBCR-S-60 | Q46: RCS4-WSA16R-400 | T46: - - - | AS46: 15 | AT46: 0.003196476863 | AU46: 0.05009954831 | AV46: 0.001566986719
A47: 17 | B47: -1 | C47: -1 | D47: -1 | E47: -1 | F47: -1 | G47: -1 | H47: -1 | O47: 17 | P47: ISDBCR-M-100 | Q47: - - - | T47: - - - | AS47: 16 | AT47: 0.003409575321 | AU47: 0.05700215275 | AV47: 0.001898258253
A48: 18 | B48: -1 | C48: -1 | D48: -1 | E48: -1 | F48: -1 | G48: -1 | H48: -1 | O48: 18 | P48: ISDBCR-M-200 | Q48: - - - | T48: - - - | AS48: 17 | AT48: 0.003622673778 | AU48: 0.0643500865 | AV48: 0.002272825107
A49: 19 | B49: -1 | C49: -1 | D49: -1 | E49: -1 | F49: -1 | G49: -1 | H49: -1 | O49: 19 | P49: ISDBCR-L-200 | Q49: - - - | T49: - - - | AS49: 18 | AT49: 0.003835772236 | AU49: 0.07214334957 | AV49: 0.002693249275
A50: 20 | B50: -1 | C50: -1 | D50: -1 | E50: -1 | F50: -1 | G50: -1 | H50: -1 | O50: 20 | P50: ISDBCR-L-400 | Q50: - - - | T50: - - - | U50: リンクリスト総数 | AS50: 19 | AT50: 0.004048870693 | AU50: 0.08038194196 | AV50: 0.003162076428
A51: 21 | B51: -1 | C51: -1 | D51: -1 | E51: -1 | F51: -1 | G51: -1 | H51: -1 | O51: 21 | P51: SSPA-SXM-200 | Q51: - - - | T51: - - - | U51: 6 | AS51: 20 | AT51: 0.004261969151 | AU51: 0.08906586367 | AV51: 0.00368183601
A52: 22 | B52: -1 | C52: -1 | D52: -1 | E52: -1 | F52: -1 | G52: -1 | H52: -1 | O52: 22 | P52: SSPA-MXM-400 | Q52: - - - | T52: - - - | AS52: 21 | AT52: 0.004475067608 | AU52: 0.0981951147 | AV52: 0.00425504135
A53: 23 | B53: -1 | C53: -1 | D53: -1 | E53: -1 | F53: -1 | G53: -1 | H53: -1 | O53: 23 | P53: SSPA-LXM-750 | Q53: - - - | T53: - - - | AS53: 22 | AT53: 0.004688166066 | AU53: 0.107769695 | AV53: 0.004884189758
A54: 24 | B54: -1 | C54: -1 | D54: -1 | E54: -1 | F54: -1 | G54: -1 | H54: -1 | O54: 24 | P54: SSPDACR-S-200 | Q54: - - - | T54: - - - | AS54: 23 | AT54: 0.004901264523 | AU54: 0.1177896047 | AV54: 0.005571762631
A55: 25 | B55: -1 | C55: -1 | D55: -1 | E55: -1 | F55: -1 | G55: -1 | H55: -1 | O55: 25 | P55: SSPDACR-M-400 | Q55: - - - | T55: - - - | AS55: 24 | AT55: 0.005114362981 | AU55: 0.1282548437 | AV55: 0.006320225552
A56: 26 | B56: -1 | C56: -1 | D56: -1 | E56: -1 | F56: -1 | G56: -1 | H56: -1 | O56: 26 | P56: SSPDACR-L-750 | Q56: - - - | T56: - - - | AS56: 25 | AT56: 0.005327461438 | AU56: 0.139165412 | AV56: 0.007132028394
A57: 27 | B57: -1 | C57: -1 | D57: -1 | E57: -1 | F57: -1 | G57: -1 | H57: -1 | O57: 27 | P57: RCS3-SA8C-100 | Q57: - - - | T57: - - - | AS57: 26 | AT57: 0.005540559896 | AU57: 0.1505213096 | AV57: 0.008009605415
A58: 28 | B58: -1 | C58: -1 | D58: -1 | E58: -1 | F58: -1 | G58: -1 | H58: -1 | O58: 28 | P58: RCS3-SA8C-150 | Q58: - - - | T58: - - - | AS58: 27 | AT58: 0.005753658353 | AU58: 0.1623225365 | AV58: 0.008955375362
A59: 29 | B59: -1 | C59: -1 | D59: -1 | E59: -1 | F59: -1 | G59: -1 | H59: -1 | O59: 29 | P59: RCS3-SS8C-100 | Q59: - - - | T59: - - - | AS59: 28 | AT59: 0.005966756811 | AU59: 0.1745690928 | AV59: 0.009971741569
A60: 30 | B60: -1 | C60: -1 | D60: -1 | E60: -1 | F60: -1 | G60: -1 | H60: -1 | O60: 30 | P60: RCS3-SS8C-150 | Q60: - - - | T60: - - - | AS60: 29 | AT60: 0.006179855269 | AU60: 0.1872609784 | AV60: 0.01106109205
A61: 31 | B61: -1 | C61: -1 | D61: -1 | E61: -1 | F61: -1 | G61: -1 | H61: -1 | O61: 31 | P61: RCS3CR-SA8C-100 | Q61: - - - | T61: - - - | AS61: 30 | AT61: 0.006392953726 | AU61: 0.2003981933 | AV61: 0.01222579962
A62: 32 | B62: -1 | C62: -1 | D62: -1 | E62: -1 | F62: -1 | G62: -1 | H62: -1 | O62: 32 | P62: RCS3CR-SA8C-150 | Q62: - - - | T62: - - - | AS62: 31 | AT62: 0.006606052184 | AU62: 0.2139807375 | AV62: 0.01346822194
A63: 33 | B63: -1 | C63: -1 | D63: -1 | E63: -1 | F63: -1 | G63: -1 | H63: -1 | O63: 33 | P63: RCS3CR-SS8C-100 | Q63: - - - | T63: - - - | AS63: 32 | AT63: 0.006819150641 | AU63: 0.228008611 | AV63: 0.01479070167
A64: 34 | B64: -1 | C64: -1 | D64: -1 | E64: -1 | F64: -1 | G64: -1 | H64: -1 | O64: 34 | P64: RCS3CR-SS8C-150 | Q64: - - - | T64: - - - | AS64: 33 | AT64: 0.007032249099 | AU64: 0.2424818138 | AV64: 0.01619556653
A65: 35 | B65: -1 | C65: -1 | D65: -1 | E65: -1 | F65: -1 | G65: -1 | H65: -1 | O65: 35 | P65: RCS3-SA8R-100 | Q65: - - - | T65: - - - | AS65: 34 | AT65: 0.007245347556 | AU65: 0.257400346 | AV65: 0.01768512943
A66: 36 | B66: -1 | C66: -1 | D66: -1 | E66: -1 | F66: -1 | G66: -1 | H66: -1 | O66: 36 | P66: RCS3-SA8R-150 | Q66: - - - | T66: - - - | AS66: 35 | AT66: 0.007458446014 | AU66: 0.2727642075 | AV66: 0.01926168851
A67: 37 | B67: -1 | C67: -1 | D67: -1 | E67: -1 | F67: -1 | G67: -1 | H67: -1 | O67: 37 | P67: RCS3-SS8R-100 | Q67: - - - | T67: - - - | AS67: 36 | AT67: 0.007671544471 | AU67: 0.2885733983 | AV67: 0.02092752728
A68: 38 | B68: -1 | C68: -1 | D68: -1 | E68: -1 | F68: -1 | G68: -1 | H68: -1 | O68: 38 | P68: RCS3-SS8R-150 | Q68: - - - | T68: - - - | AS68: 37 | AT68: 0.007884642929 | AU68: 0.3048279184 | AV68: 0.0226849147
A69: 39 | B69: -1 | C69: -1 | D69: -1 | E69: -1 | F69: -1 | G69: -1 | H69: -1 | O69: 39 | P69: RCS2-SA4C-20 | Q69: - - - | T69: - - - | AS69: 38 | AT69: 0.008097741386 | AU69: 0.3215277679 | AV69: 0.02453610526
A70: 40 | B70: -1 | C70: -1 | D70: -1 | E70: -1 | F70: -1 | G70: -1 | H70: -1 | O70: 40 | P70: RCS2-SA5C-20 | Q70: - - - | T70: - - - | AS70: 39 | AT70: 0.008310839844 | AU70: 0.3386729466 | AV70: 0.0264833391
A71: 41 | B71: -1 | C71: -1 | D71: -1 | E71: -1 | F71: -1 | G71: -1 | H71: -1 | O71: 41 | P71: RCS2-SA6C-30 | Q71: - - - | T71: - - - | AS71: 40 | AT71: 0.008523938301 | AU71: 0.3562634547 | AV71: 0.02852884206
A72: 42 | B72: -1 | C72: -1 | D72: -1 | E72: -1 | F72: -1 | G72: -1 | H72: -1 | O72: 42 | P72: RCS2-SA7C-60 | Q72: - - - | T72: - - - | AS72: 41 | AT72: 0.008737036759 | AU72: 0.3742992921 | AV72: 0.03067482582
A73: 43 | B73: -1 | C73: -1 | D73: -1 | E73: -1 | F73: -1 | G73: -1 | H73: -1 | O73: 43 | P73: RCS2-SS7C-60 | Q73: - - - | T73: - - - | AS73: 42 | AT73: 0.008950135216 | AU73: 0.3927804588 | AV73: 0.03292348796
A74: 44 | B74: -1 | C74: -1 | D74: -1 | E74: -1 | F74: -1 | G74: -1 | H74: -1 | O74: 44 | P74: RCS2CR-SA4C-20 | Q74: - - - | T74: - - - | AS74: 43 | AT74: 0.009163233674 | AU74: 0.4117069548 | AV74: 0.03527701204
A75: 45 | B75: -1 | C75: -1 | D75: -1 | E75: -1 | F75: -1 | G75: -1 | H75: -1 | O75: 45 | P75: RCS2CR-SA5C-20 | Q75: - - - | T75: - - - | AS75: 44 | AT75: 0.009376332132 | AU75: 0.4310787802 | AV75: 0.03773756773
A76: 46 | B76: -1 | C76: -1 | D76: -1 | E76: -1 | F76: -1 | G76: -1 | H76: -1 | O76: 46 | P76: RCS2CR-SA6C-30 | Q76: - - - | T76: - - - | AS76: 45 | AT76: 0.009589430589 | AU76: 0.4508959348 | AV76: 0.04030731085
A77: 47 | B77: -1 | C77: -1 | D77: -1 | E77: -1 | F77: -1 | G77: -1 | H77: -1 | O77: 47 | P77: RCS2CR-SA7C-60 | Q77: - - - | T77: - - - | AS77: 46 | AT77: 0.009802529047 | AU77: 0.4711584188 | AV77: 0.0429883835
A78: 48 | B78: -1 | C78: -1 | D78: -1 | E78: -1 | F78: -1 | G78: -1 | H78: -1 | O78: 48 | P78: RCS2CR-SS7C-60 | Q78: - - - | T78: - - - | AS78: 47 | AT78: 0.0100156275 | AU78: 0.4918662321 | AV78: 0.04578291412
A79: 49 | B79: -1 | C79: -1 | D79: -1 | E79: -1 | F79: -1 | G79: -1 | H79: -1 | O79: 49 | P79: RCS2-SA4D-20 | Q79: - - - | T79: - - - | AS79: 48 | AT79: 0.01022872596 | AU79: 0.5130193747 | AV79: 0.04869301758
A80: 50 | B80: -1 | C80: -1 | D80: -1 | E80: -1 | F80: -1 | G80: -1 | H80: -1 | O80: 50 | P80: RCS2-SA5D-20 | Q80: - - - | T80: - - - | AS80: 49 | AT80: 0.01044182442 | AU80: 0.5346178467 | AV80: 0.05172079529
A81: 51 | B81: -1 | C81: -1 | D81: -1 | E81: -1 | F81: -1 | G81: -1 | H81: -1 | O81: 51 | P81: RCS2-SA6D-30 | Q81: - - - | AS81: 50 | AT81: 0.01065492288 | AU81: 0.5566616479 | AV81: 0.05486833526
A82: 52 | B82: -1 | C82: -1 | D82: -1 | E82: -1 | F82: -1 | G82: -1 | H82: -1 | O82: 52 | P82: RCS2CR-SA5D-20 | Q82: - - - | AS82: 51 | AT82: 0.01086802133 | AU82: 0.5791507785 | AV82: 0.05813771218
A83: 53 | B83: -1 | C83: -1 | D83: -1 | E83: -1 | F83: -1 | G83: -1 | H83: -1 | O83: 53 | P83: RCS2CR-SA6D-30 | Q83: - - - | AS83: 52 | AT83: 0.01108111979 | AU83: 0.6020852384 | AV83: 0.06153098755
A84: 54 | B84: -1 | C84: -1 | D84: -1 | E84: -1 | F84: -1 | G84: -1 | H84: -1 | O84: 54 | P84: RCS2-SA4R-20 | Q84: - - - | AS84: 53 | AT84: 0.01129421825 | AU84: 0.6254650276 | AV84: 0.06505020971
A85: 55 | B85: -1 | C85: -1 | D85: -1 | E85: -1 | F85: -1 | G85: -1 | H85: -1 | O85: 55 | P85: RCS2-SA5R-20 | Q85: - - - | AS85: 54 | AT85: 0.01150731671 | AU85: 0.6492901462 | AV85: 0.06869741394
A86: 56 | B86: -1 | C86: -1 | D86: -1 | E86: -1 | F86: -1 | G86: -1 | H86: -1 | O86: 56 | P86: RCS2-SA6R-30 | Q86: - - - | AS86: 55 | AT86: 0.01172041516 | AU86: 0.673560594 | AV86: 0.07247462258
A87: 57 | B87: -1 | C87: -1 | D87: -1 | E87: -1 | F87: -1 | G87: -1 | H87: -1 | O87: 57 | P87: RCS2-SA7R-60 | Q87: - - - | AS87: 56 | AT87: 0.01193351362 | AU87: 0.6982763712 | AV87: 0.07638384505
A88: 58 | B88: -1 | C88: -1 | D88: -1 | E88: -1 | F88: -1 | G88: -1 | H88: -1 | O88: 58 | P88: RCS2-SS7R-60 | Q88: - - - | AS88: 57 | AT88: 0.01214661208 | AU88: 0.7234374777 | AV88: 0.08042707798
A89: 59 | B89: -1 | C89: -1 | D89: -1 | E89: -1 | F89: -1 | G89: -1 | H89: -1 | O89: 59 | P89: RCS2-RA4C-20 | Q89: - - - | AS89: 58 | AT89: 0.01235971054 | AU89: 0.7490439135 | AV89: 0.08460630529
A90: 60 | B90: -1 | C90: -1 | D90: -1 | E90: -1 | F90: -1 | G90: -1 | H90: -1 | O90: 60 | P90: RCS2-RA4C-30 | Q90: - - - | AS90: 59 | AT90: 0.01257280899 | AU90: 0.7750956786 | AV90: 0.08892349823
A91: 61 | B91: -1 | C91: -1 | D91: -1 | E91: -1 | F91: -1 | G91: -1 | H91: -1 | O91: 61 | P91: RCS2-RA5C-60 | Q91: - - - | AS91: 60 | AT91: 0.01278590745 | AU91: 0.801592773 | AV91: 0.0933806155
A92: 62 | B92: -1 | C92: -1 | D92: -1 | E92: -1 | F92: -1 | G92: -1 | H92: -1 | O92: 62 | P92: RCS2-RA5C-100 | Q92: - - - | AS92: 61 | AT92: 0.01299900591 | AU92: 0.8285351968 | AV92: 0.09797960333
A93: 63 | B93: -1 | C93: -1 | D93: -1 | E93: -1 | F93: -1 | G93: -1 | H93: -1 | O93: 63 | P93: ISB-SXM-100 | Q93: - - - | AS93: 62 | AT93: 0.01321210437 | AU93: 0.8559229499 | AV93: 0.1027223955
A94: 64 | B94: -1 | C94: -1 | D94: -1 | E94: -1 | F94: -1 | G94: -1 | H94: -1 | O94: 64 | P94: ISB-MXM-400 | Q94: - - - | AS94: 63 | AT94: 0.01342520282 | AU94: 0.8837560323 | AV94: 0.1076109136
A95: =A94+1 -> 65 | B95: -1 | C95: -1 | D95: -1 | E95: -1 | F95: -1 | G95: -1 | H95: -1 | O95: 65 | P95: ISB-SXL-100 | Q95: - - - | AS95: 64 | AT95: =$AP$18/$N$7*AS95 -> 0.01363830128 | AU95: 0.912034444 | AV95: 0.1126470668
A96: 66 | B96: -1 | C96: -1 | D96: -1 | E96: -1 | F96: -1 | G96: -1 | H96: -1 | O96: =O95+1 -> 66 | P96: ISB-MXL-400 | Q96: - - - | AS96: 65 | AT96: 0.01385139974 | AU96: =IF(($N$4*AT96^2/2)<=$AP$13,($N$4*AT96^2/2), IF(($AP$13+$N$6*(AT96-$AP$12))<=$AP$17, ($AP$13+$N$6*(AT96-$AP$12)), IF(AU95<$D$14, ($AP$17+($N$6-$N$5*(AT96-$AP$16)/2)*(AT96-$AP$16)), $D$14))) -> 0.940758185 | AV96: 0.1178327521
A97: 67 | B97: -1 | C97: -1 | D97: -1 | E97: -1 | F97: -1 | G97: -1 | H97: -1 | O97: =O96+1 -> 67 | P97: ISDB-S-100 | Q97: - - - | AS97: =AS96+1 -> 66 | AT97: 0.0140644982 | AU97: 0.9699272554 | AV97: =( $AP$6*AU97 + $AP$7*AU96 + $AP$9*AV96 )/$AP$8 -> 0.1231698547
A98: 68 | B98: -1 | C98: -1 | D98: -1 | E98: -1 | F98: -1 | G98: -1 | H98: -1 | O98: =O97+1 -> 68 | P98: ISDB-M-400 | Q98: - - - | AS98: 67 | AT98: 0.01427759665 | AU98: 0.999541655 | AV98: 0.1286602474
A99: 69 | B99: -1 | C99: -1 | D99: -1 | E99: -1 | F99: -1 | G99: -1 | H99: -1 | O99: =O98+1 -> 69 | P99: RCS4-SA4C-60 | Q99: - - - | AS99: 68 | AT99: 0.01449069511 | AU99: 1.029601384 | AV99: 0.1343057913
A100: 70 | B100: -1 | C100: -1 | D100: -1 | E100: -1 | F100: -1 | G100: -1 | H100: -1 | O100: 70 | P100: RCS4-SA4R-60 | Q100: - - - | AS100: 69 | AT100: 0.01470379357 | AU100: 1.060106442 | AV100: 0.1401083356
A101: 71 | B101: -1 | C101: -1 | D101: -1 | E101: -1 | F101: -1 | G101: -1 | H101: -1 | O101: 71 | P101: RCS4-SA6C-100 | Q101: - - - | AS101: 70 | AT101: 0.01491689203 | AU101: 1.09105683 | AV101: 0.1460697177
A102: 72 | B102: -1 | C102: -1 | D102: -1 | E102: -1 | F102: -1 | G102: -1 | H102: -1 | O102: 72 | P102: RCS4-SA6R-100 | Q102: - - - | AS102: 71 | AT102: 0.01512999049 | AU102: 1.122452547 | AV102: 0.1521917633
A103: 73 | B103: -1 | C103: -1 | D103: -1 | E103: -1 | F103: -1 | G103: -1 | H103: -1 | O103: 73 | P103: RCS4-SA7C-200 | Q103: - - - | AS103: 72 | AT103: 0.01534308894 | AU103: 1.154282602 | AV103: 0.1584762514
A104: 74 | B104: -1 | C104: -1 | D104: -1 | E104: -1 | F104: -1 | G104: -1 | H104: -1 | O104: 74 | P104: RCS4-SA7R-200 | Q104: - - - | AS104: 73 | AT104: 0.0155561874 | AU104: 1.18624737 | AV104: 0.16492396
A105: 75 | B105: -1 | C105: -1 | D105: -1 | E105: -1 | F105: -1 | G105: -1 | H105: -1 | O105: 75 | P105: RCS4-SA8C-400 | Q105: - - - | AS105: 74 | AT105: 0.01576928586 | AU105: 1.218212139 | AV105: 0.1715342782
A106: 76 | B106: -1 | C106: -1 | D106: -1 | E106: -1 | F106: -1 | G106: -1 | H106: -1 | O106: 76 | P106: RCS4-SA8R-400 | Q106: - - - | AS106: 75 | AT106: 0.01598238432 | AU106: 1.250176908 | AV106: 0.1783061698
A107: 77 | B107: -1 | C107: -1 | D107: -1 | E107: -1 | F107: -1 | G107: -1 | H107: -1 | O107: 77 | P107: RCS4-WSA10C-60 | Q107: - - - | AS107: 76 | AT107: 0.01619548277 | AU107: 1.282141676 | AV107: 0.1852386051
A108: 78 | B108: -1 | C108: -1 | D108: -1 | E108: -1 | F108: -1 | G108: -1 | H108: -1 | O108: 78 | P108: RCS4-WSA10R-60 | Q108: - - - | AS108: 77 | AT108: 0.01640858123 | AU108: 1.314106445 | AV108: 0.1923305611
A109: 79 | B109: -1 | C109: -1 | D109: -1 | E109: -1 | F109: -1 | G109: -1 | H109: -1 | O109: 79 | P109: RCS4-WSA12C-100 | Q109: - - - | AS109: 78 | AT109: 0.01662167969 | AU109: 1.346071214 | AV109: 0.1995810211
A110: 80 | B110: -1 | C110: -1 | D110: -1 | E110: -1 | F110: -1 | G110: -1 | H110: -1 | O110: 80 | P110: RCS4-WSA12R-100 | Q110: - - - | AS110: 79 | AT110: 0.01683477815 | AU110: 1.378035982 | AV110: 0.2069889751
A111: 81 | B111: -1 | C111: -1 | D111: -1 | E111: -1 | F111: -1 | G111: -1 | H111: -1 | O111: 81 | P111: RCS4-WSA14C-200 | Q111: - - - | AS111: 80 | AT111: 0.0170478766 | AU111: 1.410000751 | AV111: 0.2145534195
A112: 82 | B112: -1 | C112: -1 | D112: -1 | E112: -1 | F112: -1 | G112: -1 | H112: -1 | O112: 82 | P112: RCS4-WSA14R-200 | Q112: - - - | AS112: 81 | AT112: 0.01726097506 | AU112: 1.441965519 | AV112: 0.222273357
A113: 83 | B113: -1 | C113: -1 | D113: -1 | E113: -1 | F113: -1 | G113: -1 | H113: -1 | O113: 83 | P113: RCS4-WSA16C-400 | Q113: - - - | AS113: 82 | AT113: 0.01747407352 | AU113: 1.473930288 | AV113: 0.2301477968
A114: 84 | B114: -1 | C114: -1 | D114: -1 | E114: -1 | F114: -1 | G114: -1 | H114: -1 | O114: 84 | P114: RCS4-WSA16R-400 | Q114: - - - | AS114: 83 | AT114: 0.01768717198 | AU114: 1.505895057 | AV114: 0.2381757541
A115: 85 | B115: -1 | C115: -1 | D115: -1 | E115: -1 | F115: -1 | G115: -1 | H115: -1 | AS115: 84 | AT115: 0.01790027043 | AU115: 1.537859825 | AV115: 0.2463562509
A116: 86 | B116: -1 | C116: -1 | D116: -1 | E116: -1 | F116: -1 | G116: -1 | H116: -1 | AS116: 85 | AT116: 0.01811336889 | AU116: 1.569824594 | AV116: 0.2546883148
A117: 87 | B117: -1 | C117: -1 | D117: -1 | E117: -1 | F117: -1 | G117: -1 | H117: -1 | AS117: 86 | AT117: 0.01832646735 | AU117: 1.601789363 | AV117: 0.2631709802
A118: 88 | B118: -1 | C118: -1 | D118: -1 | E118: -1 | F118: -1 | G118: -1 | H118: -1 | AS118: 87 | AT118: 0.01853956581 | AU118: 1.633754131 | AV118: 0.2718032873
A119: 89 | B119: -1 | C119: -1 | D119: -1 | E119: -1 | F119: -1 | G119: -1 | H119: -1 | AS119: 88 | AT119: 0.01875266426 | AU119: 1.6657189 | AV119: 0.2805842824
A120: 90 | B120: -1 | C120: -1 | D120: -1 | E120: -1 | F120: -1 | G120: -1 | H120: -1 | AS120: 89 | AT120: 0.01896576272 | AU120: 1.697683668 | AV120: 0.289513018
A121: 91 | B121: -1 | C121: -1 | D121: -1 | E121: -1 | F121: -1 | G121: -1 | H121: -1 | AS121: 90 | AT121: 0.01917886118 | AU121: 1.729648437 | AV121: 0.2985885528
A122: 92 | B122: -1 | C122: -1 | D122: -1 | E122: -1 | F122: -1 | G122: -1 | H122: -1 | AS122: 91 | AT122: 0.01939195964 | AU122: 1.761613206 | AV122: 0.307809951
A123: 93 | B123: -1 | C123: -1 | D123: -1 | E123: -1 | F123: -1 | G123: -1 | H123: -1 | AS123: 92 | AT123: 0.01960505809 | AU123: 1.793577974 | AV123: 0.3171762833
A124: 94 | B124: -1 | C124: -1 | D124: -1 | E124: -1 | F124: -1 | G124: -1 | H124: -1 | AS124: 93 | AT124: 0.01981815655 | AU124: 1.825542743 | AV124: 0.3266866261
A125: 95 | B125: -1 | C125: -1 | D125: -1 | E125: -1 | F125: -1 | G125: -1 | H125: -1 | AS125: 94 | AT125: 0.02003125501 | AU125: 1.857507512 | AV125: 0.3363400615
A126: 96 | B126: -1 | C126: -1 | D126: -1 | E126: -1 | F126: -1 | G126: -1 | H126: -1 | AS126: 95 | AT126: 0.02024435347 | AU126: 1.88947228 | AV126: 0.3461356778
A127: 97 | B127: -1 | C127: -1 | D127: -1 | E127: -1 | F127: -1 | G127: -1 | H127: -1 | AS127: 96 | AT127: 0.02045745192 | AU127: 1.921437049 | AV127: 0.3560725689
A128: 98 | B128: -1 | C128: -1 | D128: -1 | E128: -1 | F128: -1 | G128: -1 | H128: -1 | AS128: 97 | AT128: 0.02067055038 | AU128: 1.953401818 | AV128: 0.3661498345
A129: 99 | B129: -1 | C129: -1 | D129: -1 | E129: -1 | F129: -1 | G129: -1 | H129: -1 | AS129: 98 | AT129: 0.02088364884 | AU129: 1.985366586 | AV129: 0.37636658
A130: 100 | B130: -1 | C130: -1 | D130: -1 | E130: -1 | F130: -1 | G130: -1 | H130: -1 | AS130: 99 | AT130: 0.0210967473 | AU130: 2.017331355 | AV130: 0.3867219167
A131: 101 | B131: -1 | C131: -1 | D131: -1 | E131: -1 | F131: -1 | G131: -1 | H131: -1 | AS131: 100 | AT131: 0.02130984575 | AU131: 2.049296123 | AV131: 0.3972149612
A132: 102 | B132: -1 | C132: -1 | D132: -1 | E132: -1 | F132: -1 | G132: -1 | H132: -1 | AS132: =AS131+1 -> 101 | AT132: 0.02152294421 | AU132: 2.081260892 | AV132: 0.4078448361
A133: 103 | B133: -1 | C133: -1 | D133: -1 | E133: -1 | F133: -1 | G133: -1 | H133: -1 | AS133: 102 | AT133: 0.02173604267 | AU133: 2.113225661 | AV133: 0.4186106695
A134: 104 | B134: -1 | C134: -1 | D134: -1 | E134: -1 | F134: -1 | G134: -1 | H134: -1 | AS134: 103 | AT134: 0.02194914113 | AU134: 2.145190429 | AV134: 0.4295115948
A135: 105 | B135: -1 | C135: -1 | D135: -1 | E135: -1 | F135: -1 | G135: -1 | H135: -1 | AS135: 104 | AT135: 0.02216223958 | AU135: 2.177155198 | AV135: 0.4405467512
A136: 106 | B136: -1 | C136: -1 | D136: -1 | E136: -1 | F136: -1 | G136: -1 | H136: -1 | AS136: 105 | AT136: 0.02237533804 | AU136: 2.209119967 | AV136: 0.4517152833
A137: 107 | B137: -1 | C137: -1 | D137: -1 | E137: -1 | F137: -1 | G137: -1 | H137: -1 | AS137: 106 | AT137: 0.0225884365 | AU137: 2.241084735 | AV137: 0.4630163412
A138: 108 | B138: -1 | C138: -1 | D138: -1 | E138: -1 | F138: -1 | G138: -1 | H138: -1 | AS138: 107 | AT138: 0.02280153496 | AU138: 2.273049504 | AV138: 0.4744490803
A139: 109 | B139: -1 | C139: -1 | D139: -1 | E139: -1 | F139: -1 | G139: -1 | H139: -1 | AS139: 108 | AT139: 0.02301463341 | AU139: 2.305014272 | AV139: 0.4860126615
A140: 110 | B140: -1 | C140: -1 | D140: -1 | E140: -1 | F140: -1 | G140: -1 | H140: -1 | AS140: 109 | AT140: 0.02322773187 | AU140: 2.336979041 | AV140: 0.497706251
A141: 111 | B141: -1 | C141: -1 | D141: -1 | E141: -1 | F141: -1 | G141: -1 | H141: -1 | AS141: 110 | AT141: 0.02344083033 | AU141: 2.36894381 | AV141: 0.5095290203
A142: 112 | B142: -1 | C142: -1 | D142: -1 | E142: -1 | F142: -1 | G142: -1 | H142: -1 | AS142: 111 | AT142: 0.02365392879 | AU142: 2.400908578 | AV142: 0.5214801461
A143: 113 | B143: -1 | C143: -1 | D143: -1 | E143: -1 | F143: -1 | G143: -1 | H143: -1 | AS143: 112 | AT143: 0.02386702724 | AU143: 2.432873347 | AV143: 0.5335588106
A144: 114 | B144: -1 | C144: -1 | D144: -1 | E144: -1 | F144: -1 | G144: -1 | H144: -1 | AS144: 113 | AT144: 0.0240801257 | AU144: 2.464838116 | AV144: 0.545764201
A145: 115 | B145: -1 | C145: -1 | D145: -1 | E145: -1 | F145: -1 | G145: -1 | H145: -1 | AS145: 114 | AT145: 0.02429322416 | AU145: 2.496802884 | AV145: 0.5580955096
A146: 116 | B146: -1 | C146: -1 | D146: -1 | E146: -1 | F146: -1 | G146: -1 | H146: -1 | AS146: 115 | AT146: 0.02450632262 | AU146: 2.528767653 | AV146: 0.5705519341
A147: 117 | B147: -1 | C147: -1 | D147: -1 | E147: -1 | F147: -1 | G147: -1 | H147: -1 | AS147: 116 | AT147: 0.02471942107 | AU147: 2.560732422 | AV147: 0.5831326772
A148: 118 | B148: -1 | C148: -1 | D148: -1 | E148: -1 | F148: -1 | G148: -1 | H148: -1 | AS148: 117 | AT148: 0.02493251953 | AU148: 2.59269719 | AV148: 0.5958369466
A149: 119 | B149: -1 | C149: -1 | D149: -1 | E149: -1 | F149: -1 | G149: -1 | H149: -1 | AS149: 118 | AT149: 0.02514561799 | AU149: 2.624661959 | AV149: 0.6086639551
A150: 120 | B150: -1 | C150: -1 | D150: -1 | E150: -1 | F150: -1 | G150: -1 | H150: -1 | AS150: 119 | AT150: 0.02535871645 | AU150: 2.656626727 | AV150: 0.6216129206
A151: 121 | B151: -1 | C151: -1 | D151: -1 | E151: -1 | F151: -1 | G151: -1 | H151: -1 | AS151: 120 | AT151: 0.0255718149 | AU151: 2.688591496 | AV151: 0.6346830659
A152: 122 | B152: -1 | C152: -1 | D152: -1 | E152: -1 | F152: -1 | G152: -1 | H152: -1 | AS152: 121 | AT152: 0.02578491336 | AU152: 2.720556265 | AV152: 0.6478736188
A153: 123 | B153: -1 | C153: -1 | D153: -1 | E153: -1 | F153: -1 | G153: -1 | H153: -1 | AS153: 122 | AT153: 0.02599801182 | AU153: 2.752521033 | AV153: 0.661183812
A154: 124 | B154: -1 | C154: -1 | D154: -1 | E154: -1 | F154: -1 | G154: -1 | H154: -1 | AS154: 123 | AT154: 0.02621111028 | AU154: 2.784485802 | AV154: 0.674612883
A155: 125 | B155: -1 | C155: -1 | D155: -1 | E155: -1 | F155: -1 | G155: -1 | H155: -1 | AS155: 124 | AT155: 0.02642420873 | AU155: 2.816450571 | AV155: 0.6881600743
A156: 126 | B156: -1 | C156: -1 | D156: -1 | E156: -1 | F156: -1 | G156: -1 | H156: -1 | AS156: 125 | AT156: 0.02663730719 | AU156: 2.848415339 | AV156: 0.7018246332
A157: 127 | B157: -1 | C157: -1 | D157: -1 | E157: -1 | F157: -1 | G157: -1 | H157: -1 | AS157: 126 | AT157: 0.02685040565 | AU157: 2.880380108 | AV157: 0.7156058116
A158: 128 | B158: -1 | C158: -1 | D158: -1 | E158: -1 | F158: -1 | G158: -1 | H158: -1 | AS158: 127 | AT158: 0.02706350411 | AU158: 2.912344876 | AV158: 0.7295028666
A159: =A158+1 -> 129 | B159: -1 | C159: -1 | D159: -1 | E159: -1 | F159: -1 | G159: -1 | H159: -1 | AS159: 128 | AT159: =$AP$18/$N$7*AS159 -> 0.02727660256 | AU159: 2.944309645 | AV159: 0.7435150595
A160: 130 | B160: -1 | C160: -1 | D160: -1 | E160: -1 | F160: -1 | G160: -1 | H160: -1 | AS160: 129 | AT160: 0.02748970102 | AU160: =IF(($N$4*AT160^2/2)<=$AP$13,($N$4*AT160^2/2), IF(($AP$13+$N$6*(AT160-$AP$12))<=$AP$17, ($AP$13+$N$6*(AT160-$AP$12)), IF(AU159<$D$14, ($AP$17+($N$6-$N$5*(AT160-$AP$16)/2)*(AT160-$AP$16)), $D$14))) -> 2.976274414 | AV160: 0.7576416568
A161: 131 | B161: -1 | C161: -1 | D161: -1 | E161: -1 | F161: -1 | G161: -1 | H161: -1 | AS161: 130 | AT161: 0.02770279948 | AU161: 3.008239182 | AV161: =( $AP$6*AU161 + $AP$7*AU160 + $AP$9*AV160 )/$AP$8 -> 0.7718819293
A162: 132 | B162: -1 | C162: -1 | D162: -1 | E162: -1 | F162: -1 | G162: -1 | H162: -1 | AS162: 131 | AT162: 0.02791589794 | AU162: 3.040203951 | AV162: 0.7862351526
A163: 133 | B163: -1 | C163: -1 | D163: -1 | E163: -1 | F163: -1 | G163: -1 | H163: -1 | AS163: 132 | AT163: 0.02812899639 | AU163: 3.07216872 | AV163: 0.800700607
A164: 134 | B164: -1 | C164: -1 | D164: -1 | E164: -1 | F164: -1 | G164: -1 | H164: -1 | AS164: 133 | AT164: 0.02834209485 | AU164: 3.104133488 | AV164: 0.8152775772
A165: 135 | B165: -1 | C165: -1 | D165: -1 | E165: -1 | F165: -1 | G165: -1 | H165: -1 | AS165: 134 | AT165: 0.02855519331 | AU165: 3.136098257 | AV165: 0.8299653526
A166: 136 | B166: -1 | C166: -1 | D166: -1 | E166: -1 | F166: -1 | G166: -1 | H166: -1 | AS166: 135 | AT166: 0.02876829177 | AU166: 3.168063025 | AV166: 0.8447632272
A167: 137 | B167: -1 | C167: -1 | D167: -1 | E167: -1 | F167: -1 | G167: -1 | H167: -1 | AS167: 136 | AT167: 0.02898139022 | AU167: 3.200027794 | AV167: 0.8596704992
A168: 138 | B168: -1 | C168: -1 | D168: -1 | E168: -1 | F168: -1 | G168: -1 | H168: -1 | AS168: 137 | AT168: 0.02919448868 | AU168: 3.231992563 | AV168: 0.8746864715
A169: 139 | B169: -1 | C169: -1 | D169: -1 | E169: -1 | F169: -1 | G169: -1 | H169: -1 | AS169: 138 | AT169: 0.02940758714 | AU169: 3.263957331 | AV169: 0.8898104514
A170: 140 | B170: -1 | C170: -1 | D170: -1 | E170: -1 | F170: -1 | G170: -1 | H170: -1 | AS170: 139 | AT170: 0.0296206856 | AU170: 3.2959221 | AV170: 0.9050417507
A171: 141 | B171: -1 | C171: -1 | D171: -1 | E171: -1 | F171: -1 | G171: -1 | H171: -1 | AS171: 140 | AT171: 0.02983378405 | AU171: 3.327886869 | AV171: 0.9203796855
A172: 142 | B172: -1 | C172: -1 | D172: -1 | E172: -1 | F172: -1 | G172: -1 | H172: -1 | AS172: 141 | AT172: 0.03004688251 | AU172: 3.359851637 | AV172: 0.9358235761
A173: 143 | B173: -1 | C173: -1 | D173: -1 | E173: -1 | F173: -1 | G173: -1 | H173: -1 | AS173: 142 | AT173: 0.03025998097 | AU173: 3.391816406 | AV173: 0.9513727474
A174: 144 | B174: -1 | C174: -1 | D174: -1 | E174: -1 | F174: -1 | G174: -1 | H174: -1 | AS174: 143 | AT174: 0.03047307943 | AU174: 3.423781175 | AV174: 0.9670265285
A175: 145 | B175: -1 | C175: -1 | D175: -1 | E175: -1 | F175: -1 | G175: -1 | H175: -1 | AS175: 144 | AT175: 0.03068617789 | AU175: 3.455745943 | AV175: 0.9827842527
A176: 146 | B176: -1 | C176: -1 | D176: -1 | E176: -1 | F176: -1 | G176: -1 | H176: -1 | AS176: 145 | AT176: 0.03089927634 | AU176: 3.487710712 | AV176: 0.9986452576
A177: 147 | B177: -1 | C177: -1 | D177: -1 | E177: -1 | F177: -1 | G177: -1 | H177: -1 | AS177: 146 | AT177: 0.0311123748 | AU177: 3.51967548 | AV177: 1.014608885
A178: 148 | B178: -1 | C178: -1 | D178: -1 | E178: -1 | F178: -1 | G178: -1 | H178: -1 | AS178: 147 | AT178: 0.03132547326 | AU178: 3.551640249 | AV178: 1.030674481
A179: 149 | B179: -1 | C179: -1 | D179: -1 | E179: -1 | F179: -1 | G179: -1 | H179: -1 | AS179: 148 | AT179: 0.03153857172 | AU179: 3.583605018 | AV179: 1.046841396
A180: 150 | B180: -1 | C180: -1 | D180: -1 | E180: -1 | F180: -1 | G180: -1 | H180: -1 | AS180: 149 | AT180: 0.03175167017 | AU180: 3.615569786 | AV180: 1.063108984
A181: 151 | B181: -1 | C181: -1 | D181: -1 | E181: -1 | F181: -1 | G181: -1 | H181: -1 | AS181: 150 | AT181: 0.03196476863 | AU181: 3.647534555 | AV181: 1.079476604
A182: 152 | B182: -1 | C182: -1 | D182: -1 | E182: -1 | F182: -1 | G182: -1 | H182: -1 | AS182: 151 | AT182: 0.03217786709 | AU182: 3.679499324 | AV182: 1.095943618
A183: 153 | B183: -1 | C183: -1 | D183: -1 | E183: -1 | F183: -1 | G183: -1 | H183: -1 | AS183: =AS182+1 -> 152 | AT183: 0.03239096555 | AU183: 3.711464092 | AV183: 1.112509393
A184: 154 | B184: -1 | C184: -1 | D184: -1 | E184: -1 | F184: -1 | G184: -1 | H184: -1 | AS184: 153 | AT184: 0.032604064 | AU184: 3.743428861 | AV184: 1.129173299
A185: 155 | B185: -1 | C185: -1 | D185: -1 | E185: -1 | F185: -1 | G185: -1 | H185: -1 | AS185: 154 | AT185: 0.03281716246 | AU185: 3.775393629 | AV185: 1.145934711
A186: 156 | B186: -1 | C186: -1 | D186: -1 | E186: -1 | F186: -1 | G186: -1 | H186: -1 | AS186: 155 | AT186: 0.03303026092 | AU186: 3.807358398 | AV186: 1.162793007
A187: 157 | B187: -1 | C187: -1 | D187: -1 | E187: -1 | F187: -1 | G187: -1 | H187: -1 | AS187: 156 | AT187: 0.03324335938 | AU187: 3.839323167 | AV187: 1.179747571
A188: 158 | B188: -1 | C188: -1 | D188: -1 | E188: -1 | F188: -1 | G188: -1 | H188: -1 | AS188: 157 | AT188: 0.03345645783 | AU188: 3.871287935 | AV188: 1.196797789
A189: 159 | B189: -1 | C189: -1 | D189: -1 | E189: -1 | F189: -1 | G189: -1 | H189: -1 | AS189: 158 | AT189: 0.03366955629 | AU189: 3.903252704 | AV189: 1.213943051
A190: 160 | B190: -1 | C190: -1 | D190: -1 | E190: -1 | F190: -1 | G190: -1 | H190: -1 | AS190: 159 | AT190: 0.03388265475 | AU190: 3.935217473 | AV190: 1.231182751
A191: 161 | B191: -1 | C191: -1 | D191: -1 | E191: -1 | F191: -1 | G191: -1 | H191: -1 | AS191: 160 | AT191: 0.03409575321 | AU191: 3.967182241 | AV191: 1.248516289
A192: 162 | B192: -1 | C192: -1 | D192: -1 | E192: -1 | F192: -1 | G192: -1 | H192: -1 | AS192: 161 | AT192: 0.03430885166 | AU192: 3.99914701 | AV192: 1.265943065
A193: 163 | B193: -1 | C193: -1 | D193: -1 | E193: -1 | F193: -1 | G193: -1 | H193: -1 | AS193: 162 | AT193: 0.03452195012 | AU193: 4.031111779 | AV193: 1.283462485
A194: 164 | B194: -1 | C194: -1 | D194: -1 | E194: -1 | F194: -1 | G194: -1 | H194: -1 | AS194: 163 | AT194: 0.03473504858 | AU194: 4.063076547 | AV194: 1.30107396
A195: 165 | B195: -1 | C195: -1 | D195: -1 | E195: -1 | F195: -1 | G195: -1 | H195: -1 | AS195: 164 | AT195: 0.03494814704 | AU195: 4.095041316 | AV195: 1.318776902
A196: 166 | B196: -1 | C196: -1 | D196: -1 | E196: -1 | F196: -1 | G196: -1 | H196: -1 | AS196: 165 | AT196: 0.03516124549 | AU196: 4.127006084 | AV196: 1.336570729
A197: 167 | B197: -1 | C197: -1 | D197: -1 | E197: -1 | F197: -1 | G197: -1 | H197: -1 | AS197: 166 | AT197: 0.03537434395 | AU197: 4.158970853 | AV197: 1.354454862
A198: 168 | B198: -1 | C198: -1 | D198: -1 | E198: -1 | F198: -1 | G198: -1 | H198: -1 | AS198: 167 | AT198: 0.03558744241 | AU198: 4.190935622 | AV198: 1.372428724
A199: 169 | B199: -1 | C199: -1 | D199: -1 | E199: -1 | F199: -1 | G199: -1 | H199: -1 | AS199: 168 | AT199: 0.03580054087 | AU199: 4.22290039 | AV199: 1.390491745
A200: 170 | B200: -1 | C200: -1 | D200: -1 | E200: -1 | F200: -1 | G200: -1 | H200: -1 | AS200: 169 | AT200: 0.03601363932 | AU200: 4.254865159 | AV200: 1.408643356
A201: 171 | B201: -1 | C201: -1 | D201: -1 | E201: -1 | F201: -1 | G201: -1 | H201: -1 | AS201: 170 | AT201: 0.03622673778 | AU201: 4.286829928 | AV201: 1.426882992
A202: 172 | B202: -1 | C202: -1 | D202: -1 | E202: -1 | F202: -1 | G202: -1 | H202: -1 | AS202: 171 | AT202: 0.03643983624 | AU202: 4.318794696 | AV202: 1.445210093
A203: 173 | B203: -1 | C203: -1 | D203: -1 | E203: -1 | F203: -1 | G203: -1 | H203: -1 | AS203: 172 | AT203: 0.0366529347 | AU203: 4.350759465 | AV203: 1.463624101
A204: 174 | B204: -1 | C204: -1 | D204: -1 | E204: -1 | F204: -1 | G204: -1 | H204: -1 | AS204: 173 | AT204: 0.03686603315 | AU204: 4.382724233 | AV204: 1.482124463
... 921 more rows

Sheet DataSerch (hidden)
A1: 選択型式 | B1: メカ機種データレコード | M1: $87 | N1: ：「メカ機種データ」範囲検索 | R1: $87 | S1: ➡➡➡ | T1: $87
A2: =CycleTime!C6 -> RCS4-SA4C-60 | B2: № | C2: =ModelData!$B$2 -> ｱｸﾁｭｴｰﾀ型式 | H2: =ModelData!$C$2 -> 最小ｽﾄﾛｰｸ | I2: =ModelData!$D$2 -> 最大ｽﾄﾛｰｸ | J2: =ModelData!$E$2 -> 動作種別 | M2: $63 | N2: ：「モータ機種データ」範囲検索 | R2: $63 | S2: ➡➡➡ | T2: $63
B3: =MATCH(A2,ModelData!$B$4:$B$87,0) -> 69 | C3: =LOOKUP(B3,ModelData!$A$4:$A$87,ModelData!$B$4:$B$87) -> RCS4-SA4C-60 | H3: =LOOKUP(B3,ModelData!$A$4:$A$87,ModelData!$C$4:$C$87) -> 50 | I3: =LOOKUP(B3,ModelData!$A$4:$A$87,ModelData!$D$4:$D$87) -> 500 | J3: =LOOKUP(B3,ModelData!$A$4:$A$87,ModelData!$E$4:$E$87) -> 0 | M3: $288 | N3: ：「リードデータ」範囲検索 | R3: $288 | S3: ➡➡➡ | T3: $288
A4: リード | E4: [kg] | F4: [mm] | G4: [mm] | H4: [mm] | I4: [mm] | J4: 0/1 | K4: [K] | M4: $2036 | N4: ：「ストロークデータ」範囲検索 | R4: $2036 | S4: ➡➡➡ | T4: $2036
A5: =CycleTime!C8 -> 2.5 | E5: =E3/10 -> 0 | F5: =F3/10 -> 0 | G5: =G3 -> 0 | H5: =H3 -> 50 | I5: =I3 -> 500 | J5: =J3 -> 0 | M5: $4056 | N5: ：「搬送負荷データ」範囲検索 | R5: $4056 | S5: ➡➡➡ | T5: $4056
M6: $4497 | N6: ：「加減速・速度データ」範囲検索 | R6: $4497 | S6: ➡➡➡ | T6: $4497
A7: ストローク | B7: モータ機種レコード
A8: =CycleTime!C10 -> 50
A10: 設置姿勢 | D10: [Nm/A] | E10: [A] | F10: [kgm^2] | G10: [Nm] | H10: [Nm] | I10: [rad/s] | J10: [rad/s] | K10: [rad/s] | L10: [Nm/(rad/s)] | M10: [K] | N10: [K] | O10: [s]
A11: =IF(CycleTime!C12=CycleTime!AE20,0,1) -> 0 | D11: =D9/10000 -> 0 | E11: =E9/1000 -> 0 | F11: =F9*0.000000001 -> 0 | G11: =G9/1000 -> 0 | H11: =H9/1000 -> 0 | I11: =I9/1000 -> 0 | J11: =J9/1000 -> 0 | K11: =K9/1000 -> 0 | L11: =L9*0.000001 -> 0 | M11: =M9/10 -> 0 | N11: =N9/10 -> 0 | O11: =O9/100 -> 0
A13: 搬送負荷質量 | B13: リレーション | F13: リードデータレコード | I13: =LOOKUP(C15,LeadData!$A$4:$A$288,LeadData!$J$4:$J$288) -> RCS4-SA4C-60
A14: =CycleTime!B31 -> 11 | C14: ﾘｰﾄﾞ№ | D14: ｽﾄﾛｰｸ№ | E14: 負荷№ | F14: =LeadData!$B$2 -> ﾘｰﾄﾞ長 | H14: =LeadData!$C$2 -> 水平定格加速度 | I14: =LeadData!$D$2 -> 垂直定格加速度 | J14: =LeadData!$E$2 -> 水平最大加速度 | K14: =LeadData!$F$2 -> 垂直最大加速度 | O14: =LeadData!$G$2 -> ｷﾞｱ比分子 | P14: =LeadData!$H$2 -> ｷﾞｱ比分母 | R14: =LeadData!$I$2 -> ｽﾄﾛｰｸ刻み
B15: =ModelData!$F$2 -> リンク[0] | C15: =LOOKUP(B3,ModelData!$A$4:$A$87,ModelData!$F$4:$F$87) -> 212 | D15: =LOOKUP(B3,ModelData!$A$4:$A$87,ModelData!$G$4:$G$87) -> 1484 | E15: =LOOKUP(B3,ModelData!$A$4:$A$87,ModelData!$H$4:$H$87) -> 2977 | F15: =LOOKUP(C15,LeadData!$A$4:$A$288,LeadData!$B$4:$B$288) -> 2500 | H15: =LOOKUP(C15,LeadData!$A$4:$A$288,LeadData!$C$4:$C$288) -> 2941995 | I15: =LOOKUP(C15,LeadData!$A$4:$A$288,LeadData!$D$4:$D$288) -> 2941995 | J15: =LOOKUP(C15,LeadData!$A$4:$A$288,LeadData!$E$4:$E$288) -> 14709975 | K15: =LOOKUP(C15,LeadData!$A$4:$A$288,LeadData!$F$4:$F$288) -> 14709975 | O15: =LOOKUP(C15,LeadData!$A$4:$A$288,LeadData!$G$4:$G$288) -> 1 | P15: =LOOKUP(C15,LeadData!$A$4:$A$288,LeadData!$H$4:$H$288) -> 1 | R15: =LOOKUP(C15,LeadData!$A$4:$A$288,LeadData!$I$4:$I$288) -> 50
B16: =ModelData!$I$2 -> リンク[1] | C16: =LOOKUP(B3,ModelData!$A$4:$A$87,ModelData!$I$4:$I$87) -> 213 | D16: =LOOKUP(B3,ModelData!$A$4:$A$87,ModelData!$J$4:$J$87) -> 1486 | E16: =LOOKUP(B3,ModelData!$A$4:$A$87,ModelData!$K$4:$K$87) -> 2985 | F16: =LOOKUP(C16,LeadData!$A$4:$A$288,LeadData!$B$4:$B$288) -> 5000 | H16: =LOOKUP(C16,LeadData!$A$4:$A$288,LeadData!$C$4:$C$288) -> 2941995 | I16: =LOOKUP(C16,LeadData!$A$4:$A$288,LeadData!$D$4:$D$288) -> 2941995 | J16: =LOOKUP(C16,LeadData!$A$4:$A$288,LeadData!$E$4:$E$288) -> 44129925 | K16: =LOOKUP(C16,LeadData!$A$4:$A$288,LeadData!$F$4:$F$288) -> 29419950 | O16: =LOOKUP(C16,LeadData!$A$4:$A$288,LeadData!$G$4:$G$288) -> 1 | P16: =LOOKUP(C16,LeadData!$A$4:$A$288,LeadData!$H$4:$H$288) -> 1 | R16: =LOOKUP(C16,LeadData!$A$4:$A$288,LeadData!$I$4:$I$288) -> 50
B17: =ModelData!$L$2 -> リンク[2] | C17: =LOOKUP(B3,ModelData!$A$4:$A$87,ModelData!$L$4:$L$87) -> 214 | D17: =LOOKUP(B3,ModelData!$A$4:$A$87,ModelData!$M$4:$M$87) -> 1488 | E17: =LOOKUP(B3,ModelData!$A$4:$A$87,ModelData!$N$4:$N$87) -> 3009 | F17: =LOOKUP(C17,LeadData!$A$4:$A$288,LeadData!$B$4:$B$288) -> 10000 | H17: =LOOKUP(C17,LeadData!$A$4:$A$288,LeadData!$C$4:$C$288) -> 2941995 | I17: =LOOKUP(C17,LeadData!$A$4:$A$288,LeadData!$D$4:$D$288) -> 2941995 | J17: =LOOKUP(C17,LeadData!$A$4:$A$288,LeadData!$E$4:$E$288) -> 44129925 | K17: =LOOKUP(C17,LeadData!$A$4:$A$288,LeadData!$F$4:$F$288) -> 29419950 | O17: =LOOKUP(C17,LeadData!$A$4:$A$288,LeadData!$G$4:$G$288) -> 1 | P17: =LOOKUP(C17,LeadData!$A$4:$A$288,LeadData!$H$4:$H$288) -> 1 | R17: =LOOKUP(C17,LeadData!$A$4:$A$288,LeadData!$I$4:$I$288) -> 50
B18: =ModelData!$O$2 -> リンク[3] | C18: =LOOKUP(B3,ModelData!$A$4:$A$87,ModelData!$O$4:$O$87) -> 215 | D18: =LOOKUP(B3,ModelData!$A$4:$A$87,ModelData!$P$4:$P$87) -> 1490 | E18: =LOOKUP(B3,ModelData!$A$4:$A$87,ModelData!$Q$4:$Q$87) -> 3030 | F18: =LOOKUP(C18,LeadData!$A$4:$A$288,LeadData!$B$4:$B$288) -> 16000 | H18: =LOOKUP(C18,LeadData!$A$4:$A$288,LeadData!$C$4:$C$288) -> 2941995 | I18: =LOOKUP(C18,LeadData!$A$4:$A$288,LeadData!$D$4:$D$288) -> 2941995 | J18: =LOOKUP(C18,LeadData!$A$4:$A$288,LeadData!$E$4:$E$288) -> 44129925 | K18: =LOOKUP(C18,LeadData!$A$4:$A$288,LeadData!$F$4:$F$288) -> 29419950 | O18: =LOOKUP(C18,LeadData!$A$4:$A$288,LeadData!$G$4:$G$288) -> 1 | P18: =LOOKUP(C18,LeadData!$A$4:$A$288,LeadData!$H$4:$H$288) -> 1 | R18: =LOOKUP(C18,LeadData!$A$4:$A$288,LeadData!$I$4:$I$288) -> 50
B19: =ModelData!$R$2 -> リンク[4] | C19: =LOOKUP(B3,ModelData!$A$4:$A$87,ModelData!$R$4:$R$87) -> -1 | D19: =LOOKUP(B3,ModelData!$A$4:$A$87,ModelData!$S$4:$S$87) -> -1 | E19: =LOOKUP(B3,ModelData!$A$4:$A$87,ModelData!$T$4:$T$87) -> -1 | F19: =LOOKUP(C19,LeadData!$A$4:$A$288,LeadData!$B$4:$B$288) ->  | H19: =LOOKUP(C19,LeadData!$A$4:$A$288,LeadData!$C$4:$C$288) ->  | I19: =LOOKUP(C19,LeadData!$A$4:$A$288,LeadData!$D$4:$D$288) ->  | J19: =LOOKUP(C19,LeadData!$A$4:$A$288,LeadData!$E$4:$E$288) ->  | K19: =LOOKUP(C19,LeadData!$A$4:$A$288,LeadData!$F$4:$F$288) ->  | O19: =LOOKUP(C19,LeadData!$A$4:$A$288,LeadData!$G$4:$G$288) ->  | P19: =LOOKUP(C19,LeadData!$A$4:$A$288,LeadData!$H$4:$H$288) ->  | R19: =LOOKUP(C19,LeadData!$A$4:$A$288,LeadData!$I$4:$I$288) -> 
B20: =ModelData!$U$2 -> リンク[5] | C20: =LOOKUP(B3,ModelData!$A$4:$A$87,ModelData!$U$4:$U$87) -> -1 | D20: =LOOKUP(B3,ModelData!$A$4:$A$87,ModelData!$V$4:$V$87) -> -1 | E20: =LOOKUP(B3,ModelData!$A$4:$A$87,ModelData!$W$4:$W$87) -> -1 | F20: =LOOKUP(C20,LeadData!$A$4:$A$288,LeadData!$B$4:$B$288) ->  | H20: =LOOKUP(C20,LeadData!$A$4:$A$288,LeadData!$C$4:$C$288) ->  | I20: =LOOKUP(C20,LeadData!$A$4:$A$288,LeadData!$D$4:$D$288) ->  | J20: =LOOKUP(C20,LeadData!$A$4:$A$288,LeadData!$E$4:$E$288) ->  | K20: =LOOKUP(C20,LeadData!$A$4:$A$288,LeadData!$F$4:$F$288) ->  | O20: =LOOKUP(C20,LeadData!$A$4:$A$288,LeadData!$G$4:$G$288) ->  | P20: =LOOKUP(C20,LeadData!$A$4:$A$288,LeadData!$H$4:$H$288) ->  | R20: =LOOKUP(C20,LeadData!$A$4:$A$288,LeadData!$I$4:$I$288) -> 
B21: =ModelData!$X$2 -> リンク[6] | C21: =LOOKUP(B3,ModelData!$A$4:$A$87,ModelData!$X$4:$X$87) -> -1 | D21: =LOOKUP(B3,ModelData!$A$4:$A$87,ModelData!$Y$4:$Y$87) -> -1 | E21: =LOOKUP(B3,ModelData!$A$4:$A$87,ModelData!$Z$4:$Z$87) -> -1 | F21: =LOOKUP(C21,LeadData!$A$4:$A$288,LeadData!$B$4:$B$288) ->  | H21: =LOOKUP(C21,LeadData!$A$4:$A$288,LeadData!$C$4:$C$288) ->  | I21: =LOOKUP(C21,LeadData!$A$4:$A$288,LeadData!$D$4:$D$288) ->  | J21: =LOOKUP(C21,LeadData!$A$4:$A$288,LeadData!$E$4:$E$288) ->  | K21: =LOOKUP(C21,LeadData!$A$4:$A$288,LeadData!$F$4:$F$288) ->  | O21: =LOOKUP(C21,LeadData!$A$4:$A$288,LeadData!$G$4:$G$288) ->  | P21: =LOOKUP(C21,LeadData!$A$4:$A$288,LeadData!$H$4:$H$288) ->  | R21: =LOOKUP(C21,LeadData!$A$4:$A$288,LeadData!$I$4:$I$288) -> 
B22: =ModelData!$AA$2 -> リンク[7] | C22: =LOOKUP(B3,ModelData!$A$4:$A$87,ModelData!$AA$4:$AA$87) -> -1 | D22: =LOOKUP(B3,ModelData!$A$4:$A$87,ModelData!$AB$4:$AB$87) -> -1 | E22: =LOOKUP(B3,ModelData!$A$4:$A$87,ModelData!$AC$4:$AC$87) -> -1 | F22: =LOOKUP(C22,LeadData!$A$4:$A$288,LeadData!$B$4:$B$288) ->  | H22: =LOOKUP(C22,LeadData!$A$4:$A$288,LeadData!$C$4:$C$288) ->  | I22: =LOOKUP(C22,LeadData!$A$4:$A$288,LeadData!$D$4:$D$288) ->  | J22: =LOOKUP(C22,LeadData!$A$4:$A$288,LeadData!$E$4:$E$288) ->  | K22: =LOOKUP(C22,LeadData!$A$4:$A$288,LeadData!$F$4:$F$288) ->  | O22: =LOOKUP(C22,LeadData!$A$4:$A$288,LeadData!$G$4:$G$288) ->  | P22: =LOOKUP(C22,LeadData!$A$4:$A$288,LeadData!$H$4:$H$288) ->  | R22: =LOOKUP(C22,LeadData!$A$4:$A$288,LeadData!$I$4:$I$288) -> 
B23: リードリストとリレーション | F23: リードデータレコードの物理量変換
B24: ﾘｰﾄﾞﾘｽﾄ | D24: リンク | F24: =LeadData!$B$2 -> ﾘｰﾄﾞ長 | H24: =LeadData!$C$2 -> 水平定格加速度 | I24: =LeadData!$D$2 -> 垂直定格加速度 | J24: =LeadData!$E$2 -> 水平最大加速度 | K24: =LeadData!$F$2 -> 垂直最大加速度 | O24: =LeadData!$G$2 -> ｷﾞｱ比分子 | P24: =LeadData!$H$2 -> ｷﾞｱ比分母 | R24: =LeadData!$I$2 -> ｽﾄﾛｰｸ刻み
B25: № | C25: ﾃﾞｰﾀ | D25: =D14 -> ｽﾄﾛｰｸ№ | E25: =E14 -> 負荷№ | F25: [mm] | G25: [kgm^2] | H25: [m/s^2] | I25: [m/s^2] | J25: [m/s^2] | K25: [m/s^2] | L25: [Nm] | M25: [Nms] | N25: [Nm] | R25: [mm]
B26: 1 | C26: =IF(C15=-1,"- - -",IF(F26<=0,P26/O26,F26)) -> 2.5 | D26: =D15 -> 1484 | E26: 2977 | F26: =F15/1000 -> 2.5 | G26: =G15*0.000000001 -> 0 | H26: =H15*0.000001 -> 2.941995 | I26: 2.941995 | J26: 14.709975 | K26: 14.709975 | O26: =O15 -> 1 | P26: =P15 -> 1 | R26: =R15 -> 50
B27: =B26+1 -> 2 | C27: 5 | D27: 1486 | E27: 2985 | F27: 5 | G27: 0 | H27: 2.941995 | I27: 2.941995 | J27: 44.129925 | K27: 29.41995 | O27: =O16 -> 1 | P27: 1 | R27: =R16 -> 50
B28: =B27+1 -> 3 | C28: 10 | D28: 1488 | E28: 3009 | F28: 10 | G28: 0 | H28: 2.941995 | I28: 2.941995 | J28: 44.129925 | K28: 29.41995 | O28: 1 | P28: 1 | R28: 50
B29: 4 | C29: 16 | D29: 1490 | E29: 3030 | F29: 16 | G29: 0 | H29: 2.941995 | I29: 2.941995 | J29: 44.129925 | K29: 29.41995 | O29: 1 | P29: 1 | R29: 50
B30: 5 | C30: - - - | D30: -1 | E30: -1 | G30: 0
B31: 6 | C31: - - - | D31: -1 | E31: -1 | G31: 0
B32: 7 | C32: - - - | D32: -1 | E32: -1 | G32: 0
B33: 8 | C33: - - - | D33: -1 | E33: -1 | G33: 0
B35: リードリスト選択№ | D35: =MATCH(A5,C26:C33,0) -> 1 | E35: ストロークデータレコード | H35: =LOOKUP(C37,StrokeData!$A$4:$A$2036,StrokeData!$M$4:$M$2036) -> RCS4-SA4C-60-2.5
B36: № | C36: stﾚｺｰﾄﾞ№ | D36: =StrokeData!$B$2 -> ｽﾄﾛｰｸ長 | E36: =StrokeData!$C$2 -> 有効ｽﾄﾛｰｸ補正 | G36: =StrokeData!$D$2 -> 基準ｹﾞｲﾝ用搬送質量 | H36: =StrokeData!$E$2 -> 水平可搬質量 | I36: =StrokeData!$F$2 -> 垂直可搬質量 | J36: =StrokeData!$G$2 -> 最大速度 | K36: =StrokeData!$H$2 -> 位置ｹﾞｲﾝ | L36: =StrokeData!$I$2 -> FFｹﾞｲﾝ | M36: =StrokeData!$J$2 -> 速度制御帯域 | S36: =StrokeData!$K$2 -> 前ﾃﾞｰﾀ№ | T36: =StrokeData!$L$2 -> 次ﾃﾞｰﾀ№
B37: 1 | C37: =LOOKUP(D35,B26:B33,D26:D33) -> 1484 | D37: =LOOKUP(C37,StrokeData!$A$4:$A$2036,StrokeData!$B$4:$B$2036) -> 450 | E37: =LOOKUP(C37,StrokeData!$A$4:$A$2036,StrokeData!$C$4:$C$2036) -> 0 | G37: =LOOKUP(C37,StrokeData!$A$4:$A$2036,StrokeData!$D$4:$D$2036) -> 20000 | H37: =LOOKUP(C37,StrokeData!$A$4:$A$2036,StrokeData!$E$4:$E$2036) -> 20000 | I37: =LOOKUP(C37,StrokeData!$A$4:$A$2036,StrokeData!$F$4:$F$2036) -> 12000 | J37: =LOOKUP(C37,StrokeData!$A$4:$A$2036,StrokeData!$G$4:$G$2036) -> 150 | K37: =LOOKUP(C37,StrokeData!$A$4:$A$2036,StrokeData!$H$4:$H$2036) -> 30 | L37: =LOOKUP(C37,StrokeData!$A$4:$A$2036,StrokeData!$I$4:$I$2036) -> 0 | M37: =LOOKUP(C37,StrokeData!$A$4:$A$2036,StrokeData!$J$4:$J$2036) -> 245 | S37: =LOOKUP(C37,StrokeData!$A$4:$A$2036,StrokeData!$K$4:$K$2036) -> -1 | T37: =LOOKUP(C37,StrokeData!$A$4:$A$2036,StrokeData!$L$4:$L$2036) -> 1485
B38: =B37+1 -> 2 | C38: =IF(C37=-1,-1,LOOKUP(C37,StrokeData!$A$4:$A$2036,StrokeData!$L$4:$L$2036)) -> 1485 | D38: =LOOKUP(C38,StrokeData!$A$4:$A$2036,StrokeData!$B$4:$B$2036) -> 500 | E38: =LOOKUP(C38,StrokeData!$A$4:$A$2036,StrokeData!$C$4:$C$2036) -> 0 | G38: =LOOKUP(C38,StrokeData!$A$4:$A$2036,StrokeData!$D$4:$D$2036) -> 20000 | H38: =LOOKUP(C38,StrokeData!$A$4:$A$2036,StrokeData!$E$4:$E$2036) -> 20000 | I38: =LOOKUP(C38,StrokeData!$A$4:$A$2036,StrokeData!$F$4:$F$2036) -> 12000 | J38: =LOOKUP(C38,StrokeData!$A$4:$A$2036,StrokeData!$G$4:$G$2036) -> 135 | K38: =LOOKUP(C38,StrokeData!$A$4:$A$2036,StrokeData!$H$4:$H$2036) -> 30 | L38: =LOOKUP(C38,StrokeData!$A$4:$A$2036,StrokeData!$I$4:$I$2036) -> 0 | M38: =LOOKUP(C38,StrokeData!$A$4:$A$2036,StrokeData!$J$4:$J$2036) -> 245 | S38: =LOOKUP(C38,StrokeData!$A$4:$A$2036,StrokeData!$K$4:$K$2036) -> 1484 | T38: =LOOKUP(C38,StrokeData!$A$4:$A$2036,StrokeData!$L$4:$L$2036) -> -1
B39: =B38+1 -> 3 | C39: =IF(C38=-1,-1,LOOKUP(C38,StrokeData!$A$4:$A$2036,StrokeData!$L$4:$L$2036)) -> -1 | D39: =LOOKUP(C39,StrokeData!$A$4:$A$2036,StrokeData!$B$4:$B$2036) ->  | E39: =LOOKUP(C39,StrokeData!$A$4:$A$2036,StrokeData!$C$4:$C$2036) ->  | G39: =LOOKUP(C39,StrokeData!$A$4:$A$2036,StrokeData!$D$4:$D$2036) ->  | H39: =LOOKUP(C39,StrokeData!$A$4:$A$2036,StrokeData!$E$4:$E$2036) ->  | I39: =LOOKUP(C39,StrokeData!$A$4:$A$2036,StrokeData!$F$4:$F$2036) ->  | J39: =LOOKUP(C39,StrokeData!$A$4:$A$2036,StrokeData!$G$4:$G$2036) ->  | K39: =LOOKUP(C39,StrokeData!$A$4:$A$2036,StrokeData!$H$4:$H$2036) ->  | L39: =LOOKUP(C39,StrokeData!$A$4:$A$2036,StrokeData!$I$4:$I$2036) ->  | M39: =LOOKUP(C39,StrokeData!$A$4:$A$2036,StrokeData!$J$4:$J$2036) ->  | S39: =LOOKUP(C39,StrokeData!$A$4:$A$2036,StrokeData!$K$4:$K$2036) ->  | T39: =LOOKUP(C39,StrokeData!$A$4:$A$2036,StrokeData!$L$4:$L$2036) -> 
B40: 4 | C40: =IF(C39=-1,-1,LOOKUP(C39,StrokeData!$A$4:$A$2036,StrokeData!$L$4:$L$2036)) -> -1 | D40: =LOOKUP(C40,StrokeData!$A$4:$A$2036,StrokeData!$B$4:$B$2036) ->  | E40: =LOOKUP(C40,StrokeData!$A$4:$A$2036,StrokeData!$C$4:$C$2036) ->  | G40: =LOOKUP(C40,StrokeData!$A$4:$A$2036,StrokeData!$D$4:$D$2036) ->  | H40: =LOOKUP(C40,StrokeData!$A$4:$A$2036,StrokeData!$E$4:$E$2036) ->  | I40: =LOOKUP(C40,StrokeData!$A$4:$A$2036,StrokeData!$F$4:$F$2036) ->  | J40: =LOOKUP(C40,StrokeData!$A$4:$A$2036,StrokeData!$G$4:$G$2036) ->  | K40: =LOOKUP(C40,StrokeData!$A$4:$A$2036,StrokeData!$H$4:$H$2036) ->  | L40: =LOOKUP(C40,StrokeData!$A$4:$A$2036,StrokeData!$I$4:$I$2036) ->  | M40: =LOOKUP(C40,StrokeData!$A$4:$A$2036,StrokeData!$J$4:$J$2036) ->  | S40: =LOOKUP(C40,StrokeData!$A$4:$A$2036,StrokeData!$K$4:$K$2036) ->  | T40: =LOOKUP(C40,StrokeData!$A$4:$A$2036,StrokeData!$L$4:$L$2036) -> 
B41: 5 | C41: =IF(C40=-1,-1,LOOKUP(C40,StrokeData!$A$4:$A$2036,StrokeData!$L$4:$L$2036)) -> -1 | D41: =LOOKUP(C41,StrokeData!$A$4:$A$2036,StrokeData!$B$4:$B$2036) ->  | E41: =LOOKUP(C41,StrokeData!$A$4:$A$2036,StrokeData!$C$4:$C$2036) ->  | G41: =LOOKUP(C41,StrokeData!$A$4:$A$2036,StrokeData!$D$4:$D$2036) ->  | H41: =LOOKUP(C41,StrokeData!$A$4:$A$2036,StrokeData!$E$4:$E$2036) ->  | I41: =LOOKUP(C41,StrokeData!$A$4:$A$2036,StrokeData!$F$4:$F$2036) ->  | J41: =LOOKUP(C41,StrokeData!$A$4:$A$2036,StrokeData!$G$4:$G$2036) ->  | K41: =LOOKUP(C41,StrokeData!$A$4:$A$2036,StrokeData!$H$4:$H$2036) ->  | L41: =LOOKUP(C41,StrokeData!$A$4:$A$2036,StrokeData!$I$4:$I$2036) ->  | M41: =LOOKUP(C41,StrokeData!$A$4:$A$2036,StrokeData!$J$4:$J$2036) ->  | S41: =LOOKUP(C41,StrokeData!$A$4:$A$2036,StrokeData!$K$4:$K$2036) ->  | T41: =LOOKUP(C41,StrokeData!$A$4:$A$2036,StrokeData!$L$4:$L$2036) -> 
B42: 6 | C42: =IF(C41=-1,-1,LOOKUP(C41,StrokeData!$A$4:$A$2036,StrokeData!$L$4:$L$2036)) -> -1 | D42: =LOOKUP(C42,StrokeData!$A$4:$A$2036,StrokeData!$B$4:$B$2036) ->  | E42: =LOOKUP(C42,StrokeData!$A$4:$A$2036,StrokeData!$C$4:$C$2036) ->  | G42: =LOOKUP(C42,StrokeData!$A$4:$A$2036,StrokeData!$D$4:$D$2036) ->  | H42: =LOOKUP(C42,StrokeData!$A$4:$A$2036,StrokeData!$E$4:$E$2036) ->  | I42: =LOOKUP(C42,StrokeData!$A$4:$A$2036,StrokeData!$F$4:$F$2036) ->  | J42: =LOOKUP(C42,StrokeData!$A$4:$A$2036,StrokeData!$G$4:$G$2036) ->  | K42: =LOOKUP(C42,StrokeData!$A$4:$A$2036,StrokeData!$H$4:$H$2036) ->  | L42: =LOOKUP(C42,StrokeData!$A$4:$A$2036,StrokeData!$I$4:$I$2036) ->  | M42: =LOOKUP(C42,StrokeData!$A$4:$A$2036,StrokeData!$J$4:$J$2036) ->  | S42: =LOOKUP(C42,StrokeData!$A$4:$A$2036,StrokeData!$K$4:$K$2036) ->  | T42: =LOOKUP(C42,StrokeData!$A$4:$A$2036,StrokeData!$L$4:$L$2036) -> 
B43: 7 | C43: =IF(C42=-1,-1,LOOKUP(C42,StrokeData!$A$4:$A$2036,StrokeData!$L$4:$L$2036)) -> -1 | D43: =LOOKUP(C43,StrokeData!$A$4:$A$2036,StrokeData!$B$4:$B$2036) ->  | E43: =LOOKUP(C43,StrokeData!$A$4:$A$2036,StrokeData!$C$4:$C$2036) ->  | G43: =LOOKUP(C43,StrokeData!$A$4:$A$2036,StrokeData!$D$4:$D$2036) ->  | H43: =LOOKUP(C43,StrokeData!$A$4:$A$2036,StrokeData!$E$4:$E$2036) ->  | I43: =LOOKUP(C43,StrokeData!$A$4:$A$2036,StrokeData!$F$4:$F$2036) ->  | J43: =LOOKUP(C43,StrokeData!$A$4:$A$2036,StrokeData!$G$4:$G$2036) ->  | K43: =LOOKUP(C43,StrokeData!$A$4:$A$2036,StrokeData!$H$4:$H$2036) ->  | L43: =LOOKUP(C43,StrokeData!$A$4:$A$2036,StrokeData!$I$4:$I$2036) ->  | M43: =LOOKUP(C43,StrokeData!$A$4:$A$2036,StrokeData!$J$4:$J$2036) ->  | S43: =LOOKUP(C43,StrokeData!$A$4:$A$2036,StrokeData!$K$4:$K$2036) ->  | T43: =LOOKUP(C43,StrokeData!$A$4:$A$2036,StrokeData!$L$4:$L$2036) -> 
B44: 8 | C44: =IF(C43=-1,-1,LOOKUP(C43,StrokeData!$A$4:$A$2036,StrokeData!$L$4:$L$2036)) -> -1 | D44: =LOOKUP(C44,StrokeData!$A$4:$A$2036,StrokeData!$B$4:$B$2036) ->  | E44: =LOOKUP(C44,StrokeData!$A$4:$A$2036,StrokeData!$C$4:$C$2036) ->  | G44: =LOOKUP(C44,StrokeData!$A$4:$A$2036,StrokeData!$D$4:$D$2036) ->  | H44: =LOOKUP(C44,StrokeData!$A$4:$A$2036,StrokeData!$E$4:$E$2036) ->  | I44: =LOOKUP(C44,StrokeData!$A$4:$A$2036,StrokeData!$F$4:$F$2036) ->  | J44: =LOOKUP(C44,StrokeData!$A$4:$A$2036,StrokeData!$G$4:$G$2036) ->  | K44: =LOOKUP(C44,StrokeData!$A$4:$A$2036,StrokeData!$H$4:$H$2036) ->  | L44: =LOOKUP(C44,StrokeData!$A$4:$A$2036,StrokeData!$I$4:$I$2036) ->  | M44: =LOOKUP(C44,StrokeData!$A$4:$A$2036,StrokeData!$J$4:$J$2036) ->  | S44: =LOOKUP(C44,StrokeData!$A$4:$A$2036,StrokeData!$K$4:$K$2036) ->  | T44: =LOOKUP(C44,StrokeData!$A$4:$A$2036,StrokeData!$L$4:$L$2036) -> 
B45: 9 | C45: =IF(C44=-1,-1,LOOKUP(C44,StrokeData!$A$4:$A$2036,StrokeData!$L$4:$L$2036)) -> -1 | D45: =LOOKUP(C45,StrokeData!$A$4:$A$2036,StrokeData!$B$4:$B$2036) ->  | E45: =LOOKUP(C45,StrokeData!$A$4:$A$2036,StrokeData!$C$4:$C$2036) ->  | G45: =LOOKUP(C45,StrokeData!$A$4:$A$2036,StrokeData!$D$4:$D$2036) ->  | H45: =LOOKUP(C45,StrokeData!$A$4:$A$2036,StrokeData!$E$4:$E$2036) ->  | I45: =LOOKUP(C45,StrokeData!$A$4:$A$2036,StrokeData!$F$4:$F$2036) ->  | J45: =LOOKUP(C45,StrokeData!$A$4:$A$2036,StrokeData!$G$4:$G$2036) ->  | K45: =LOOKUP(C45,StrokeData!$A$4:$A$2036,StrokeData!$H$4:$H$2036) ->  | L45: =LOOKUP(C45,StrokeData!$A$4:$A$2036,StrokeData!$I$4:$I$2036) ->  | M45: =LOOKUP(C45,StrokeData!$A$4:$A$2036,StrokeData!$J$4:$J$2036) ->  | S45: =LOOKUP(C45,StrokeData!$A$4:$A$2036,StrokeData!$K$4:$K$2036) ->  | T45: =LOOKUP(C45,StrokeData!$A$4:$A$2036,StrokeData!$L$4:$L$2036) -> 
B46: 10 | C46: =IF(C45=-1,-1,LOOKUP(C45,StrokeData!$A$4:$A$2036,StrokeData!$L$4:$L$2036)) -> -1 | D46: =LOOKUP(C46,StrokeData!$A$4:$A$2036,StrokeData!$B$4:$B$2036) ->  | E46: =LOOKUP(C46,StrokeData!$A$4:$A$2036,StrokeData!$C$4:$C$2036) ->  | G46: =LOOKUP(C46,StrokeData!$A$4:$A$2036,StrokeData!$D$4:$D$2036) ->  | H46: =LOOKUP(C46,StrokeData!$A$4:$A$2036,StrokeData!$E$4:$E$2036) ->  | I46: =LOOKUP(C46,StrokeData!$A$4:$A$2036,StrokeData!$F$4:$F$2036) ->  | J46: =LOOKUP(C46,StrokeData!$A$4:$A$2036,StrokeData!$G$4:$G$2036) ->  | K46: =LOOKUP(C46,StrokeData!$A$4:$A$2036,StrokeData!$H$4:$H$2036) ->  | L46: =LOOKUP(C46,StrokeData!$A$4:$A$2036,StrokeData!$I$4:$I$2036) ->  | M46: =LOOKUP(C46,StrokeData!$A$4:$A$2036,StrokeData!$J$4:$J$2036) ->  | S46: =LOOKUP(C46,StrokeData!$A$4:$A$2036,StrokeData!$K$4:$K$2036) ->  | T46: =LOOKUP(C46,StrokeData!$A$4:$A$2036,StrokeData!$L$4:$L$2036) -> 
B47: 11 | C47: =IF(C46=-1,-1,LOOKUP(C46,StrokeData!$A$4:$A$2036,StrokeData!$L$4:$L$2036)) -> -1 | D47: =LOOKUP(C47,StrokeData!$A$4:$A$2036,StrokeData!$B$4:$B$2036) ->  | E47: =LOOKUP(C47,StrokeData!$A$4:$A$2036,StrokeData!$C$4:$C$2036) ->  | G47: =LOOKUP(C47,StrokeData!$A$4:$A$2036,StrokeData!$D$4:$D$2036) ->  | H47: =LOOKUP(C47,StrokeData!$A$4:$A$2036,StrokeData!$E$4:$E$2036) ->  | I47: =LOOKUP(C47,StrokeData!$A$4:$A$2036,StrokeData!$F$4:$F$2036) ->  | J47: =LOOKUP(C47,StrokeData!$A$4:$A$2036,StrokeData!$G$4:$G$2036) ->  | K47: =LOOKUP(C47,StrokeData!$A$4:$A$2036,StrokeData!$H$4:$H$2036) ->  | L47: =LOOKUP(C47,StrokeData!$A$4:$A$2036,StrokeData!$I$4:$I$2036) ->  | M47: =LOOKUP(C47,StrokeData!$A$4:$A$2036,StrokeData!$J$4:$J$2036) ->  | S47: =LOOKUP(C47,StrokeData!$A$4:$A$2036,StrokeData!$K$4:$K$2036) ->  | T47: =LOOKUP(C47,StrokeData!$A$4:$A$2036,StrokeData!$L$4:$L$2036) -> 
B48: 12 | C48: =IF(C47=-1,-1,LOOKUP(C47,StrokeData!$A$4:$A$2036,StrokeData!$L$4:$L$2036)) -> -1 | D48: =LOOKUP(C48,StrokeData!$A$4:$A$2036,StrokeData!$B$4:$B$2036) ->  | E48: =LOOKUP(C48,StrokeData!$A$4:$A$2036,StrokeData!$C$4:$C$2036) ->  | G48: =LOOKUP(C48,StrokeData!$A$4:$A$2036,StrokeData!$D$4:$D$2036) ->  | H48: =LOOKUP(C48,StrokeData!$A$4:$A$2036,StrokeData!$E$4:$E$2036) ->  | I48: =LOOKUP(C48,StrokeData!$A$4:$A$2036,StrokeData!$F$4:$F$2036) ->  | J48: =LOOKUP(C48,StrokeData!$A$4:$A$2036,StrokeData!$G$4:$G$2036) ->  | K48: =LOOKUP(C48,StrokeData!$A$4:$A$2036,StrokeData!$H$4:$H$2036) ->  | L48: =LOOKUP(C48,StrokeData!$A$4:$A$2036,StrokeData!$I$4:$I$2036) ->  | M48: =LOOKUP(C48,StrokeData!$A$4:$A$2036,StrokeData!$J$4:$J$2036) ->  | S48: =LOOKUP(C48,StrokeData!$A$4:$A$2036,StrokeData!$K$4:$K$2036) ->  | T48: =LOOKUP(C48,StrokeData!$A$4:$A$2036,StrokeData!$L$4:$L$2036) -> 
B49: 13 | C49: =IF(C48=-1,-1,LOOKUP(C48,StrokeData!$A$4:$A$2036,StrokeData!$L$4:$L$2036)) -> -1 | D49: =LOOKUP(C49,StrokeData!$A$4:$A$2036,StrokeData!$B$4:$B$2036) ->  | E49: =LOOKUP(C49,StrokeData!$A$4:$A$2036,StrokeData!$C$4:$C$2036) ->  | G49: =LOOKUP(C49,StrokeData!$A$4:$A$2036,StrokeData!$D$4:$D$2036) ->  | H49: =LOOKUP(C49,StrokeData!$A$4:$A$2036,StrokeData!$E$4:$E$2036) ->  | I49: =LOOKUP(C49,StrokeData!$A$4:$A$2036,StrokeData!$F$4:$F$2036) ->  | J49: =LOOKUP(C49,StrokeData!$A$4:$A$2036,StrokeData!$G$4:$G$2036) ->  | K49: =LOOKUP(C49,StrokeData!$A$4:$A$2036,StrokeData!$H$4:$H$2036) ->  | L49: =LOOKUP(C49,StrokeData!$A$4:$A$2036,StrokeData!$I$4:$I$2036) ->  | M49: =LOOKUP(C49,StrokeData!$A$4:$A$2036,StrokeData!$J$4:$J$2036) ->  | S49: =LOOKUP(C49,StrokeData!$A$4:$A$2036,StrokeData!$K$4:$K$2036) ->  | T49: =LOOKUP(C49,StrokeData!$A$4:$A$2036,StrokeData!$L$4:$L$2036) -> 
B50: 14 | C50: =IF(C49=-1,-1,LOOKUP(C49,StrokeData!$A$4:$A$2036,StrokeData!$L$4:$L$2036)) -> -1 | D50: =LOOKUP(C50,StrokeData!$A$4:$A$2036,StrokeData!$B$4:$B$2036) ->  | E50: =LOOKUP(C50,StrokeData!$A$4:$A$2036,StrokeData!$C$4:$C$2036) ->  | G50: =LOOKUP(C50,StrokeData!$A$4:$A$2036,StrokeData!$D$4:$D$2036) ->  | H50: =LOOKUP(C50,StrokeData!$A$4:$A$2036,StrokeData!$E$4:$E$2036) ->  | I50: =LOOKUP(C50,StrokeData!$A$4:$A$2036,StrokeData!$F$4:$F$2036) ->  | J50: =LOOKUP(C50,StrokeData!$A$4:$A$2036,StrokeData!$G$4:$G$2036) ->  | K50: =LOOKUP(C50,StrokeData!$A$4:$A$2036,StrokeData!$H$4:$H$2036) ->  | L50: =LOOKUP(C50,StrokeData!$A$4:$A$2036,StrokeData!$I$4:$I$2036) ->  | M50: =LOOKUP(C50,StrokeData!$A$4:$A$2036,StrokeData!$J$4:$J$2036) ->  | S50: =LOOKUP(C50,StrokeData!$A$4:$A$2036,StrokeData!$K$4:$K$2036) ->  | T50: =LOOKUP(C50,StrokeData!$A$4:$A$2036,StrokeData!$L$4:$L$2036) -> 
B51: 15 | C51: =IF(C50=-1,-1,LOOKUP(C50,StrokeData!$A$4:$A$2036,StrokeData!$L$4:$L$2036)) -> -1 | D51: =LOOKUP(C51,StrokeData!$A$4:$A$2036,StrokeData!$B$4:$B$2036) ->  | E51: =LOOKUP(C51,StrokeData!$A$4:$A$2036,StrokeData!$C$4:$C$2036) ->  | G51: =LOOKUP(C51,StrokeData!$A$4:$A$2036,StrokeData!$D$4:$D$2036) ->  | H51: =LOOKUP(C51,StrokeData!$A$4:$A$2036,StrokeData!$E$4:$E$2036) ->  | I51: =LOOKUP(C51,StrokeData!$A$4:$A$2036,StrokeData!$F$4:$F$2036) ->  | J51: =LOOKUP(C51,StrokeData!$A$4:$A$2036,StrokeData!$G$4:$G$2036) ->  | K51: =LOOKUP(C51,StrokeData!$A$4:$A$2036,StrokeData!$H$4:$H$2036) ->  | L51: =LOOKUP(C51,StrokeData!$A$4:$A$2036,StrokeData!$I$4:$I$2036) ->  | M51: =LOOKUP(C51,StrokeData!$A$4:$A$2036,StrokeData!$J$4:$J$2036) ->  | S51: =LOOKUP(C51,StrokeData!$A$4:$A$2036,StrokeData!$K$4:$K$2036) ->  | T51: =LOOKUP(C51,StrokeData!$A$4:$A$2036,StrokeData!$L$4:$L$2036) -> 
B52: 16 | C52: =IF(C51=-1,-1,LOOKUP(C51,StrokeData!$A$4:$A$2036,StrokeData!$L$4:$L$2036)) -> -1 | D52: =LOOKUP(C52,StrokeData!$A$4:$A$2036,StrokeData!$B$4:$B$2036) ->  | E52: =LOOKUP(C52,StrokeData!$A$4:$A$2036,StrokeData!$C$4:$C$2036) ->  | G52: =LOOKUP(C52,StrokeData!$A$4:$A$2036,StrokeData!$D$4:$D$2036) ->  | H52: =LOOKUP(C52,StrokeData!$A$4:$A$2036,StrokeData!$E$4:$E$2036) ->  | I52: =LOOKUP(C52,StrokeData!$A$4:$A$2036,StrokeData!$F$4:$F$2036) ->  | J52: =LOOKUP(C52,StrokeData!$A$4:$A$2036,StrokeData!$G$4:$G$2036) ->  | K52: =LOOKUP(C52,StrokeData!$A$4:$A$2036,StrokeData!$H$4:$H$2036) ->  | L52: =LOOKUP(C52,StrokeData!$A$4:$A$2036,StrokeData!$I$4:$I$2036) ->  | M52: =LOOKUP(C52,StrokeData!$A$4:$A$2036,StrokeData!$J$4:$J$2036) ->  | S52: =LOOKUP(C52,StrokeData!$A$4:$A$2036,StrokeData!$K$4:$K$2036) ->  | T52: =LOOKUP(C52,StrokeData!$A$4:$A$2036,StrokeData!$L$4:$L$2036) -> 
B53: 17 | C53: =IF(C52=-1,-1,LOOKUP(C52,StrokeData!$A$4:$A$2036,StrokeData!$L$4:$L$2036)) -> -1 | D53: =LOOKUP(C53,StrokeData!$A$4:$A$2036,StrokeData!$B$4:$B$2036) ->  | E53: =LOOKUP(C53,StrokeData!$A$4:$A$2036,StrokeData!$C$4:$C$2036) ->  | G53: =LOOKUP(C53,StrokeData!$A$4:$A$2036,StrokeData!$D$4:$D$2036) ->  | H53: =LOOKUP(C53,StrokeData!$A$4:$A$2036,StrokeData!$E$4:$E$2036) ->  | I53: =LOOKUP(C53,StrokeData!$A$4:$A$2036,StrokeData!$F$4:$F$2036) ->  | J53: =LOOKUP(C53,StrokeData!$A$4:$A$2036,StrokeData!$G$4:$G$2036) ->  | K53: =LOOKUP(C53,StrokeData!$A$4:$A$2036,StrokeData!$H$4:$H$2036) ->  | L53: =LOOKUP(C53,StrokeData!$A$4:$A$2036,StrokeData!$I$4:$I$2036) ->  | M53: =LOOKUP(C53,StrokeData!$A$4:$A$2036,StrokeData!$J$4:$J$2036) ->  | S53: =LOOKUP(C53,StrokeData!$A$4:$A$2036,StrokeData!$K$4:$K$2036) ->  | T53: =LOOKUP(C53,StrokeData!$A$4:$A$2036,StrokeData!$L$4:$L$2036) -> 
B54: 18 | C54: =IF(C53=-1,-1,LOOKUP(C53,StrokeData!$A$4:$A$2036,StrokeData!$L$4:$L$2036)) -> -1 | D54: =LOOKUP(C54,StrokeData!$A$4:$A$2036,StrokeData!$B$4:$B$2036) ->  | E54: =LOOKUP(C54,StrokeData!$A$4:$A$2036,StrokeData!$C$4:$C$2036) ->  | G54: =LOOKUP(C54,StrokeData!$A$4:$A$2036,StrokeData!$D$4:$D$2036) ->  | H54: =LOOKUP(C54,StrokeData!$A$4:$A$2036,StrokeData!$E$4:$E$2036) ->  | I54: =LOOKUP(C54,StrokeData!$A$4:$A$2036,StrokeData!$F$4:$F$2036) ->  | J54: =LOOKUP(C54,StrokeData!$A$4:$A$2036,StrokeData!$G$4:$G$2036) ->  | K54: =LOOKUP(C54,StrokeData!$A$4:$A$2036,StrokeData!$H$4:$H$2036) ->  | L54: =LOOKUP(C54,StrokeData!$A$4:$A$2036,StrokeData!$I$4:$I$2036) ->  | M54: =LOOKUP(C54,StrokeData!$A$4:$A$2036,StrokeData!$J$4:$J$2036) ->  | S54: =LOOKUP(C54,StrokeData!$A$4:$A$2036,StrokeData!$K$4:$K$2036) ->  | T54: =LOOKUP(C54,StrokeData!$A$4:$A$2036,StrokeData!$L$4:$L$2036) -> 
B55: 19 | C55: =IF(C54=-1,-1,LOOKUP(C54,StrokeData!$A$4:$A$2036,StrokeData!$L$4:$L$2036)) -> -1 | D55: =LOOKUP(C55,StrokeData!$A$4:$A$2036,StrokeData!$B$4:$B$2036) ->  | E55: =LOOKUP(C55,StrokeData!$A$4:$A$2036,StrokeData!$C$4:$C$2036) ->  | G55: =LOOKUP(C55,StrokeData!$A$4:$A$2036,StrokeData!$D$4:$D$2036) ->  | H55: =LOOKUP(C55,StrokeData!$A$4:$A$2036,StrokeData!$E$4:$E$2036) ->  | I55: =LOOKUP(C55,StrokeData!$A$4:$A$2036,StrokeData!$F$4:$F$2036) ->  | J55: =LOOKUP(C55,StrokeData!$A$4:$A$2036,StrokeData!$G$4:$G$2036) ->  | K55: =LOOKUP(C55,StrokeData!$A$4:$A$2036,StrokeData!$H$4:$H$2036) ->  | L55: =LOOKUP(C55,StrokeData!$A$4:$A$2036,StrokeData!$I$4:$I$2036) ->  | M55: =LOOKUP(C55,StrokeData!$A$4:$A$2036,StrokeData!$J$4:$J$2036) ->  | S55: =LOOKUP(C55,StrokeData!$A$4:$A$2036,StrokeData!$K$4:$K$2036) ->  | T55: =LOOKUP(C55,StrokeData!$A$4:$A$2036,StrokeData!$L$4:$L$2036) -> 
B56: 20 | C56: =IF(C55=-1,-1,LOOKUP(C55,StrokeData!$A$4:$A$2036,StrokeData!$L$4:$L$2036)) -> -1 | D56: =LOOKUP(C56,StrokeData!$A$4:$A$2036,StrokeData!$B$4:$B$2036) ->  | E56: =LOOKUP(C56,StrokeData!$A$4:$A$2036,StrokeData!$C$4:$C$2036) ->  | G56: =LOOKUP(C56,StrokeData!$A$4:$A$2036,StrokeData!$D$4:$D$2036) ->  | H56: =LOOKUP(C56,StrokeData!$A$4:$A$2036,StrokeData!$E$4:$E$2036) ->  | I56: =LOOKUP(C56,StrokeData!$A$4:$A$2036,StrokeData!$F$4:$F$2036) ->  | J56: =LOOKUP(C56,StrokeData!$A$4:$A$2036,StrokeData!$G$4:$G$2036) ->  | K56: =LOOKUP(C56,StrokeData!$A$4:$A$2036,StrokeData!$H$4:$H$2036) ->  | L56: =LOOKUP(C56,StrokeData!$A$4:$A$2036,StrokeData!$I$4:$I$2036) ->  | M56: =LOOKUP(C56,StrokeData!$A$4:$A$2036,StrokeData!$J$4:$J$2036) ->  | S56: =LOOKUP(C56,StrokeData!$A$4:$A$2036,StrokeData!$K$4:$K$2036) ->  | T56: =LOOKUP(C56,StrokeData!$A$4:$A$2036,StrokeData!$L$4:$L$2036) -> 
D57: ストローク | E57: =H5 -> 50 | F57: mm | G57: ～ | H57: =I5 -> 500 | I57: mm | K57: 刻み | L57: =LOOKUP(D35,B26:B33,R26:R33) -> 50 | M57: mm | O57: 慣性係数 | P57: =IF($J$5=1,0.000001,0.001) -> 0.001 | Q57: 有効桁数 | R57: =IF($J$5=1,6,3) -> 3
B58: stﾘｽﾄ検索用(降順) | D58: № | E58: =StrokeData!$B$2 -> ｽﾄﾛｰｸ長 | F58: stﾘｽﾄ№ | G58: =StrokeData!$C$2 -> 有効ｽﾄﾛｰｸ補正 | I58: =StrokeData!$D$2 -> 基準ｹﾞｲﾝ用搬送質量 | J58: =StrokeData!$E$2 -> 水平可搬質量 | K58: =StrokeData!$F$2 -> 垂直可搬質量 | L58: =StrokeData!$G$2 -> 最大速度 | M58: =StrokeData!$H$2 -> 位置ｹﾞｲﾝ | N58: =StrokeData!$I$2 -> FFｹﾞｲﾝ | O58: =StrokeData!$J$2 -> 速度制御帯域
B59: =B36 -> № | C59: =D36 -> ｽﾄﾛｰｸ長 | D59: 0 | E59: =H4 -> [mm] | G59: [mm] | H59: [kg/mm] | I59: =IF(J5=1,"[kgm^2]","[kg]") -> [kg] | J59: =IF(J5=1,"[kgm^2]","[kg]") -> [kg] | K59: =IF(J5=1,"[kgm^2]","[kg]") -> [kg] | L59: [mm/s] | M59: [1/s] | N59: [%] | O59: [rad/s] | Q59: [s] | T59: [Nm/rad]
B60: =B56 -> 20 | C60: =D56 ->  | D60: 1 | E60: =IF( (E57+L57*D59)<=H57,(E57+L57*D59),"- - -") -> 50 | F60: =(B60+1)-MATCH(E60,C60:C79,-1) -> 1 | G60: =LOOKUP(F60,B37:B56,E37:E56) -> 0 | H60: =LOOKUP(F60,B37:B56,F37:F56)*0.001 -> 0 | I60: =LOOKUP(F60,B37:B56,G37:G56)*$P$57 -> 20 | J60: =LOOKUP(F60,B37:B56,H37:H56)*$P$57 -> 20 | K60: =LOOKUP(F60,B37:B56,I37:I56)*$P$57 -> 12 | L60: =LOOKUP(F60,B37:B56,J37:J56) -> 150 | M60: =LOOKUP(F60,B37:B56,K37:K56) -> 30 | N60: =LOOKUP(F60,B37:B56,L37:L56) -> 0 | O60: =LOOKUP(F60,B37:B56,M37:M56) -> 245 | P60: =LOOKUP(F60,B37:B56,N37:N56) -> 0 | Q60: =LOOKUP(F60,B37:B56,O37:O56) -> 0 | R60: =LOOKUP(F60,B37:B56,P37:P56) -> 0 | S60: =LOOKUP(F60,B37:B56,Q37:Q56) -> 0 | T60: =LOOKUP(F60,B37:B56,R37:R56) -> 0
B61: =B55 -> 19 | C61: =D55 ->  | D61: =D60+1 -> 2 | E61: =IF( (E57+L57*D60)<=H57,(E57+L57*D60),"- - -") -> 100 | F61: =(B60+1)-MATCH(E61,C60:C79,-1) -> 1 | G61: =LOOKUP(F61,B37:B56,E37:E56) -> 0 | H61: =LOOKUP(F61,B37:B56,F37:F56)*0.001 -> 0 | I61: =LOOKUP(F61,B37:B56,G37:G56)*$P$57 -> 20 | J61: =LOOKUP(F61,B37:B56,H37:H56)*$P$57 -> 20 | K61: =LOOKUP(F61,B37:B56,I37:I56)*$P$57 -> 12 | L61: =LOOKUP(F61,B37:B56,J37:J56) -> 150 | M61: =LOOKUP(F61,B37:B56,K37:K56) -> 30 | N61: =LOOKUP(F61,B37:B56,L37:L56) -> 0 | O61: =LOOKUP(F61,B37:B56,M37:M56) -> 245 | P61: =LOOKUP(F61,B37:B56,N37:N56) -> 0 | Q61: =LOOKUP(F61,B37:B56,O37:O56) -> 0 | R61: =LOOKUP(F61,B37:B56,P37:P56) -> 0 | S61: =LOOKUP(F61,B37:B56,Q37:Q56) -> 0 | T61: =LOOKUP(F61,B37:B56,R37:R56) -> 0
B62: =B54 -> 18 | C62: =D54 ->  | D62: =D61+1 -> 3 | E62: =IF( (E57+L57*D61)<=H57,(E57+L57*D61),"- - -") -> 150 | F62: =(B60+1)-MATCH(E62,C60:C79,-1) -> 1 | G62: =LOOKUP(F62,B37:B56,E37:E56) -> 0 | H62: =LOOKUP(F62,B37:B56,F37:F56)*0.001 -> 0 | I62: =LOOKUP(F62,B37:B56,G37:G56)*$P$57 -> 20 | J62: =LOOKUP(F62,B37:B56,H37:H56)*$P$57 -> 20 | K62: =LOOKUP(F62,B37:B56,I37:I56)*$P$57 -> 12 | L62: =LOOKUP(F62,B37:B56,J37:J56) -> 150 | M62: =LOOKUP(F62,B37:B56,K37:K56) -> 30 | N62: =LOOKUP(F62,B37:B56,L37:L56) -> 0 | O62: =LOOKUP(F62,B37:B56,M37:M56) -> 245 | P62: =LOOKUP(F62,B37:B56,N37:N56) -> 0 | Q62: =LOOKUP(F62,B37:B56,O37:O56) -> 0 | R62: =LOOKUP(F62,B37:B56,P37:P56) -> 0 | S62: =LOOKUP(F62,B37:B56,Q37:Q56) -> 0 | T62: =LOOKUP(F62,B37:B56,R37:R56) -> 0
B63: =B53 -> 17 | C63: =D53 ->  | D63: 4 | E63: =IF( (E57+L57*D62)<=H57,(E57+L57*D62),"- - -") -> 200 | F63: =(B60+1)-MATCH(E63,C60:C79,-1) -> 1 | G63: =LOOKUP(F63,B37:B56,E37:E56) -> 0 | H63: =LOOKUP(F63,B37:B56,F37:F56)*0.001 -> 0 | I63: =LOOKUP(F63,B37:B56,G37:G56)*$P$57 -> 20 | J63: =LOOKUP(F63,B37:B56,H37:H56)*$P$57 -> 20 | K63: =LOOKUP(F63,B37:B56,I37:I56)*$P$57 -> 12 | L63: =LOOKUP(F63,B37:B56,J37:J56) -> 150 | M63: =LOOKUP(F63,B37:B56,K37:K56) -> 30 | N63: =LOOKUP(F63,B37:B56,L37:L56) -> 0 | O63: =LOOKUP(F63,B37:B56,M37:M56) -> 245 | P63: =LOOKUP(F63,B37:B56,N37:N56) -> 0 | Q63: =LOOKUP(F63,B37:B56,O37:O56) -> 0 | R63: =LOOKUP(F63,B37:B56,P37:P56) -> 0 | S63: =LOOKUP(F63,B37:B56,Q37:Q56) -> 0 | T63: =LOOKUP(F63,B37:B56,R37:R56) -> 0
B64: =B52 -> 16 | C64: =D52 ->  | D64: 5 | E64: =IF( (E57+L57*D63)<=H57,(E57+L57*D63),"- - -") -> 250 | F64: =(B60+1)-MATCH(E64,C60:C79,-1) -> 1 | G64: =LOOKUP(F64,B37:B56,E37:E56) -> 0 | H64: =LOOKUP(F64,B37:B56,F37:F56)*0.001 -> 0 | I64: =LOOKUP(F64,B37:B56,G37:G56)*$P$57 -> 20 | J64: =LOOKUP(F64,B37:B56,H37:H56)*$P$57 -> 20 | K64: =LOOKUP(F64,B37:B56,I37:I56)*$P$57 -> 12 | L64: =LOOKUP(F64,B37:B56,J37:J56) -> 150 | M64: =LOOKUP(F64,B37:B56,K37:K56) -> 30 | N64: =LOOKUP(F64,B37:B56,L37:L56) -> 0 | O64: =LOOKUP(F64,B37:B56,M37:M56) -> 245 | P64: =LOOKUP(F64,B37:B56,N37:N56) -> 0 | Q64: =LOOKUP(F64,B37:B56,O37:O56) -> 0 | R64: =LOOKUP(F64,B37:B56,P37:P56) -> 0 | S64: =LOOKUP(F64,B37:B56,Q37:Q56) -> 0 | T64: =LOOKUP(F64,B37:B56,R37:R56) -> 0
B65: =B51 -> 15 | C65: =D51 ->  | D65: 6 | E65: =IF( (E57+L57*D64)<=H57,(E57+L57*D64),"- - -") -> 300 | F65: =(B60+1)-MATCH(E65,C60:C79,-1) -> 1 | G65: =LOOKUP(F65,B37:B56,E37:E56) -> 0 | H65: =LOOKUP(F65,B37:B56,F37:F56)*0.001 -> 0 | I65: =LOOKUP(F65,B37:B56,G37:G56)*$P$57 -> 20 | J65: =LOOKUP(F65,B37:B56,H37:H56)*$P$57 -> 20 | K65: =LOOKUP(F65,B37:B56,I37:I56)*$P$57 -> 12 | L65: =LOOKUP(F65,B37:B56,J37:J56) -> 150 | M65: =LOOKUP(F65,B37:B56,K37:K56) -> 30 | N65: =LOOKUP(F65,B37:B56,L37:L56) -> 0 | O65: =LOOKUP(F65,B37:B56,M37:M56) -> 245 | P65: =LOOKUP(F65,B37:B56,N37:N56) -> 0 | Q65: =LOOKUP(F65,B37:B56,O37:O56) -> 0 | R65: =LOOKUP(F65,B37:B56,P37:P56) -> 0 | S65: =LOOKUP(F65,B37:B56,Q37:Q56) -> 0 | T65: =LOOKUP(F65,B37:B56,R37:R56) -> 0
B66: =B50 -> 14 | C66: =D50 ->  | D66: 7 | E66: =IF( (E57+L57*D65)<=H57,(E57+L57*D65),"- - -") -> 350 | F66: =(B60+1)-MATCH(E66,C60:C79,-1) -> 1 | G66: =LOOKUP(F66,B37:B56,E37:E56) -> 0 | H66: =LOOKUP(F66,B37:B56,F37:F56)*0.001 -> 0 | I66: =LOOKUP(F66,B37:B56,G37:G56)*$P$57 -> 20 | J66: =LOOKUP(F66,B37:B56,H37:H56)*$P$57 -> 20 | K66: =LOOKUP(F66,B37:B56,I37:I56)*$P$57 -> 12 | L66: =LOOKUP(F66,B37:B56,J37:J56) -> 150 | M66: =LOOKUP(F66,B37:B56,K37:K56) -> 30 | N66: =LOOKUP(F66,B37:B56,L37:L56) -> 0 | O66: =LOOKUP(F66,B37:B56,M37:M56) -> 245 | P66: =LOOKUP(F66,B37:B56,N37:N56) -> 0 | Q66: =LOOKUP(F66,B37:B56,O37:O56) -> 0 | R66: =LOOKUP(F66,B37:B56,P37:P56) -> 0 | S66: =LOOKUP(F66,B37:B56,Q37:Q56) -> 0 | T66: =LOOKUP(F66,B37:B56,R37:R56) -> 0
B67: =B49 -> 13 | C67: =D49 ->  | D67: 8 | E67: =IF( (E57+L57*D66)<=H57,(E57+L57*D66),"- - -") -> 400 | F67: =(B60+1)-MATCH(E67,C60:C79,-1) -> 1 | G67: =LOOKUP(F67,B37:B56,E37:E56) -> 0 | H67: =LOOKUP(F67,B37:B56,F37:F56)*0.001 -> 0 | I67: =LOOKUP(F67,B37:B56,G37:G56)*$P$57 -> 20 | J67: =LOOKUP(F67,B37:B56,H37:H56)*$P$57 -> 20 | K67: =LOOKUP(F67,B37:B56,I37:I56)*$P$57 -> 12 | L67: =LOOKUP(F67,B37:B56,J37:J56) -> 150 | M67: =LOOKUP(F67,B37:B56,K37:K56) -> 30 | N67: =LOOKUP(F67,B37:B56,L37:L56) -> 0 | O67: =LOOKUP(F67,B37:B56,M37:M56) -> 245 | P67: =LOOKUP(F67,B37:B56,N37:N56) -> 0 | Q67: =LOOKUP(F67,B37:B56,O37:O56) -> 0 | R67: =LOOKUP(F67,B37:B56,P37:P56) -> 0 | S67: =LOOKUP(F67,B37:B56,Q37:Q56) -> 0 | T67: =LOOKUP(F67,B37:B56,R37:R56) -> 0
B68: =B48 -> 12 | C68: =D48 ->  | D68: 9 | E68: =IF( (E57+L57*D67)<=H57,(E57+L57*D67),"- - -") -> 450 | F68: =(B60+1)-MATCH(E68,C60:C79,-1) -> 1 | G68: =LOOKUP(F68,B37:B56,E37:E56) -> 0 | H68: =LOOKUP(F68,B37:B56,F37:F56)*0.001 -> 0 | I68: =LOOKUP(F68,B37:B56,G37:G56)*$P$57 -> 20 | J68: =LOOKUP(F68,B37:B56,H37:H56)*$P$57 -> 20 | K68: =LOOKUP(F68,B37:B56,I37:I56)*$P$57 -> 12 | L68: =LOOKUP(F68,B37:B56,J37:J56) -> 150 | M68: =LOOKUP(F68,B37:B56,K37:K56) -> 30 | N68: =LOOKUP(F68,B37:B56,L37:L56) -> 0 | O68: =LOOKUP(F68,B37:B56,M37:M56) -> 245 | P68: =LOOKUP(F68,B37:B56,N37:N56) -> 0 | Q68: =LOOKUP(F68,B37:B56,O37:O56) -> 0 | R68: =LOOKUP(F68,B37:B56,P37:P56) -> 0 | S68: =LOOKUP(F68,B37:B56,Q37:Q56) -> 0 | T68: =LOOKUP(F68,B37:B56,R37:R56) -> 0
B69: =B47 -> 11 | C69: =D47 ->  | D69: 10 | E69: =IF( (E57+L57*D68)<=H57,(E57+L57*D68),"- - -") -> 500 | F69: =(B60+1)-MATCH(E69,C60:C79,-1) -> 2 | G69: =LOOKUP(F69,B37:B56,E37:E56) -> 0 | H69: =LOOKUP(F69,B37:B56,F37:F56)*0.001 -> 0 | I69: =LOOKUP(F69,B37:B56,G37:G56)*$P$57 -> 20 | J69: =LOOKUP(F69,B37:B56,H37:H56)*$P$57 -> 20 | K69: =LOOKUP(F69,B37:B56,I37:I56)*$P$57 -> 12 | L69: =LOOKUP(F69,B37:B56,J37:J56) -> 135 | M69: =LOOKUP(F69,B37:B56,K37:K56) -> 30 | N69: =LOOKUP(F69,B37:B56,L37:L56) -> 0 | O69: =LOOKUP(F69,B37:B56,M37:M56) -> 245 | P69: =LOOKUP(F69,B37:B56,N37:N56) -> 0 | Q69: =LOOKUP(F69,B37:B56,O37:O56) -> 0 | R69: =LOOKUP(F69,B37:B56,P37:P56) -> 0 | S69: =LOOKUP(F69,B37:B56,Q37:Q56) -> 0 | T69: =LOOKUP(F69,B37:B56,R37:R56) -> 0
B70: =B46 -> 10 | C70: =D46 ->  | D70: 11 | E70: =IF( (E57+L57*D69)<=H57,(E57+L57*D69),"- - -") -> - - - | F70: =(B60+1)-MATCH(E70,C60:C79,-1) ->  | G70: =LOOKUP(F70,B37:B56,E37:E56) ->  | H70: =LOOKUP(F70,B37:B56,F37:F56)*0.001 ->  | I70: =LOOKUP(F70,B37:B56,G37:G56)*$P$57 ->  | J70: =LOOKUP(F70,B37:B56,H37:H56)*$P$57 ->  | K70: =LOOKUP(F70,B37:B56,I37:I56)*$P$57 ->  | L70: =LOOKUP(F70,B37:B56,J37:J56) ->  | M70: =LOOKUP(F70,B37:B56,K37:K56) ->  | N70: =LOOKUP(F70,B37:B56,L37:L56) ->  | O70: =LOOKUP(F70,B37:B56,M37:M56) ->  | P70: =LOOKUP(F70,B37:B56,N37:N56) ->  | Q70: =LOOKUP(F70,B37:B56,O37:O56) ->  | R70: =LOOKUP(F70,B37:B56,P37:P56) ->  | S70: =LOOKUP(F70,B37:B56,Q37:Q56) ->  | T70: =LOOKUP(F70,B37:B56,R37:R56) -> 
B71: =B45 -> 9 | C71: =D45 ->  | D71: 12 | E71: =IF( (E57+L57*D70)<=H57,(E57+L57*D70),"- - -") -> - - - | F71: =(B60+1)-MATCH(E71,C60:C79,-1) ->  | G71: =LOOKUP(F71,B37:B56,E37:E56) ->  | H71: =LOOKUP(F71,B37:B56,F37:F56)*0.001 ->  | I71: =LOOKUP(F71,B37:B56,G37:G56)*$P$57 ->  | J71: =LOOKUP(F71,B37:B56,H37:H56)*$P$57 ->  | K71: =LOOKUP(F71,B37:B56,I37:I56)*$P$57 ->  | L71: =LOOKUP(F71,B37:B56,J37:J56) ->  | M71: =LOOKUP(F71,B37:B56,K37:K56) ->  | N71: =LOOKUP(F71,B37:B56,L37:L56) ->  | O71: =LOOKUP(F71,B37:B56,M37:M56) ->  | P71: =LOOKUP(F71,B37:B56,N37:N56) ->  | Q71: =LOOKUP(F71,B37:B56,O37:O56) ->  | R71: =LOOKUP(F71,B37:B56,P37:P56) ->  | S71: =LOOKUP(F71,B37:B56,Q37:Q56) ->  | T71: =LOOKUP(F71,B37:B56,R37:R56) -> 
B72: =B44 -> 8 | C72: =D44 ->  | D72: 13 | E72: =IF( (E57+L57*D71)<=H57,(E57+L57*D71),"- - -") -> - - - | F72: =(B60+1)-MATCH(E72,C60:C79,-1) ->  | G72: =LOOKUP(F72,B37:B56,E37:E56) ->  | H72: =LOOKUP(F72,B37:B56,F37:F56)*0.001 ->  | I72: =LOOKUP(F72,B37:B56,G37:G56)*$P$57 ->  | J72: =LOOKUP(F72,B37:B56,H37:H56)*$P$57 ->  | K72: =LOOKUP(F72,B37:B56,I37:I56)*$P$57 ->  | L72: =LOOKUP(F72,B37:B56,J37:J56) ->  | M72: =LOOKUP(F72,B37:B56,K37:K56) ->  | N72: =LOOKUP(F72,B37:B56,L37:L56) ->  | O72: =LOOKUP(F72,B37:B56,M37:M56) ->  | P72: =LOOKUP(F72,B37:B56,N37:N56) ->  | Q72: =LOOKUP(F72,B37:B56,O37:O56) ->  | R72: =LOOKUP(F72,B37:B56,P37:P56) ->  | S72: =LOOKUP(F72,B37:B56,Q37:Q56) ->  | T72: =LOOKUP(F72,B37:B56,R37:R56) -> 
B73: =B43 -> 7 | C73: =D43 ->  | D73: 14 | E73: =IF( (E57+L57*D72)<=H57,(E57+L57*D72),"- - -") -> - - - | F73: =(B60+1)-MATCH(E73,C60:C79,-1) ->  | G73: =LOOKUP(F73,B37:B56,E37:E56) ->  | H73: =LOOKUP(F73,B37:B56,F37:F56)*0.001 ->  | I73: =LOOKUP(F73,B37:B56,G37:G56)*$P$57 ->  | J73: =LOOKUP(F73,B37:B56,H37:H56)*$P$57 ->  | K73: =LOOKUP(F73,B37:B56,I37:I56)*$P$57 ->  | L73: =LOOKUP(F73,B37:B56,J37:J56) ->  | M73: =LOOKUP(F73,B37:B56,K37:K56) ->  | N73: =LOOKUP(F73,B37:B56,L37:L56) ->  | O73: =LOOKUP(F73,B37:B56,M37:M56) ->  | P73: =LOOKUP(F73,B37:B56,N37:N56) ->  | Q73: =LOOKUP(F73,B37:B56,O37:O56) ->  | R73: =LOOKUP(F73,B37:B56,P37:P56) ->  | S73: =LOOKUP(F73,B37:B56,Q37:Q56) ->  | T73: =LOOKUP(F73,B37:B56,R37:R56) -> 
B74: =B42 -> 6 | C74: =D42 ->  | D74: 15 | E74: =IF( (E57+L57*D73)<=H57,(E57+L57*D73),"- - -") -> - - - | F74: =(B60+1)-MATCH(E74,C60:C79,-1) ->  | G74: =LOOKUP(F74,B37:B56,E37:E56) ->  | H74: =LOOKUP(F74,B37:B56,F37:F56)*0.001 ->  | I74: =LOOKUP(F74,B37:B56,G37:G56)*$P$57 ->  | J74: =LOOKUP(F74,B37:B56,H37:H56)*$P$57 ->  | K74: =LOOKUP(F74,B37:B56,I37:I56)*$P$57 ->  | L74: =LOOKUP(F74,B37:B56,J37:J56) ->  | M74: =LOOKUP(F74,B37:B56,K37:K56) ->  | N74: =LOOKUP(F74,B37:B56,L37:L56) ->  | O74: =LOOKUP(F74,B37:B56,M37:M56) ->  | P74: =LOOKUP(F74,B37:B56,N37:N56) ->  | Q74: =LOOKUP(F74,B37:B56,O37:O56) ->  | R74: =LOOKUP(F74,B37:B56,P37:P56) ->  | S74: =LOOKUP(F74,B37:B56,Q37:Q56) ->  | T74: =LOOKUP(F74,B37:B56,R37:R56) -> 
B75: =B41 -> 5 | C75: =D41 ->  | D75: 16 | E75: =IF( (E57+L57*D74)<=H57,(E57+L57*D74),"- - -") -> - - - | F75: =(B60+1)-MATCH(E75,C60:C79,-1) ->  | G75: =LOOKUP(F75,B37:B56,E37:E56) ->  | H75: =LOOKUP(F75,B37:B56,F37:F56)*0.001 ->  | I75: =LOOKUP(F75,B37:B56,G37:G56)*$P$57 ->  | J75: =LOOKUP(F75,B37:B56,H37:H56)*$P$57 ->  | K75: =LOOKUP(F75,B37:B56,I37:I56)*$P$57 ->  | L75: =LOOKUP(F75,B37:B56,J37:J56) ->  | M75: =LOOKUP(F75,B37:B56,K37:K56) ->  | N75: =LOOKUP(F75,B37:B56,L37:L56) ->  | O75: =LOOKUP(F75,B37:B56,M37:M56) ->  | P75: =LOOKUP(F75,B37:B56,N37:N56) ->  | Q75: =LOOKUP(F75,B37:B56,O37:O56) ->  | R75: =LOOKUP(F75,B37:B56,P37:P56) ->  | S75: =LOOKUP(F75,B37:B56,Q37:Q56) ->  | T75: =LOOKUP(F75,B37:B56,R37:R56) -> 
B76: =B40 -> 4 | C76: =D40 ->  | D76: 17 | E76: =IF( (E57+L57*D75)<=H57,(E57+L57*D75),"- - -") -> - - - | F76: =(B60+1)-MATCH(E76,C60:C79,-1) ->  | G76: =LOOKUP(F76,B37:B56,E37:E56) ->  | H76: =LOOKUP(F76,B37:B56,F37:F56)*0.001 ->  | I76: =LOOKUP(F76,B37:B56,G37:G56)*$P$57 ->  | J76: =LOOKUP(F76,B37:B56,H37:H56)*$P$57 ->  | K76: =LOOKUP(F76,B37:B56,I37:I56)*$P$57 ->  | L76: =LOOKUP(F76,B37:B56,J37:J56) ->  | M76: =LOOKUP(F76,B37:B56,K37:K56) ->  | N76: =LOOKUP(F76,B37:B56,L37:L56) ->  | O76: =LOOKUP(F76,B37:B56,M37:M56) ->  | P76: =LOOKUP(F76,B37:B56,N37:N56) ->  | Q76: =LOOKUP(F76,B37:B56,O37:O56) ->  | R76: =LOOKUP(F76,B37:B56,P37:P56) ->  | S76: =LOOKUP(F76,B37:B56,Q37:Q56) ->  | T76: =LOOKUP(F76,B37:B56,R37:R56) -> 
B77: =B39 -> 3 | C77: =D39 ->  | D77: 18 | E77: =IF( (E57+L57*D76)<=H57,(E57+L57*D76),"- - -") -> - - - | F77: =(B60+1)-MATCH(E77,C60:C79,-1) ->  | G77: =LOOKUP(F77,B37:B56,E37:E56) ->  | H77: =LOOKUP(F77,B37:B56,F37:F56)*0.001 ->  | I77: =LOOKUP(F77,B37:B56,G37:G56)*$P$57 ->  | J77: =LOOKUP(F77,B37:B56,H37:H56)*$P$57 ->  | K77: =LOOKUP(F77,B37:B56,I37:I56)*$P$57 ->  | L77: =LOOKUP(F77,B37:B56,J37:J56) ->  | M77: =LOOKUP(F77,B37:B56,K37:K56) ->  | N77: =LOOKUP(F77,B37:B56,L37:L56) ->  | O77: =LOOKUP(F77,B37:B56,M37:M56) ->  | P77: =LOOKUP(F77,B37:B56,N37:N56) ->  | Q77: =LOOKUP(F77,B37:B56,O37:O56) ->  | R77: =LOOKUP(F77,B37:B56,P37:P56) ->  | S77: =LOOKUP(F77,B37:B56,Q37:Q56) ->  | T77: =LOOKUP(F77,B37:B56,R37:R56) -> 
B78: =B38 -> 2 | C78: =D38 -> 500 | D78: 19 | E78: =IF( (E57+L57*D77)<=H57,(E57+L57*D77),"- - -") -> - - - | F78: =(B60+1)-MATCH(E78,C60:C79,-1) ->  | G78: =LOOKUP(F78,B37:B56,E37:E56) ->  | H78: =LOOKUP(F78,B37:B56,F37:F56)*0.001 ->  | I78: =LOOKUP(F78,B37:B56,G37:G56)*$P$57 ->  | J78: =LOOKUP(F78,B37:B56,H37:H56)*$P$57 ->  | K78: =LOOKUP(F78,B37:B56,I37:I56)*$P$57 ->  | L78: =LOOKUP(F78,B37:B56,J37:J56) ->  | M78: =LOOKUP(F78,B37:B56,K37:K56) ->  | N78: =LOOKUP(F78,B37:B56,L37:L56) ->  | O78: =LOOKUP(F78,B37:B56,M37:M56) ->  | P78: =LOOKUP(F78,B37:B56,N37:N56) ->  | Q78: =LOOKUP(F78,B37:B56,O37:O56) ->  | R78: =LOOKUP(F78,B37:B56,P37:P56) ->  | S78: =LOOKUP(F78,B37:B56,Q37:Q56) ->  | T78: =LOOKUP(F78,B37:B56,R37:R56) -> 
B79: =B37 -> 1 | C79: =D37 -> 450 | D79: 20 | E79: =IF( (E57+L57*D78)<=H57,(E57+L57*D78),"- - -") -> - - - | F79: =(B60+1)-MATCH(E79,C60:C79,-1) ->  | G79: =LOOKUP(F79,B37:B56,E37:E56) ->  | H79: =LOOKUP(F79,B37:B56,F37:F56)*0.001 ->  | I79: =LOOKUP(F79,B37:B56,G37:G56)*$P$57 ->  | J79: =LOOKUP(F79,B37:B56,H37:H56)*$P$57 ->  | K79: =LOOKUP(F79,B37:B56,I37:I56)*$P$57 ->  | L79: =LOOKUP(F79,B37:B56,J37:J56) ->  | M79: =LOOKUP(F79,B37:B56,K37:K56) ->  | N79: =LOOKUP(F79,B37:B56,L37:L56) ->  | O79: =LOOKUP(F79,B37:B56,M37:M56) ->  | P79: =LOOKUP(F79,B37:B56,N37:N56) ->  | Q79: =LOOKUP(F79,B37:B56,O37:O56) ->  | R79: =LOOKUP(F79,B37:B56,P37:P56) ->  | S79: =LOOKUP(F79,B37:B56,Q37:Q56) ->  | T79: =LOOKUP(F79,B37:B56,R37:R56) -> 
D80: 21 | E80: =IF( (E57+L57*D79)<=H57,(E57+L57*D79),"- - -") -> - - - | F80: =(B60+1)-MATCH(E80,C60:C79,-1) ->  | G80: =LOOKUP(F80,B37:B56,E37:E56) ->  | H80: =LOOKUP(F80,B37:B56,F37:F56)*0.001 ->  | I80: =LOOKUP(F80,B37:B56,G37:G56)*$P$57 ->  | J80: =LOOKUP(F80,B37:B56,H37:H56)*$P$57 ->  | K80: =LOOKUP(F80,B37:B56,I37:I56)*$P$57 ->  | L80: =LOOKUP(F80,B37:B56,J37:J56) ->  | M80: =LOOKUP(F80,B37:B56,K37:K56) ->  | N80: =LOOKUP(F80,B37:B56,L37:L56) ->  | O80: =LOOKUP(F80,B37:B56,M37:M56) ->  | P80: =LOOKUP(F80,B37:B56,N37:N56) ->  | Q80: =LOOKUP(F80,B37:B56,O37:O56) ->  | R80: =LOOKUP(F80,B37:B56,P37:P56) ->  | S80: =LOOKUP(F80,B37:B56,Q37:Q56) ->  | T80: =LOOKUP(F80,B37:B56,R37:R56) -> 
D81: 22 | E81: =IF( (E57+L57*D80)<=H57,(E57+L57*D80),"- - -") -> - - - | F81: =(B60+1)-MATCH(E81,C60:C79,-1) ->  | G81: =LOOKUP(F81,B37:B56,E37:E56) ->  | H81: =LOOKUP(F81,B37:B56,F37:F56)*0.001 ->  | I81: =LOOKUP(F81,B37:B56,G37:G56)*$P$57 ->  | J81: =LOOKUP(F81,B37:B56,H37:H56)*$P$57 ->  | K81: =LOOKUP(F81,B37:B56,I37:I56)*$P$57 ->  | L81: =LOOKUP(F81,B37:B56,J37:J56) ->  | M81: =LOOKUP(F81,B37:B56,K37:K56) ->  | N81: =LOOKUP(F81,B37:B56,L37:L56) ->  | O81: =LOOKUP(F81,B37:B56,M37:M56) ->  | P81: =LOOKUP(F81,B37:B56,N37:N56) ->  | Q81: =LOOKUP(F81,B37:B56,O37:O56) ->  | R81: =LOOKUP(F81,B37:B56,P37:P56) ->  | S81: =LOOKUP(F81,B37:B56,Q37:Q56) ->  | T81: =LOOKUP(F81,B37:B56,R37:R56) -> 
D82: 23 | E82: =IF( (E57+L57*D81)<=H57,(E57+L57*D81),"- - -") -> - - - | F82: =(B60+1)-MATCH(E82,C60:C79,-1) ->  | G82: =LOOKUP(F82,B37:B56,E37:E56) ->  | H82: =LOOKUP(F82,B37:B56,F37:F56)*0.001 ->  | I82: =LOOKUP(F82,B37:B56,G37:G56)*$P$57 ->  | J82: =LOOKUP(F82,B37:B56,H37:H56)*$P$57 ->  | K82: =LOOKUP(F82,B37:B56,I37:I56)*$P$57 ->  | L82: =LOOKUP(F82,B37:B56,J37:J56) ->  | M82: =LOOKUP(F82,B37:B56,K37:K56) ->  | N82: =LOOKUP(F82,B37:B56,L37:L56) ->  | O82: =LOOKUP(F82,B37:B56,M37:M56) ->  | P82: =LOOKUP(F82,B37:B56,N37:N56) ->  | Q82: =LOOKUP(F82,B37:B56,O37:O56) ->  | R82: =LOOKUP(F82,B37:B56,P37:P56) ->  | S82: =LOOKUP(F82,B37:B56,Q37:Q56) ->  | T82: =LOOKUP(F82,B37:B56,R37:R56) -> 
D83: 24 | E83: =IF( (E57+L57*D82)<=H57,(E57+L57*D82),"- - -") -> - - - | F83: =(B60+1)-MATCH(E83,C60:C79,-1) ->  | G83: =LOOKUP(F83,B37:B56,E37:E56) ->  | H83: =LOOKUP(F83,B37:B56,F37:F56)*0.001 ->  | I83: =LOOKUP(F83,B37:B56,G37:G56)*$P$57 ->  | J83: =LOOKUP(F83,B37:B56,H37:H56)*$P$57 ->  | K83: =LOOKUP(F83,B37:B56,I37:I56)*$P$57 ->  | L83: =LOOKUP(F83,B37:B56,J37:J56) ->  | M83: =LOOKUP(F83,B37:B56,K37:K56) ->  | N83: =LOOKUP(F83,B37:B56,L37:L56) ->  | O83: =LOOKUP(F83,B37:B56,M37:M56) ->  | P83: =LOOKUP(F83,B37:B56,N37:N56) ->  | Q83: =LOOKUP(F83,B37:B56,O37:O56) ->  | R83: =LOOKUP(F83,B37:B56,P37:P56) ->  | S83: =LOOKUP(F83,B37:B56,Q37:Q56) ->  | T83: =LOOKUP(F83,B37:B56,R37:R56) -> 
D84: 25 | E84: =IF( (E57+L57*D83)<=H57,(E57+L57*D83),"- - -") -> - - - | F84: =(B60+1)-MATCH(E84,C60:C79,-1) ->  | G84: =LOOKUP(F84,B37:B56,E37:E56) ->  | H84: =LOOKUP(F84,B37:B56,F37:F56)*0.001 ->  | I84: =LOOKUP(F84,B37:B56,G37:G56)*$P$57 ->  | J84: =LOOKUP(F84,B37:B56,H37:H56)*$P$57 ->  | K84: =LOOKUP(F84,B37:B56,I37:I56)*$P$57 ->  | L84: =LOOKUP(F84,B37:B56,J37:J56) ->  | M84: =LOOKUP(F84,B37:B56,K37:K56) ->  | N84: =LOOKUP(F84,B37:B56,L37:L56) ->  | O84: =LOOKUP(F84,B37:B56,M37:M56) ->  | P84: =LOOKUP(F84,B37:B56,N37:N56) ->  | Q84: =LOOKUP(F84,B37:B56,O37:O56) ->  | R84: =LOOKUP(F84,B37:B56,P37:P56) ->  | S84: =LOOKUP(F84,B37:B56,Q37:Q56) ->  | T84: =LOOKUP(F84,B37:B56,R37:R56) -> 
D85: 26 | E85: =IF( (E57+L57*D84)<=H57,(E57+L57*D84),"- - -") -> - - - | F85: =(B60+1)-MATCH(E85,C60:C79,-1) ->  | G85: =LOOKUP(F85,B37:B56,E37:E56) ->  | H85: =LOOKUP(F85,B37:B56,F37:F56)*0.001 ->  | I85: =LOOKUP(F85,B37:B56,G37:G56)*$P$57 ->  | J85: =LOOKUP(F85,B37:B56,H37:H56)*$P$57 ->  | K85: =LOOKUP(F85,B37:B56,I37:I56)*$P$57 ->  | L85: =LOOKUP(F85,B37:B56,J37:J56) ->  | M85: =LOOKUP(F85,B37:B56,K37:K56) ->  | N85: =LOOKUP(F85,B37:B56,L37:L56) ->  | O85: =LOOKUP(F85,B37:B56,M37:M56) ->  | P85: =LOOKUP(F85,B37:B56,N37:N56) ->  | Q85: =LOOKUP(F85,B37:B56,O37:O56) ->  | R85: =LOOKUP(F85,B37:B56,P37:P56) ->  | S85: =LOOKUP(F85,B37:B56,Q37:Q56) ->  | T85: =LOOKUP(F85,B37:B56,R37:R56) -> 
D86: 27 | E86: =IF( (E57+L57*D85)<=H57,(E57+L57*D85),"- - -") -> - - - | F86: =(B60+1)-MATCH(E86,C60:C79,-1) ->  | G86: =LOOKUP(F86,B37:B56,E37:E56) ->  | H86: =LOOKUP(F86,B37:B56,F37:F56)*0.001 ->  | I86: =LOOKUP(F86,B37:B56,G37:G56)*$P$57 ->  | J86: =LOOKUP(F86,B37:B56,H37:H56)*$P$57 ->  | K86: =LOOKUP(F86,B37:B56,I37:I56)*$P$57 ->  | L86: =LOOKUP(F86,B37:B56,J37:J56) ->  | M86: =LOOKUP(F86,B37:B56,K37:K56) ->  | N86: =LOOKUP(F86,B37:B56,L37:L56) ->  | O86: =LOOKUP(F86,B37:B56,M37:M56) ->  | P86: =LOOKUP(F86,B37:B56,N37:N56) ->  | Q86: =LOOKUP(F86,B37:B56,O37:O56) ->  | R86: =LOOKUP(F86,B37:B56,P37:P56) ->  | S86: =LOOKUP(F86,B37:B56,Q37:Q56) ->  | T86: =LOOKUP(F86,B37:B56,R37:R56) -> 
D87: 28 | E87: =IF( (E57+L57*D86)<=H57,(E57+L57*D86),"- - -") -> - - - | F87: =(B60+1)-MATCH(E87,C60:C79,-1) ->  | G87: =LOOKUP(F87,B37:B56,E37:E56) ->  | H87: =LOOKUP(F87,B37:B56,F37:F56)*0.001 ->  | I87: =LOOKUP(F87,B37:B56,G37:G56)*$P$57 ->  | J87: =LOOKUP(F87,B37:B56,H37:H56)*$P$57 ->  | K87: =LOOKUP(F87,B37:B56,I37:I56)*$P$57 ->  | L87: =LOOKUP(F87,B37:B56,J37:J56) ->  | M87: =LOOKUP(F87,B37:B56,K37:K56) ->  | N87: =LOOKUP(F87,B37:B56,L37:L56) ->  | O87: =LOOKUP(F87,B37:B56,M37:M56) ->  | P87: =LOOKUP(F87,B37:B56,N37:N56) ->  | Q87: =LOOKUP(F87,B37:B56,O37:O56) ->  | R87: =LOOKUP(F87,B37:B56,P37:P56) ->  | S87: =LOOKUP(F87,B37:B56,Q37:Q56) ->  | T87: =LOOKUP(F87,B37:B56,R37:R56) -> 
D88: 29 | E88: =IF( (E57+L57*D87)<=H57,(E57+L57*D87),"- - -") -> - - - | F88: =(B60+1)-MATCH(E88,C60:C79,-1) ->  | G88: =LOOKUP(F88,B37:B56,E37:E56) ->  | H88: =LOOKUP(F88,B37:B56,F37:F56)*0.001 ->  | I88: =LOOKUP(F88,B37:B56,G37:G56)*$P$57 ->  | J88: =LOOKUP(F88,B37:B56,H37:H56)*$P$57 ->  | K88: =LOOKUP(F88,B37:B56,I37:I56)*$P$57 ->  | L88: =LOOKUP(F88,B37:B56,J37:J56) ->  | M88: =LOOKUP(F88,B37:B56,K37:K56) ->  | N88: =LOOKUP(F88,B37:B56,L37:L56) ->  | O88: =LOOKUP(F88,B37:B56,M37:M56) ->  | P88: =LOOKUP(F88,B37:B56,N37:N56) ->  | Q88: =LOOKUP(F88,B37:B56,O37:O56) ->  | R88: =LOOKUP(F88,B37:B56,P37:P56) ->  | S88: =LOOKUP(F88,B37:B56,Q37:Q56) ->  | T88: =LOOKUP(F88,B37:B56,R37:R56) -> 
D89: 30 | E89: =IF( (E57+L57*D88)<=H57,(E57+L57*D88),"- - -") -> - - - | F89: =(B60+1)-MATCH(E89,C60:C79,-1) ->  | G89: =LOOKUP(F89,B37:B56,E37:E56) ->  | H89: =LOOKUP(F89,B37:B56,F37:F56)*0.001 ->  | I89: =LOOKUP(F89,B37:B56,G37:G56)*$P$57 ->  | J89: =LOOKUP(F89,B37:B56,H37:H56)*$P$57 ->  | K89: =LOOKUP(F89,B37:B56,I37:I56)*$P$57 ->  | L89: =LOOKUP(F89,B37:B56,J37:J56) ->  | M89: =LOOKUP(F89,B37:B56,K37:K56) ->  | N89: =LOOKUP(F89,B37:B56,L37:L56) ->  | O89: =LOOKUP(F89,B37:B56,M37:M56) ->  | P89: =LOOKUP(F89,B37:B56,N37:N56) ->  | Q89: =LOOKUP(F89,B37:B56,O37:O56) ->  | R89: =LOOKUP(F89,B37:B56,P37:P56) ->  | S89: =LOOKUP(F89,B37:B56,Q37:Q56) ->  | T89: =LOOKUP(F89,B37:B56,R37:R56) -> 
D90: =D89+1 -> 31 | E90: =IF( (E57+L57*D89)<=H57,(E57+L57*D89),"- - -") -> - - - | F90: =(B60+1)-MATCH(E90,C60:C79,-1) ->  | G90: =LOOKUP(F90,B37:B56,E37:E56) ->  | H90: =LOOKUP(F90,B37:B56,F37:F56)*0.001 ->  | I90: =LOOKUP(F90,B37:B56,G37:G56)*$P$57 ->  | J90: =LOOKUP(F90,B37:B56,H37:H56)*$P$57 ->  | K90: =LOOKUP(F90,B37:B56,I37:I56)*$P$57 ->  | L90: =LOOKUP(F90,B37:B56,J37:J56) ->  | M90: =LOOKUP(F90,B37:B56,K37:K56) ->  | N90: =LOOKUP(F90,B37:B56,L37:L56) ->  | O90: =LOOKUP(F90,B37:B56,M37:M56) ->  | P90: =LOOKUP(F90,B37:B56,N37:N56) ->  | Q90: =LOOKUP(F90,B37:B56,O37:O56) ->  | R90: =LOOKUP(F90,B37:B56,P37:P56) ->  | S90: =LOOKUP(F90,B37:B56,Q37:Q56) ->  | T90: =LOOKUP(F90,B37:B56,R37:R56) -> 
D91: 32 | E91: =IF( (E57+L57*D90)<=H57,(E57+L57*D90),"- - -") -> - - - | F91: =(B60+1)-MATCH(E91,C60:C79,-1) ->  | G91: =LOOKUP(F91,B37:B56,E37:E56) ->  | H91: =LOOKUP(F91,B37:B56,F37:F56)*0.001 ->  | I91: =LOOKUP(F91,B37:B56,G37:G56)*$P$57 ->  | J91: =LOOKUP(F91,B37:B56,H37:H56)*$P$57 ->  | K91: =LOOKUP(F91,B37:B56,I37:I56)*$P$57 ->  | L91: =LOOKUP(F91,B37:B56,J37:J56) ->  | M91: =LOOKUP(F91,B37:B56,K37:K56) ->  | N91: =LOOKUP(F91,B37:B56,L37:L56) ->  | O91: =LOOKUP(F91,B37:B56,M37:M56) ->  | P91: =LOOKUP(F91,B37:B56,N37:N56) ->  | Q91: =LOOKUP(F91,B37:B56,O37:O56) ->  | R91: =LOOKUP(F91,B37:B56,P37:P56) ->  | S91: =LOOKUP(F91,B37:B56,Q37:Q56) ->  | T91: =LOOKUP(F91,B37:B56,R37:R56) -> 
D92: 33 | E92: =IF( (E57+L57*D91)<=H57,(E57+L57*D91),"- - -") -> - - - | F92: =(B60+1)-MATCH(E92,C60:C79,-1) ->  | G92: =LOOKUP(F92,B37:B56,E37:E56) ->  | H92: =LOOKUP(F92,B37:B56,F37:F56)*0.001 ->  | I92: =LOOKUP(F92,B37:B56,G37:G56)*$P$57 ->  | J92: =LOOKUP(F92,B37:B56,H37:H56)*$P$57 ->  | K92: =LOOKUP(F92,B37:B56,I37:I56)*$P$57 ->  | L92: =LOOKUP(F92,B37:B56,J37:J56) ->  | M92: =LOOKUP(F92,B37:B56,K37:K56) ->  | N92: =LOOKUP(F92,B37:B56,L37:L56) ->  | O92: =LOOKUP(F92,B37:B56,M37:M56) ->  | P92: =LOOKUP(F92,B37:B56,N37:N56) ->  | Q92: =LOOKUP(F92,B37:B56,O37:O56) ->  | R92: =LOOKUP(F92,B37:B56,P37:P56) ->  | S92: =LOOKUP(F92,B37:B56,Q37:Q56) ->  | T92: =LOOKUP(F92,B37:B56,R37:R56) -> 
D93: 34 | E93: =IF( (E57+L57*D92)<=H57,(E57+L57*D92),"- - -") -> - - - | F93: =(B60+1)-MATCH(E93,C60:C79,-1) ->  | G93: =LOOKUP(F93,B37:B56,E37:E56) ->  | H93: =LOOKUP(F93,B37:B56,F37:F56)*0.001 ->  | I93: =LOOKUP(F93,B37:B56,G37:G56)*$P$57 ->  | J93: =LOOKUP(F93,B37:B56,H37:H56)*$P$57 ->  | K93: =LOOKUP(F93,B37:B56,I37:I56)*$P$57 ->  | L93: =LOOKUP(F93,B37:B56,J37:J56) ->  | M93: =LOOKUP(F93,B37:B56,K37:K56) ->  | N93: =LOOKUP(F93,B37:B56,L37:L56) ->  | O93: =LOOKUP(F93,B37:B56,M37:M56) ->  | P93: =LOOKUP(F93,B37:B56,N37:N56) ->  | Q93: =LOOKUP(F93,B37:B56,O37:O56) ->  | R93: =LOOKUP(F93,B37:B56,P37:P56) ->  | S93: =LOOKUP(F93,B37:B56,Q37:Q56) ->  | T93: =LOOKUP(F93,B37:B56,R37:R56) -> 
D94: 35 | E94: =IF( (E57+L57*D93)<=H57,(E57+L57*D93),"- - -") -> - - - | F94: =(B60+1)-MATCH(E94,C60:C79,-1) ->  | G94: =LOOKUP(F94,B37:B56,E37:E56) ->  | H94: =LOOKUP(F94,B37:B56,F37:F56)*0.001 ->  | I94: =LOOKUP(F94,B37:B56,G37:G56)*$P$57 ->  | J94: =LOOKUP(F94,B37:B56,H37:H56)*$P$57 ->  | K94: =LOOKUP(F94,B37:B56,I37:I56)*$P$57 ->  | L94: =LOOKUP(F94,B37:B56,J37:J56) ->  | M94: =LOOKUP(F94,B37:B56,K37:K56) ->  | N94: =LOOKUP(F94,B37:B56,L37:L56) ->  | O94: =LOOKUP(F94,B37:B56,M37:M56) ->  | P94: =LOOKUP(F94,B37:B56,N37:N56) ->  | Q94: =LOOKUP(F94,B37:B56,O37:O56) ->  | R94: =LOOKUP(F94,B37:B56,P37:P56) ->  | S94: =LOOKUP(F94,B37:B56,Q37:Q56) ->  | T94: =LOOKUP(F94,B37:B56,R37:R56) -> 
D95: 36 | E95: =IF( (E57+L57*D94)<=H57,(E57+L57*D94),"- - -") -> - - - | F95: =(B60+1)-MATCH(E95,C60:C79,-1) ->  | G95: =LOOKUP(F95,B37:B56,E37:E56) ->  | H95: =LOOKUP(F95,B37:B56,F37:F56)*0.001 ->  | I95: =LOOKUP(F95,B37:B56,G37:G56)*$P$57 ->  | J95: =LOOKUP(F95,B37:B56,H37:H56)*$P$57 ->  | K95: =LOOKUP(F95,B37:B56,I37:I56)*$P$57 ->  | L95: =LOOKUP(F95,B37:B56,J37:J56) ->  | M95: =LOOKUP(F95,B37:B56,K37:K56) ->  | N95: =LOOKUP(F95,B37:B56,L37:L56) ->  | O95: =LOOKUP(F95,B37:B56,M37:M56) ->  | P95: =LOOKUP(F95,B37:B56,N37:N56) ->  | Q95: =LOOKUP(F95,B37:B56,O37:O56) ->  | R95: =LOOKUP(F95,B37:B56,P37:P56) ->  | S95: =LOOKUP(F95,B37:B56,Q37:Q56) ->  | T95: =LOOKUP(F95,B37:B56,R37:R56) -> 
D96: 37 | E96: =IF( (E57+L57*D95)<=H57,(E57+L57*D95),"- - -") -> - - - | F96: =(B60+1)-MATCH(E96,C60:C79,-1) ->  | G96: =LOOKUP(F96,B37:B56,E37:E56) ->  | H96: =LOOKUP(F96,B37:B56,F37:F56)*0.001 ->  | I96: =LOOKUP(F96,B37:B56,G37:G56)*$P$57 ->  | J96: =LOOKUP(F96,B37:B56,H37:H56)*$P$57 ->  | K96: =LOOKUP(F96,B37:B56,I37:I56)*$P$57 ->  | L96: =LOOKUP(F96,B37:B56,J37:J56) ->  | M96: =LOOKUP(F96,B37:B56,K37:K56) ->  | N96: =LOOKUP(F96,B37:B56,L37:L56) ->  | O96: =LOOKUP(F96,B37:B56,M37:M56) ->  | P96: =LOOKUP(F96,B37:B56,N37:N56) ->  | Q96: =LOOKUP(F96,B37:B56,O37:O56) ->  | R96: =LOOKUP(F96,B37:B56,P37:P56) ->  | S96: =LOOKUP(F96,B37:B56,Q37:Q56) ->  | T96: =LOOKUP(F96,B37:B56,R37:R56) -> 
D97: 38 | E97: =IF( (E57+L57*D96)<=H57,(E57+L57*D96),"- - -") -> - - - | F97: =(B60+1)-MATCH(E97,C60:C79,-1) ->  | G97: =LOOKUP(F97,B37:B56,E37:E56) ->  | H97: =LOOKUP(F97,B37:B56,F37:F56)*0.001 ->  | I97: =LOOKUP(F97,B37:B56,G37:G56)*$P$57 ->  | J97: =LOOKUP(F97,B37:B56,H37:H56)*$P$57 ->  | K97: =LOOKUP(F97,B37:B56,I37:I56)*$P$57 ->  | L97: =LOOKUP(F97,B37:B56,J37:J56) ->  | M97: =LOOKUP(F97,B37:B56,K37:K56) ->  | N97: =LOOKUP(F97,B37:B56,L37:L56) ->  | O97: =LOOKUP(F97,B37:B56,M37:M56) ->  | P97: =LOOKUP(F97,B37:B56,N37:N56) ->  | Q97: =LOOKUP(F97,B37:B56,O37:O56) ->  | R97: =LOOKUP(F97,B37:B56,P37:P56) ->  | S97: =LOOKUP(F97,B37:B56,Q37:Q56) ->  | T97: =LOOKUP(F97,B37:B56,R37:R56) -> 
D98: 39 | E98: =IF( (E57+L57*D97)<=H57,(E57+L57*D97),"- - -") -> - - - | F98: =(B60+1)-MATCH(E98,C60:C79,-1) ->  | G98: =LOOKUP(F98,B37:B56,E37:E56) ->  | H98: =LOOKUP(F98,B37:B56,F37:F56)*0.001 ->  | I98: =LOOKUP(F98,B37:B56,G37:G56)*$P$57 ->  | J98: =LOOKUP(F98,B37:B56,H37:H56)*$P$57 ->  | K98: =LOOKUP(F98,B37:B56,I37:I56)*$P$57 ->  | L98: =LOOKUP(F98,B37:B56,J37:J56) ->  | M98: =LOOKUP(F98,B37:B56,K37:K56) ->  | N98: =LOOKUP(F98,B37:B56,L37:L56) ->  | O98: =LOOKUP(F98,B37:B56,M37:M56) ->  | P98: =LOOKUP(F98,B37:B56,N37:N56) ->  | Q98: =LOOKUP(F98,B37:B56,O37:O56) ->  | R98: =LOOKUP(F98,B37:B56,P37:P56) ->  | S98: =LOOKUP(F98,B37:B56,Q37:Q56) ->  | T98: =LOOKUP(F98,B37:B56,R37:R56) -> 
D99: 40 | E99: =IF( (E57+L57*D98)<=H57,(E57+L57*D98),"- - -") -> - - - | F99: =(B60+1)-MATCH(E99,C60:C79,-1) ->  | G99: =LOOKUP(F99,B37:B56,E37:E56) ->  | H99: =LOOKUP(F99,B37:B56,F37:F56)*0.001 ->  | I99: =LOOKUP(F99,B37:B56,G37:G56)*$P$57 ->  | J99: =LOOKUP(F99,B37:B56,H37:H56)*$P$57 ->  | K99: =LOOKUP(F99,B37:B56,I37:I56)*$P$57 ->  | L99: =LOOKUP(F99,B37:B56,J37:J56) ->  | M99: =LOOKUP(F99,B37:B56,K37:K56) ->  | N99: =LOOKUP(F99,B37:B56,L37:L56) ->  | O99: =LOOKUP(F99,B37:B56,M37:M56) ->  | P99: =LOOKUP(F99,B37:B56,N37:N56) ->  | Q99: =LOOKUP(F99,B37:B56,O37:O56) ->  | R99: =LOOKUP(F99,B37:B56,P37:P56) ->  | S99: =LOOKUP(F99,B37:B56,Q37:Q56) ->  | T99: =LOOKUP(F99,B37:B56,R37:R56) -> 
D100: 41 | E100: =IF( (E57+L57*D99)<=H57,(E57+L57*D99),"- - -") -> - - - | F100: =(B60+1)-MATCH(E100,C60:C79,-1) ->  | G100: =LOOKUP(F100,B37:B56,E37:E56) ->  | H100: =LOOKUP(F100,B37:B56,F37:F56)*0.001 ->  | I100: =LOOKUP(F100,B37:B56,G37:G56)*$P$57 ->  | J100: =LOOKUP(F100,B37:B56,H37:H56)*$P$57 ->  | K100: =LOOKUP(F100,B37:B56,I37:I56)*$P$57 ->  | L100: =LOOKUP(F100,B37:B56,J37:J56) ->  | M100: =LOOKUP(F100,B37:B56,K37:K56) ->  | N100: =LOOKUP(F100,B37:B56,L37:L56) ->  | O100: =LOOKUP(F100,B37:B56,M37:M56) ->  | P100: =LOOKUP(F100,B37:B56,N37:N56) ->  | Q100: =LOOKUP(F100,B37:B56,O37:O56) ->  | R100: =LOOKUP(F100,B37:B56,P37:P56) ->  | S100: =LOOKUP(F100,B37:B56,Q37:Q56) ->  | T100: =LOOKUP(F100,B37:B56,R37:R56) -> 
D101: 42 | E101: =IF( (E57+L57*D100)<=H57,(E57+L57*D100),"- - -") -> - - - | F101: =(B60+1)-MATCH(E101,C60:C79,-1) ->  | G101: =LOOKUP(F101,B37:B56,E37:E56) ->  | H101: =LOOKUP(F101,B37:B56,F37:F56)*0.001 ->  | I101: =LOOKUP(F101,B37:B56,G37:G56)*$P$57 ->  | J101: =LOOKUP(F101,B37:B56,H37:H56)*$P$57 ->  | K101: =LOOKUP(F101,B37:B56,I37:I56)*$P$57 ->  | L101: =LOOKUP(F101,B37:B56,J37:J56) ->  | M101: =LOOKUP(F101,B37:B56,K37:K56) ->  | N101: =LOOKUP(F101,B37:B56,L37:L56) ->  | O101: =LOOKUP(F101,B37:B56,M37:M56) ->  | P101: =LOOKUP(F101,B37:B56,N37:N56) ->  | Q101: =LOOKUP(F101,B37:B56,O37:O56) ->  | R101: =LOOKUP(F101,B37:B56,P37:P56) ->  | S101: =LOOKUP(F101,B37:B56,Q37:Q56) ->  | T101: =LOOKUP(F101,B37:B56,R37:R56) -> 
D102: 43 | E102: =IF( (E57+L57*D101)<=H57,(E57+L57*D101),"- - -") -> - - - | F102: =(B60+1)-MATCH(E102,C60:C79,-1) ->  | G102: =LOOKUP(F102,B37:B56,E37:E56) ->  | H102: =LOOKUP(F102,B37:B56,F37:F56)*0.001 ->  | I102: =LOOKUP(F102,B37:B56,G37:G56)*$P$57 ->  | J102: =LOOKUP(F102,B37:B56,H37:H56)*$P$57 ->  | K102: =LOOKUP(F102,B37:B56,I37:I56)*$P$57 ->  | L102: =LOOKUP(F102,B37:B56,J37:J56) ->  | M102: =LOOKUP(F102,B37:B56,K37:K56) ->  | N102: =LOOKUP(F102,B37:B56,L37:L56) ->  | O102: =LOOKUP(F102,B37:B56,M37:M56) ->  | P102: =LOOKUP(F102,B37:B56,N37:N56) ->  | Q102: =LOOKUP(F102,B37:B56,O37:O56) ->  | R102: =LOOKUP(F102,B37:B56,P37:P56) ->  | S102: =LOOKUP(F102,B37:B56,Q37:Q56) ->  | T102: =LOOKUP(F102,B37:B56,R37:R56) -> 
D103: 44 | E103: =IF( (E57+L57*D102)<=H57,(E57+L57*D102),"- - -") -> - - - | F103: =(B60+1)-MATCH(E103,C60:C79,-1) ->  | G103: =LOOKUP(F103,B37:B56,E37:E56) ->  | H103: =LOOKUP(F103,B37:B56,F37:F56)*0.001 ->  | I103: =LOOKUP(F103,B37:B56,G37:G56)*$P$57 ->  | J103: =LOOKUP(F103,B37:B56,H37:H56)*$P$57 ->  | K103: =LOOKUP(F103,B37:B56,I37:I56)*$P$57 ->  | L103: =LOOKUP(F103,B37:B56,J37:J56) ->  | M103: =LOOKUP(F103,B37:B56,K37:K56) ->  | N103: =LOOKUP(F103,B37:B56,L37:L56) ->  | O103: =LOOKUP(F103,B37:B56,M37:M56) ->  | P103: =LOOKUP(F103,B37:B56,N37:N56) ->  | Q103: =LOOKUP(F103,B37:B56,O37:O56) ->  | R103: =LOOKUP(F103,B37:B56,P37:P56) ->  | S103: =LOOKUP(F103,B37:B56,Q37:Q56) ->  | T103: =LOOKUP(F103,B37:B56,R37:R56) -> 
D104: 45 | E104: =IF( (E57+L57*D103)<=H57,(E57+L57*D103),"- - -") -> - - - | F104: =(B60+1)-MATCH(E104,C60:C79,-1) ->  | G104: =LOOKUP(F104,B37:B56,E37:E56) ->  | H104: =LOOKUP(F104,B37:B56,F37:F56)*0.001 ->  | I104: =LOOKUP(F104,B37:B56,G37:G56)*$P$57 ->  | J104: =LOOKUP(F104,B37:B56,H37:H56)*$P$57 ->  | K104: =LOOKUP(F104,B37:B56,I37:I56)*$P$57 ->  | L104: =LOOKUP(F104,B37:B56,J37:J56) ->  | M104: =LOOKUP(F104,B37:B56,K37:K56) ->  | N104: =LOOKUP(F104,B37:B56,L37:L56) ->  | O104: =LOOKUP(F104,B37:B56,M37:M56) ->  | P104: =LOOKUP(F104,B37:B56,N37:N56) ->  | Q104: =LOOKUP(F104,B37:B56,O37:O56) ->  | R104: =LOOKUP(F104,B37:B56,P37:P56) ->  | S104: =LOOKUP(F104,B37:B56,Q37:Q56) ->  | T104: =LOOKUP(F104,B37:B56,R37:R56) -> 
D105: 46 | E105: =IF( (E57+L57*D104)<=H57,(E57+L57*D104),"- - -") -> - - - | F105: =(B60+1)-MATCH(E105,C60:C79,-1) ->  | G105: =LOOKUP(F105,B37:B56,E37:E56) ->  | H105: =LOOKUP(F105,B37:B56,F37:F56)*0.001 ->  | I105: =LOOKUP(F105,B37:B56,G37:G56)*$P$57 ->  | J105: =LOOKUP(F105,B37:B56,H37:H56)*$P$57 ->  | K105: =LOOKUP(F105,B37:B56,I37:I56)*$P$57 ->  | L105: =LOOKUP(F105,B37:B56,J37:J56) ->  | M105: =LOOKUP(F105,B37:B56,K37:K56) ->  | N105: =LOOKUP(F105,B37:B56,L37:L56) ->  | O105: =LOOKUP(F105,B37:B56,M37:M56) ->  | P105: =LOOKUP(F105,B37:B56,N37:N56) ->  | Q105: =LOOKUP(F105,B37:B56,O37:O56) ->  | R105: =LOOKUP(F105,B37:B56,P37:P56) ->  | S105: =LOOKUP(F105,B37:B56,Q37:Q56) ->  | T105: =LOOKUP(F105,B37:B56,R37:R56) -> 
D106: 47 | E106: =IF( (E57+L57*D105)<=H57,(E57+L57*D105),"- - -") -> - - - | F106: =(B60+1)-MATCH(E106,C60:C79,-1) ->  | G106: =LOOKUP(F106,B37:B56,E37:E56) ->  | H106: =LOOKUP(F106,B37:B56,F37:F56)*0.001 ->  | I106: =LOOKUP(F106,B37:B56,G37:G56)*$P$57 ->  | J106: =LOOKUP(F106,B37:B56,H37:H56)*$P$57 ->  | K106: =LOOKUP(F106,B37:B56,I37:I56)*$P$57 ->  | L106: =LOOKUP(F106,B37:B56,J37:J56) ->  | M106: =LOOKUP(F106,B37:B56,K37:K56) ->  | N106: =LOOKUP(F106,B37:B56,L37:L56) ->  | O106: =LOOKUP(F106,B37:B56,M37:M56) ->  | P106: =LOOKUP(F106,B37:B56,N37:N56) ->  | Q106: =LOOKUP(F106,B37:B56,O37:O56) ->  | R106: =LOOKUP(F106,B37:B56,P37:P56) ->  | S106: =LOOKUP(F106,B37:B56,Q37:Q56) ->  | T106: =LOOKUP(F106,B37:B56,R37:R56) -> 
D107: 48 | E107: =IF( (E57+L57*D106)<=H57,(E57+L57*D106),"- - -") -> - - - | F107: =(B60+1)-MATCH(E107,C60:C79,-1) ->  | G107: =LOOKUP(F107,B37:B56,E37:E56) ->  | H107: =LOOKUP(F107,B37:B56,F37:F56)*0.001 ->  | I107: =LOOKUP(F107,B37:B56,G37:G56)*$P$57 ->  | J107: =LOOKUP(F107,B37:B56,H37:H56)*$P$57 ->  | K107: =LOOKUP(F107,B37:B56,I37:I56)*$P$57 ->  | L107: =LOOKUP(F107,B37:B56,J37:J56) ->  | M107: =LOOKUP(F107,B37:B56,K37:K56) ->  | N107: =LOOKUP(F107,B37:B56,L37:L56) ->  | O107: =LOOKUP(F107,B37:B56,M37:M56) ->  | P107: =LOOKUP(F107,B37:B56,N37:N56) ->  | Q107: =LOOKUP(F107,B37:B56,O37:O56) ->  | R107: =LOOKUP(F107,B37:B56,P37:P56) ->  | S107: =LOOKUP(F107,B37:B56,Q37:Q56) ->  | T107: =LOOKUP(F107,B37:B56,R37:R56) -> 
D108: 49 | E108: =IF( (E57+L57*D107)<=H57,(E57+L57*D107),"- - -") -> - - - | F108: =(B60+1)-MATCH(E108,C60:C79,-1) ->  | G108: =LOOKUP(F108,B37:B56,E37:E56) ->  | H108: =LOOKUP(F108,B37:B56,F37:F56)*0.001 ->  | I108: =LOOKUP(F108,B37:B56,G37:G56)*$P$57 ->  | J108: =LOOKUP(F108,B37:B56,H37:H56)*$P$57 ->  | K108: =LOOKUP(F108,B37:B56,I37:I56)*$P$57 ->  | L108: =LOOKUP(F108,B37:B56,J37:J56) ->  | M108: =LOOKUP(F108,B37:B56,K37:K56) ->  | N108: =LOOKUP(F108,B37:B56,L37:L56) ->  | O108: =LOOKUP(F108,B37:B56,M37:M56) ->  | P108: =LOOKUP(F108,B37:B56,N37:N56) ->  | Q108: =LOOKUP(F108,B37:B56,O37:O56) ->  | R108: =LOOKUP(F108,B37:B56,P37:P56) ->  | S108: =LOOKUP(F108,B37:B56,Q37:Q56) ->  | T108: =LOOKUP(F108,B37:B56,R37:R56) -> 
D109: 50 | E109: =IF( (E57+L57*D108)<=H57,(E57+L57*D108),"- - -") -> - - - | F109: =(B60+1)-MATCH(E109,C60:C79,-1) ->  | G109: =LOOKUP(F109,B37:B56,E37:E56) ->  | H109: =LOOKUP(F109,B37:B56,F37:F56)*0.001 ->  | I109: =LOOKUP(F109,B37:B56,G37:G56)*$P$57 ->  | J109: =LOOKUP(F109,B37:B56,H37:H56)*$P$57 ->  | K109: =LOOKUP(F109,B37:B56,I37:I56)*$P$57 ->  | L109: =LOOKUP(F109,B37:B56,J37:J56) ->  | M109: =LOOKUP(F109,B37:B56,K37:K56) ->  | N109: =LOOKUP(F109,B37:B56,L37:L56) ->  | O109: =LOOKUP(F109,B37:B56,M37:M56) ->  | P109: =LOOKUP(F109,B37:B56,N37:N56) ->  | Q109: =LOOKUP(F109,B37:B56,O37:O56) ->  | R109: =LOOKUP(F109,B37:B56,P37:P56) ->  | S109: =LOOKUP(F109,B37:B56,Q37:Q56) ->  | T109: =LOOKUP(F109,B37:B56,R37:R56) -> 
B112: 搬送負荷データレコード | E112: =LOOKUP(C114,MassDataLink!$A$4:$A$4056,MassDataLink!$G$4:$G$4056) -> RCS4-SA4C-60-2.5-水平 | J112: 設置姿勢で絞込み | L112: - - - | N112: 加減速・速度データレコード
B113: № | C113: Ldﾚｺｰﾄﾞ№ | D113: =MassDataLink!B2 -> ｱｸﾁｭｴｰﾀ姿勢 | E113: =MassDataLink!C2 -> 搬送負荷質量 | F113: =MassDataLink!D2 -> 加減速・速度ﾃﾞｰﾀ | G113: =MassDataLink!E2 -> 前ﾃﾞｰﾀ№ | H113: =MassDataLink!F2 -> 次ﾃﾞｰﾀ№ | J113: № | K113: 搬送負荷質量 | L113: avﾚｺｰﾄﾞ№ | N113: 備考 | O113: =LOOKUP(O115,AccVelDataLink!$A$4:$A$4497,AccVelDataLink!$F$4:$F$4497) -> RCS4-SA4C-60-2.5-水平
B114: 1 | C114: =LOOKUP(D35,B26:B33,E26:E33) -> 2977 | D114: =LOOKUP(C114,MassDataLink!$A$4:$A$4056,MassDataLink!$B$4:$B$4056) -> 0 | E114: =LOOKUP(C114,MassDataLink!$A$4:$A$4056,MassDataLink!$C$4:$C$4056) -> 11000 | F114: =LOOKUP(C114,MassDataLink!$A$4:$A$4056,MassDataLink!$D$4:$D$4056) -> 2977 | G114: =LOOKUP(C114,MassDataLink!$A$4:$A$4056,MassDataLink!$E$4:$E$4056) -> -1 | H114: =LOOKUP(C114,MassDataLink!$A$4:$A$4056,MassDataLink!$F$4:$F$4056) -> 2978 | J114: 1 | K114: =IF(C114=-1,$L$112,IF($A$11=D114,ROUND((E114*$P$57),$R$57),$L$112)) -> 11 | L114: =IF(K114=$L$112,$L$112,F114) -> 2977 | N114: № | O114: avﾚｺｰﾄﾞ№ | P114: 加速度 | Q114: 速度 | R114: 前ﾃﾞｰﾀ | S114: 次ﾃﾞｰﾀ
B115: =B114+1 -> 2 | C115: =IF(C114=-1,-1,H114) -> 2978 | D115: =LOOKUP(C115,MassDataLink!$A$4:$A$4056,MassDataLink!$B$4:$B$4056) -> 0 | E115: =LOOKUP(C115,MassDataLink!$A$4:$A$4056,MassDataLink!$C$4:$C$4056) -> 17000 | F115: =LOOKUP(C115,MassDataLink!$A$4:$A$4056,MassDataLink!$D$4:$D$4056) -> 2978 | G115: =LOOKUP(C115,MassDataLink!$A$4:$A$4056,MassDataLink!$E$4:$E$4056) -> 2977 | H115: =LOOKUP(C115,MassDataLink!$A$4:$A$4056,MassDataLink!$F$4:$F$4056) -> 2979 | J115: =J114+1 -> 2 | K115: =IF(C115=-1,$L$112,IF($A$11=D115,ROUND((E115*$P$57),$R$57),$L$112)) -> 17 | L115: =IF(K115=$L$112,$L$112,F115) -> 2978 | N115: 1 | O115: =LOOKUP(A14,K114:K163,L114:L163) -> 2977 | P115: =LOOKUP(O115,AccVelDataLink!$A$4:$A$4497,AccVelDataLink!$B$4:$B$4497) -> 14709975 | Q115: =LOOKUP(O115,AccVelDataLink!$A$4:$A$4497,AccVelDataLink!$C$4:$C$4497) -> 150 | R115: =LOOKUP(O115,AccVelDataLink!$A$4:$A$4497,AccVelDataLink!$D$4:$D$4497) -> -1 | S115: =LOOKUP(O115,AccVelDataLink!$A$4:$A$4497,AccVelDataLink!$E$4:$E$4497) -> -1
B116: =B115+1 -> 3 | C116: =IF(C115=-1,-1,H115) -> 2979 | D116: =LOOKUP(C116,MassDataLink!$A$4:$A$4056,MassDataLink!$B$4:$B$4056) -> 0 | E116: =LOOKUP(C116,MassDataLink!$A$4:$A$4056,MassDataLink!$C$4:$C$4056) -> 20000 | F116: =LOOKUP(C116,MassDataLink!$A$4:$A$4056,MassDataLink!$D$4:$D$4056) -> 2979 | G116: =LOOKUP(C116,MassDataLink!$A$4:$A$4056,MassDataLink!$E$4:$E$4056) -> 2978 | H116: =LOOKUP(C116,MassDataLink!$A$4:$A$4056,MassDataLink!$F$4:$F$4056) -> 2980 | J116: =J115+1 -> 3 | K116: 20 | L116: 2979 | N116: =N115+1 -> 2 | O116: =IF(O115=-1,-1,S115) -> -1 | P116: =LOOKUP(O116,AccVelDataLink!$A$4:$A$4497,AccVelDataLink!$B$4:$B$4497) ->  | Q116: =LOOKUP(O116,AccVelDataLink!$A$4:$A$4497,AccVelDataLink!$C$4:$C$4497) ->  | R116: =LOOKUP(O116,AccVelDataLink!$A$4:$A$4497,AccVelDataLink!$D$4:$D$4497) ->  | S116: =LOOKUP(O116,AccVelDataLink!$A$4:$A$4497,AccVelDataLink!$E$4:$E$4497) -> 
B117: =B116+1 -> 4 | C117: =IF(C116=-1,-1,H116) -> 2980 | D117: =LOOKUP(C117,MassDataLink!$A$4:$A$4056,MassDataLink!$B$4:$B$4056) -> 1 | E117: =LOOKUP(C117,MassDataLink!$A$4:$A$4056,MassDataLink!$C$4:$C$4056) -> 6000 | F117: =LOOKUP(C117,MassDataLink!$A$4:$A$4056,MassDataLink!$D$4:$D$4056) -> 2983 | G117: =LOOKUP(C117,MassDataLink!$A$4:$A$4056,MassDataLink!$E$4:$E$4056) -> 2979 | H117: =LOOKUP(C117,MassDataLink!$A$4:$A$4056,MassDataLink!$F$4:$F$4056) -> 2981 | J117: =J116+1 -> 4 | K117: - - - | L117: - - - | N117: 3 | O117: =IF(O116=-1,-1,S116) -> -1 | P117: =LOOKUP(O117,AccVelDataLink!$A$4:$A$4497,AccVelDataLink!$B$4:$B$4497) ->  | Q117: =LOOKUP(O117,AccVelDataLink!$A$4:$A$4497,AccVelDataLink!$C$4:$C$4497) ->  | R117: =LOOKUP(O117,AccVelDataLink!$A$4:$A$4497,AccVelDataLink!$D$4:$D$4497) ->  | S117: =LOOKUP(O117,AccVelDataLink!$A$4:$A$4497,AccVelDataLink!$E$4:$E$4497) -> 
B118: =B117+1 -> 5 | C118: =IF(C117=-1,-1,H117) -> 2981 | D118: =LOOKUP(C118,MassDataLink!$A$4:$A$4056,MassDataLink!$B$4:$B$4056) -> 1 | E118: =LOOKUP(C118,MassDataLink!$A$4:$A$4056,MassDataLink!$C$4:$C$4056) -> 7000 | F118: =LOOKUP(C118,MassDataLink!$A$4:$A$4056,MassDataLink!$D$4:$D$4056) -> 2984 | G118: =LOOKUP(C118,MassDataLink!$A$4:$A$4056,MassDataLink!$E$4:$E$4056) -> 2980 | H118: =LOOKUP(C118,MassDataLink!$A$4:$A$4056,MassDataLink!$F$4:$F$4056) -> 2982 | J118: =J117+1 -> 5 | K118: - - - | L118: - - - | N118: 4 | O118: -1 | P118: =LOOKUP(O118,AccVelDataLink!$A$4:$A$4497,AccVelDataLink!$B$4:$B$4497) ->  | Q118: =LOOKUP(O118,AccVelDataLink!$A$4:$A$4497,AccVelDataLink!$C$4:$C$4497) ->  | R118: =LOOKUP(O118,AccVelDataLink!$A$4:$A$4497,AccVelDataLink!$D$4:$D$4497) ->  | S118: =LOOKUP(O118,AccVelDataLink!$A$4:$A$4497,AccVelDataLink!$E$4:$E$4497) -> 
B119: =B118+1 -> 6 | C119: =IF(C118=-1,-1,H118) -> 2982 | D119: =LOOKUP(C119,MassDataLink!$A$4:$A$4056,MassDataLink!$B$4:$B$4056) -> 1 | E119: =LOOKUP(C119,MassDataLink!$A$4:$A$4056,MassDataLink!$C$4:$C$4056) -> 8000 | F119: =LOOKUP(C119,MassDataLink!$A$4:$A$4056,MassDataLink!$D$4:$D$4056) -> 2985 | G119: =LOOKUP(C119,MassDataLink!$A$4:$A$4056,MassDataLink!$E$4:$E$4056) -> 2981 | H119: =LOOKUP(C119,MassDataLink!$A$4:$A$4056,MassDataLink!$F$4:$F$4056) -> 2983 | J119: =J118+1 -> 6 | K119: - - - | L119: - - - | N119: 5 | O119: -1 | P119: =LOOKUP(O119,AccVelDataLink!$A$4:$A$4497,AccVelDataLink!$B$4:$B$4497) ->  | Q119: =LOOKUP(O119,AccVelDataLink!$A$4:$A$4497,AccVelDataLink!$C$4:$C$4497) ->  | R119: =LOOKUP(O119,AccVelDataLink!$A$4:$A$4497,AccVelDataLink!$D$4:$D$4497) ->  | S119: =LOOKUP(O119,AccVelDataLink!$A$4:$A$4497,AccVelDataLink!$E$4:$E$4497) -> 
B120: 7 | C120: 2983 | D120: =LOOKUP(C120,MassDataLink!$A$4:$A$4056,MassDataLink!$B$4:$B$4056) -> 1 | E120: =LOOKUP(C120,MassDataLink!$A$4:$A$4056,MassDataLink!$C$4:$C$4056) -> 10000 | F120: =LOOKUP(C120,MassDataLink!$A$4:$A$4056,MassDataLink!$D$4:$D$4056) -> 2986 | G120: =LOOKUP(C120,MassDataLink!$A$4:$A$4056,MassDataLink!$E$4:$E$4056) -> 2982 | H120: =LOOKUP(C120,MassDataLink!$A$4:$A$4056,MassDataLink!$F$4:$F$4056) -> 2984 | J120: 7 | K120: - - - | L120: - - - | N120: 6 | O120: -1 | P120: =LOOKUP(O120,AccVelDataLink!$A$4:$A$4497,AccVelDataLink!$B$4:$B$4497) ->  | Q120: =LOOKUP(O120,AccVelDataLink!$A$4:$A$4497,AccVelDataLink!$C$4:$C$4497) ->  | R120: =LOOKUP(O120,AccVelDataLink!$A$4:$A$4497,AccVelDataLink!$D$4:$D$4497) ->  | S120: =LOOKUP(O120,AccVelDataLink!$A$4:$A$4497,AccVelDataLink!$E$4:$E$4497) -> 
B121: 8 | C121: 2984 | D121: =LOOKUP(C121,MassDataLink!$A$4:$A$4056,MassDataLink!$B$4:$B$4056) -> 1 | E121: =LOOKUP(C121,MassDataLink!$A$4:$A$4056,MassDataLink!$C$4:$C$4056) -> 12000 | F121: =LOOKUP(C121,MassDataLink!$A$4:$A$4056,MassDataLink!$D$4:$D$4056) -> 2987 | G121: =LOOKUP(C121,MassDataLink!$A$4:$A$4056,MassDataLink!$E$4:$E$4056) -> 2983 | H121: =LOOKUP(C121,MassDataLink!$A$4:$A$4056,MassDataLink!$F$4:$F$4056) -> -1 | J121: 8 | K121: - - - | L121: - - - | N121: 7 | O121: -1 | P121: =LOOKUP(O121,AccVelDataLink!$A$4:$A$4497,AccVelDataLink!$B$4:$B$4497) ->  | Q121: =LOOKUP(O121,AccVelDataLink!$A$4:$A$4497,AccVelDataLink!$C$4:$C$4497) ->  | R121: =LOOKUP(O121,AccVelDataLink!$A$4:$A$4497,AccVelDataLink!$D$4:$D$4497) ->  | S121: =LOOKUP(O121,AccVelDataLink!$A$4:$A$4497,AccVelDataLink!$E$4:$E$4497) -> 
B122: 9 | C122: -1 | D122: =LOOKUP(C122,MassDataLink!$A$4:$A$4056,MassDataLink!$B$4:$B$4056) ->  | E122: =LOOKUP(C122,MassDataLink!$A$4:$A$4056,MassDataLink!$C$4:$C$4056) ->  | F122: =LOOKUP(C122,MassDataLink!$A$4:$A$4056,MassDataLink!$D$4:$D$4056) ->  | G122: =LOOKUP(C122,MassDataLink!$A$4:$A$4056,MassDataLink!$E$4:$E$4056) ->  | H122: =LOOKUP(C122,MassDataLink!$A$4:$A$4056,MassDataLink!$F$4:$F$4056) ->  | J122: 9 | K122: - - - | L122: - - - | N122: 8 | O122: -1 | P122: =LOOKUP(O122,AccVelDataLink!$A$4:$A$4497,AccVelDataLink!$B$4:$B$4497) ->  | Q122: =LOOKUP(O122,AccVelDataLink!$A$4:$A$4497,AccVelDataLink!$C$4:$C$4497) ->  | R122: =LOOKUP(O122,AccVelDataLink!$A$4:$A$4497,AccVelDataLink!$D$4:$D$4497) ->  | S122: =LOOKUP(O122,AccVelDataLink!$A$4:$A$4497,AccVelDataLink!$E$4:$E$4497) -> 
B123: 10 | C123: -1 | D123: =LOOKUP(C123,MassDataLink!$A$4:$A$4056,MassDataLink!$B$4:$B$4056) ->  | E123: =LOOKUP(C123,MassDataLink!$A$4:$A$4056,MassDataLink!$C$4:$C$4056) ->  | F123: =LOOKUP(C123,MassDataLink!$A$4:$A$4056,MassDataLink!$D$4:$D$4056) ->  | G123: =LOOKUP(C123,MassDataLink!$A$4:$A$4056,MassDataLink!$E$4:$E$4056) ->  | H123: =LOOKUP(C123,MassDataLink!$A$4:$A$4056,MassDataLink!$F$4:$F$4056) ->  | J123: 10 | K123: - - - | L123: - - - | N123: 9 | O123: -1 | P123: =LOOKUP(O123,AccVelDataLink!$A$4:$A$4497,AccVelDataLink!$B$4:$B$4497) ->  | Q123: =LOOKUP(O123,AccVelDataLink!$A$4:$A$4497,AccVelDataLink!$C$4:$C$4497) ->  | R123: =LOOKUP(O123,AccVelDataLink!$A$4:$A$4497,AccVelDataLink!$D$4:$D$4497) ->  | S123: =LOOKUP(O123,AccVelDataLink!$A$4:$A$4497,AccVelDataLink!$E$4:$E$4497) -> 
B124: 11 | C124: -1 | D124: =LOOKUP(C124,MassDataLink!$A$4:$A$4056,MassDataLink!$B$4:$B$4056) ->  | E124: =LOOKUP(C124,MassDataLink!$A$4:$A$4056,MassDataLink!$C$4:$C$4056) ->  | F124: =LOOKUP(C124,MassDataLink!$A$4:$A$4056,MassDataLink!$D$4:$D$4056) ->  | G124: =LOOKUP(C124,MassDataLink!$A$4:$A$4056,MassDataLink!$E$4:$E$4056) ->  | H124: =LOOKUP(C124,MassDataLink!$A$4:$A$4056,MassDataLink!$F$4:$F$4056) ->  | J124: 11 | K124: - - - | L124: - - - | N124: 10 | O124: -1 | P124: =LOOKUP(O124,AccVelDataLink!$A$4:$A$4497,AccVelDataLink!$B$4:$B$4497) ->  | Q124: =LOOKUP(O124,AccVelDataLink!$A$4:$A$4497,AccVelDataLink!$C$4:$C$4497) ->  | R124: =LOOKUP(O124,AccVelDataLink!$A$4:$A$4497,AccVelDataLink!$D$4:$D$4497) ->  | S124: =LOOKUP(O124,AccVelDataLink!$A$4:$A$4497,AccVelDataLink!$E$4:$E$4497) -> 
B125: 12 | C125: -1 | D125: =LOOKUP(C125,MassDataLink!$A$4:$A$4056,MassDataLink!$B$4:$B$4056) ->  | E125: =LOOKUP(C125,MassDataLink!$A$4:$A$4056,MassDataLink!$C$4:$C$4056) ->  | F125: =LOOKUP(C125,MassDataLink!$A$4:$A$4056,MassDataLink!$D$4:$D$4056) ->  | G125: =LOOKUP(C125,MassDataLink!$A$4:$A$4056,MassDataLink!$E$4:$E$4056) ->  | H125: =LOOKUP(C125,MassDataLink!$A$4:$A$4056,MassDataLink!$F$4:$F$4056) ->  | J125: 12 | K125: - - - | L125: - - - | O125: 加速度系数 | P125: 1e-06
B126: 13 | C126: -1 | D126: =LOOKUP(C126,MassDataLink!$A$4:$A$4056,MassDataLink!$B$4:$B$4056) ->  | E126: =LOOKUP(C126,MassDataLink!$A$4:$A$4056,MassDataLink!$C$4:$C$4056) ->  | F126: =LOOKUP(C126,MassDataLink!$A$4:$A$4056,MassDataLink!$D$4:$D$4056) ->  | G126: =LOOKUP(C126,MassDataLink!$A$4:$A$4056,MassDataLink!$E$4:$E$4056) ->  | H126: =LOOKUP(C126,MassDataLink!$A$4:$A$4056,MassDataLink!$F$4:$F$4056) ->  | J126: 13 | K126: - - - | L126: - - - | N126: G | O126: № | P126: 加速度 | Q126: 速度
B127: 14 | C127: -1 | D127: =LOOKUP(C127,MassDataLink!$A$4:$A$4056,MassDataLink!$B$4:$B$4056) ->  | E127: =LOOKUP(C127,MassDataLink!$A$4:$A$4056,MassDataLink!$C$4:$C$4056) ->  | F127: =LOOKUP(C127,MassDataLink!$A$4:$A$4056,MassDataLink!$D$4:$D$4056) ->  | G127: =LOOKUP(C127,MassDataLink!$A$4:$A$4056,MassDataLink!$E$4:$E$4056) ->  | H127: =LOOKUP(C127,MassDataLink!$A$4:$A$4056,MassDataLink!$F$4:$F$4056) ->  | J127: 14 | K127: - - - | L127: - - - | N127: =LeadData!A1 -> 9.80665 | O127: 1 | P127: =IF(O115=-1,$L$112,(P115/$N$127)*$P$125) -> 1.5 | Q127: =IF(O115=-1,$L$112,Q115) -> 150
B128: 15 | C128: -1 | D128: =LOOKUP(C128,MassDataLink!$A$4:$A$4056,MassDataLink!$B$4:$B$4056) ->  | E128: =LOOKUP(C128,MassDataLink!$A$4:$A$4056,MassDataLink!$C$4:$C$4056) ->  | F128: =LOOKUP(C128,MassDataLink!$A$4:$A$4056,MassDataLink!$D$4:$D$4056) ->  | G128: =LOOKUP(C128,MassDataLink!$A$4:$A$4056,MassDataLink!$E$4:$E$4056) ->  | H128: =LOOKUP(C128,MassDataLink!$A$4:$A$4056,MassDataLink!$F$4:$F$4056) ->  | J128: 15 | K128: - - - | L128: - - - | O128: =O127+1 -> 2 | P128: =IF(O116=-1,$L$112,(P116/$N$127)*$P$125) -> - - - | Q128: =IF(O116=-1,$L$112,Q116) -> - - -
B129: 16 | C129: -1 | D129: =LOOKUP(C129,MassDataLink!$A$4:$A$4056,MassDataLink!$B$4:$B$4056) ->  | E129: =LOOKUP(C129,MassDataLink!$A$4:$A$4056,MassDataLink!$C$4:$C$4056) ->  | F129: =LOOKUP(C129,MassDataLink!$A$4:$A$4056,MassDataLink!$D$4:$D$4056) ->  | G129: =LOOKUP(C129,MassDataLink!$A$4:$A$4056,MassDataLink!$E$4:$E$4056) ->  | H129: =LOOKUP(C129,MassDataLink!$A$4:$A$4056,MassDataLink!$F$4:$F$4056) ->  | J129: 16 | K129: - - - | L129: - - - | O129: 3 | P129: - - - | Q129: - - -
B130: 17 | C130: -1 | D130: =LOOKUP(C130,MassDataLink!$A$4:$A$4056,MassDataLink!$B$4:$B$4056) ->  | E130: =LOOKUP(C130,MassDataLink!$A$4:$A$4056,MassDataLink!$C$4:$C$4056) ->  | F130: =LOOKUP(C130,MassDataLink!$A$4:$A$4056,MassDataLink!$D$4:$D$4056) ->  | G130: =LOOKUP(C130,MassDataLink!$A$4:$A$4056,MassDataLink!$E$4:$E$4056) ->  | H130: =LOOKUP(C130,MassDataLink!$A$4:$A$4056,MassDataLink!$F$4:$F$4056) ->  | J130: 17 | K130: - - - | L130: - - - | O130: 4 | P130: - - - | Q130: - - -
B131: 18 | C131: -1 | D131: =LOOKUP(C131,MassDataLink!$A$4:$A$4056,MassDataLink!$B$4:$B$4056) ->  | E131: =LOOKUP(C131,MassDataLink!$A$4:$A$4056,MassDataLink!$C$4:$C$4056) ->  | F131: =LOOKUP(C131,MassDataLink!$A$4:$A$4056,MassDataLink!$D$4:$D$4056) ->  | G131: =LOOKUP(C131,MassDataLink!$A$4:$A$4056,MassDataLink!$E$4:$E$4056) ->  | H131: =LOOKUP(C131,MassDataLink!$A$4:$A$4056,MassDataLink!$F$4:$F$4056) ->  | J131: 18 | K131: - - - | L131: - - - | O131: 5 | P131: - - - | Q131: - - -
B132: 19 | C132: -1 | D132: =LOOKUP(C132,MassDataLink!$A$4:$A$4056,MassDataLink!$B$4:$B$4056) ->  | E132: =LOOKUP(C132,MassDataLink!$A$4:$A$4056,MassDataLink!$C$4:$C$4056) ->  | F132: =LOOKUP(C132,MassDataLink!$A$4:$A$4056,MassDataLink!$D$4:$D$4056) ->  | G132: =LOOKUP(C132,MassDataLink!$A$4:$A$4056,MassDataLink!$E$4:$E$4056) ->  | H132: =LOOKUP(C132,MassDataLink!$A$4:$A$4056,MassDataLink!$F$4:$F$4056) ->  | J132: 19 | K132: - - - | L132: - - - | O132: 6 | P132: - - - | Q132: - - -
B133: 20 | C133: -1 | D133: =LOOKUP(C133,MassDataLink!$A$4:$A$4056,MassDataLink!$B$4:$B$4056) ->  | E133: =LOOKUP(C133,MassDataLink!$A$4:$A$4056,MassDataLink!$C$4:$C$4056) ->  | F133: =LOOKUP(C133,MassDataLink!$A$4:$A$4056,MassDataLink!$D$4:$D$4056) ->  | G133: =LOOKUP(C133,MassDataLink!$A$4:$A$4056,MassDataLink!$E$4:$E$4056) ->  | H133: =LOOKUP(C133,MassDataLink!$A$4:$A$4056,MassDataLink!$F$4:$F$4056) ->  | J133: 20 | K133: - - - | L133: - - - | O133: 7 | P133: - - - | Q133: - - -
B134: 21 | C134: -1 | D134: =LOOKUP(C134,MassDataLink!$A$4:$A$4056,MassDataLink!$B$4:$B$4056) ->  | E134: =LOOKUP(C134,MassDataLink!$A$4:$A$4056,MassDataLink!$C$4:$C$4056) ->  | F134: =LOOKUP(C134,MassDataLink!$A$4:$A$4056,MassDataLink!$D$4:$D$4056) ->  | G134: =LOOKUP(C134,MassDataLink!$A$4:$A$4056,MassDataLink!$E$4:$E$4056) ->  | H134: =LOOKUP(C134,MassDataLink!$A$4:$A$4056,MassDataLink!$F$4:$F$4056) ->  | J134: 21 | K134: - - - | L134: - - - | O134: 8 | P134: - - - | Q134: - - -
B135: 22 | C135: -1 | D135: =LOOKUP(C135,MassDataLink!$A$4:$A$4056,MassDataLink!$B$4:$B$4056) ->  | E135: =LOOKUP(C135,MassDataLink!$A$4:$A$4056,MassDataLink!$C$4:$C$4056) ->  | F135: =LOOKUP(C135,MassDataLink!$A$4:$A$4056,MassDataLink!$D$4:$D$4056) ->  | G135: =LOOKUP(C135,MassDataLink!$A$4:$A$4056,MassDataLink!$E$4:$E$4056) ->  | H135: =LOOKUP(C135,MassDataLink!$A$4:$A$4056,MassDataLink!$F$4:$F$4056) ->  | J135: 22 | K135: - - - | L135: - - - | O135: 9 | P135: - - - | Q135: - - -
B136: 23 | C136: -1 | D136: =LOOKUP(C136,MassDataLink!$A$4:$A$4056,MassDataLink!$B$4:$B$4056) ->  | E136: =LOOKUP(C136,MassDataLink!$A$4:$A$4056,MassDataLink!$C$4:$C$4056) ->  | F136: =LOOKUP(C136,MassDataLink!$A$4:$A$4056,MassDataLink!$D$4:$D$4056) ->  | G136: =LOOKUP(C136,MassDataLink!$A$4:$A$4056,MassDataLink!$E$4:$E$4056) ->  | H136: =LOOKUP(C136,MassDataLink!$A$4:$A$4056,MassDataLink!$F$4:$F$4056) ->  | J136: 23 | K136: - - - | L136: - - - | O136: 10 | P136: - - - | Q136: - - -
B137: =B136+1 -> 24 | C137: =IF(C136=-1,-1,H136) -> -1 | D137: =LOOKUP(C137,MassDataLink!$A$4:$A$4056,MassDataLink!$B$4:$B$4056) ->  | E137: =LOOKUP(C137,MassDataLink!$A$4:$A$4056,MassDataLink!$C$4:$C$4056) ->  | F137: =LOOKUP(C137,MassDataLink!$A$4:$A$4056,MassDataLink!$D$4:$D$4056) ->  | G137: =LOOKUP(C137,MassDataLink!$A$4:$A$4056,MassDataLink!$E$4:$E$4056) ->  | H137: =LOOKUP(C137,MassDataLink!$A$4:$A$4056,MassDataLink!$F$4:$F$4056) ->  | J137: 24 | K137: - - - | L137: - - -
B138: 25 | C138: -1 | D138: =LOOKUP(C138,MassDataLink!$A$4:$A$4056,MassDataLink!$B$4:$B$4056) ->  | E138: =LOOKUP(C138,MassDataLink!$A$4:$A$4056,MassDataLink!$C$4:$C$4056) ->  | F138: =LOOKUP(C138,MassDataLink!$A$4:$A$4056,MassDataLink!$D$4:$D$4056) ->  | G138: =LOOKUP(C138,MassDataLink!$A$4:$A$4056,MassDataLink!$E$4:$E$4056) ->  | H138: =LOOKUP(C138,MassDataLink!$A$4:$A$4056,MassDataLink!$F$4:$F$4056) ->  | J138: 25 | K138: - - - | L138: - - -
B139: 26 | C139: -1 | D139: =LOOKUP(C139,MassDataLink!$A$4:$A$4056,MassDataLink!$B$4:$B$4056) ->  | E139: =LOOKUP(C139,MassDataLink!$A$4:$A$4056,MassDataLink!$C$4:$C$4056) ->  | F139: =LOOKUP(C139,MassDataLink!$A$4:$A$4056,MassDataLink!$D$4:$D$4056) ->  | G139: =LOOKUP(C139,MassDataLink!$A$4:$A$4056,MassDataLink!$E$4:$E$4056) ->  | H139: =LOOKUP(C139,MassDataLink!$A$4:$A$4056,MassDataLink!$F$4:$F$4056) ->  | J139: 26 | K139: - - - | L139: - - -
B140: 27 | C140: -1 | D140: =LOOKUP(C140,MassDataLink!$A$4:$A$4056,MassDataLink!$B$4:$B$4056) ->  | E140: =LOOKUP(C140,MassDataLink!$A$4:$A$4056,MassDataLink!$C$4:$C$4056) ->  | F140: =LOOKUP(C140,MassDataLink!$A$4:$A$4056,MassDataLink!$D$4:$D$4056) ->  | G140: =LOOKUP(C140,MassDataLink!$A$4:$A$4056,MassDataLink!$E$4:$E$4056) ->  | H140: =LOOKUP(C140,MassDataLink!$A$4:$A$4056,MassDataLink!$F$4:$F$4056) ->  | J140: 27 | K140: - - - | L140: - - -
B141: 28 | C141: -1 | D141: =LOOKUP(C141,MassDataLink!$A$4:$A$4056,MassDataLink!$B$4:$B$4056) ->  | E141: =LOOKUP(C141,MassDataLink!$A$4:$A$4056,MassDataLink!$C$4:$C$4056) ->  | F141: =LOOKUP(C141,MassDataLink!$A$4:$A$4056,MassDataLink!$D$4:$D$4056) ->  | G141: =LOOKUP(C141,MassDataLink!$A$4:$A$4056,MassDataLink!$E$4:$E$4056) ->  | H141: =LOOKUP(C141,MassDataLink!$A$4:$A$4056,MassDataLink!$F$4:$F$4056) ->  | J141: 28 | K141: - - - | L141: - - -
B142: 29 | C142: -1 | D142: =LOOKUP(C142,MassDataLink!$A$4:$A$4056,MassDataLink!$B$4:$B$4056) ->  | E142: =LOOKUP(C142,MassDataLink!$A$4:$A$4056,MassDataLink!$C$4:$C$4056) ->  | F142: =LOOKUP(C142,MassDataLink!$A$4:$A$4056,MassDataLink!$D$4:$D$4056) ->  | G142: =LOOKUP(C142,MassDataLink!$A$4:$A$4056,MassDataLink!$E$4:$E$4056) ->  | H142: =LOOKUP(C142,MassDataLink!$A$4:$A$4056,MassDataLink!$F$4:$F$4056) ->  | J142: 29 | K142: - - - | L142: - - -
B143: 30 | C143: -1 | D143: =LOOKUP(C143,MassDataLink!$A$4:$A$4056,MassDataLink!$B$4:$B$4056) ->  | E143: =LOOKUP(C143,MassDataLink!$A$4:$A$4056,MassDataLink!$C$4:$C$4056) ->  | F143: =LOOKUP(C143,MassDataLink!$A$4:$A$4056,MassDataLink!$D$4:$D$4056) ->  | G143: =LOOKUP(C143,MassDataLink!$A$4:$A$4056,MassDataLink!$E$4:$E$4056) ->  | H143: =LOOKUP(C143,MassDataLink!$A$4:$A$4056,MassDataLink!$F$4:$F$4056) ->  | J143: 30 | K143: - - - | L143: - - -
B144: =B143+1 -> 31 | C144: =IF(C143=-1,-1,H143) -> -1 | D144: =LOOKUP(C144,MassDataLink!$A$4:$A$4056,MassDataLink!$B$4:$B$4056) ->  | E144: =LOOKUP(C144,MassDataLink!$A$4:$A$4056,MassDataLink!$C$4:$C$4056) ->  | F144: =LOOKUP(C144,MassDataLink!$A$4:$A$4056,MassDataLink!$D$4:$D$4056) ->  | G144: =LOOKUP(C144,MassDataLink!$A$4:$A$4056,MassDataLink!$E$4:$E$4056) ->  | H144: =LOOKUP(C144,MassDataLink!$A$4:$A$4056,MassDataLink!$F$4:$F$4056) ->  | J144: 31 | K144: - - - | L144: - - -
B145: 32 | C145: -1 | D145: =LOOKUP(C145,MassDataLink!$A$4:$A$4056,MassDataLink!$B$4:$B$4056) ->  | E145: =LOOKUP(C145,MassDataLink!$A$4:$A$4056,MassDataLink!$C$4:$C$4056) ->  | F145: =LOOKUP(C145,MassDataLink!$A$4:$A$4056,MassDataLink!$D$4:$D$4056) ->  | G145: =LOOKUP(C145,MassDataLink!$A$4:$A$4056,MassDataLink!$E$4:$E$4056) ->  | H145: =LOOKUP(C145,MassDataLink!$A$4:$A$4056,MassDataLink!$F$4:$F$4056) ->  | J145: 32 | K145: - - - | L145: - - -
B146: 33 | C146: -1 | D146: =LOOKUP(C146,MassDataLink!$A$4:$A$4056,MassDataLink!$B$4:$B$4056) ->  | E146: =LOOKUP(C146,MassDataLink!$A$4:$A$4056,MassDataLink!$C$4:$C$4056) ->  | F146: =LOOKUP(C146,MassDataLink!$A$4:$A$4056,MassDataLink!$D$4:$D$4056) ->  | G146: =LOOKUP(C146,MassDataLink!$A$4:$A$4056,MassDataLink!$E$4:$E$4056) ->  | H146: =LOOKUP(C146,MassDataLink!$A$4:$A$4056,MassDataLink!$F$4:$F$4056) ->  | J146: 33 | K146: - - - | L146: - - -
B147: 34 | C147: -1 | D147: =LOOKUP(C147,MassDataLink!$A$4:$A$4056,MassDataLink!$B$4:$B$4056) ->  | E147: =LOOKUP(C147,MassDataLink!$A$4:$A$4056,MassDataLink!$C$4:$C$4056) ->  | F147: =LOOKUP(C147,MassDataLink!$A$4:$A$4056,MassDataLink!$D$4:$D$4056) ->  | G147: =LOOKUP(C147,MassDataLink!$A$4:$A$4056,MassDataLink!$E$4:$E$4056) ->  | H147: =LOOKUP(C147,MassDataLink!$A$4:$A$4056,MassDataLink!$F$4:$F$4056) ->  | J147: 34 | K147: - - - | L147: - - -
B148: 35 | C148: -1 | D148: =LOOKUP(C148,MassDataLink!$A$4:$A$4056,MassDataLink!$B$4:$B$4056) ->  | E148: =LOOKUP(C148,MassDataLink!$A$4:$A$4056,MassDataLink!$C$4:$C$4056) ->  | F148: =LOOKUP(C148,MassDataLink!$A$4:$A$4056,MassDataLink!$D$4:$D$4056) ->  | G148: =LOOKUP(C148,MassDataLink!$A$4:$A$4056,MassDataLink!$E$4:$E$4056) ->  | H148: =LOOKUP(C148,MassDataLink!$A$4:$A$4056,MassDataLink!$F$4:$F$4056) ->  | J148: 35 | K148: - - - | L148: - - -
B149: 36 | C149: -1 | D149: =LOOKUP(C149,MassDataLink!$A$4:$A$4056,MassDataLink!$B$4:$B$4056) ->  | E149: =LOOKUP(C149,MassDataLink!$A$4:$A$4056,MassDataLink!$C$4:$C$4056) ->  | F149: =LOOKUP(C149,MassDataLink!$A$4:$A$4056,MassDataLink!$D$4:$D$4056) ->  | G149: =LOOKUP(C149,MassDataLink!$A$4:$A$4056,MassDataLink!$E$4:$E$4056) ->  | H149: =LOOKUP(C149,MassDataLink!$A$4:$A$4056,MassDataLink!$F$4:$F$4056) ->  | J149: 36 | K149: - - - | L149: - - -
B150: 37 | C150: -1 | D150: =LOOKUP(C150,MassDataLink!$A$4:$A$4056,MassDataLink!$B$4:$B$4056) ->  | E150: =LOOKUP(C150,MassDataLink!$A$4:$A$4056,MassDataLink!$C$4:$C$4056) ->  | F150: =LOOKUP(C150,MassDataLink!$A$4:$A$4056,MassDataLink!$D$4:$D$4056) ->  | G150: =LOOKUP(C150,MassDataLink!$A$4:$A$4056,MassDataLink!$E$4:$E$4056) ->  | H150: =LOOKUP(C150,MassDataLink!$A$4:$A$4056,MassDataLink!$F$4:$F$4056) ->  | J150: 37 | K150: - - - | L150: - - -
B151: 38 | C151: -1 | D151: =LOOKUP(C151,MassDataLink!$A$4:$A$4056,MassDataLink!$B$4:$B$4056) ->  | E151: =LOOKUP(C151,MassDataLink!$A$4:$A$4056,MassDataLink!$C$4:$C$4056) ->  | F151: =LOOKUP(C151,MassDataLink!$A$4:$A$4056,MassDataLink!$D$4:$D$4056) ->  | G151: =LOOKUP(C151,MassDataLink!$A$4:$A$4056,MassDataLink!$E$4:$E$4056) ->  | H151: =LOOKUP(C151,MassDataLink!$A$4:$A$4056,MassDataLink!$F$4:$F$4056) ->  | J151: 38 | K151: - - - | L151: - - -
B152: 39 | C152: -1 | D152: =LOOKUP(C152,MassDataLink!$A$4:$A$4056,MassDataLink!$B$4:$B$4056) ->  | E152: =LOOKUP(C152,MassDataLink!$A$4:$A$4056,MassDataLink!$C$4:$C$4056) ->  | F152: =LOOKUP(C152,MassDataLink!$A$4:$A$4056,MassDataLink!$D$4:$D$4056) ->  | G152: =LOOKUP(C152,MassDataLink!$A$4:$A$4056,MassDataLink!$E$4:$E$4056) ->  | H152: =LOOKUP(C152,MassDataLink!$A$4:$A$4056,MassDataLink!$F$4:$F$4056) ->  | J152: 39 | K152: - - - | L152: - - -
B153: 40 | C153: -1 | D153: =LOOKUP(C153,MassDataLink!$A$4:$A$4056,MassDataLink!$B$4:$B$4056) ->  | E153: =LOOKUP(C153,MassDataLink!$A$4:$A$4056,MassDataLink!$C$4:$C$4056) ->  | F153: =LOOKUP(C153,MassDataLink!$A$4:$A$4056,MassDataLink!$D$4:$D$4056) ->  | G153: =LOOKUP(C153,MassDataLink!$A$4:$A$4056,MassDataLink!$E$4:$E$4056) ->  | H153: =LOOKUP(C153,MassDataLink!$A$4:$A$4056,MassDataLink!$F$4:$F$4056) ->  | J153: 40 | K153: - - - | L153: - - -
B154: 41 | C154: -1 | D154: =LOOKUP(C154,MassDataLink!$A$4:$A$4056,MassDataLink!$B$4:$B$4056) ->  | E154: =LOOKUP(C154,MassDataLink!$A$4:$A$4056,MassDataLink!$C$4:$C$4056) ->  | F154: =LOOKUP(C154,MassDataLink!$A$4:$A$4056,MassDataLink!$D$4:$D$4056) ->  | G154: =LOOKUP(C154,MassDataLink!$A$4:$A$4056,MassDataLink!$E$4:$E$4056) ->  | H154: =LOOKUP(C154,MassDataLink!$A$4:$A$4056,MassDataLink!$F$4:$F$4056) ->  | J154: 41 | K154: - - - | L154: - - -
B155: 42 | C155: -1 | D155: =LOOKUP(C155,MassDataLink!$A$4:$A$4056,MassDataLink!$B$4:$B$4056) ->  | E155: =LOOKUP(C155,MassDataLink!$A$4:$A$4056,MassDataLink!$C$4:$C$4056) ->  | F155: =LOOKUP(C155,MassDataLink!$A$4:$A$4056,MassDataLink!$D$4:$D$4056) ->  | G155: =LOOKUP(C155,MassDataLink!$A$4:$A$4056,MassDataLink!$E$4:$E$4056) ->  | H155: =LOOKUP(C155,MassDataLink!$A$4:$A$4056,MassDataLink!$F$4:$F$4056) ->  | J155: 42 | K155: - - - | L155: - - -
B156: 43 | C156: -1 | D156: =LOOKUP(C156,MassDataLink!$A$4:$A$4056,MassDataLink!$B$4:$B$4056) ->  | E156: =LOOKUP(C156,MassDataLink!$A$4:$A$4056,MassDataLink!$C$4:$C$4056) ->  | F156: =LOOKUP(C156,MassDataLink!$A$4:$A$4056,MassDataLink!$D$4:$D$4056) ->  | G156: =LOOKUP(C156,MassDataLink!$A$4:$A$4056,MassDataLink!$E$4:$E$4056) ->  | H156: =LOOKUP(C156,MassDataLink!$A$4:$A$4056,MassDataLink!$F$4:$F$4056) ->  | J156: 43 | K156: - - - | L156: - - -
B157: 44 | C157: -1 | D157: =LOOKUP(C157,MassDataLink!$A$4:$A$4056,MassDataLink!$B$4:$B$4056) ->  | E157: =LOOKUP(C157,MassDataLink!$A$4:$A$4056,MassDataLink!$C$4:$C$4056) ->  | F157: =LOOKUP(C157,MassDataLink!$A$4:$A$4056,MassDataLink!$D$4:$D$4056) ->  | G157: =LOOKUP(C157,MassDataLink!$A$4:$A$4056,MassDataLink!$E$4:$E$4056) ->  | H157: =LOOKUP(C157,MassDataLink!$A$4:$A$4056,MassDataLink!$F$4:$F$4056) ->  | J157: 44 | K157: - - - | L157: - - -
B158: 45 | C158: -1 | D158: =LOOKUP(C158,MassDataLink!$A$4:$A$4056,MassDataLink!$B$4:$B$4056) ->  | E158: =LOOKUP(C158,MassDataLink!$A$4:$A$4056,MassDataLink!$C$4:$C$4056) ->  | F158: =LOOKUP(C158,MassDataLink!$A$4:$A$4056,MassDataLink!$D$4:$D$4056) ->  | G158: =LOOKUP(C158,MassDataLink!$A$4:$A$4056,MassDataLink!$E$4:$E$4056) ->  | H158: =LOOKUP(C158,MassDataLink!$A$4:$A$4056,MassDataLink!$F$4:$F$4056) ->  | J158: 45 | K158: - - - | L158: - - -
B159: 46 | C159: -1 | D159: =LOOKUP(C159,MassDataLink!$A$4:$A$4056,MassDataLink!$B$4:$B$4056) ->  | E159: =LOOKUP(C159,MassDataLink!$A$4:$A$4056,MassDataLink!$C$4:$C$4056) ->  | F159: =LOOKUP(C159,MassDataLink!$A$4:$A$4056,MassDataLink!$D$4:$D$4056) ->  | G159: =LOOKUP(C159,MassDataLink!$A$4:$A$4056,MassDataLink!$E$4:$E$4056) ->  | H159: =LOOKUP(C159,MassDataLink!$A$4:$A$4056,MassDataLink!$F$4:$F$4056) ->  | J159: 46 | K159: - - - | L159: - - -
B160: 47 | C160: -1 | D160: =LOOKUP(C160,MassDataLink!$A$4:$A$4056,MassDataLink!$B$4:$B$4056) ->  | E160: =LOOKUP(C160,MassDataLink!$A$4:$A$4056,MassDataLink!$C$4:$C$4056) ->  | F160: =LOOKUP(C160,MassDataLink!$A$4:$A$4056,MassDataLink!$D$4:$D$4056) ->  | G160: =LOOKUP(C160,MassDataLink!$A$4:$A$4056,MassDataLink!$E$4:$E$4056) ->  | H160: =LOOKUP(C160,MassDataLink!$A$4:$A$4056,MassDataLink!$F$4:$F$4056) ->  | J160: 47 | K160: - - - | L160: - - -
B161: 48 | C161: -1 | D161: =LOOKUP(C161,MassDataLink!$A$4:$A$4056,MassDataLink!$B$4:$B$4056) ->  | E161: =LOOKUP(C161,MassDataLink!$A$4:$A$4056,MassDataLink!$C$4:$C$4056) ->  | F161: =LOOKUP(C161,MassDataLink!$A$4:$A$4056,MassDataLink!$D$4:$D$4056) ->  | G161: =LOOKUP(C161,MassDataLink!$A$4:$A$4056,MassDataLink!$E$4:$E$4056) ->  | H161: =LOOKUP(C161,MassDataLink!$A$4:$A$4056,MassDataLink!$F$4:$F$4056) ->  | J161: 48 | K161: - - - | L161: - - -
B162: 49 | C162: -1 | D162: =LOOKUP(C162,MassDataLink!$A$4:$A$4056,MassDataLink!$B$4:$B$4056) ->  | E162: =LOOKUP(C162,MassDataLink!$A$4:$A$4056,MassDataLink!$C$4:$C$4056) ->  | F162: =LOOKUP(C162,MassDataLink!$A$4:$A$4056,MassDataLink!$D$4:$D$4056) ->  | G162: =LOOKUP(C162,MassDataLink!$A$4:$A$4056,MassDataLink!$E$4:$E$4056) ->  | H162: =LOOKUP(C162,MassDataLink!$A$4:$A$4056,MassDataLink!$F$4:$F$4056) ->  | J162: 49 | K162: - - - | L162: - - -
B163: 50 | C163: -1 | D163: =LOOKUP(C163,MassDataLink!$A$4:$A$4056,MassDataLink!$B$4:$B$4056) ->  | E163: =LOOKUP(C163,MassDataLink!$A$4:$A$4056,MassDataLink!$C$4:$C$4056) ->  | F163: =LOOKUP(C163,MassDataLink!$A$4:$A$4056,MassDataLink!$D$4:$D$4056) ->  | G163: =LOOKUP(C163,MassDataLink!$A$4:$A$4056,MassDataLink!$E$4:$E$4056) ->  | H163: =LOOKUP(C163,MassDataLink!$A$4:$A$4056,MassDataLink!$F$4:$F$4056) ->  | J163: 50 | K163: - - - | L163: - - -
B164: =B163+1 -> 51 | C164: =IF(C163=-1,-1,H163) -> -1 | D164: =LOOKUP(C164,MassDataLink!$A$4:$A$4056,MassDataLink!$B$4:$B$4056) ->  | E164: =LOOKUP(C164,MassDataLink!$A$4:$A$4056,MassDataLink!$C$4:$C$4056) ->  | F164: =LOOKUP(C164,MassDataLink!$A$4:$A$4056,MassDataLink!$D$4:$D$4056) ->  | G164: =LOOKUP(C164,MassDataLink!$A$4:$A$4056,MassDataLink!$E$4:$E$4056) ->  | H164: =LOOKUP(C164,MassDataLink!$A$4:$A$4056,MassDataLink!$F$4:$F$4056) ->  | J164: =J163+1 -> 51 | K164: =IF(C164=-1,$L$112,IF($A$11=D164,ROUND((E164*$P$57),$R$57),$L$112)) -> - - - | L164: =IF(K164=$L$112,$L$112,F164) -> - - -
B165: 52 | C165: -1 | D165: =LOOKUP(C165,MassDataLink!$A$4:$A$4056,MassDataLink!$B$4:$B$4056) ->  | E165: =LOOKUP(C165,MassDataLink!$A$4:$A$4056,MassDataLink!$C$4:$C$4056) ->  | F165: =LOOKUP(C165,MassDataLink!$A$4:$A$4056,MassDataLink!$D$4:$D$4056) ->  | G165: =LOOKUP(C165,MassDataLink!$A$4:$A$4056,MassDataLink!$E$4:$E$4056) ->  | H165: =LOOKUP(C165,MassDataLink!$A$4:$A$4056,MassDataLink!$F$4:$F$4056) ->  | J165: 52 | K165: - - - | L165: - - -
B166: 53 | C166: -1 | D166: =LOOKUP(C166,MassDataLink!$A$4:$A$4056,MassDataLink!$B$4:$B$4056) ->  | E166: =LOOKUP(C166,MassDataLink!$A$4:$A$4056,MassDataLink!$C$4:$C$4056) ->  | F166: =LOOKUP(C166,MassDataLink!$A$4:$A$4056,MassDataLink!$D$4:$D$4056) ->  | G166: =LOOKUP(C166,MassDataLink!$A$4:$A$4056,MassDataLink!$E$4:$E$4056) ->  | H166: =LOOKUP(C166,MassDataLink!$A$4:$A$4056,MassDataLink!$F$4:$F$4056) ->  | J166: 53 | K166: - - - | L166: - - -
B167: 54 | C167: -1 | D167: =LOOKUP(C167,MassDataLink!$A$4:$A$4056,MassDataLink!$B$4:$B$4056) ->  | E167: =LOOKUP(C167,MassDataLink!$A$4:$A$4056,MassDataLink!$C$4:$C$4056) ->  | F167: =LOOKUP(C167,MassDataLink!$A$4:$A$4056,MassDataLink!$D$4:$D$4056) ->  | G167: =LOOKUP(C167,MassDataLink!$A$4:$A$4056,MassDataLink!$E$4:$E$4056) ->  | H167: =LOOKUP(C167,MassDataLink!$A$4:$A$4056,MassDataLink!$F$4:$F$4056) ->  | J167: 54 | K167: - - - | L167: - - -
B168: 55 | C168: -1 | D168: =LOOKUP(C168,MassDataLink!$A$4:$A$4056,MassDataLink!$B$4:$B$4056) ->  | E168: =LOOKUP(C168,MassDataLink!$A$4:$A$4056,MassDataLink!$C$4:$C$4056) ->  | F168: =LOOKUP(C168,MassDataLink!$A$4:$A$4056,MassDataLink!$D$4:$D$4056) ->  | G168: =LOOKUP(C168,MassDataLink!$A$4:$A$4056,MassDataLink!$E$4:$E$4056) ->  | H168: =LOOKUP(C168,MassDataLink!$A$4:$A$4056,MassDataLink!$F$4:$F$4056) ->  | J168: 55 | K168: - - - | L168: - - -
B169: 56 | C169: -1 | D169: =LOOKUP(C169,MassDataLink!$A$4:$A$4056,MassDataLink!$B$4:$B$4056) ->  | E169: =LOOKUP(C169,MassDataLink!$A$4:$A$4056,MassDataLink!$C$4:$C$4056) ->  | F169: =LOOKUP(C169,MassDataLink!$A$4:$A$4056,MassDataLink!$D$4:$D$4056) ->  | G169: =LOOKUP(C169,MassDataLink!$A$4:$A$4056,MassDataLink!$E$4:$E$4056) ->  | H169: =LOOKUP(C169,MassDataLink!$A$4:$A$4056,MassDataLink!$F$4:$F$4056) ->  | J169: 56 | K169: - - - | L169: - - -
B170: 57 | C170: -1 | D170: =LOOKUP(C170,MassDataLink!$A$4:$A$4056,MassDataLink!$B$4:$B$4056) ->  | E170: =LOOKUP(C170,MassDataLink!$A$4:$A$4056,MassDataLink!$C$4:$C$4056) ->  | F170: =LOOKUP(C170,MassDataLink!$A$4:$A$4056,MassDataLink!$D$4:$D$4056) ->  | G170: =LOOKUP(C170,MassDataLink!$A$4:$A$4056,MassDataLink!$E$4:$E$4056) ->  | H170: =LOOKUP(C170,MassDataLink!$A$4:$A$4056,MassDataLink!$F$4:$F$4056) ->  | J170: 57 | K170: - - - | L170: - - -
B171: 58 | C171: -1 | D171: =LOOKUP(C171,MassDataLink!$A$4:$A$4056,MassDataLink!$B$4:$B$4056) ->  | E171: =LOOKUP(C171,MassDataLink!$A$4:$A$4056,MassDataLink!$C$4:$C$4056) ->  | F171: =LOOKUP(C171,MassDataLink!$A$4:$A$4056,MassDataLink!$D$4:$D$4056) ->  | G171: =LOOKUP(C171,MassDataLink!$A$4:$A$4056,MassDataLink!$E$4:$E$4056) ->  | H171: =LOOKUP(C171,MassDataLink!$A$4:$A$4056,MassDataLink!$F$4:$F$4056) ->  | J171: 58 | K171: - - - | L171: - - -
B172: 59 | C172: -1 | D172: =LOOKUP(C172,MassDataLink!$A$4:$A$4056,MassDataLink!$B$4:$B$4056) ->  | E172: =LOOKUP(C172,MassDataLink!$A$4:$A$4056,MassDataLink!$C$4:$C$4056) ->  | F172: =LOOKUP(C172,MassDataLink!$A$4:$A$4056,MassDataLink!$D$4:$D$4056) ->  | G172: =LOOKUP(C172,MassDataLink!$A$4:$A$4056,MassDataLink!$E$4:$E$4056) ->  | H172: =LOOKUP(C172,MassDataLink!$A$4:$A$4056,MassDataLink!$F$4:$F$4056) ->  | J172: 59 | K172: - - - | L172: - - -
B173: 60 | C173: -1 | D173: =LOOKUP(C173,MassDataLink!$A$4:$A$4056,MassDataLink!$B$4:$B$4056) ->  | E173: =LOOKUP(C173,MassDataLink!$A$4:$A$4056,MassDataLink!$C$4:$C$4056) ->  | F173: =LOOKUP(C173,MassDataLink!$A$4:$A$4056,MassDataLink!$D$4:$D$4056) ->  | G173: =LOOKUP(C173,MassDataLink!$A$4:$A$4056,MassDataLink!$E$4:$E$4056) ->  | H173: =LOOKUP(C173,MassDataLink!$A$4:$A$4056,MassDataLink!$F$4:$F$4056) ->  | J173: 60 | K173: - - - | L173: - - -
B174: 61 | C174: -1 | D174: =LOOKUP(C174,MassDataLink!$A$4:$A$4056,MassDataLink!$B$4:$B$4056) ->  | E174: =LOOKUP(C174,MassDataLink!$A$4:$A$4056,MassDataLink!$C$4:$C$4056) ->  | F174: =LOOKUP(C174,MassDataLink!$A$4:$A$4056,MassDataLink!$D$4:$D$4056) ->  | G174: =LOOKUP(C174,MassDataLink!$A$4:$A$4056,MassDataLink!$E$4:$E$4056) ->  | H174: =LOOKUP(C174,MassDataLink!$A$4:$A$4056,MassDataLink!$F$4:$F$4056) ->  | J174: 61 | K174: - - - | L174: - - -
B175: 62 | C175: -1 | D175: =LOOKUP(C175,MassDataLink!$A$4:$A$4056,MassDataLink!$B$4:$B$4056) ->  | E175: =LOOKUP(C175,MassDataLink!$A$4:$A$4056,MassDataLink!$C$4:$C$4056) ->  | F175: =LOOKUP(C175,MassDataLink!$A$4:$A$4056,MassDataLink!$D$4:$D$4056) ->  | G175: =LOOKUP(C175,MassDataLink!$A$4:$A$4056,MassDataLink!$E$4:$E$4056) ->  | H175: =LOOKUP(C175,MassDataLink!$A$4:$A$4056,MassDataLink!$F$4:$F$4056) ->  | J175: 62 | K175: - - - | L175: - - -
B176: 63 | C176: -1 | D176: =LOOKUP(C176,MassDataLink!$A$4:$A$4056,MassDataLink!$B$4:$B$4056) ->  | E176: =LOOKUP(C176,MassDataLink!$A$4:$A$4056,MassDataLink!$C$4:$C$4056) ->  | F176: =LOOKUP(C176,MassDataLink!$A$4:$A$4056,MassDataLink!$D$4:$D$4056) ->  | G176: =LOOKUP(C176,MassDataLink!$A$4:$A$4056,MassDataLink!$E$4:$E$4056) ->  | H176: =LOOKUP(C176,MassDataLink!$A$4:$A$4056,MassDataLink!$F$4:$F$4056) ->  | J176: 63 | K176: - - - | L176: - - -
B177: 64 | C177: -1 | D177: =LOOKUP(C177,MassDataLink!$A$4:$A$4056,MassDataLink!$B$4:$B$4056) ->  | E177: =LOOKUP(C177,MassDataLink!$A$4:$A$4056,MassDataLink!$C$4:$C$4056) ->  | F177: =LOOKUP(C177,MassDataLink!$A$4:$A$4056,MassDataLink!$D$4:$D$4056) ->  | G177: =LOOKUP(C177,MassDataLink!$A$4:$A$4056,MassDataLink!$E$4:$E$4056) ->  | H177: =LOOKUP(C177,MassDataLink!$A$4:$A$4056,MassDataLink!$F$4:$F$4056) ->  | J177: 64 | K177: - - - | L177: - - -
B178: 65 | C178: -1 | D178: =LOOKUP(C178,MassDataLink!$A$4:$A$4056,MassDataLink!$B$4:$B$4056) ->  | E178: =LOOKUP(C178,MassDataLink!$A$4:$A$4056,MassDataLink!$C$4:$C$4056) ->  | F178: =LOOKUP(C178,MassDataLink!$A$4:$A$4056,MassDataLink!$D$4:$D$4056) ->  | G178: =LOOKUP(C178,MassDataLink!$A$4:$A$4056,MassDataLink!$E$4:$E$4056) ->  | H178: =LOOKUP(C178,MassDataLink!$A$4:$A$4056,MassDataLink!$F$4:$F$4056) ->  | J178: 65 | K178: - - - | L178: - - -
B179: 66 | C179: -1 | D179: =LOOKUP(C179,MassDataLink!$A$4:$A$4056,MassDataLink!$B$4:$B$4056) ->  | E179: =LOOKUP(C179,MassDataLink!$A$4:$A$4056,MassDataLink!$C$4:$C$4056) ->  | F179: =LOOKUP(C179,MassDataLink!$A$4:$A$4056,MassDataLink!$D$4:$D$4056) ->  | G179: =LOOKUP(C179,MassDataLink!$A$4:$A$4056,MassDataLink!$E$4:$E$4056) ->  | H179: =LOOKUP(C179,MassDataLink!$A$4:$A$4056,MassDataLink!$F$4:$F$4056) ->  | J179: 66 | K179: - - - | L179: - - -
B180: 67 | C180: -1 | D180: =LOOKUP(C180,MassDataLink!$A$4:$A$4056,MassDataLink!$B$4:$B$4056) ->  | E180: =LOOKUP(C180,MassDataLink!$A$4:$A$4056,MassDataLink!$C$4:$C$4056) ->  | F180: =LOOKUP(C180,MassDataLink!$A$4:$A$4056,MassDataLink!$D$4:$D$4056) ->  | G180: =LOOKUP(C180,MassDataLink!$A$4:$A$4056,MassDataLink!$E$4:$E$4056) ->  | H180: =LOOKUP(C180,MassDataLink!$A$4:$A$4056,MassDataLink!$F$4:$F$4056) ->  | J180: 67 | K180: - - - | L180: - - -
B181: 68 | C181: -1 | D181: =LOOKUP(C181,MassDataLink!$A$4:$A$4056,MassDataLink!$B$4:$B$4056) ->  | E181: =LOOKUP(C181,MassDataLink!$A$4:$A$4056,MassDataLink!$C$4:$C$4056) ->  | F181: =LOOKUP(C181,MassDataLink!$A$4:$A$4056,MassDataLink!$D$4:$D$4056) ->  | G181: =LOOKUP(C181,MassDataLink!$A$4:$A$4056,MassDataLink!$E$4:$E$4056) ->  | H181: =LOOKUP(C181,MassDataLink!$A$4:$A$4056,MassDataLink!$F$4:$F$4056) ->  | J181: 68 | K181: - - - | L181: - - -
B182: 69 | C182: -1 | D182: =LOOKUP(C182,MassDataLink!$A$4:$A$4056,MassDataLink!$B$4:$B$4056) ->  | E182: =LOOKUP(C182,MassDataLink!$A$4:$A$4056,MassDataLink!$C$4:$C$4056) ->  | F182: =LOOKUP(C182,MassDataLink!$A$4:$A$4056,MassDataLink!$D$4:$D$4056) ->  | G182: =LOOKUP(C182,MassDataLink!$A$4:$A$4056,MassDataLink!$E$4:$E$4056) ->  | H182: =LOOKUP(C182,MassDataLink!$A$4:$A$4056,MassDataLink!$F$4:$F$4056) ->  | J182: 69 | K182: - - - | L182: - - -
B183: 70 | C183: -1 | D183: =LOOKUP(C183,MassDataLink!$A$4:$A$4056,MassDataLink!$B$4:$B$4056) ->  | E183: =LOOKUP(C183,MassDataLink!$A$4:$A$4056,MassDataLink!$C$4:$C$4056) ->  | F183: =LOOKUP(C183,MassDataLink!$A$4:$A$4056,MassDataLink!$D$4:$D$4056) ->  | G183: =LOOKUP(C183,MassDataLink!$A$4:$A$4056,MassDataLink!$E$4:$E$4056) ->  | H183: =LOOKUP(C183,MassDataLink!$A$4:$A$4056,MassDataLink!$F$4:$F$4056) ->  | J183: 70 | K183: - - - | L183: - - -
B184: 71 | C184: -1 | D184: =LOOKUP(C184,MassDataLink!$A$4:$A$4056,MassDataLink!$B$4:$B$4056) ->  | E184: =LOOKUP(C184,MassDataLink!$A$4:$A$4056,MassDataLink!$C$4:$C$4056) ->  | F184: =LOOKUP(C184,MassDataLink!$A$4:$A$4056,MassDataLink!$D$4:$D$4056) ->  | G184: =LOOKUP(C184,MassDataLink!$A$4:$A$4056,MassDataLink!$E$4:$E$4056) ->  | H184: =LOOKUP(C184,MassDataLink!$A$4:$A$4056,MassDataLink!$F$4:$F$4056) ->  | J184: 71 | K184: - - - | L184: - - -
B185: 72 | C185: -1 | D185: =LOOKUP(C185,MassDataLink!$A$4:$A$4056,MassDataLink!$B$4:$B$4056) ->  | E185: =LOOKUP(C185,MassDataLink!$A$4:$A$4056,MassDataLink!$C$4:$C$4056) ->  | F185: =LOOKUP(C185,MassDataLink!$A$4:$A$4056,MassDataLink!$D$4:$D$4056) ->  | G185: =LOOKUP(C185,MassDataLink!$A$4:$A$4056,MassDataLink!$E$4:$E$4056) ->  | H185: =LOOKUP(C185,MassDataLink!$A$4:$A$4056,MassDataLink!$F$4:$F$4056) ->  | J185: 72 | K185: - - - | L185: - - -
B186: 73 | C186: -1 | D186: =LOOKUP(C186,MassDataLink!$A$4:$A$4056,MassDataLink!$B$4:$B$4056) ->  | E186: =LOOKUP(C186,MassDataLink!$A$4:$A$4056,MassDataLink!$C$4:$C$4056) ->  | F186: =LOOKUP(C186,MassDataLink!$A$4:$A$4056,MassDataLink!$D$4:$D$4056) ->  | G186: =LOOKUP(C186,MassDataLink!$A$4:$A$4056,MassDataLink!$E$4:$E$4056) ->  | H186: =LOOKUP(C186,MassDataLink!$A$4:$A$4056,MassDataLink!$F$4:$F$4056) ->  | J186: 73 | K186: - - - | L186: - - -
B187: 74 | C187: -1 | D187: =LOOKUP(C187,MassDataLink!$A$4:$A$4056,MassDataLink!$B$4:$B$4056) ->  | E187: =LOOKUP(C187,MassDataLink!$A$4:$A$4056,MassDataLink!$C$4:$C$4056) ->  | F187: =LOOKUP(C187,MassDataLink!$A$4:$A$4056,MassDataLink!$D$4:$D$4056) ->  | G187: =LOOKUP(C187,MassDataLink!$A$4:$A$4056,MassDataLink!$E$4:$E$4056) ->  | H187: =LOOKUP(C187,MassDataLink!$A$4:$A$4056,MassDataLink!$F$4:$F$4056) ->  | J187: 74 | K187: - - - | L187: - - -
B188: 75 | C188: -1 | D188: =LOOKUP(C188,MassDataLink!$A$4:$A$4056,MassDataLink!$B$4:$B$4056) ->  | E188: =LOOKUP(C188,MassDataLink!$A$4:$A$4056,MassDataLink!$C$4:$C$4056) ->  | F188: =LOOKUP(C188,MassDataLink!$A$4:$A$4056,MassDataLink!$D$4:$D$4056) ->  | G188: =LOOKUP(C188,MassDataLink!$A$4:$A$4056,MassDataLink!$E$4:$E$4056) ->  | H188: =LOOKUP(C188,MassDataLink!$A$4:$A$4056,MassDataLink!$F$4:$F$4056) ->  | J188: 75 | K188: - - - | L188: - - -
B189: 76 | C189: -1 | D189: =LOOKUP(C189,MassDataLink!$A$4:$A$4056,MassDataLink!$B$4:$B$4056) ->  | E189: =LOOKUP(C189,MassDataLink!$A$4:$A$4056,MassDataLink!$C$4:$C$4056) ->  | F189: =LOOKUP(C189,MassDataLink!$A$4:$A$4056,MassDataLink!$D$4:$D$4056) ->  | G189: =LOOKUP(C189,MassDataLink!$A$4:$A$4056,MassDataLink!$E$4:$E$4056) ->  | H189: =LOOKUP(C189,MassDataLink!$A$4:$A$4056,MassDataLink!$F$4:$F$4056) ->  | J189: 76 | K189: - - - | L189: - - -
B190: 77 | C190: -1 | D190: =LOOKUP(C190,MassDataLink!$A$4:$A$4056,MassDataLink!$B$4:$B$4056) ->  | E190: =LOOKUP(C190,MassDataLink!$A$4:$A$4056,MassDataLink!$C$4:$C$4056) ->  | F190: =LOOKUP(C190,MassDataLink!$A$4:$A$4056,MassDataLink!$D$4:$D$4056) ->  | G190: =LOOKUP(C190,MassDataLink!$A$4:$A$4056,MassDataLink!$E$4:$E$4056) ->  | H190: =LOOKUP(C190,MassDataLink!$A$4:$A$4056,MassDataLink!$F$4:$F$4056) ->  | J190: 77 | K190: - - - | L190: - - -
B191: 78 | C191: -1 | D191: =LOOKUP(C191,MassDataLink!$A$4:$A$4056,MassDataLink!$B$4:$B$4056) ->  | E191: =LOOKUP(C191,MassDataLink!$A$4:$A$4056,MassDataLink!$C$4:$C$4056) ->  | F191: =LOOKUP(C191,MassDataLink!$A$4:$A$4056,MassDataLink!$D$4:$D$4056) ->  | G191: =LOOKUP(C191,MassDataLink!$A$4:$A$4056,MassDataLink!$E$4:$E$4056) ->  | H191: =LOOKUP(C191,MassDataLink!$A$4:$A$4056,MassDataLink!$F$4:$F$4056) ->  | J191: 78 | K191: - - - | L191: - - -
B192: 79 | C192: -1 | D192: =LOOKUP(C192,MassDataLink!$A$4:$A$4056,MassDataLink!$B$4:$B$4056) ->  | E192: =LOOKUP(C192,MassDataLink!$A$4:$A$4056,MassDataLink!$C$4:$C$4056) ->  | F192: =LOOKUP(C192,MassDataLink!$A$4:$A$4056,MassDataLink!$D$4:$D$4056) ->  | G192: =LOOKUP(C192,MassDataLink!$A$4:$A$4056,MassDataLink!$E$4:$E$4056) ->  | H192: =LOOKUP(C192,MassDataLink!$A$4:$A$4056,MassDataLink!$F$4:$F$4056) ->  | J192: 79 | K192: - - - | L192: - - -
B193: 80 | C193: -1 | D193: =LOOKUP(C193,MassDataLink!$A$4:$A$4056,MassDataLink!$B$4:$B$4056) ->  | E193: =LOOKUP(C193,MassDataLink!$A$4:$A$4056,MassDataLink!$C$4:$C$4056) ->  | F193: =LOOKUP(C193,MassDataLink!$A$4:$A$4056,MassDataLink!$D$4:$D$4056) ->  | G193: =LOOKUP(C193,MassDataLink!$A$4:$A$4056,MassDataLink!$E$4:$E$4056) ->  | H193: =LOOKUP(C193,MassDataLink!$A$4:$A$4056,MassDataLink!$F$4:$F$4056) ->  | J193: 80 | K193: - - - | L193: - - -
B194: 81 | C194: -1 | D194: =LOOKUP(C194,MassDataLink!$A$4:$A$4056,MassDataLink!$B$4:$B$4056) ->  | E194: =LOOKUP(C194,MassDataLink!$A$4:$A$4056,MassDataLink!$C$4:$C$4056) ->  | F194: =LOOKUP(C194,MassDataLink!$A$4:$A$4056,MassDataLink!$D$4:$D$4056) ->  | G194: =LOOKUP(C194,MassDataLink!$A$4:$A$4056,MassDataLink!$E$4:$E$4056) ->  | H194: =LOOKUP(C194,MassDataLink!$A$4:$A$4056,MassDataLink!$F$4:$F$4056) ->  | J194: 81 | K194: - - - | L194: - - -
B195: 82 | C195: -1 | D195: =LOOKUP(C195,MassDataLink!$A$4:$A$4056,MassDataLink!$B$4:$B$4056) ->  | E195: =LOOKUP(C195,MassDataLink!$A$4:$A$4056,MassDataLink!$C$4:$C$4056) ->  | F195: =LOOKUP(C195,MassDataLink!$A$4:$A$4056,MassDataLink!$D$4:$D$4056) ->  | G195: =LOOKUP(C195,MassDataLink!$A$4:$A$4056,MassDataLink!$E$4:$E$4056) ->  | H195: =LOOKUP(C195,MassDataLink!$A$4:$A$4056,MassDataLink!$F$4:$F$4056) ->  | J195: 82 | K195: - - - | L195: - - -
B196: 83 | C196: -1 | D196: =LOOKUP(C196,MassDataLink!$A$4:$A$4056,MassDataLink!$B$4:$B$4056) ->  | E196: =LOOKUP(C196,MassDataLink!$A$4:$A$4056,MassDataLink!$C$4:$C$4056) ->  | F196: =LOOKUP(C196,MassDataLink!$A$4:$A$4056,MassDataLink!$D$4:$D$4056) ->  | G196: =LOOKUP(C196,MassDataLink!$A$4:$A$4056,MassDataLink!$E$4:$E$4056) ->  | H196: =LOOKUP(C196,MassDataLink!$A$4:$A$4056,MassDataLink!$F$4:$F$4056) ->  | J196: 83 | K196: - - - | L196: - - -
B197: 84 | C197: -1 | D197: =LOOKUP(C197,MassDataLink!$A$4:$A$4056,MassDataLink!$B$4:$B$4056) ->  | E197: =LOOKUP(C197,MassDataLink!$A$4:$A$4056,MassDataLink!$C$4:$C$4056) ->  | F197: =LOOKUP(C197,MassDataLink!$A$4:$A$4056,MassDataLink!$D$4:$D$4056) ->  | G197: =LOOKUP(C197,MassDataLink!$A$4:$A$4056,MassDataLink!$E$4:$E$4056) ->  | H197: =LOOKUP(C197,MassDataLink!$A$4:$A$4056,MassDataLink!$F$4:$F$4056) ->  | J197: 84 | K197: - - - | L197: - - -
B198: 85 | C198: -1 | D198: =LOOKUP(C198,MassDataLink!$A$4:$A$4056,MassDataLink!$B$4:$B$4056) ->  | E198: =LOOKUP(C198,MassDataLink!$A$4:$A$4056,MassDataLink!$C$4:$C$4056) ->  | F198: =LOOKUP(C198,MassDataLink!$A$4:$A$4056,MassDataLink!$D$4:$D$4056) ->  | G198: =LOOKUP(C198,MassDataLink!$A$4:$A$4056,MassDataLink!$E$4:$E$4056) ->  | H198: =LOOKUP(C198,MassDataLink!$A$4:$A$4056,MassDataLink!$F$4:$F$4056) ->  | J198: 85 | K198: - - - | L198: - - -
B199: 86 | C199: -1 | D199: =LOOKUP(C199,MassDataLink!$A$4:$A$4056,MassDataLink!$B$4:$B$4056) ->  | E199: =LOOKUP(C199,MassDataLink!$A$4:$A$4056,MassDataLink!$C$4:$C$4056) ->  | F199: =LOOKUP(C199,MassDataLink!$A$4:$A$4056,MassDataLink!$D$4:$D$4056) ->  | G199: =LOOKUP(C199,MassDataLink!$A$4:$A$4056,MassDataLink!$E$4:$E$4056) ->  | H199: =LOOKUP(C199,MassDataLink!$A$4:$A$4056,MassDataLink!$F$4:$F$4056) ->  | J199: 86 | K199: - - - | L199: - - -
B200: 87 | C200: -1 | D200: =LOOKUP(C200,MassDataLink!$A$4:$A$4056,MassDataLink!$B$4:$B$4056) ->  | E200: =LOOKUP(C200,MassDataLink!$A$4:$A$4056,MassDataLink!$C$4:$C$4056) ->  | F200: =LOOKUP(C200,MassDataLink!$A$4:$A$4056,MassDataLink!$D$4:$D$4056) ->  | G200: =LOOKUP(C200,MassDataLink!$A$4:$A$4056,MassDataLink!$E$4:$E$4056) ->  | H200: =LOOKUP(C200,MassDataLink!$A$4:$A$4056,MassDataLink!$F$4:$F$4056) ->  | J200: 87 | K200: - - - | L200: - - -
B201: 88 | C201: -1 | D201: =LOOKUP(C201,MassDataLink!$A$4:$A$4056,MassDataLink!$B$4:$B$4056) ->  | E201: =LOOKUP(C201,MassDataLink!$A$4:$A$4056,MassDataLink!$C$4:$C$4056) ->  | F201: =LOOKUP(C201,MassDataLink!$A$4:$A$4056,MassDataLink!$D$4:$D$4056) ->  | G201: =LOOKUP(C201,MassDataLink!$A$4:$A$4056,MassDataLink!$E$4:$E$4056) ->  | H201: =LOOKUP(C201,MassDataLink!$A$4:$A$4056,MassDataLink!$F$4:$F$4056) ->  | J201: 88 | K201: - - - | L201: - - -
B202: 89 | C202: -1 | D202: =LOOKUP(C202,MassDataLink!$A$4:$A$4056,MassDataLink!$B$4:$B$4056) ->  | E202: =LOOKUP(C202,MassDataLink!$A$4:$A$4056,MassDataLink!$C$4:$C$4056) ->  | F202: =LOOKUP(C202,MassDataLink!$A$4:$A$4056,MassDataLink!$D$4:$D$4056) ->  | G202: =LOOKUP(C202,MassDataLink!$A$4:$A$4056,MassDataLink!$E$4:$E$4056) ->  | H202: =LOOKUP(C202,MassDataLink!$A$4:$A$4056,MassDataLink!$F$4:$F$4056) ->  | J202: 89 | K202: - - - | L202: - - -
B203: 90 | C203: -1 | D203: =LOOKUP(C203,MassDataLink!$A$4:$A$4056,MassDataLink!$B$4:$B$4056) ->  | E203: =LOOKUP(C203,MassDataLink!$A$4:$A$4056,MassDataLink!$C$4:$C$4056) ->  | F203: =LOOKUP(C203,MassDataLink!$A$4:$A$4056,MassDataLink!$D$4:$D$4056) ->  | G203: =LOOKUP(C203,MassDataLink!$A$4:$A$4056,MassDataLink!$E$4:$E$4056) ->  | H203: =LOOKUP(C203,MassDataLink!$A$4:$A$4056,MassDataLink!$F$4:$F$4056) ->  | J203: 90 | K203: - - - | L203: - - -
B204: 91 | C204: -1 | D204: =LOOKUP(C204,MassDataLink!$A$4:$A$4056,MassDataLink!$B$4:$B$4056) ->  | E204: =LOOKUP(C204,MassDataLink!$A$4:$A$4056,MassDataLink!$C$4:$C$4056) ->  | F204: =LOOKUP(C204,MassDataLink!$A$4:$A$4056,MassDataLink!$D$4:$D$4056) ->  | G204: =LOOKUP(C204,MassDataLink!$A$4:$A$4056,MassDataLink!$E$4:$E$4056) ->  | H204: =LOOKUP(C204,MassDataLink!$A$4:$A$4056,MassDataLink!$F$4:$F$4056) ->  | J204: 91 | K204: - - - | L204: - - -
B205: 92 | C205: -1 | D205: =LOOKUP(C205,MassDataLink!$A$4:$A$4056,MassDataLink!$B$4:$B$4056) ->  | E205: =LOOKUP(C205,MassDataLink!$A$4:$A$4056,MassDataLink!$C$4:$C$4056) ->  | F205: =LOOKUP(C205,MassDataLink!$A$4:$A$4056,MassDataLink!$D$4:$D$4056) ->  | G205: =LOOKUP(C205,MassDataLink!$A$4:$A$4056,MassDataLink!$E$4:$E$4056) ->  | H205: =LOOKUP(C205,MassDataLink!$A$4:$A$4056,MassDataLink!$F$4:$F$4056) ->  | J205: 92 | K205: - - - | L205: - - -
... 133 more rows

Sheet ModelData (hidden)
B1: 1 | C1: 6 | D1: 7 | E1: 8 | F1: 10 | G1: 11 | H1: 12 | I1: 13 | J1: 14 | K1: 15 | L1: 16 | M1: 17 | N1: 18 | O1: 19 | P1: 20 | Q1: 21 | R1: 22 | S1: 23 | T1: 24 | U1: 25 | V1: 26 | W1: 27 | X1: 28 | Y1: 29 | Z1: 30 | AA1: 31 | AB1: 32 | AC1: 33
A2: データ№ | B2: ｱｸﾁｭｴｰﾀ型式 | C2: 最小ｽﾄﾛｰｸ | D2: 最大ｽﾄﾛｰｸ | E2: 動作種別 | F2: リンク[0] | I2: リンク[1] | L2: リンク[2] | O2: リンク[3] | R2: リンク[4] | U2: リンク[5] | X2: リンク[6] | AA2: リンク[7]
A3: 0 | C3: ㎜ | D3: ㎜ | E3: 1/0:回/直 | F3: ﾘｰﾄﾞ | G3: ｽﾄﾛｰｸ | H3: 搬送負荷 | I3: ﾘｰﾄﾞ | J3: ｽﾄﾛｰｸ | K3: 搬送負荷 | L3: ﾘｰﾄﾞ | M3: ｽﾄﾛｰｸ | N3: 搬送負荷 | O3: ﾘｰﾄﾞ | P3: ｽﾄﾛｰｸ | Q3: 搬送負荷 | R3: ﾘｰﾄﾞ | S3: ｽﾄﾛｰｸ | T3: 搬送負荷 | U3: ﾘｰﾄﾞ | V3: ｽﾄﾛｰｸ | W3: 搬送負荷 | X3: ﾘｰﾄﾞ | Y3: ｽﾄﾛｰｸ | Z3: 搬送負荷 | AA3: ﾘｰﾄﾞ | AB3: ｽﾄﾛｰｸ | AC3: 搬送負荷
A4: =A3+1 -> 1 | B4: ISB-SXM-60 | C4: 100 | D4: 900 | E4: 0 | F4: =LeadData!A4 -> 1 | G4: =StrokeData!A4 -> 1 | H4: =MassDataLink!A4 -> 1 | I4: =LeadData!A5 -> 2 | J4: =StrokeData!A8 -> 5 | K4: =MassDataLink!A12 -> 9 | L4: =LeadData!A6 -> 3 | M4: =StrokeData!A12 -> 9 | N4: =MassDataLink!A27 -> 24 | O4: -1 | P4: -1 | Q4: -1 | R4: -1 | S4: -1 | T4: -1 | U4: -1 | V4: -1 | W4: -1 | X4: -1 | Y4: -1 | Z4: -1 | AA4: -1 | AB4: -1 | AC4: -1
A5: 2 | B5: ISB-MXM-100 | C5: 100 | D5: 1100 | E5: 0 | F5: =LeadData!A7 -> 4 | G5: =StrokeData!A19 -> 16 | H5: =MassDataLink!A60 -> 57 | I5: =LeadData!A8 -> 5 | J5: =StrokeData!A24 -> 21 | K5: =MassDataLink!A68 -> 65 | L5: =LeadData!A9 -> 6 | M5: =StrokeData!A29 -> 26 | N5: =MassDataLink!A78 -> 75 | O5: =LeadData!A10 -> 7 | P5: =StrokeData!A34 -> 31 | Q5: =MassDataLink!A98 -> 95 | R5: -1 | S5: -1 | T5: -1 | U5: -1 | V5: -1 | W5: -1 | X5: -1 | Y5: -1 | Z5: -1 | AA5: -1 | AB5: -1 | AC5: -1
A6: 3 | B6: ISB-MXM-200 | C6: 100 | D6: 1100 | E6: 0 | F6: =LeadData!A11 -> 8 | G6: =StrokeData!A44 -> 41 | H6: =MassDataLink!A118 -> 115 | I6: =LeadData!A12 -> 9 | J6: =StrokeData!A49 -> 46 | K6: =MassDataLink!A126 -> 123 | L6: =LeadData!A13 -> 10 | M6: =StrokeData!A58 -> 55 | N6: =MassDataLink!A136 -> 133 | O6: =LeadData!A14 -> 11 | P6: =StrokeData!A63 -> 60 | Q6: =MassDataLink!A156 -> 153 | R6: -1 | S6: -1 | T6: -1 | U6: -1 | V6: -1 | W6: -1 | X6: -1 | Y6: -1 | Z6: -1 | AA6: -1 | AB6: -1 | AC6: -1
A7: 4 | B7: ISB-LXM-200 | C7: 100 | D7: 1300 | E7: 0 | F7: =LeadData!A15 -> 12 | G7: =StrokeData!A68 -> 65 | H7: =MassDataLink!A176 -> 173 | I7: =LeadData!A16 -> 13 | J7: =StrokeData!A75 -> 72 | K7: =MassDataLink!A186 -> 183 | L7: =LeadData!A17 -> 14 | M7: =StrokeData!A82 -> 79 | N7: =MassDataLink!A216 -> 213 | O7: -1 | P7: -1 | Q7: -1 | R7: -1 | S7: -1 | T7: -1 | U7: -1 | V7: -1 | W7: -1 | X7: -1 | Y7: -1 | Z7: -1 | AA7: -1 | AB7: -1 | AC7: -1
A8: 5 | B8: ISB-LXM-400 | C8: 100 | D8: 1300 | E8: 0 | F8: =LeadData!A18 -> 15 | G8: =StrokeData!A92 -> 89 | H8: =MassDataLink!A236 -> 233 | I8: =LeadData!A19 -> 16 | J8: =StrokeData!A99 -> 96 | K8: =MassDataLink!A246 -> 243 | L8: =LeadData!A20 -> 17 | M8: =StrokeData!A107 -> 104 | N8: =MassDataLink!A278 -> 275 | O8: -1 | P8: -1 | Q8: -1 | R8: -1 | S8: -1 | T8: -1 | U8: -1 | V8: -1 | W8: -1 | X8: -1 | Y8: -1 | Z8: -1 | AA8: -1 | AB8: -1 | AC8: -1
A9: 6 | B9: ISB-SXL-60 | C9: 130 | D9: 880 | E9: 0 | F9: =LeadData!A21 -> 18 | G9: =StrokeData!A117 -> 114 | H9: =MassDataLink!A298 -> 295 | I9: =LeadData!A22 -> 19 | J9: =StrokeData!A121 -> 118 | K9: =MassDataLink!A306 -> 303 | L9: =LeadData!A23 -> 20 | M9: =StrokeData!A125 -> 122 | N9: =MassDataLink!A321 -> 318 | O9: -1 | P9: -1 | Q9: -1 | R9: -1 | S9: -1 | T9: -1 | U9: -1 | V9: -1 | W9: -1 | X9: -1 | Y9: -1 | Z9: -1 | AA9: -1 | AB9: -1 | AC9: -1
A10: 7 | B10: ISB-MXL-100 | C10: 120 | D10: 1070 | E10: 0 | F10: =LeadData!A24 -> 21 | G10: =StrokeData!A132 -> 129 | H10: =MassDataLink!A354 -> 351 | I10: =LeadData!A25 -> 22 | J10: =StrokeData!A137 -> 134 | K10: =MassDataLink!A362 -> 359 | L10: =LeadData!A26 -> 23 | M10: =StrokeData!A142 -> 139 | N10: =MassDataLink!A372 -> 369 | O10: =LeadData!A27 -> 24 | P10: =StrokeData!A147 -> 144 | Q10: =MassDataLink!A392 -> 389 | R10: -1 | S10: -1 | T10: -1 | U10: -1 | V10: -1 | W10: -1 | X10: -1 | Y10: -1 | Z10: -1 | AA10: -1 | AB10: -1 | AC10: -1
A11: 8 | B11: ISB-MXL-200 | C11: 120 | D11: 1070 | E11: 0 | F11: =LeadData!A28 -> 25 | G11: =StrokeData!A156 -> 153 | H11: =MassDataLink!A412 -> 409 | I11: =LeadData!A29 -> 26 | J11: =StrokeData!A161 -> 158 | K11: =MassDataLink!A420 -> 417 | L11: =LeadData!A30 -> 27 | M11: =StrokeData!A170 -> 167 | N11: =MassDataLink!A430 -> 427 | O11: =LeadData!A31 -> 28 | P11: =StrokeData!A175 -> 172 | Q11: =MassDataLink!A450 -> 447 | R11: -1 | S11: -1 | T11: -1 | U11: -1 | V11: -1 | W11: -1 | X11: -1 | Y11: -1 | Z11: -1 | AA11: -1 | AB11: -1 | AC11: -1
A12: 9 | B12: ISB-LXL-200 | C12: 120 | D12: 1270 | E12: 0 | F12: =LeadData!A32 -> 29 | G12: =StrokeData!A180 -> 177 | H12: =MassDataLink!A470 -> 467 | I12: =LeadData!A33 -> 30 | J12: =StrokeData!A187 -> 184 | K12: =MassDataLink!A480 -> 477 | L12: =LeadData!A34 -> 31 | M12: =StrokeData!A194 -> 191 | N12: =MassDataLink!A510 -> 507 | O12: -1 | P12: -1 | Q12: -1 | R12: -1 | S12: -1 | T12: -1 | U12: -1 | V12: -1 | W12: -1 | X12: -1 | Y12: -1 | Z12: -1 | AA12: -1 | AB12: -1 | AC12: -1
A13: 10 | B13: ISB-LXL-400 | C13: 120 | D13: 1270 | E13: 0 | F13: =LeadData!A35 -> 32 | G13: =StrokeData!A203 -> 200 | H13: =MassDataLink!A530 -> 527 | I13: =LeadData!A36 -> 33 | J13: =StrokeData!A210 -> 207 | K13: =MassDataLink!A540 -> 537 | L13: =LeadData!A37 -> 34 | M13: =StrokeData!A218 -> 215 | N13: =MassDataLink!A572 -> 569 | O13: -1 | P13: -1 | Q13: -1 | R13: -1 | S13: -1 | T13: -1 | U13: -1 | V13: -1 | W13: -1 | X13: -1 | Y13: -1 | Z13: -1 | AA13: -1 | AB13: -1 | AC13: -1
A14: =A13+1 -> 11 | B14: ISDB-S-60 | C14: 100 | D14: 800 | E14: 0 | F14: =LeadData!A38 -> 35 | G14: =StrokeData!A227 -> 224 | H14: =MassDataLink!A592 -> 589 | I14: =LeadData!A39 -> 36 | J14: =StrokeData!A234 -> 231 | K14: =MassDataLink!A600 -> 597 | L14: =LeadData!A40 -> 37 | M14: =StrokeData!A241 -> 238 | N14: =MassDataLink!A615 -> 612 | O14: -1 | P14: -1 | Q14: -1 | R14: -1 | S14: -1 | T14: -1 | U14: -1 | V14: -1 | W14: -1 | X14: -1 | Y14: -1 | Z14: -1 | AA14: -1 | AB14: -1 | AC14: -1
A15: 12 | B15: ISDB-M-100 | C15: 100 | D15: 1100 | E15: 0 | F15: =LeadData!A41 -> 38 | G15: =StrokeData!A248 -> 245 | H15: =MassDataLink!A646 -> 643 | I15: =LeadData!A42 -> 39 | J15: =StrokeData!A259 -> 256 | K15: =MassDataLink!A654 -> 651 | L15: =LeadData!A43 -> 40 | M15: =StrokeData!A270 -> 267 | N15: =MassDataLink!A664 -> 661 | O15: =LeadData!A44 -> 41 | P15: =StrokeData!A281 -> 278 | Q15: =MassDataLink!A682 -> 679 | R15: -1 | S15: -1 | T15: -1 | U15: -1 | V15: -1 | W15: -1 | X15: -1 | Y15: -1 | Z15: -1 | AA15: -1 | AB15: -1 | AC15: -1
A16: 13 | B16: ISDB-M-200 | C16: 100 | D16: 1100 | E16: 0 | F16: =LeadData!A45 -> 42 | G16: =StrokeData!A292 -> 289 | H16: =MassDataLink!A700 -> 697 | I16: =LeadData!A46 -> 43 | J16: =StrokeData!A303 -> 300 | K16: =MassDataLink!A708 -> 705 | L16: =LeadData!A47 -> 44 | M16: =StrokeData!A314 -> 311 | N16: =MassDataLink!A718 -> 715 | O16: =LeadData!A48 -> 45 | P16: =StrokeData!A325 -> 322 | Q16: =MassDataLink!A736 -> 733 | R16: -1 | S16: -1 | T16: -1 | U16: -1 | V16: -1 | W16: -1 | X16: -1 | Y16: -1 | Z16: -1 | AA16: -1 | AB16: -1 | AC16: -1
A17: 14 | B17: ISDB-L-200 | C17: 100 | D17: 1300 | E17: 0 | F17: =LeadData!A49 -> 46 | G17: =StrokeData!A340 -> 337 | H17: =MassDataLink!A754 -> 751 | I17: =LeadData!A50 -> 47 | J17: =StrokeData!A354 -> 351 | K17: =MassDataLink!A764 -> 761 | L17: =LeadData!A51 -> 48 | M17: =StrokeData!A368 -> 365 | N17: =MassDataLink!A794 -> 791 | O17: -1 | P17: -1 | Q17: -1 | R17: -1 | S17: -1 | T17: -1 | U17: -1 | V17: -1 | W17: -1 | X17: -1 | Y17: -1 | Z17: -1 | AA17: -1 | AB17: -1 | AC17: -1
A18: 15 | B18: ISDB-L-400 | C18: 100 | D18: 1300 | E18: 0 | F18: =LeadData!A52 -> 49 | G18: =StrokeData!A379 -> 376 | H18: =MassDataLink!A812 -> 809 | I18: =LeadData!A53 -> 50 | J18: =StrokeData!A393 -> 390 | K18: =MassDataLink!A822 -> 819 | L18: =LeadData!A54 -> 51 | M18: =StrokeData!A407 -> 404 | N18: =MassDataLink!A852 -> 849 | O18: -1 | P18: -1 | Q18: -1 | R18: -1 | S18: -1 | T18: -1 | U18: -1 | V18: -1 | W18: -1 | X18: -1 | Y18: -1 | Z18: -1 | AA18: -1 | AB18: -1 | AC18: -1
A19: 16 | B19: ISDBCR-S-60 | C19: 100 | D19: 800 | E19: 0 | F19: =LeadData!A55 -> 52 | G19: =StrokeData!A419 -> 416 | H19: =MassDataLink!A870 -> 867 | I19: =LeadData!A56 -> 53 | J19: =StrokeData!A426 -> 423 | K19: =MassDataLink!A878 -> 875 | L19: =LeadData!A57 -> 54 | M19: =StrokeData!A433 -> 430 | N19: =MassDataLink!A888 -> 885 | O19: -1 | P19: -1 | Q19: -1 | R19: -1 | S19: -1 | T19: -1 | U19: -1 | V19: -1 | W19: -1 | X19: -1 | Y19: -1 | Z19: -1 | AA19: -1 | AB19: -1 | AC19: -1
A20: 17 | B20: ISDBCR-M-100 | C20: 100 | D20: 1100 | E20: 0 | F20: =LeadData!A58 -> 55 | G20: =StrokeData!A440 -> 437 | H20: =MassDataLink!A903 -> 900 | I20: =LeadData!A59 -> 56 | J20: =StrokeData!A451 -> 448 | K20: =MassDataLink!A911 -> 908 | L20: =LeadData!A60 -> 57 | M20: =StrokeData!A462 -> 459 | N20: =MassDataLink!A921 -> 918 | O20: =LeadData!A61 -> 58 | P20: =StrokeData!A473 -> 470 | Q20: =MassDataLink!A931 -> 928 | R20: -1 | S20: -1 | T20: -1 | U20: -1 | V20: -1 | W20: -1 | X20: -1 | Y20: -1 | Z20: -1 | AA20: -1 | AB20: -1 | AC20: -1
A21: 18 | B21: ISDBCR-M-200 | C21: 100 | D21: 1100 | E21: 0 | F21: =LeadData!A62 -> 59 | G21: =StrokeData!A484 -> 481 | H21: =MassDataLink!A941 -> 938 | I21: =LeadData!A63 -> 60 | J21: =StrokeData!A495 -> 492 | K21: =MassDataLink!A949 -> 946 | L21: =LeadData!A64 -> 61 | M21: =StrokeData!A506 -> 503 | N21: =MassDataLink!A959 -> 956 | O21: =LeadData!A65 -> 62 | P21: =StrokeData!A517 -> 514 | Q21: =MassDataLink!A969 -> 966 | R21: -1 | S21: -1 | T21: -1 | U21: -1 | V21: -1 | W21: -1 | X21: -1 | Y21: -1 | Z21: -1 | AA21: -1 | AB21: -1 | AC21: -1
A22: =A21+1 -> 19 | B22: ISDBCR-L-200 | C22: 100 | D22: 1300 | E22: 0 | F22: =LeadData!A66 -> 63 | G22: =StrokeData!A531 -> 528 | H22: =MassDataLink!A979 -> 976 | I22: =LeadData!A67 -> 64 | J22: =StrokeData!A545 -> 542 | K22: =MassDataLink!A989 -> 986 | L22: =LeadData!A68 -> 65 | M22: =StrokeData!A559 -> 556 | N22: =MassDataLink!A1006 -> 1003 | O22: -1 | P22: -1 | Q22: -1 | R22: -1 | S22: -1 | T22: -1 | U22: -1 | V22: -1 | W22: -1 | X22: -1 | Y22: -1 | Z22: -1 | AA22: -1 | AB22: -1 | AC22: -1
A23: 20 | B23: ISDBCR-L-400 | C23: 100 | D23: 1300 | E23: 0 | F23: =LeadData!A69 -> 66 | G23: =StrokeData!A570 -> 567 | H23: =MassDataLink!A1016 -> 1013 | I23: =LeadData!A70 -> 67 | J23: =StrokeData!A584 -> 581 | K23: =MassDataLink!A1026 -> 1023 | L23: =LeadData!A71 -> 68 | M23: =StrokeData!A598 -> 595 | N23: =MassDataLink!A1043 -> 1040 | O23: -1 | P23: -1 | Q23: -1 | R23: -1 | S23: -1 | T23: -1 | U23: -1 | V23: -1 | W23: -1 | X23: -1 | Y23: -1 | Z23: -1 | AA23: -1 | AB23: -1 | AC23: -1
A24: 21 | B24: SSPA-SXM-200 | C24: 100 | D24: 1100 | E24: 0 | F24: =LeadData!A72 -> 69 | G24: =StrokeData!A610 -> 607 | H24: =MassDataLink!A1053 -> 1050 | I24: =LeadData!A73 -> 70 | J24: =StrokeData!A621 -> 618 | K24: =MassDataLink!A1060 -> 1057 | L24: =LeadData!A74 -> 71 | M24: =StrokeData!A632 -> 629 | N24: =MassDataLink!A1080 -> 1077 | O24: -1 | P24: -1 | Q24: -1 | R24: -1 | S24: -1 | T24: -1 | U24: -1 | V24: -1 | W24: -1 | X24: -1 | Y24: -1 | Z24: -1 | AA24: -1 | AB24: -1 | AC24: -1
A25: 22 | B25: SSPA-MXM-400 | C25: 100 | D25: 1300 | E25: 0 | F25: =LeadData!A75 -> 72 | G25: =StrokeData!A645 -> 642 | H25: =MassDataLink!A1100 -> 1097 | I25: =LeadData!A76 -> 73 | J25: =StrokeData!A658 -> 655 | K25: =MassDataLink!A1107 -> 1104 | L25: =LeadData!A77 -> 74 | M25: =StrokeData!A672 -> 669 | N25: =MassDataLink!A1127 -> 1124 | O25: -1 | P25: -1 | Q25: -1 | R25: -1 | S25: -1 | T25: -1 | U25: -1 | V25: -1 | W25: -1 | X25: -1 | Y25: -1 | Z25: -1 | AA25: -1 | AB25: -1 | AC25: -1
A26: 23 | B26: SSPA-LXM-750 | C26: 100 | D26: 1500 | E26: 0 | F26: =LeadData!A78 -> 75 | G26: =StrokeData!A686 -> 683 | H26: =MassDataLink!A1147 -> 1144 | I26: =LeadData!A79 -> 76 | J26: =StrokeData!A694 -> 691 | K26: =MassDataLink!A1167 -> 1164 | L26: -1 | M26: -1 | N26: -1 | O26: -1 | P26: -1 | Q26: -1 | R26: -1 | S26: -1 | T26: -1 | U26: -1 | V26: -1 | W26: -1 | X26: -1 | Y26: -1 | Z26: -1 | AA26: -1 | AB26: -1 | AC26: -1
A27: 24 | B27: SSPDACR-S-200 | C27: 100 | D27: 1100 | E27: 0 | F27: =LeadData!A80 -> 77 | G27: =StrokeData!A702 -> 699 | H27: =MassDataLink!A1187 -> 1184 | I27: =LeadData!A81 -> 78 | J27: =StrokeData!A714 -> 711 | K27: =MassDataLink!A1194 -> 1191 | L27: =LeadData!A82 -> 79 | M27: =StrokeData!A726 -> 723 | N27: =MassDataLink!A1204 -> 1201 | O27: -1 | P27: -1 | Q27: -1 | R27: -1 | S27: -1 | T27: -1 | U27: -1 | V27: -1 | W27: -1 | X27: -1 | Y27: -1 | Z27: -1 | AA27: -1 | AB27: -1 | AC27: -1
A28: 25 | B28: SSPDACR-M-400 | C28: 100 | D28: 1300 | E28: 0 | F28: =LeadData!A83 -> 80 | G28: =StrokeData!A739 -> 736 | H28: =MassDataLink!A1216 -> 1213 | I28: =LeadData!A84 -> 81 | J28: =StrokeData!A754 -> 751 | K28: =MassDataLink!A1223 -> 1220 | L28: =LeadData!A85 -> 82 | M28: =StrokeData!A769 -> 766 | N28: =MassDataLink!A1233 -> 1230 | O28: -1 | P28: -1 | Q28: -1 | R28: -1 | S28: -1 | T28: -1 | U28: -1 | V28: -1 | W28: -1 | X28: -1 | Y28: -1 | Z28: -1 | AA28: -1 | AB28: -1 | AC28: -1
A29: 26 | B29: SSPDACR-L-750 | C29: 100 | D29: 1500 | E29: 0 | F29: =LeadData!A86 -> 83 | G29: =StrokeData!A781 -> 778 | H29: =MassDataLink!A1245 -> 1242 | I29: =LeadData!A87 -> 84 | J29: =StrokeData!A789 -> 786 | K29: =MassDataLink!A1257 -> 1254 | L29: -1 | M29: -1 | N29: -1 | O29: -1 | P29: -1 | Q29: -1 | R29: -1 | S29: -1 | T29: -1 | U29: -1 | V29: -1 | W29: -1 | X29: -1 | Y29: -1 | Z29: -1 | AA29: -1 | AB29: -1 | AC29: -1
A30: =A29+1 -> 27 | B30: RCS3-SA8C-100 | C30: 50 | D30: 1100 | E30: 0 | F30: =LeadData!A88 -> 85 | G30: =StrokeData!A796 -> 793 | H30: =MassDataLink!A1269 -> 1266 | I30: =LeadData!A89 -> 86 | J30: =StrokeData!A806 -> 803 | K30: =MassDataLink!A1274 -> 1271 | L30: =LeadData!A90 -> 87 | M30: =StrokeData!A816 -> 813 | N30: =MassDataLink!A1286 -> 1283 | O30: =LeadData!A91 -> 88 | P30: =StrokeData!A827 -> 824 | Q30: =MassDataLink!A1314 -> 1311 | R30: -1 | S30: -1 | T30: -1 | U30: -1 | V30: -1 | W30: -1 | X30: -1 | Y30: -1 | Z30: -1 | AA30: -1 | AB30: -1 | AC30: -1
A31: 28 | B31: RCS3-SA8C-150 | C31: 50 | D31: 1100 | E31: 0 | F31: =LeadData!A92 -> 89 | G31: =StrokeData!A838 -> 835 | H31: =MassDataLink!A1347 -> 1344 | I31: =LeadData!A93 -> 90 | J31: =StrokeData!A848 -> 845 | K31: =MassDataLink!A1365 -> 1362 | L31: =LeadData!A94 -> 91 | M31: =StrokeData!A859 -> 856 | N31: =MassDataLink!A1403 -> 1400 | O31: -1 | P31: -1 | Q31: -1 | R31: -1 | S31: -1 | T31: -1 | U31: -1 | V31: -1 | W31: -1 | X31: -1 | Y31: -1 | Z31: -1 | AA31: -1 | AB31: -1 | AC31: -1
A32: 29 | B32: RCS3-SS8C-100 | C32: 50 | D32: 1000 | E32: 0 | F32: =LeadData!A95 -> 92 | G32: =StrokeData!A870 -> 867 | H32: =MassDataLink!A1441 -> 1438 | I32: =LeadData!A96 -> 93 | J32: =StrokeData!A879 -> 876 | K32: =MassDataLink!A1446 -> 1443 | L32: =LeadData!A97 -> 94 | M32: =StrokeData!A888 -> 885 | N32: =MassDataLink!A1458 -> 1455 | O32: =LeadData!A98 -> 95 | P32: =StrokeData!A898 -> 895 | Q32: =MassDataLink!A1486 -> 1483 | R32: -1 | S32: -1 | T32: -1 | U32: -1 | V32: -1 | W32: -1 | X32: -1 | Y32: -1 | Z32: -1 | AA32: -1 | AB32: -1 | AC32: -1
A33: 30 | B33: RCS3-SS8C-150 | C33: 50 | D33: 1000 | E33: 0 | F33: =LeadData!A99 -> 96 | G33: =StrokeData!A908 -> 905 | H33: =MassDataLink!A1519 -> 1516 | I33: =LeadData!A100 -> 97 | J33: =StrokeData!A917 -> 914 | K33: =MassDataLink!A1537 -> 1534 | L33: =LeadData!A101 -> 98 | M33: =StrokeData!A929 -> 926 | N33: =MassDataLink!A1575 -> 1572 | O33: -1 | P33: -1 | Q33: -1 | R33: -1 | S33: -1 | T33: -1 | U33: -1 | V33: -1 | W33: -1 | X33: -1 | Y33: -1 | Z33: -1 | AA33: -1 | AB33: -1 | AC33: -1
A34: 31 | B34: RCS3CR-SA8C-100 | C34: 50 | D34: 1100 | E34: 0 | F34: =LeadData!A102 -> 99 | G34: =StrokeData!A939 -> 936 | H34: =MassDataLink!A1613 -> 1610 | I34: =LeadData!A103 -> 100 | J34: =StrokeData!A949 -> 946 | K34: =MassDataLink!A1618 -> 1615 | L34: =LeadData!A104 -> 101 | M34: =StrokeData!A959 -> 956 | N34: =MassDataLink!A1626 -> 1623 | O34: =LeadData!A105 -> 102 | P34: =StrokeData!A970 -> 967 | Q34: =MassDataLink!A1638 -> 1635 | R34: -1 | S34: -1 | T34: -1 | U34: -1 | V34: -1 | W34: -1 | X34: -1 | Y34: -1 | Z34: -1 | AA34: -1 | AB34: -1 | AC34: -1
A35: 32 | B35: RCS3CR-SA8C-150 | C35: 50 | D35: 1100 | E35: 0 | F35: =LeadData!A106 -> 103 | G35: =StrokeData!A980 -> 977 | H35: =MassDataLink!A1653 -> 1650 | I35: =LeadData!A107 -> 104 | J35: =StrokeData!A990 -> 987 | K35: =MassDataLink!A1661 -> 1658 | L35: =LeadData!A108 -> 105 | M35: =StrokeData!A1000 -> 997 | N35: =MassDataLink!A1673 -> 1670 | O35: -1 | P35: -1 | Q35: -1 | R35: -1 | S35: -1 | T35: -1 | U35: -1 | V35: -1 | W35: -1 | X35: -1 | Y35: -1 | Z35: -1 | AA35: -1 | AB35: -1 | AC35: -1
A36: 33 | B36: RCS3CR-SS8C-100 | C36: 50 | D36: 1000 | E36: 0 | F36: =LeadData!A109 -> 106 | G36: =StrokeData!A1011 -> 1008 | H36: =MassDataLink!A1688 -> 1685 | I36: =LeadData!A110 -> 107 | J36: =StrokeData!A1020 -> 1017 | K36: =MassDataLink!A1693 -> 1690 | L36: =LeadData!A111 -> 108 | M36: =StrokeData!A1029 -> 1026 | N36: =MassDataLink!A1701 -> 1698 | O36: =LeadData!A112 -> 109 | P36: =StrokeData!A1038 -> 1035 | Q36: =MassDataLink!A1713 -> 1710 | R36: -1 | S36: -1 | T36: -1 | U36: -1 | V36: -1 | W36: -1 | X36: -1 | Y36: -1 | Z36: -1 | AA36: -1 | AB36: -1 | AC36: -1
A37: 34 | B37: RCS3CR-SS8C-150 | C37: 50 | D37: 1000 | E37: 0 | F37: =LeadData!A113 -> 110 | G37: =StrokeData!A1047 -> 1044 | H37: =MassDataLink!A1728 -> 1725 | I37: =LeadData!A114 -> 111 | J37: =StrokeData!A1056 -> 1053 | K37: =MassDataLink!A1736 -> 1733 | L37: =LeadData!A115 -> 112 | M37: =StrokeData!A1067 -> 1064 | N37: =MassDataLink!A1748 -> 1745 | O37: -1 | P37: -1 | Q37: -1 | R37: -1 | S37: -1 | T37: -1 | U37: -1 | V37: -1 | W37: -1 | X37: -1 | Y37: -1 | Z37: -1 | AA37: -1 | AB37: -1 | AC37: -1
A38: 35 | B38: RCS3-SA8R-100 | C38: 50 | D38: 1100 | E38: 0 | F38: =LeadData!A116 -> 113 | G38: =StrokeData!A1076 -> 1073 | H38: =MassDataLink!A1763 -> 1760 | I38: =LeadData!A117 -> 114 | J38: =StrokeData!A1086 -> 1083 | K38: =MassDataLink!A1768 -> 1765 | L38: =LeadData!A118 -> 115 | M38: =StrokeData!A1096 -> 1093 | N38: =MassDataLink!A1780 -> 1777 | O38: =LeadData!A119 -> 116 | P38: =StrokeData!A1107 -> 1104 | Q38: =MassDataLink!A1798 -> 1795 | R38: -1 | S38: -1 | T38: -1 | U38: -1 | V38: -1 | W38: -1 | X38: -1 | Y38: -1 | Z38: -1 | AA38: -1 | AB38: -1 | AC38: -1
A39: 36 | B39: RCS3-SA8R-150 | C39: 50 | D39: 1100 | E39: 0 | F39: =LeadData!A120 -> 117 | G39: =StrokeData!A1117 -> 1114 | H39: =MassDataLink!A1820 -> 1817 | I39: =LeadData!A121 -> 118 | J39: =StrokeData!A1127 -> 1124 | K39: =MassDataLink!A1832 -> 1829 | L39: =LeadData!A122 -> 119 | M39: =StrokeData!A1137 -> 1134 | N39: =MassDataLink!A1850 -> 1847 | O39: -1 | P39: -1 | Q39: -1 | R39: -1 | S39: -1 | T39: -1 | U39: -1 | V39: -1 | W39: -1 | X39: -1 | Y39: -1 | Z39: -1 | AA39: -1 | AB39: -1 | AC39: -1
A40: 37 | B40: RCS3-SS8R-100 | C40: 50 | D40: 1000 | E40: 0 | F40: =LeadData!A123 -> 120 | G40: =StrokeData!A1148 -> 1145 | H40: =MassDataLink!A1872 -> 1869 | I40: =LeadData!A124 -> 121 | J40: =StrokeData!A1157 -> 1154 | K40: =MassDataLink!A1877 -> 1874 | L40: =LeadData!A125 -> 122 | M40: =StrokeData!A1166 -> 1163 | N40: =MassDataLink!A1889 -> 1886 | O40: =LeadData!A126 -> 123 | P40: =StrokeData!A1175 -> 1172 | Q40: =MassDataLink!A1907 -> 1904 | R40: -1 | S40: -1 | T40: -1 | U40: -1 | V40: -1 | W40: -1 | X40: -1 | Y40: -1 | Z40: -1 | AA40: -1 | AB40: -1 | AC40: -1
A41: 38 | B41: RCS3-SS8R-150 | C41: 50 | D41: 1000 | E41: 0 | F41: =LeadData!A127 -> 124 | G41: =StrokeData!A1184 -> 1181 | H41: =MassDataLink!A1929 -> 1926 | I41: =LeadData!A128 -> 125 | J41: =StrokeData!A1193 -> 1190 | K41: =MassDataLink!A1941 -> 1938 | L41: =LeadData!A129 -> 126 | M41: =StrokeData!A1204 -> 1201 | N41: =MassDataLink!A1959 -> 1956 | O41: -1 | P41: -1 | Q41: -1 | R41: -1 | S41: -1 | T41: -1 | U41: -1 | V41: -1 | W41: -1 | X41: -1 | Y41: -1 | Z41: -1 | AA41: -1 | AB41: -1 | AC41: -1
A42: 39 | B42: RCS2-SA4C-20 | C42: 50 | D42: 400 | E42: 0 | F42: =LeadData!A130 -> 127 | G42: =StrokeData!A1213 -> 1210 | H42: =MassDataLink!A1981 -> 1978 | I42: =LeadData!A131 -> 128 | J42: =StrokeData!A1214 -> 1211 | K42: =MassDataLink!A1988 -> 1985 | L42: =LeadData!A132 -> 129 | M42: =StrokeData!A1215 -> 1212 | N42: =MassDataLink!A2008 -> 2005 | O42: =LeadData!A133 -> 130 | P42: =StrokeData!A1216 -> 1213 | Q42: =MassDataLink!A2036 -> 2033 | R42: -1 | S42: -1 | T42: -1 | U42: -1 | V42: -1 | W42: -1 | X42: -1 | Y42: -1 | Z42: -1 | AA42: -1 | AB42: -1 | AC42: -1
A43: 40 | B43: RCS2-SA5C-20 | C43: 50 | D43: 500 | E43: 0 | F43: =LeadData!A134 -> 131 | G43: =StrokeData!A1217 -> 1214 | H43: =MassDataLink!A2064 -> 2061 | I43: =LeadData!A135 -> 132 | J43: =StrokeData!A1219 -> 1216 | K43: =MassDataLink!A2069 -> 2066 | L43: =LeadData!A136 -> 133 | M43: =StrokeData!A1221 -> 1218 | N43: =MassDataLink!A2087 -> 2084 | O43: =LeadData!A137 -> 134 | P43: =StrokeData!A1224 -> 1221 | Q43: =MassDataLink!A2112 -> 2109 | R43: -1 | S43: -1 | T43: -1 | U43: -1 | V43: -1 | W43: -1 | X43: -1 | Y43: -1 | Z43: -1 | AA43: -1 | AB43: -1 | AC43: -1
A44: 41 | B44: RCS2-SA6C-30 | C44: 50 | D44: 600 | E44: 0 | F44: =LeadData!A138 -> 135 | G44: =StrokeData!A1226 -> 1223 | H44: =MassDataLink!A2132 -> 2129 | I44: =LeadData!A139 -> 136 | J44: =StrokeData!A1230 -> 1227 | K44: =MassDataLink!A2138 -> 2135 | L44: =LeadData!A140 -> 137 | M44: =StrokeData!A1234 -> 1231 | N44: =MassDataLink!A2156 -> 2153 | O44: =LeadData!A141 -> 138 | P44: =StrokeData!A1239 -> 1236 | Q44: =MassDataLink!A2186 -> 2183 | R44: -1 | S44: -1 | T44: -1 | U44: -1 | V44: -1 | W44: -1 | X44: -1 | Y44: -1 | Z44: -1 | AA44: -1 | AB44: -1 | AC44: -1
A45: 42 | B45: RCS2-SA7C-60 | C45: 50 | D45: 800 | E45: 0 | F45: =LeadData!A142 -> 139 | G45: =StrokeData!A1245 -> 1242 | H45: =MassDataLink!A2205 -> 2202 | I45: =LeadData!A143 -> 140 | J45: =StrokeData!A1248 -> 1245 | K45: =MassDataLink!A2212 -> 2209 | L45: =LeadData!A144 -> 141 | M45: =StrokeData!A1251 -> 1248 | N45: =MassDataLink!A2240 -> 2237 | O45: =LeadData!A145 -> 142 | P45: =StrokeData!A1255 -> 1252 | Q45: =MassDataLink!A2273 -> 2270 | R45: -1 | S45: -1 | T45: -1 | U45: -1 | V45: -1 | W45: -1 | X45: -1 | Y45: -1 | Z45: -1 | AA45: -1 | AB45: -1 | AC45: -1
A46: =A45+1 -> 43 | B46: RCS2-SS7C-60 | C46: 50 | D46: 600 | E46: 0 | F46: =LeadData!A146 -> 143 | G46: =StrokeData!A1262 -> 1259 | H46: =MassDataLink!A2306 -> 2303 | I46: =LeadData!A147 -> 144 | J46: =StrokeData!A1264 -> 1261 | K46: =MassDataLink!A2316 -> 2313 | L46: =LeadData!A148 -> 145 | M46: =StrokeData!A1267 -> 1264 | N46: =MassDataLink!A2349 -> 2346 | O46: -1 | P46: -1 | Q46: -1 | R46: -1 | S46: -1 | T46: -1 | U46: -1 | V46: -1 | W46: -1 | X46: -1 | Y46: -1 | Z46: -1 | AA46: -1 | AB46: -1 | AC46: -1
A47: 44 | B47: RCS2CR-SA4C-20 | C47: 50 | D47: 400 | E47: 0 | F47: =LeadData!A149 -> 146 | G47: =StrokeData!A1272 -> 1269 | H47: =MassDataLink!A2382 -> 2379 | I47: =LeadData!A150 -> 147 | J47: =StrokeData!A1273 -> 1270 | K47: =MassDataLink!A2385 -> 2382 | L47: =LeadData!A151 -> 148 | M47: =StrokeData!A1274 -> 1271 | N47: =MassDataLink!A2389 -> 2386 | O47: =LeadData!A152 -> 149 | P47: =StrokeData!A1275 -> 1272 | Q47: =MassDataLink!A2393 -> 2390 | R47: -1 | S47: -1 | T47: -1 | U47: -1 | V47: -1 | W47: -1 | X47: -1 | Y47: -1 | Z47: -1 | AA47: -1 | AB47: -1 | AC47: -1
A48: 45 | B48: RCS2CR-SA5C-20 | C48: 50 | D48: 500 | E48: 0 | F48: =LeadData!A153 -> 150 | G48: =StrokeData!A1276 -> 1273 | H48: =MassDataLink!A2397 -> 2394 | I48: =LeadData!A154 -> 151 | J48: =StrokeData!A1278 -> 1275 | K48: =MassDataLink!A2400 -> 2397 | L48: =LeadData!A155 -> 152 | M48: =StrokeData!A1280 -> 1277 | N48: =MassDataLink!A2404 -> 2401 | O48: =LeadData!A156 -> 153 | P48: =StrokeData!A1282 -> 1279 | Q48: =MassDataLink!A2408 -> 2405 | R48: -1 | S48: -1 | T48: -1 | U48: -1 | V48: -1 | W48: -1 | X48: -1 | Y48: -1 | Z48: -1 | AA48: -1 | AB48: -1 | AC48: -1
A49: 46 | B49: RCS2CR-SA6C-30 | C49: 50 | D49: 600 | E49: 0 | F49: =LeadData!A157 -> 154 | G49: =StrokeData!A1283 -> 1280 | H49: =MassDataLink!A2412 -> 2409 | I49: =LeadData!A158 -> 155 | J49: =StrokeData!A1287 -> 1284 | K49: =MassDataLink!A2415 -> 2412 | L49: =LeadData!A159 -> 156 | M49: =StrokeData!A1291 -> 1288 | N49: =MassDataLink!A2419 -> 2416 | O49: =LeadData!A160 -> 157 | P49: =StrokeData!A1295 -> 1292 | Q49: =MassDataLink!A2423 -> 2420 | R49: -1 | S49: -1 | T49: -1 | U49: -1 | V49: -1 | W49: -1 | X49: -1 | Y49: -1 | Z49: -1 | AA49: -1 | AB49: -1 | AC49: -1
A50: 47 | B50: RCS2CR-SA7C-60 | C50: 50 | D50: 800 | E50: 0 | F50: =LeadData!A161 -> 158 | G50: =StrokeData!A1300 -> 1297 | H50: =MassDataLink!A2427 -> 2424 | I50: =LeadData!A162 -> 159 | J50: =StrokeData!A1303 -> 1300 | K50: =MassDataLink!A2430 -> 2427 | L50: =LeadData!A163 -> 160 | M50: =StrokeData!A1306 -> 1303 | N50: =MassDataLink!A2434 -> 2431 | O50: =LeadData!A164 -> 161 | P50: =StrokeData!A1309 -> 1306 | Q50: =MassDataLink!A2438 -> 2435 | R50: -1 | S50: -1 | T50: -1 | U50: -1 | V50: -1 | W50: -1 | X50: -1 | Y50: -1 | Z50: -1 | AA50: -1 | AB50: -1 | AC50: -1
A51: 48 | B51: RCS2CR-SS7C-60 | C51: 50 | D51: 600 | E51: 0 | F51: =LeadData!A165 -> 162 | G51: =StrokeData!A1315 -> 1312 | H51: =MassDataLink!A2442 -> 2439 | I51: =LeadData!A166 -> 163 | J51: =StrokeData!A1317 -> 1314 | K51: =MassDataLink!A2446 -> 2443 | L51: =LeadData!A167 -> 164 | M51: =StrokeData!A1319 -> 1316 | N51: =MassDataLink!A2450 -> 2447 | O51: -1 | P51: -1 | Q51: -1 | R51: -1 | S51: -1 | T51: -1 | U51: -1 | V51: -1 | W51: -1 | X51: -1 | Y51: -1 | Z51: -1 | AA51: -1 | AB51: -1 | AC51: -1
A52: 49 | B52: RCS2-SA4D-20 | C52: 50 | D52: 300 | E52: 0 | F52: =LeadData!A168 -> 165 | G52: =StrokeData!A1323 -> 1320 | H52: =MassDataLink!A2454 -> 2451 | I52: =LeadData!A169 -> 166 | J52: =StrokeData!A1324 -> 1321 | K52: =MassDataLink!A2456 -> 2453 | L52: =LeadData!A170 -> 167 | M52: =StrokeData!A1325 -> 1322 | N52: =MassDataLink!A2458 -> 2455 | O52: -1 | P52: -1 | Q52: -1 | R52: -1 | S52: -1 | T52: -1 | U52: -1 | V52: -1 | W52: -1 | X52: -1 | Y52: -1 | Z52: -1 | AA52: -1 | AB52: -1 | AC52: -1
A53: =A52+1 -> 50 | B53: RCS2-SA5D-20 | C53: 50 | D53: 500 | E53: 0 | F53: =LeadData!A171 -> 168 | G53: =StrokeData!A1326 -> 1323 | H53: =MassDataLink!A2460 -> 2457 | I53: =LeadData!A172 -> 169 | J53: =StrokeData!A1328 -> 1325 | K53: =MassDataLink!A2462 -> 2459 | L53: =LeadData!A173 -> 170 | M53: =StrokeData!A1330 -> 1327 | N53: =MassDataLink!A2464 -> 2461 | O53: -1 | P53: -1 | Q53: -1 | R53: -1 | S53: -1 | T53: -1 | U53: -1 | V53: -1 | W53: -1 | X53: -1 | Y53: -1 | Z53: -1 | AA53: -1 | AB53: -1 | AC53: -1
A54: 51 | B54: RCS2-SA6D-30 | C54: 50 | D54: 600 | E54: 0 | F54: =LeadData!A174 -> 171 | G54: =StrokeData!A1332 -> 1329 | H54: =MassDataLink!A2466 -> 2463 | I54: =LeadData!A175 -> 172 | J54: =StrokeData!A1336 -> 1333 | K54: =MassDataLink!A2468 -> 2465 | L54: =LeadData!A176 -> 173 | M54: =StrokeData!A1340 -> 1337 | N54: =MassDataLink!A2470 -> 2467 | O54: -1 | P54: -1 | Q54: -1 | R54: -1 | S54: -1 | T54: -1 | U54: -1 | V54: -1 | W54: -1 | X54: -1 | Y54: -1 | Z54: -1 | AA54: -1 | AB54: -1 | AC54: -1
A55: 52 | B55: RCS2CR-SA5D-20 | C55: 50 | D55: 500 | E55: 0 | F55: =LeadData!A177 -> 174 | G55: =StrokeData!A1346 -> 1343 | H55: =MassDataLink!A2472 -> 2469 | I55: =LeadData!A178 -> 175 | J55: =StrokeData!A1348 -> 1345 | K55: =MassDataLink!A2474 -> 2471 | L55: =LeadData!A179 -> 176 | M55: =StrokeData!A1350 -> 1347 | N55: =MassDataLink!A2476 -> 2473 | O55: -1 | P55: -1 | Q55: -1 | R55: -1 | S55: -1 | T55: -1 | U55: -1 | V55: -1 | W55: -1 | X55: -1 | Y55: -1 | Z55: -1 | AA55: -1 | AB55: -1 | AC55: -1
A56: 53 | B56: RCS2CR-SA6D-30 | C56: 50 | D56: 600 | E56: 0 | F56: =LeadData!A180 -> 177 | G56: =StrokeData!A1352 -> 1349 | H56: =MassDataLink!A2478 -> 2475 | I56: =LeadData!A181 -> 178 | J56: =StrokeData!A1356 -> 1353 | K56: =MassDataLink!A2480 -> 2477 | L56: =LeadData!A182 -> 179 | M56: =StrokeData!A1360 -> 1357 | N56: =MassDataLink!A2482 -> 2479 | O56: -1 | P56: -1 | Q56: -1 | R56: -1 | S56: -1 | T56: -1 | U56: -1 | V56: -1 | W56: -1 | X56: -1 | Y56: -1 | Z56: -1 | AA56: -1 | AB56: -1 | AC56: -1
A57: 54 | B57: RCS2-SA4R-20 | C57: 50 | D57: 400 | E57: 0 | F57: =LeadData!A183 -> 180 | G57: =StrokeData!A1366 -> 1363 | H57: =MassDataLink!A2484 -> 2481 | I57: =LeadData!A184 -> 181 | J57: =StrokeData!A1367 -> 1364 | K57: =MassDataLink!A2490 -> 2487 | L57: =LeadData!A185 -> 182 | M57: =StrokeData!A1368 -> 1365 | N57: =MassDataLink!A2500 -> 2497 | O57: -1 | P57: -1 | Q57: -1 | R57: -1 | S57: -1 | T57: -1 | U57: -1 | V57: -1 | W57: -1 | X57: -1 | Y57: -1 | Z57: -1 | AA57: -1 | AB57: -1 | AC57: -1
A58: 55 | B58: RCS2-SA5R-20 | C58: 50 | D58: 500 | E58: 0 | F58: =LeadData!A186 -> 183 | G58: =StrokeData!A1369 -> 1366 | H58: =MassDataLink!A2514 -> 2511 | I58: =LeadData!A187 -> 184 | J58: =StrokeData!A1371 -> 1368 | K58: =MassDataLink!A2519 -> 2516 | L58: =LeadData!A188 -> 185 | M58: =StrokeData!A1373 -> 1370 | N58: =MassDataLink!A2529 -> 2526 | O58: -1 | P58: -1 | Q58: -1 | R58: -1 | S58: -1 | T58: -1 | U58: -1 | V58: -1 | W58: -1 | X58: -1 | Y58: -1 | Z58: -1 | AA58: -1 | AB58: -1 | AC58: -1
A59: 56 | B59: RCS2-SA6R-30 | C59: 50 | D59: 600 | E59: 0 | F59: =LeadData!A189 -> 186 | G59: =StrokeData!A1375 -> 1372 | H59: =MassDataLink!A2543 -> 2540 | I59: =LeadData!A190 -> 187 | J59: =StrokeData!A1379 -> 1376 | K59: =MassDataLink!A2548 -> 2545 | L59: =LeadData!A191 -> 188 | M59: =StrokeData!A1383 -> 1380 | N59: =MassDataLink!A2558 -> 2555 | O59: -1 | P59: -1 | Q59: -1 | R59: -1 | S59: -1 | T59: -1 | U59: -1 | V59: -1 | W59: -1 | X59: -1 | Y59: -1 | Z59: -1 | AA59: -1 | AB59: -1 | AC59: -1
A60: 57 | B60: RCS2-SA7R-60 | C60: 50 | D60: 800 | E60: 0 | F60: =LeadData!A192 -> 189 | G60: =StrokeData!A1389 -> 1386 | H60: =MassDataLink!A2572 -> 2569 | I60: =LeadData!A193 -> 190 | J60: =StrokeData!A1392 -> 1389 | K60: =MassDataLink!A2578 -> 2575 | L60: =LeadData!A194 -> 191 | M60: =StrokeData!A1395 -> 1392 | N60: =MassDataLink!A2588 -> 2585 | O60: -1 | P60: -1 | Q60: -1 | R60: -1 | S60: -1 | T60: -1 | U60: -1 | V60: -1 | W60: -1 | X60: -1 | Y60: -1 | Z60: -1 | AA60: -1 | AB60: -1 | AC60: -1
A61: 58 | B61: RCS2-SS7R-60 | C61: 50 | D61: 600 | E61: 0 | F61: =LeadData!A195 -> 192 | G61: =StrokeData!A1398 -> 1395 | H61: =MassDataLink!A2602 -> 2599 | I61: =LeadData!A196 -> 193 | J61: =StrokeData!A1400 -> 1397 | K61: =MassDataLink!A2610 -> 2607 | L61: -1 | M61: -1 | N61: -1 | O61: -1 | P61: -1 | Q61: -1 | R61: -1 | S61: -1 | T61: -1 | U61: -1 | V61: -1 | W61: -1 | X61: -1 | Y61: -1 | Z61: -1 | AA61: -1 | AB61: -1 | AC61: -1
A62: 59 | B62: RCS2-RA4C-20 | C62: 50 | D62: 300 | E62: 0 | F62: =LeadData!A197 -> 194 | G62: =StrokeData!A1402 -> 1399 | H62: =MassDataLink!A2624 -> 2621 | I62: =LeadData!A198 -> 195 | J62: =StrokeData!A1403 -> 1400 | K62: =MassDataLink!A2629 -> 2626 | L62: =LeadData!A199 -> 196 | M62: =StrokeData!A1404 -> 1401 | N62: =MassDataLink!A2644 -> 2641 | O62: -1 | P62: -1 | Q62: -1 | R62: -1 | S62: -1 | T62: -1 | U62: -1 | V62: -1 | W62: -1 | X62: -1 | Y62: -1 | Z62: -1 | AA62: -1 | AB62: -1 | AC62: -1
A63: 60 | B63: RCS2-RA4C-30 | C63: 50 | D63: 300 | E63: 0 | F63: =LeadData!A200 -> 197 | G63: =StrokeData!A1405 -> 1402 | H63: =MassDataLink!A2660 -> 2657 | I63: =LeadData!A201 -> 198 | J63: =StrokeData!A1406 -> 1403 | K63: =MassDataLink!A2665 -> 2662 | L63: =LeadData!A202 -> 199 | M63: =StrokeData!A1407 -> 1404 | N63: =MassDataLink!A2683 -> 2680 | O63: -1 | P63: -1 | Q63: -1 | R63: -1 | S63: -1 | T63: -1 | U63: -1 | V63: -1 | W63: -1 | X63: -1 | Y63: -1 | Z63: -1 | AA63: -1 | AB63: -1 | AC63: -1
A64: 61 | B64: RCS2-RA5C-60 | C64: 50 | D64: 300 | E64: 0 | F64: =LeadData!A203 -> 200 | G64: =StrokeData!A1408 -> 1405 | H64: =MassDataLink!A2706 -> 2703 | I64: =LeadData!A204 -> 201 | J64: =StrokeData!A1410 -> 1407 | K64: =MassDataLink!A2715 -> 2712 | L64: =LeadData!A205 -> 202 | M64: =StrokeData!A1412 -> 1409 | N64: =MassDataLink!A2735 -> 2732 | O64: -1 | P64: -1 | Q64: -1 | R64: -1 | S64: -1 | T64: -1 | U64: -1 | V64: -1 | W64: -1 | X64: -1 | Y64: -1 | Z64: -1 | AA64: -1 | AB64: -1 | AC64: -1
A65: 62 | B65: RCS2-RA5C-100 | C65: 50 | D65: 300 | E65: 0 | F65: =LeadData!A206 -> 203 | G65: =StrokeData!A1414 -> 1411 | H65: =MassDataLink!A2758 -> 2755 | I65: =LeadData!A207 -> 204 | J65: =StrokeData!A1416 -> 1413 | K65: =MassDataLink!A2767 -> 2764 | L65: =LeadData!A208 -> 205 | M65: =StrokeData!A1420 -> 1417 | N65: =MassDataLink!A2787 -> 2784 | O65: -1 | P65: -1 | Q65: -1 | R65: -1 | S65: -1 | T65: -1 | U65: -1 | V65: -1 | W65: -1 | X65: -1 | Y65: -1 | Z65: -1 | AA65: -1 | AB65: -1 | AC65: -1
A66: =A65+1 -> 63 | B66: ISB-SXM-100 | C66: 100 | D66: 1100 | E66: 0 | F66: =LeadData!A209 -> 206 | G66: =StrokeData!A1422 -> 1419 | H66: =MassDataLink!A2812 -> 2809 | I66: -1 | J66: -1 | K66: -1 | L66: -1 | M66: -1 | N66: -1 | O66: -1 | P66: -1 | Q66: -1 | R66: -1 | S66: -1 | T66: -1 | U66: -1 | V66: -1 | W66: -1 | X66: -1 | Y66: -1 | Z66: -1 | AA66: -1 | AB66: -1 | AC66: -1
A67: 64 | B67: ISB-MXM-400 | C67: 100 | D67: 1300 | E67: 0 | F67: =LeadData!A210 -> 207 | G67: =StrokeData!A1434 -> 1431 | H67: =MassDataLink!A2840 -> 2837 | I67: -1 | J67: -1 | K67: -1 | L67: -1 | M67: -1 | N67: -1 | O67: -1 | P67: -1 | Q67: -1 | R67: -1 | S67: -1 | T67: -1 | U67: -1 | V67: -1 | W67: -1 | X67: -1 | Y67: -1 | Z67: -1 | AA67: -1 | AB67: -1 | AC67: -1
A68: 65 | B68: ISB-SXL-100 | C68: 130 | D68: 1080 | E68: 0 | F68: =LeadData!A211 -> 208 | G68: =StrokeData!A1447 -> 1444 | H68: =MassDataLink!A2868 -> 2865 | I68: -1 | J68: -1 | K68: -1 | L68: -1 | M68: -1 | N68: -1 | O68: -1 | P68: -1 | Q68: -1 | R68: -1 | S68: -1 | T68: -1 | U68: -1 | V68: -1 | W68: -1 | X68: -1 | Y68: -1 | Z68: -1 | AA68: -1 | AB68: -1 | AC68: -1
A69: 66 | B69: ISB-MXL-400 | C69: 120 | D69: 1270 | E69: 0 | F69: =LeadData!A212 -> 209 | G69: =StrokeData!A1459 -> 1456 | H69: =MassDataLink!A2896 -> 2893 | I69: -1 | J69: -1 | K69: -1 | L69: -1 | M69: -1 | N69: -1 | O69: -1 | P69: -1 | Q69: -1 | R69: -1 | S69: -1 | T69: -1 | U69: -1 | V69: -1 | W69: -1 | X69: -1 | Y69: -1 | Z69: -1 | AA69: -1 | AB69: -1 | AC69: -1
A70: 67 | B70: ISDB-S-100 | C70: 100 | D70: 800 | E70: 0 | F70: =LeadData!A213 -> 210 | G70: =StrokeData!A1472 -> 1469 | H70: =MassDataLink!A2924 -> 2921 | I70: -1 | J70: -1 | K70: -1 | L70: -1 | M70: -1 | N70: -1 | O70: -1 | P70: -1 | Q70: -1 | R70: -1 | S70: -1 | T70: -1 | U70: -1 | V70: -1 | W70: -1 | X70: -1 | Y70: -1 | Z70: -1 | AA70: -1 | AB70: -1 | AC70: -1
A71: 68 | B71: ISDB-M-400 | C71: 100 | D71: 1100 | E71: 0 | F71: =LeadData!A214 -> 211 | G71: =StrokeData!A1478 -> 1475 | H71: =MassDataLink!A2952 -> 2949 | I71: -1 | J71: -1 | K71: -1 | L71: -1 | M71: -1 | N71: -1 | O71: -1 | P71: -1 | Q71: -1 | R71: -1 | S71: -1 | T71: -1 | U71: -1 | V71: -1 | W71: -1 | X71: -1 | Y71: -1 | Z71: -1 | AA71: -1 | AB71: -1 | AC71: -1
A72: 69 | B72: RCS4-SA4C-60 | C72: 50 | D72: 500 | E72: 0 | F72: 212 | G72: 1484 | H72: 2977 | I72: 213 | J72: 1486 | K72: 2985 | L72: 214 | M72: 1488 | N72: 3009 | O72: 215 | P72: 1490 | Q72: 3030 | R72: -1 | S72: -1 | T72: -1 | U72: -1 | V72: -1 | W72: -1 | X72: -1 | Y72: -1 | Z72: -1 | AA72: -1 | AB72: -1 | AC72: -1 | AD72: ↓Ver.3.5 追加
A73: 70 | B73: RCS4-SA4R-60 | C73: 50 | D73: 500 | E73: 0 | F73: 216 | G73: 1492 | H73: 3048 | I73: 217 | J73: 1494 | K73: 3056 | L73: 218 | M73: 1496 | N73: 3081 | O73: 219 | P73: 1498 | Q73: 3102 | R73: -1 | S73: -1 | T73: -1 | U73: -1 | V73: -1 | W73: -1 | X73: -1 | Y73: -1 | Z73: -1 | AA73: -1 | AB73: -1 | AC73: -1
A74: 71 | B74: RCS4-SA6C-100 | C74: 50 | D74: 800 | E74: 0 | F74: 220 | G74: 1500 | H74: 3120 | I74: 221 | J74: 1507 | K74: 3132 | L74: 222 | M74: 1514 | N74: 3155 | O74: 223 | P74: 1521 | Q74: 3177 | R74: 224 | S74: 1528 | T74: 3193 | U74: -1 | V74: -1 | W74: -1 | X74: -1 | Y74: -1 | Z74: -1 | AA74: -1 | AB74: -1 | AC74: -1
A75: 72 | B75: RCS4-SA6R-100 | C75: 50 | D75: 800 | E75: 0 | F75: 225 | G75: 1535 | H75: 3206 | I75: 226 | J75: 1542 | K75: 3218 | L75: 227 | M75: 1549 | N75: 3241 | O75: 228 | P75: 1556 | Q75: 3262 | R75: 229 | S75: 1563 | T75: 3278 | U75: -1 | V75: -1 | W75: -1 | X75: -1 | Y75: -1 | Z75: -1 | AA75: -1 | AB75: -1 | AC75: -1
A76: 73 | B76: RCS4-SA7C-200 | C76: 50 | D76: 800 | E76: 0 | F76: 230 | G76: 1570 | H76: 3291 | I76: 231 | J76: 1577 | K76: 3301 | L76: 232 | M76: 1584 | N76: 3322 | O76: 233 | P76: 1591 | Q76: 3339 | R76: 234 | S76: 1598 | T76: 3352 | U76: -1 | V76: -1 | W76: -1 | X76: -1 | Y76: -1 | Z76: -1 | AA76: -1 | AB76: -1 | AC76: -1
A77: 74 | B77: RCS4-SA7R-200 | C77: 50 | D77: 800 | E77: 0 | F77: 235 | G77: 1604 | H77: 3364 | I77: 236 | J77: 1611 | K77: 3374 | L77: 237 | M77: 1618 | N77: 3395 | O77: 238 | P77: 1625 | Q77: 3412 | R77: 239 | S77: 1632 | T77: 3424 | U77: -1 | V77: -1 | W77: -1 | X77: -1 | Y77: -1 | Z77: -1 | AA77: -1 | AB77: -1 | AC77: -1
A78: 75 | B78: RCS4-SA8C-400 | C78: 50 | D78: 1100 | E78: 0 | F78: 240 | G78: 1638 | H78: 3436 | I78: 241 | J78: 1649 | K78: 3446 | L78: 242 | M78: 1660 | N78: 3471 | O78: 243 | P78: 1671 | Q78: 3495 | R78: 244 | S78: 1682 | T78: 3517 | U78: -1 | V78: -1 | W78: -1 | X78: -1 | Y78: -1 | Z78: -1 | AA78: -1 | AB78: -1 | AC78: -1
A79: 76 | B79: RCS4-SA8R-400 | C79: 50 | D79: 1100 | E79: 0 | F79: 245 | G79: 1692 | H79: 3528 | I79: 246 | J79: 1703 | K79: 3538 | L79: 247 | M79: 1714 | N79: 3563 | O79: 248 | P79: 1725 | Q79: 3585 | R79: 249 | S79: 1736 | T79: 3608 | U79: -1 | V79: -1 | W79: -1 | X79: -1 | Y79: -1 | Z79: -1 | AA79: -1 | AB79: -1 | AC79: -1
A80: 77 | B80: RCS4-WSA10C-60 | C80: 50 | D80: 500 | E80: 0 | F80: 250 | G80: 1746 | H80: 3619 | I80: 251 | J80: 1750 | K80: 3630 | L80: 252 | M80: 1754 | N80: 3644 | O80: 253 | P80: 1758 | Q80: 3657 | R80: -1 | S80: -1 | T80: -1 | U80: -1 | V80: -1 | W80: -1 | X80: -1 | Y80: -1 | Z80: -1 | AA80: -1 | AB80: -1 | AC80: -1
A81: 78 | B81: RCS4-WSA10R-60 | C81: 50 | D81: 500 | E81: 0 | F81: 254 | G81: 1762 | H81: 3666 | I81: 255 | J81: 1766 | K81: 3677 | L81: 256 | M81: 1770 | N81: 3691 | O81: 257 | P81: 1774 | Q81: 3703 | R81: -1 | S81: -1 | T81: -1 | U81: -1 | V81: -1 | W81: -1 | X81: -1 | Y81: -1 | Z81: -1 | AA81: -1 | AB81: -1 | AC81: -1
A82: 79 | B82: RCS4-WSA12C-100 | C82: 50 | D82: 800 | E82: 0 | F82: 258 | G82: 1778 | H82: 3712 | I82: 259 | J82: 1786 | K82: 3720 | L82: 260 | M82: 1794 | N82: 3738 | O82: 261 | P82: 1802 | Q82: 3752 | R82: 262 | S82: 1810 | T82: 3763 | U82: -1 | V82: -1 | W82: -1 | X82: -1 | Y82: -1 | Z82: -1 | AA82: -1 | AB82: -1 | AC82: -1
A83: 80 | B83: RCS4-WSA12R-100 | C83: 50 | D83: 800 | E83: 0 | F83: 263 | G83: 1818 | H83: 3769 | I83: 264 | J83: 1826 | K83: 3777 | L83: 265 | M83: 1834 | N83: 3795 | O83: 266 | P83: 1842 | Q83: 3809 | R83: 267 | S83: 1850 | T83: 3820 | U83: -1 | V83: -1 | W83: -1 | X83: -1 | Y83: -1 | Z83: -1 | AA83: -1 | AB83: -1 | AC83: -1
A84: 81 | B84: RCS4-WSA14C-200 | C84: 50 | D84: 800 | E84: 0 | F84: 268 | G84: 1858 | H84: 3826 | I84: 269 | J84: 1866 | K84: 3834 | L84: 270 | M84: 1874 | N84: 3848 | O84: 271 | P84: 1882 | Q84: 3861 | R84: 272 | S84: 1890 | T84: 3870 | U84: -1 | V84: -1 | W84: -1 | X84: -1 | Y84: -1 | Z84: -1 | AA84: -1 | AB84: -1 | AC84: -1
A85: 82 | B85: RCS4-WSA14R-200 | C85: 50 | D85: 800 | E85: 0 | F85: 273 | G85: 1898 | H85: 3878 | I85: 274 | J85: 1906 | K85: 3886 | L85: 275 | M85: 1914 | N85: 3900 | O85: 276 | P85: 1922 | Q85: 3912 | R85: 277 | S85: 1930 | T85: 3920 | U85: -1 | V85: -1 | W85: -1 | X85: -1 | Y85: -1 | Z85: -1 | AA85: -1 | AB85: -1 | AC85: -1
A86: 83 | B86: RCS4-WSA16C-400 | C86: 50 | D86: 1100 | E86: 0 | F86: 278 | G86: 1938 | H86: 3928 | I86: 279 | J86: 1950 | K86: 3937 | L86: 280 | M86: 1962 | N86: 3955 | O86: 281 | P86: 1974 | Q86: 3975 | R86: -1 | S86: -1 | T86: -1 | U86: -1 | V86: -1 | W86: -1 | X86: -1 | Y86: -1 | Z86: -1 | AA86: -1 | AB86: -1 | AC86: -1
A87: 84 | B87: RCS4-WSA16R-400 | C87: 50 | D87: 1100 | E87: 0 | F87: 282 | G87: 1986 | H87: 3992 | I87: 283 | J87: 1998 | K87: 4001 | L87: 284 | M87: 2010 | N87: 4019 | O87: 285 | P87: 2022 | Q87: 4037 | R87: -1 | S87: -1 | T87: -1 | U87: -1 | V87: -1 | W87: -1 | X87: -1 | Y87: -1 | Z87: -1 | AA87: -1 | AB87: -1 | AC87: -1 | AD87: ↑Ver.3.5 追加

Sheet LeadData (hidden)
A1: 9.80665 | B1: 1 | C1: 3 | D1: 4 | E1: 5 | F1: 6 | G1: 10 | H1: 11 | I1: 14
A2: データ№ | B2: ﾘｰﾄﾞ長 | C2: 水平定格加速度 | D2: 垂直定格加速度 | E2: 水平最大加速度 | F2: 垂直最大加速度 | G2: ｷﾞｱ比分子 | H2: ｷﾞｱ比分母 | I2: ｽﾄﾛｰｸ刻み | J2: 備考
A3: =ModelData!A3 -> 0 | B3: 0.001㎜ | C3: 0.001mm/s^2 | D3: 0.001mm/s^2 | E3: 0.001mm/s^2 | F3: 0.001mm/s^2 | I3: mm
A4: =A3+1 -> 1 | B4: 4000 | C4: =0.2*$A$1*1000*1000 -> 1961330 | D4: =0.2*$A$1*1000*1000 -> 1961330 | E4: =0.5*$A$1*1000*1000 -> 4903325 | F4: =0.4*$A$1*1000*1000 -> 3922660 | G4: 1 | H4: 1 | I4: 50 | J4: ISB-SXM-60
A5: 2 | B5: 8000 | C5: =0.4*$A$1*1000*1000 -> 3922660 | D5: =0.4*$A$1*1000*1000 -> 3922660 | E5: =1*$A$1*1000*1000 -> 9806650 | F5: =0.8*$A$1*1000*1000 -> 7845320 | G5: 1 | H5: 1 | I5: 50
A6: 3 | B6: 16000 | C6: =0.4*$A$1*1000*1000 -> 3922660 | D6: =0.4*$A$1*1000*1000 -> 3922660 | E6: =2*$A$1*1000*1000 -> 19613300 | F6: =1.6*$A$1*1000*1000 -> 15690640 | G6: 1 | H6: 1 | I6: 50
A7: 4 | B7: 5000 | C7: =0.2*$A$1*1000*1000 -> 1961330 | D7: =0.2*$A$1*1000*1000 -> 1961330 | E7: =0.5*$A$1*1000*1000 -> 4903325 | F7: =0.4*$A$1*1000*1000 -> 3922660 | G7: 1 | H7: 1 | I7: 50 | J7: ISB-MXM-100
A8: 5 | B8: 10000 | C8: =0.4*$A$1*1000*1000 -> 3922660 | D8: 3922660 | E8: =0.7*$A$1*1000*1000 -> 6864655 | F8: =0.6*$A$1*1000*1000 -> 5883990 | G8: 1 | H8: 1 | I8: 50
A9: 6 | B9: 20000 | C9: 3922660 | D9: -1 | E9: =2*$A$1*1000*1000 -> 19613300 | F9: -1 | G9: 1 | H9: 1 | I9: 50
A10: 7 | B10: 30000 | C10: 3922660 | D10: -1 | E10: =2*$A$1*1000*1000 -> 19613300 | F10: -1 | G10: 1 | H10: 1 | I10: 50
A11: 8 | B11: 5000 | C11: =0.2*$A$1*1000*1000 -> 1961330 | D11: =0.2*$A$1*1000*1000 -> 1961330 | E11: =0.5*$A$1*1000*1000 -> 4903325 | F11: =0.4*$A$1*1000*1000 -> 3922660 | G11: 1 | H11: 1 | I11: 50 | J11: ISB-MXM-200
A12: 9 | B12: 10000 | C12: =0.4*$A$1*1000*1000 -> 3922660 | D12: =0.4*$A$1*1000*1000 -> 3922660 | E12: =0.7*$A$1*1000*1000 -> 6864655 | F12: =0.6*$A$1*1000*1000 -> 5883990 | G12: 1 | H12: 1 | I12: 50
A13: 10 | B13: 20000 | C13: =0.4*$A$1*1000*1000 -> 3922660 | D13: -1 | E13: =2*$A$1*1000*1000 -> 19613300 | F13: -1 | G13: 1 | H13: 1 | I13: 50
A14: 11 | B14: 30000 | C14: 3922660 | D14: -1 | E14: =2*$A$1*1000*1000 -> 19613300 | F14: -1 | G14: 1 | H14: 1 | I14: 50
A15: 12 | B15: 10000 | C15: 3922660 | D15: 3922660 | E15: =0.7*$A$1*1000*1000 -> 6864655 | F15: =0.6*$A$1*1000*1000 -> 5883990 | G15: 1 | H15: 1 | I15: 50 | J15: ISB-LXM-200
A16: 13 | B16: 20000 | C16: 3922660 | D16: 3922660 | E16: =1.8*$A$1*1000*1000 -> 17651970 | F16: =1.5*$A$1*1000*1000 -> 14709975 | G16: 1 | H16: 1 | I16: 50
A17: 14 | B17: 40000 | C17: 3922660 | D17: -1 | E17: =2*$A$1*1000*1000 -> 19613300 | F17: -1 | G17: 1 | H17: 1 | I17: 50
A18: 15 | B18: 10000 | C18: 3922660 | D18: 3922660 | E18: =0.7*$A$1*1000*1000 -> 6864655 | F18: =0.6*$A$1*1000*1000 -> 5883990 | G18: 1 | H18: 1 | I18: 50 | J18: ISB-LXM-400
A19: 16 | B19: 20000 | C19: 3922660 | D19: 3922660 | E19: =2*$A$1*1000*1000 -> 19613300 | F19: =1.5*$A$1*1000*1000 -> 14709975 | G19: 1 | H19: 1 | I19: 50
A20: 17 | B20: 40000 | C20: 3922660 | D20: -1 | E20: =2*$A$1*1000*1000 -> 19613300 | F20: -1 | G20: 1 | H20: 1 | I20: 50
A21: 18 | B21: 4000 | C21: =0.2*$A$1*1000*1000 -> 1961330 | D21: =0.2*$A$1*1000*1000 -> 1961330 | E21: =0.5*$A$1*1000*1000 -> 4903325 | F21: =0.4*$A$1*1000*1000 -> 3922660 | G21: 1 | H21: 1 | I21: 50 | J21: ISB-SXL-60
A22: 19 | B22: 8000 | C22: =0.4*$A$1*1000*1000 -> 3922660 | D22: =0.4*$A$1*1000*1000 -> 3922660 | E22: =1*$A$1*1000*1000 -> 9806650 | F22: =0.8*$A$1*1000*1000 -> 7845320 | G22: 1 | H22: 1 | I22: 50
A23: 20 | B23: 16000 | C23: =0.4*$A$1*1000*1000 -> 3922660 | D23: =0.4*$A$1*1000*1000 -> 3922660 | E23: =2*$A$1*1000*1000 -> 19613300 | F23: =1.6*$A$1*1000*1000 -> 15690640 | G23: 1 | H23: 1 | I23: 50
A24: 21 | B24: 5000 | C24: =0.2*$A$1*1000*1000 -> 1961330 | D24: =0.2*$A$1*1000*1000 -> 1961330 | E24: =0.5*$A$1*1000*1000 -> 4903325 | F24: =0.4*$A$1*1000*1000 -> 3922660 | G24: 1 | H24: 1 | I24: 50 | J24: ISB-MXL-100
A25: 22 | B25: 10000 | C25: =0.4*$A$1*1000*1000 -> 3922660 | D25: 3922660 | E25: =0.7*$A$1*1000*1000 -> 6864655 | F25: =0.6*$A$1*1000*1000 -> 5883990 | G25: 1 | H25: 1 | I25: 50
A26: 23 | B26: 20000 | C26: 3922660 | D26: -1 | E26: =2*$A$1*1000*1000 -> 19613300 | F26: -1 | G26: 1 | H26: 1 | I26: 50
A27: 24 | B27: 30000 | C27: 3922660 | D27: -1 | E27: =2*$A$1*1000*1000 -> 19613300 | F27: -1 | G27: 1 | H27: 1 | I27: 50
A28: 25 | B28: 5000 | C28: =0.2*$A$1*1000*1000 -> 1961330 | D28: =0.2*$A$1*1000*1000 -> 1961330 | E28: =0.5*$A$1*1000*1000 -> 4903325 | F28: =0.4*$A$1*1000*1000 -> 3922660 | G28: 1 | H28: 1 | I28: 50 | J28: ISB-MXL-200
A29: 26 | B29: 10000 | C29: =0.4*$A$1*1000*1000 -> 3922660 | D29: =0.4*$A$1*1000*1000 -> 3922660 | E29: =0.7*$A$1*1000*1000 -> 6864655 | F29: =0.6*$A$1*1000*1000 -> 5883990 | G29: 1 | H29: 1 | I29: 50
A30: 27 | B30: 20000 | C30: =0.4*$A$1*1000*1000 -> 3922660 | D30: -1 | E30: =2*$A$1*1000*1000 -> 19613300 | F30: -1 | G30: 1 | H30: 1 | I30: 50
A31: 28 | B31: 30000 | C31: 3922660 | D31: -1 | E31: =2*$A$1*1000*1000 -> 19613300 | F31: -1 | G31: 1 | H31: 1 | I31: 50
A32: 29 | B32: 10000 | C32: 3922660 | D32: 3922660 | E32: =0.7*$A$1*1000*1000 -> 6864655 | F32: =0.6*$A$1*1000*1000 -> 5883990 | G32: 1 | H32: 1 | I32: 50 | J32: ISB-LXL-200
A33: 30 | B33: 20000 | C33: 3922660 | D33: 3922660 | E33: =1.8*$A$1*1000*1000 -> 17651970 | F33: =1.5*$A$1*1000*1000 -> 14709975 | G33: 1 | H33: 1 | I33: 50
A34: 31 | B34: 40000 | C34: 3922660 | D34: -1 | E34: =2*$A$1*1000*1000 -> 19613300 | F34: -1 | G34: 1 | H34: 1 | I34: 50
A35: 32 | B35: 10000 | C35: 3922660 | D35: 3922660 | E35: =0.7*$A$1*1000*1000 -> 6864655 | F35: =0.6*$A$1*1000*1000 -> 5883990 | G35: 1 | H35: 1 | I35: 50 | J35: ISB-LXL-400
A36: 33 | B36: 20000 | C36: 3922660 | D36: 3922660 | E36: =2*$A$1*1000*1000 -> 19613300 | F36: =1.5*$A$1*1000*1000 -> 14709975 | G36: 1 | H36: 1 | I36: 50
A37: 34 | B37: 40000 | C37: 3922660 | D37: -1 | E37: =2*$A$1*1000*1000 -> 19613300 | F37: -1 | G37: 1 | H37: 1 | I37: 50
A38: 35 | B38: 4000 | C38: =0.2*$A$1*1000*1000 -> 1961330 | D38: =0.2*$A$1*1000*1000 -> 1961330 | E38: =0.5*$A$1*1000*1000 -> 4903325 | F38: =0.4*$A$1*1000*1000 -> 3922660 | G38: 1 | H38: 1 | I38: 50 | J38: ISDB-S-60
A39: 36 | B39: 8000 | C39: =0.4*$A$1*1000*1000 -> 3922660 | D39: =0.4*$A$1*1000*1000 -> 3922660 | E39: =1*$A$1*1000*1000 -> 9806650 | F39: =0.8*$A$1*1000*1000 -> 7845320 | G39: 1 | H39: 1 | I39: 50
A40: 37 | B40: 16000 | C40: =0.4*$A$1*1000*1000 -> 3922660 | D40: =0.4*$A$1*1000*1000 -> 3922660 | E40: =1.8*$A$1*1000*1000 -> 17651970 | F40: =1.6*$A$1*1000*1000 -> 15690640 | G40: 1 | H40: 1 | I40: 50
A41: 38 | B41: 5000 | C41: =0.2*$A$1*1000*1000 -> 1961330 | D41: =0.2*$A$1*1000*1000 -> 1961330 | E41: =0.5*$A$1*1000*1000 -> 4903325 | F41: =0.4*$A$1*1000*1000 -> 3922660 | G41: 1 | H41: 1 | I41: 50 | J41: ISDB-M-100
A42: 39 | B42: 10000 | C42: =0.4*$A$1*1000*1000 -> 3922660 | D42: 3922660 | E42: =0.7*$A$1*1000*1000 -> 6864655 | F42: =0.6*$A$1*1000*1000 -> 5883990 | G42: 1 | H42: 1 | I42: 50
A43: 40 | B43: 20000 | C43: 3922660 | D43: -1 | E43: =1.8*$A$1*1000*1000 -> 17651970 | F43: -1 | G43: 1 | H43: 1 | I43: 50
A44: 41 | B44: 30000 | C44: 3922660 | D44: -1 | E44: =1.8*$A$1*1000*1000 -> 17651970 | F44: -1 | G44: 1 | H44: 1 | I44: 50
A45: 42 | B45: 5000 | C45: =0.2*$A$1*1000*1000 -> 1961330 | D45: =0.2*$A$1*1000*1000 -> 1961330 | E45: =0.5*$A$1*1000*1000 -> 4903325 | F45: =0.4*$A$1*1000*1000 -> 3922660 | G45: 1 | H45: 1 | I45: 50 | J45: ISDB-M-200
A46: 43 | B46: 10000 | C46: =0.4*$A$1*1000*1000 -> 3922660 | D46: =0.4*$A$1*1000*1000 -> 3922660 | E46: =0.7*$A$1*1000*1000 -> 6864655 | F46: =0.6*$A$1*1000*1000 -> 5883990 | G46: 1 | H46: 1 | I46: 50
A47: 44 | B47: 20000 | C47: =0.4*$A$1*1000*1000 -> 3922660 | D47: -1 | E47: =1.8*$A$1*1000*1000 -> 17651970 | F47: -1 | G47: 1 | H47: 1 | I47: 50
A48: 45 | B48: 30000 | C48: 3922660 | D48: -1 | E48: =1.8*$A$1*1000*1000 -> 17651970 | F48: -1 | G48: 1 | H48: 1 | I48: 50
A49: 46 | B49: 10000 | C49: 3922660 | D49: 3922660 | E49: =0.7*$A$1*1000*1000 -> 6864655 | F49: =0.6*$A$1*1000*1000 -> 5883990 | G49: 1 | H49: 1 | I49: 50 | J49: ISDB-L-200
A50: 47 | B50: 20000 | C50: 3922660 | D50: 3922660 | E50: =1.8*$A$1*1000*1000 -> 17651970 | F50: =1.5*$A$1*1000*1000 -> 14709975 | G50: 1 | H50: 1 | I50: 50
A51: 48 | B51: 40000 | C51: 3922660 | D51: -1 | E51: =1.8*$A$1*1000*1000 -> 17651970 | F51: -1 | G51: 1 | H51: 1 | I51: 50
A52: 49 | B52: 10000 | C52: 3922660 | D52: 3922660 | E52: =0.7*$A$1*1000*1000 -> 6864655 | F52: =0.6*$A$1*1000*1000 -> 5883990 | G52: 1 | H52: 1 | I52: 50 | J52: ISDB-L-400
A53: 50 | B53: 20000 | C53: 3922660 | D53: 3922660 | E53: =1.8*$A$1*1000*1000 -> 17651970 | F53: =1.5*$A$1*1000*1000 -> 14709975 | G53: 1 | H53: 1 | I53: 50
A54: 51 | B54: 40000 | C54: 3922660 | D54: -1 | E54: =1.8*$A$1*1000*1000 -> 17651970 | F54: -1 | G54: 1 | H54: 1 | I54: 50
A55: 52 | B55: 4000 | C55: =0.2*$A$1*1000*1000 -> 1961330 | D55: =0.2*$A$1*1000*1000 -> 1961330 | E55: =0.5*$A$1*1000*1000 -> 4903325 | F55: =0.4*$A$1*1000*1000 -> 3922660 | G55: 1 | H55: 1 | I55: 50 | J55: ISDBCR-S-60
A56: 53 | B56: 8000 | C56: =0.4*$A$1*1000*1000 -> 3922660 | D56: =0.4*$A$1*1000*1000 -> 3922660 | E56: =0.7*$A$1*1000*1000 -> 6864655 | F56: =0.6*$A$1*1000*1000 -> 5883990 | G56: 1 | H56: 1 | I56: 50
A57: 54 | B57: 16000 | C57: =0.4*$A$1*1000*1000 -> 3922660 | D57: =0.4*$A$1*1000*1000 -> 3922660 | E57: =1*$A$1*1000*1000 -> 9806650 | F57: =0.8*$A$1*1000*1000 -> 7845320 | G57: 1 | H57: 1 | I57: 50
A58: 55 | B58: 5000 | C58: =0.2*$A$1*1000*1000 -> 1961330 | D58: =0.2*$A$1*1000*1000 -> 1961330 | E58: =0.5*$A$1*1000*1000 -> 4903325 | F58: =0.4*$A$1*1000*1000 -> 3922660 | G58: 1 | H58: 1 | I58: 50 | J58: ISDBCR-M-100
A59: 56 | B59: 10000 | C59: =0.4*$A$1*1000*1000 -> 3922660 | D59: 3922660 | E59: =0.7*$A$1*1000*1000 -> 6864655 | F59: =0.6*$A$1*1000*1000 -> 5883990 | G59: 1 | H59: 1 | I59: 50
A60: 57 | B60: 20000 | C60: 3922660 | D60: -1 | E60: =1*$A$1*1000*1000 -> 9806650 | F60: -1 | G60: 1 | H60: 1 | I60: 50
A61: 58 | B61: 30000 | C61: 3922660 | D61: -1 | E61: =1*$A$1*1000*1000 -> 9806650 | F61: -1 | G61: 1 | H61: 1 | I61: 50
A62: 59 | B62: 5000 | C62: =0.2*$A$1*1000*1000 -> 1961330 | D62: =0.2*$A$1*1000*1000 -> 1961330 | E62: =0.5*$A$1*1000*1000 -> 4903325 | F62: =0.4*$A$1*1000*1000 -> 3922660 | G62: 1 | H62: 1 | I62: 50 | J62: ISDBCR-M-200
A63: 60 | B63: 10000 | C63: =0.4*$A$1*1000*1000 -> 3922660 | D63: =0.4*$A$1*1000*1000 -> 3922660 | E63: =0.7*$A$1*1000*1000 -> 6864655 | F63: =0.6*$A$1*1000*1000 -> 5883990 | G63: 1 | H63: 1 | I63: 50
A64: 61 | B64: 20000 | C64: =0.4*$A$1*1000*1000 -> 3922660 | D64: -1 | E64: =1*$A$1*1000*1000 -> 9806650 | F64: -1 | G64: 1 | H64: 1 | I64: 50
A65: 62 | B65: 30000 | C65: 3922660 | D65: -1 | E65: =1*$A$1*1000*1000 -> 9806650 | F65: -1 | G65: 1 | H65: 1 | I65: 50
A66: 63 | B66: 10000 | C66: 3922660 | D66: 3922660 | E66: =0.7*$A$1*1000*1000 -> 6864655 | F66: =0.6*$A$1*1000*1000 -> 5883990 | G66: 1 | H66: 1 | I66: 50 | J66: ISDBCR-L-200
A67: 64 | B67: 20000 | C67: 3922660 | D67: 3922660 | E67: =1*$A$1*1000*1000 -> 9806650 | F67: =1*$A$1*1000*1000 -> 9806650 | G67: 1 | H67: 1 | I67: 50
A68: =A67+1 -> 65 | B68: 40000 | C68: 3922660 | D68: -1 | E68: =1*$A$1*1000*1000 -> 9806650 | F68: -1 | G68: 1 | H68: 1 | I68: 50
A69: 66 | B69: 10000 | C69: 3922660 | D69: 3922660 | E69: =0.7*$A$1*1000*1000 -> 6864655 | F69: =0.6*$A$1*1000*1000 -> 5883990 | G69: 1 | H69: 1 | I69: 50 | J69: ISDBCR-L-400
A70: 67 | B70: 20000 | C70: 3922660 | D70: 3922660 | E70: =1*$A$1*1000*1000 -> 9806650 | F70: =1*$A$1*1000*1000 -> 9806650 | G70: 1 | H70: 1 | I70: 50
A71: 68 | B71: 40000 | C71: =0.4*$A$1*1000*1000 -> 3922660 | D71: -1 | E71: =1*$A$1*1000*1000 -> 9806650 | F71: -1 | G71: 1 | H71: 1 | I71: 50
A72: 69 | B72: 10000 | C72: 3922660 | D72: -1 | E72: =0.7*$A$1*1000*1000 -> 6864655 | F72: -1 | G72: 1 | H72: 1 | I72: 50 | J72: SSPA-SXM-200
A73: 70 | B73: 20000 | C73: 3922660 | D73: -1 | E73: =2*$A$1*1000*1000 -> 19613300 | F73: -1 | G73: 1 | H73: 1 | I73: 50
A74: 71 | B74: 30000 | C74: 3922660 | D74: -1 | E74: =2*$A$1*1000*1000 -> 19613300 | F74: -1 | G74: 1 | H74: 1 | I74: 50
A75: 72 | B75: 10000 | C75: 3922660 | D75: -1 | E75: =0.7*$A$1*1000*1000 -> 6864655 | F75: -1 | G75: 1 | H75: 1 | I75: 50 | J75: SSPA-MXM-400
A76: 73 | B76: 20000 | C76: 3922660 | D76: -1 | E76: =2*$A$1*1000*1000 -> 19613300 | F76: -1 | G76: 1 | H76: 1 | I76: 50
A77: 74 | B77: 40000 | C77: 3922660 | D77: -1 | E77: =2*$A$1*1000*1000 -> 19613300 | F77: -1 | G77: 1 | H77: 1 | I77: 50
A78: 75 | B78: 25000 | C78: 3922660 | D78: -1 | E78: =2*$A$1*1000*1000 -> 19613300 | F78: -1 | G78: 1 | H78: 1 | I78: 50 | J78: SSPA-LXM-750
A79: 76 | B79: 50000 | C79: 3922660 | D79: -1 | E79: =2*$A$1*1000*1000 -> 19613300 | F79: -1 | G79: 1 | H79: 1 | I79: 50
A80: 77 | B80: 10000 | C80: =0.4*$A$1*1000*1000 -> 3922660 | D80: -1 | E80: =0.7*$A$1*1000*1000 -> 6864655 | F80: -1 | G80: 1 | H80: 1 | I80: 50 | J80: SSPDACR-S-200
A81: 78 | B81: 20000 | C81: 3922660 | D81: -1 | E81: =1*$A$1*1000*1000 -> 9806650 | F81: -1 | G81: 1 | H81: 1 | I81: 50
A82: 79 | B82: 30000 | C82: 3922660 | D82: -1 | E82: =1.2*$A$1*1000*1000 -> 11767980 | F82: -1 | G82: 1 | H82: 1 | I82: 50
A83: 80 | B83: 10000 | C83: 3922660 | D83: -1 | E83: =0.7*$A$1*1000*1000 -> 6864655 | F83: -1 | G83: 1 | H83: 1 | I83: 50 | J83: SSPDACR-M-400
A84: 81 | B84: 20000 | C84: 3922660 | D84: -1 | E84: =1*$A$1*1000*1000 -> 9806650 | F84: -1 | G84: 1 | H84: 1 | I84: 50
A85: 82 | B85: 40000 | C85: 3922660 | D85: -1 | E85: =1.2*$A$1*1000*1000 -> 11767980 | F85: -1 | G85: 1 | H85: 1 | I85: 50
A86: 83 | B86: 25000 | C86: =0.4*$A$1*1000*1000 -> 3922660 | D86: -1 | E86: =1.2*$A$1*1000*1000 -> 11767980 | F86: -1 | G86: 1 | H86: 1 | I86: 50 | J86: SSPDACR-L-750
A87: 84 | B87: 50000 | C87: =0.4*$A$1*1000*1000 -> 3922660 | D87: -1 | E87: =1.2*$A$1*1000*1000 -> 11767980 | F87: -1 | G87: 1 | H87: 1 | I87: 50
A88: 85 | B88: 5000 | C88: =0.2*$A$1*1000*1000 -> 1961330 | D88: =0.2*$A$1*1000*1000 -> 1961330 | E88: =0.3*$A$1*1000*1000 -> 2941995 | F88: =0.3*$A$1*1000*1000 -> 2941995 | G88: 1 | H88: 1 | I88: 50 | J88: RCS3-SA8C-100
A89: 86 | B89: 10000 | C89: =0.3*$A$1*1000*1000 -> 2941995 | D89: 1961330 | E89: =0.7*$A$1*1000*1000 -> 6864655 | F89: =0.7*$A$1*1000*1000 -> 6864655 | G89: 1 | H89: 1 | I89: 50
A90: 87 | B90: 20000 | C90: =0.3*$A$1*1000*1000 -> 2941995 | D90: 1961330 | E90: =1.5*$A$1*1000*1000 -> 14709975 | F90: =1.5*$A$1*1000*1000 -> 14709975 | G90: 1 | H90: 1 | I90: 50
A91: 88 | B91: 30000 | C91: =0.3*$A$1*1000*1000 -> 2941995 | D91: 1961330 | E91: =2*$A$1*1000*1000 -> 19613300 | F91: =1.5*$A$1*1000*1000 -> 14709975 | G91: 1 | H91: 1 | I91: 50
A92: 89 | B92: 10000 | C92: =0.3*$A$1*1000*1000 -> 2941995 | D92: 1961330 | E92: =1*$A$1*1000*1000 -> 9806650 | F92: =1*$A$1*1000*1000 -> 9806650 | G92: 1 | H92: 1 | I92: 50 | J92: RCS3-SA8C-150
A93: 90 | B93: 20000 | C93: 2941995 | D93: 1961330 | E93: =2*$A$1*1000*1000 -> 19613300 | F93: =2*$A$1*1000*1000 -> 19613300 | G93: 1 | H93: 1 | I93: 50
A94: 91 | B94: 30000 | C94: 2941995 | D94: 1961330 | E94: =2*$A$1*1000*1000 -> 19613300 | F94: =2*$A$1*1000*1000 -> 19613300 | G94: 1 | H94: 1 | I94: 50
A95: 92 | B95: 5000 | C95: =0.2*$A$1*1000*1000 -> 1961330 | D95: =0.2*$A$1*1000*1000 -> 1961330 | E95: =0.3*$A$1*1000*1000 -> 2941995 | F95: =0.3*$A$1*1000*1000 -> 2941995 | G95: 1 | H95: 1 | I95: 50 | J95: RCS3-SS8C-100
A96: 93 | B96: 10000 | C96: 2941995 | D96: 1961330 | E96: =0.7*$A$1*1000*1000 -> 6864655 | F96: =0.7*$A$1*1000*1000 -> 6864655 | G96: 1 | H96: 1 | I96: 50
A97: 94 | B97: 20000 | C97: 2941995 | D97: 1961330 | E97: =1.5*$A$1*1000*1000 -> 14709975 | F97: =1.5*$A$1*1000*1000 -> 14709975 | G97: 1 | H97: 1 | I97: 50
A98: 95 | B98: 30000 | C98: 2941995 | D98: 1961330 | E98: =2*$A$1*1000*1000 -> 19613300 | F98: =1.5*$A$1*1000*1000 -> 14709975 | G98: 1 | H98: 1 | I98: 50
A99: 96 | B99: 10000 | C99: 2941995 | D99: 1961330 | E99: =1*$A$1*1000*1000 -> 9806650 | F99: =1*$A$1*1000*1000 -> 9806650 | G99: 1 | H99: 1 | I99: 50 | J99: RCS3-SS8C-150
A100: 97 | B100: 20000 | C100: 2941995 | D100: 1961330 | E100: =2*$A$1*1000*1000 -> 19613300 | F100: =2*$A$1*1000*1000 -> 19613300 | G100: 1 | H100: 1 | I100: 50
A101: 98 | B101: 30000 | C101: 2941995 | D101: 1961330 | E101: =2*$A$1*1000*1000 -> 19613300 | F101: =2*$A$1*1000*1000 -> 19613300 | G101: 1 | H101: 1 | I101: 50
A102: 99 | B102: 5000 | C102: =0.2*$A$1*1000*1000 -> 1961330 | D102: 1961330 | E102: =0.3*$A$1*1000*1000 -> 2941995 | F102: =0.3*$A$1*1000*1000 -> 2941995 | G102: 1 | H102: 1 | I102: 50 | J102: RCS3CR-SA8C-100
A103: 100 | B103: 10000 | C103: 2941995 | D103: 1961330 | E103: =0.5*$A$1*1000*1000 -> 4903325 | F103: =0.5*$A$1*1000*1000 -> 4903325 | G103: 1 | H103: 1 | I103: 50
A104: 101 | B104: 20000 | C104: 2941995 | D104: 1961330 | E104: =0.7*$A$1*1000*1000 -> 6864655 | F104: =0.7*$A$1*1000*1000 -> 6864655 | G104: 1 | H104: 1 | I104: 50
A105: 102 | B105: 30000 | C105: 2941995 | D105: 1961330 | E105: =1*$A$1*1000*1000 -> 9806650 | F105: =0.7*$A$1*1000*1000 -> 6864655 | G105: 1 | H105: 1 | I105: 50
A106: 103 | B106: 10000 | C106: 2941995 | D106: 1961330 | E106: =0.5*$A$1*1000*1000 -> 4903325 | F106: =0.5*$A$1*1000*1000 -> 4903325 | G106: 1 | H106: 1 | I106: 50 | J106: RCS3CR-SA8C-150
A107: 104 | B107: 20000 | C107: 2941995 | D107: 1961330 | E107: =0.7*$A$1*1000*1000 -> 6864655 | F107: =0.7*$A$1*1000*1000 -> 6864655 | G107: 1 | H107: 1 | I107: 50
A108: 105 | B108: 30000 | C108: 2941995 | D108: 1961330 | E108: =1*$A$1*1000*1000 -> 9806650 | F108: =0.7*$A$1*1000*1000 -> 6864655 | G108: 1 | H108: 1 | I108: 50
A109: 106 | B109: 5000 | C109: =0.2*$A$1*1000*1000 -> 1961330 | D109: 1961330 | E109: =0.3*$A$1*1000*1000 -> 2941995 | F109: =0.3*$A$1*1000*1000 -> 2941995 | G109: 1 | H109: 1 | I109: 50 | J109: RCS3CR-SS8C-100
A110: 107 | B110: 10000 | C110: 2941995 | D110: 1961330 | E110: =0.5*$A$1*1000*1000 -> 4903325 | F110: =0.5*$A$1*1000*1000 -> 4903325 | G110: 1 | H110: 1 | I110: 50
A111: 108 | B111: 20000 | C111: 2941995 | D111: 1961330 | E111: =0.7*$A$1*1000*1000 -> 6864655 | F111: =0.7*$A$1*1000*1000 -> 6864655 | G111: 1 | H111: 1 | I111: 50
A112: 109 | B112: 30000 | C112: 2941995 | D112: 1961330 | E112: =1*$A$1*1000*1000 -> 9806650 | F112: =0.7*$A$1*1000*1000 -> 6864655 | G112: 1 | H112: 1 | I112: 50
A113: 110 | B113: 10000 | C113: 2941995 | D113: 1961330 | E113: =0.5*$A$1*1000*1000 -> 4903325 | F113: =0.5*$A$1*1000*1000 -> 4903325 | G113: 1 | H113: 1 | I113: 50 | J113: RCS3CR-SS8C-150
A114: 111 | B114: 20000 | C114: 2941995 | D114: 1961330 | E114: =0.7*$A$1*1000*1000 -> 6864655 | F114: =0.7*$A$1*1000*1000 -> 6864655 | G114: 1 | H114: 1 | I114: 50
A115: 112 | B115: 30000 | C115: 2941995 | D115: 1961330 | E115: =1*$A$1*1000*1000 -> 9806650 | F115: =0.7*$A$1*1000*1000 -> 6864655 | G115: 1 | H115: 1 | I115: 50
A116: 113 | B116: 5000 | C116: =0.2*$A$1*1000*1000 -> 1961330 | D116: =0.2*$A$1*1000*1000 -> 1961330 | E116: =0.3*$A$1*1000*1000 -> 2941995 | F116: =0.3*$A$1*1000*1000 -> 2941995 | G116: 1 | H116: 1 | I116: 50 | J116: RCS3-SA8R-100
A117: 114 | B117: 10000 | C117: 2941995 | D117: =0.2*$A$1*1000*1000 -> 1961330 | E117: =0.7*$A$1*1000*1000 -> 6864655 | F117: =0.7*$A$1*1000*1000 -> 6864655 | G117: 1 | H117: 1 | I117: 50
A118: 115 | B118: 20000 | C118: 2941995 | D118: =0.2*$A$1*1000*1000 -> 1961330 | E118: =1*$A$1*1000*1000 -> 9806650 | F118: =1*$A$1*1000*1000 -> 9806650 | G118: 1 | H118: 1 | I118: 50
A119: 116 | B119: 30000 | C119: 2941995 | D119: =0.2*$A$1*1000*1000 -> 1961330 | E119: =1.2*$A$1*1000*1000 -> 11767980 | F119: =1.2*$A$1*1000*1000 -> 11767980 | G119: 1 | H119: 1 | I119: 50
A120: 117 | B120: 10000 | C120: 2941995 | D120: =0.2*$A$1*1000*1000 -> 1961330 | E120: =0.7*$A$1*1000*1000 -> 6864655 | F120: =0.7*$A$1*1000*1000 -> 6864655 | G120: 1 | H120: 1 | I120: 50 | J120: RCS3-SA8R-150
A121: 118 | B121: 20000 | C121: 2941995 | D121: 1961330 | E121: =1*$A$1*1000*1000 -> 9806650 | F121: =1*$A$1*1000*1000 -> 9806650 | G121: 1 | H121: 1 | I121: 50
A122: 119 | B122: 30000 | C122: 2941995 | D122: 1961330 | E122: =1.2*$A$1*1000*1000 -> 11767980 | F122: =1.2*$A$1*1000*1000 -> 11767980 | G122: 1 | H122: 1 | I122: 50
A123: 120 | B123: 5000 | C123: =0.2*$A$1*1000*1000 -> 1961330 | D123: 1961330 | E123: =0.3*$A$1*1000*1000 -> 2941995 | F123: =0.3*$A$1*1000*1000 -> 2941995 | G123: 1 | H123: 1 | I123: 50 | J123: RCS3-SS8R-100
A124: 121 | B124: 10000 | C124: 2941995 | D124: 1961330 | E124: =0.7*$A$1*1000*1000 -> 6864655 | F124: =0.7*$A$1*1000*1000 -> 6864655 | G124: 1 | H124: 1 | I124: 50
A125: 122 | B125: 20000 | C125: 2941995 | D125: 1961330 | E125: =1*$A$1*1000*1000 -> 9806650 | F125: =1*$A$1*1000*1000 -> 9806650 | G125: 1 | H125: 1 | I125: 50
A126: 123 | B126: 30000 | C126: 2941995 | D126: 1961330 | E126: =1.2*$A$1*1000*1000 -> 11767980 | F126: =1.2*$A$1*1000*1000 -> 11767980 | G126: 1 | H126: 1 | I126: 50
A127: 124 | B127: 10000 | C127: 2941995 | D127: 1961330 | E127: =0.7*$A$1*1000*1000 -> 6864655 | F127: =0.7*$A$1*1000*1000 -> 6864655 | G127: 1 | H127: 1 | I127: 50 | J127: RCS3-SS8R-150
A128: 125 | B128: 20000 | C128: 2941995 | D128: 1961330 | E128: =1*$A$1*1000*1000 -> 9806650 | F128: =1*$A$1*1000*1000 -> 9806650 | G128: 1 | H128: 1 | I128: 50
A129: 126 | B129: 30000 | C129: 2941995 | D129: 1961330 | E129: =1.2*$A$1*1000*1000 -> 11767980 | F129: =1.2*$A$1*1000*1000 -> 11767980 | G129: 1 | H129: 1 | I129: 50
A130: 127 | B130: 2500 | C130: =0.2*$A$1*1000*1000 -> 1961330 | D130: =0.2*$A$1*1000*1000 -> 1961330 | E130: =0.5*$A$1*1000*1000 -> 4903325 | F130: =0.3*$A$1*1000*1000 -> 2941995 | G130: 1 | H130: 1 | I130: 50 | J130: RCS2-SA4C-20
A131: 128 | B131: 5000 | C131: =0.3*$A$1*1000*1000 -> 2941995 | D131: 2941995 | E131: =1.2*$A$1*1000*1000 -> 11767980 | F131: =1*$A$1*1000*1000 -> 9806650 | G131: 1 | H131: 1 | I131: 50
A132: =A131+1 -> 129 | B132: 10000 | C132: 2941995 | D132: 2941995 | E132: =1.5*$A$1*1000*1000 -> 14709975 | F132: =1.5*$A$1*1000*1000 -> 14709975 | G132: 1 | H132: 1 | I132: 50
A133: 130 | B133: 16000 | C133: 2941995 | D133: 2941995 | E133: =2*$A$1*1000*1000 -> 19613300 | F133: =1*$A$1*1000*1000 -> 9806650 | G133: 1 | H133: 1 | I133: 50
A134: 131 | B134: 3000 | C134: =0.2*$A$1*1000*1000 -> 1961330 | D134: =0.2*$A$1*1000*1000 -> 1961330 | E134: =0.3*$A$1*1000*1000 -> 2941995 | F134: =0.3*$A$1*1000*1000 -> 2941995 | G134: 1 | H134: 1 | I134: 50 | J134: RCS2-SA5C-20
A135: 132 | B135: 6000 | C135: =0.3*$A$1*1000*1000 -> 2941995 | D135: 2941995 | E135: =1*$A$1*1000*1000 -> 9806650 | F135: =1*$A$1*1000*1000 -> 9806650 | G135: 1 | H135: 1 | I135: 50
A136: 133 | B136: 12000 | C136: 2941995 | D136: 2941995 | E136: =1.5*$A$1*1000*1000 -> 14709975 | F136: =1.2*$A$1*1000*1000 -> 11767980 | G136: 1 | H136: 1 | I136: 50
A137: 134 | B137: 20000 | C137: 2941995 | D137: =0.3*$A$1*1000*1000 -> 2941995 | E137: =1.5*$A$1*1000*1000 -> 14709975 | F137: =0.7*$A$1*1000*1000 -> 6864655 | G137: 1 | H137: 1 | I137: 50
A138: 135 | B138: 3000 | C138: =0.2*$A$1*1000*1000 -> 1961330 | D138: =0.2*$A$1*1000*1000 -> 1961330 | E138: =0.4*$A$1*1000*1000 -> 3922660 | F138: =0.3*$A$1*1000*1000 -> 2941995 | G138: 1 | H138: 1 | I138: 50 | J138: RCS2-SA6C-30
A139: 136 | B139: 6000 | C139: =0.3*$A$1*1000*1000 -> 2941995 | D139: 2941995 | E139: =1*$A$1*1000*1000 -> 9806650 | F139: =1*$A$1*1000*1000 -> 9806650 | G139: 1 | H139: 1 | I139: 50
A140: 137 | B140: 12000 | C140: 2941995 | D140: =0.3*$A$1*1000*1000 -> 2941995 | E140: =2*$A$1*1000*1000 -> 19613300 | F140: =1.2*$A$1*1000*1000 -> 11767980 | G140: 1 | H140: 1 | I140: 50
A141: 138 | B141: 20000 | C141: 2941995 | D141: =0.3*$A$1*1000*1000 -> 2941995 | E141: =1.5*$A$1*1000*1000 -> 14709975 | F141: =0.6*$A$1*1000*1000 -> 5883990 | G141: 1 | H141: 1 | I141: 50
A142: 139 | B142: 4000 | C142: =0.2*$A$1*1000*1000 -> 1961330 | D142: =0.2*$A$1*1000*1000 -> 1961330 | E142: =0.5*$A$1*1000*1000 -> 4903325 | F142: =0.3*$A$1*1000*1000 -> 2941995 | G142: 1 | H142: 1 | I142: 50 | J142: RCS2-SA7C-60
A143: 140 | B143: 8000 | C143: =0.3*$A$1*1000*1000 -> 2941995 | D143: 2941995 | E143: =1.5*$A$1*1000*1000 -> 14709975 | F143: =1.5*$A$1*1000*1000 -> 14709975 | G143: 1 | H143: 1 | I143: 50
A144: 141 | B144: 16000 | C144: 2941995 | D144: 2941995 | E144: =2*$A$1*1000*1000 -> 19613300 | F144: =1.5*$A$1*1000*1000 -> 14709975 | G144: 1 | H144: 1 | I144: 50
A145: 142 | B145: 24000 | C145: 2941995 | D145: 2941995 | E145: =2*$A$1*1000*1000 -> 19613300 | F145: =1.5*$A$1*1000*1000 -> 14709975 | G145: 1 | H145: 1 | I145: 50
A146: 143 | B146: 6000 | C146: 2941995 | D146: 2941995 | E146: =0.7*$A$1*1000*1000 -> 6864655 | F146: =0.5*$A$1*1000*1000 -> 4903325 | G146: 1 | H146: 1 | I146: 50 | J146: RCS2-SS7C-60
A147: 144 | B147: 12000 | C147: 2941995 | D147: 2941995 | E147: =2*$A$1*1000*1000 -> 19613300 | F147: =1.5*$A$1*1000*1000 -> 14709975 | G147: 1 | H147: 1 | I147: 50
A148: 145 | B148: 20000 | C148: 2941995 | D148: 2941995 | E148: =2*$A$1*1000*1000 -> 19613300 | F148: =1.5*$A$1*1000*1000 -> 14709975 | G148: 1 | H148: 1 | I148: 50
A149: 146 | B149: 2500 | C149: =0.2*$A$1*1000*1000 -> 1961330 | D149: =0.2*$A$1*1000*1000 -> 1961330 | E149: =0.2*$A$1*1000*1000 -> 1961330 | F149: =0.2*$A$1*1000*1000 -> 1961330 | G149: 1 | H149: 1 | I149: 50 | J149: RCS2CR-SA4C-20
A150: 147 | B150: 5000 | C150: =0.3*$A$1*1000*1000 -> 2941995 | D150: =0.3*$A$1*1000*1000 -> 2941995 | E150: =0.3*$A$1*1000*1000 -> 2941995 | F150: =0.3*$A$1*1000*1000 -> 2941995 | G150: 1 | H150: 1 | I150: 50
A151: 148 | B151: 10000 | C151: =0.3*$A$1*1000*1000 -> 2941995 | D151: =0.3*$A$1*1000*1000 -> 2941995 | E151: 2941995 | F151: 2941995 | G151: 1 | H151: 1 | I151: 50
A152: 149 | B152: 16000 | C152: =0.3*$A$1*1000*1000 -> 2941995 | D152: 2941995 | E152: 2941995 | F152: 2941995 | G152: 1 | H152: 1 | I152: 50
A153: 150 | B153: 3000 | C153: =0.2*$A$1*1000*1000 -> 1961330 | D153: =0.2*$A$1*1000*1000 -> 1961330 | E153: =0.2*$A$1*1000*1000 -> 1961330 | F153: =0.2*$A$1*1000*1000 -> 1961330 | G153: 1 | H153: 1 | I153: 50 | J153: RCS2CR-SA5C-20
A154: 151 | B154: 6000 | C154: =0.3*$A$1*1000*1000 -> 2941995 | D154: =0.3*$A$1*1000*1000 -> 2941995 | E154: 2941995 | F154: 2941995 | G154: 1 | H154: 1 | I154: 50
A155: 152 | B155: 12000 | C155: =0.3*$A$1*1000*1000 -> 2941995 | D155: 2941995 | E155: =0.3*$A$1*1000*1000 -> 2941995 | F155: =0.3*$A$1*1000*1000 -> 2941995 | G155: 1 | H155: 1 | I155: 50
A156: 153 | B156: 20000 | C156: =0.3*$A$1*1000*1000 -> 2941995 | D156: =0.3*$A$1*1000*1000 -> 2941995 | E156: =0.3*$A$1*1000*1000 -> 2941995 | F156: =0.3*$A$1*1000*1000 -> 2941995 | G156: 1 | H156: 1 | I156: 50
A157: 154 | B157: 3000 | C157: =0.2*$A$1*1000*1000 -> 1961330 | D157: =0.2*$A$1*1000*1000 -> 1961330 | E157: =0.2*$A$1*1000*1000 -> 1961330 | F157: =0.2*$A$1*1000*1000 -> 1961330 | G157: 1 | H157: 1 | I157: 50 | J157: RCS2CR-SA6C-30
A158: 155 | B158: 6000 | C158: =0.3*$A$1*1000*1000 -> 2941995 | D158: 2941995 | E158: =0.3*$A$1*1000*1000 -> 2941995 | F158: 2941995 | G158: 1 | H158: 1 | I158: 50
A159: 156 | B159: 12000 | C159: 2941995 | D159: 2941995 | E159: 2941995 | F159: 2941995 | G159: 1 | H159: 1 | I159: 50
A160: 157 | B160: 20000 | C160: 2941995 | D160: 2941995 | E160: 2941995 | F160: 2941995 | G160: 1 | H160: 1 | I160: 50
A161: 158 | B161: 4000 | C161: =0.2*$A$1*1000*1000 -> 1961330 | D161: =0.2*$A$1*1000*1000 -> 1961330 | E161: =0.2*$A$1*1000*1000 -> 1961330 | F161: =0.2*$A$1*1000*1000 -> 1961330 | G161: 1 | H161: 1 | I161: 50 | J161: RCS2CR-SA7C-60
A162: 159 | B162: 8000 | C162: =0.3*$A$1*1000*1000 -> 2941995 | D162: =0.3*$A$1*1000*1000 -> 2941995 | E162: =0.3*$A$1*1000*1000 -> 2941995 | F162: 2941995 | G162: 1 | H162: 1 | I162: 50
A163: 160 | B163: 16000 | C163: 2941995 | D163: 2941995 | E163: 2941995 | F163: 2941995 | G163: 1 | H163: 1 | I163: 50
A164: 161 | B164: 24000 | C164: 2941995 | D164: 2941995 | E164: 2941995 | F164: 2941995 | G164: 1 | H164: 1 | I164: 50
A165: 162 | B165: 6000 | C165: 2941995 | D165: =0.3*$A$1*1000*1000 -> 2941995 | E165: =0.3*$A$1*1000*1000 -> 2941995 | F165: 2941995 | G165: 1 | H165: 1 | I165: 50 | J165: RCS2CR-SS7C-60
A166: 163 | B166: 12000 | C166: 2941995 | D166: 2941995 | E166: 2941995 | F166: 2941995 | G166: 1 | H166: 1 | I166: 50
A167: 164 | B167: 20000 | C167: 2941995 | D167: 2941995 | E167: 2941995 | F167: 2941995 | G167: 1 | H167: 1 | I167: 50
A168: 165 | B168: 2500 | C168: =0.2*$A$1*1000*1000 -> 1961330 | D168: =0.2*$A$1*1000*1000 -> 1961330 | E168: =0.2*$A$1*1000*1000 -> 1961330 | F168: =0.2*$A$1*1000*1000 -> 1961330 | G168: 1 | H168: 1 | I168: 50 | J168: RCS2-SA4D-20
A169: 166 | B169: 5000 | C169: =0.3*$A$1*1000*1000 -> 2941995 | D169: 2941995 | E169: 2941995 | F169: 2941995 | G169: 1 | H169: 1 | I169: 50
A170: 167 | B170: 10000 | C170: 2941995 | D170: 2941995 | E170: 2941995 | F170: 2941995 | G170: 1 | H170: 1 | I170: 50
A171: 168 | B171: 3000 | C171: =0.2*$A$1*1000*1000 -> 1961330 | D171: =0.2*$A$1*1000*1000 -> 1961330 | E171: =0.2*$A$1*1000*1000 -> 1961330 | F171: =0.2*$A$1*1000*1000 -> 1961330 | G171: 1 | H171: 1 | I171: 50 | J171: RCS2-SA5D-20
A172: 169 | B172: 6000 | C172: =0.3*$A$1*1000*1000 -> 2941995 | D172: 2941995 | E172: 2941995 | F172: 2941995 | G172: 1 | H172: 1 | I172: 50
A173: 170 | B173: 12000 | C173: 2941995 | D173: 2941995 | E173: 2941995 | F173: 2941995 | G173: 1 | H173: 1 | I173: 50
A174: 171 | B174: 3000 | C174: =0.2*$A$1*1000*1000 -> 1961330 | D174: =0.2*$A$1*1000*1000 -> 1961330 | E174: =0.2*$A$1*1000*1000 -> 1961330 | F174: =0.2*$A$1*1000*1000 -> 1961330 | G174: 1 | H174: 1 | I174: 50 | J174: RCS2-SA6D-30
A175: 172 | B175: 6000 | C175: =0.3*$A$1*1000*1000 -> 2941995 | D175: 2941995 | E175: 2941995 | F175: 2941995 | G175: 1 | H175: 1 | I175: 50
A176: 173 | B176: 12000 | C176: 2941995 | D176: 2941995 | E176: 2941995 | F176: 2941995 | G176: 1 | H176: 1 | I176: 50
A177: 174 | B177: 3000 | C177: =0.2*$A$1*1000*1000 -> 1961330 | D177: =0.2*$A$1*1000*1000 -> 1961330 | E177: =0.2*$A$1*1000*1000 -> 1961330 | F177: =0.2*$A$1*1000*1000 -> 1961330 | G177: 1 | H177: 1 | I177: 50 | J177: RCS2CR-SA5D-20
A178: 175 | B178: 6000 | C178: =0.3*$A$1*1000*1000 -> 2941995 | D178: 2941995 | E178: 2941995 | F178: 2941995 | G178: 1 | H178: 1 | I178: 50
A179: 176 | B179: 12000 | C179: 2941995 | D179: 2941995 | E179: 2941995 | F179: 2941995 | G179: 1 | H179: 1 | I179: 50
A180: 177 | B180: 3000 | C180: =0.2*$A$1*1000*1000 -> 1961330 | D180: =0.2*$A$1*1000*1000 -> 1961330 | E180: =0.2*$A$1*1000*1000 -> 1961330 | F180: =0.2*$A$1*1000*1000 -> 1961330 | G180: 1 | H180: 1 | I180: 50 | J180: RCS2CR-SA6D-30
A181: 178 | B181: 6000 | C181: =0.3*$A$1*1000*1000 -> 2941995 | D181: 2941995 | E181: 2941995 | F181: 2941995 | G181: 1 | H181: 1 | I181: 50
A182: 179 | B182: 12000 | C182: 2941995 | D182: 2941995 | E182: 2941995 | F182: 2941995 | G182: 1 | H182: 1 | I182: 50
A183: 180 | B183: 2500 | C183: =0.2*$A$1*1000*1000 -> 1961330 | D183: =0.2*$A$1*1000*1000 -> 1961330 | E183: =0.4*$A$1*1000*1000 -> 3922660 | F183: =0.3*$A$1*1000*1000 -> 2941995 | G183: 1 | H183: 1 | I183: 50 | J183: RCS2-SA4R-20
A184: 181 | B184: 5000 | C184: =0.3*$A$1*1000*1000 -> 2941995 | D184: =0.3*$A$1*1000*1000 -> 2941995 | E184: =0.6*$A$1*1000*1000 -> 5883990 | F184: =0.6*$A$1*1000*1000 -> 5883990 | G184: 1 | H184: 1 | I184: 50
A185: 182 | B185: 10000 | C185: =0.3*$A$1*1000*1000 -> 2941995 | D185: =0.3*$A$1*1000*1000 -> 2941995 | E185: =0.8*$A$1*1000*1000 -> 7845320 | F185: =0.8*$A$1*1000*1000 -> 7845320 | G185: 1 | H185: 1 | I185: 50
A186: 183 | B186: 3000 | C186: =0.2*$A$1*1000*1000 -> 1961330 | D186: =0.2*$A$1*1000*1000 -> 1961330 | E186: =0.3*$A$1*1000*1000 -> 2941995 | F186: =0.3*$A$1*1000*1000 -> 2941995 | G186: 1 | H186: 1 | I186: 50 | J186: RCS2-SA5R-20
A187: 184 | B187: 6000 | C187: =0.3*$A$1*1000*1000 -> 2941995 | D187: =0.3*$A$1*1000*1000 -> 2941995 | E187: =0.6*$A$1*1000*1000 -> 5883990 | F187: =0.6*$A$1*1000*1000 -> 5883990 | G187: 1 | H187: 1 | I187: 50
A188: 185 | B188: 12000 | C188: =0.3*$A$1*1000*1000 -> 2941995 | D188: =0.3*$A$1*1000*1000 -> 2941995 | E188: =0.8*$A$1*1000*1000 -> 7845320 | F188: =0.8*$A$1*1000*1000 -> 7845320 | G188: 1 | H188: 1 | I188: 50
A189: 186 | B189: 3000 | C189: =0.2*$A$1*1000*1000 -> 1961330 | D189: =0.2*$A$1*1000*1000 -> 1961330 | E189: =0.3*$A$1*1000*1000 -> 2941995 | F189: =0.3*$A$1*1000*1000 -> 2941995 | G189: 1 | H189: 1 | I189: 50 | J189: RCS2-SA6R-30
A190: 187 | B190: 6000 | C190: =0.3*$A$1*1000*1000 -> 2941995 | D190: =0.3*$A$1*1000*1000 -> 2941995 | E190: =0.6*$A$1*1000*1000 -> 5883990 | F190: =0.6*$A$1*1000*1000 -> 5883990 | G190: 1 | H190: 1 | I190: 50
A191: 188 | B191: 12000 | C191: =0.3*$A$1*1000*1000 -> 2941995 | D191: =0.3*$A$1*1000*1000 -> 2941995 | E191: =0.8*$A$1*1000*1000 -> 7845320 | F191: =0.8*$A$1*1000*1000 -> 7845320 | G191: 1 | H191: 1 | I191: 50
A192: 189 | B192: 4000 | C192: =0.2*$A$1*1000*1000 -> 1961330 | D192: =0.2*$A$1*1000*1000 -> 1961330 | E192: =0.4*$A$1*1000*1000 -> 3922660 | F192: =0.3*$A$1*1000*1000 -> 2941995 | G192: 1 | H192: 1 | I192: 50 | J192: RCS2-SA7R-60
A193: 190 | B193: 8000 | C193: =0.3*$A$1*1000*1000 -> 2941995 | D193: 2941995 | E193: =0.6*$A$1*1000*1000 -> 5883990 | F193: =0.6*$A$1*1000*1000 -> 5883990 | G193: 1 | H193: 1 | I193: 50
A194: 191 | B194: 16000 | C194: 2941995 | D194: 2941995 | E194: =0.8*$A$1*1000*1000 -> 7845320 | F194: =0.8*$A$1*1000*1000 -> 7845320 | G194: 1 | H194: 1 | I194: 50
A195: 192 | B195: 6000 | C195: 2941995 | D195: 2941995 | E195: =0.5*$A$1*1000*1000 -> 4903325 | F195: =0.5*$A$1*1000*1000 -> 4903325 | G195: 1 | H195: 1 | I195: 50 | J195: RCS2-SS7R-60
A196: =A195+1 -> 193 | B196: 12000 | C196: 2941995 | D196: 2941995 | E196: =0.8*$A$1*1000*1000 -> 7845320 | F196: =0.8*$A$1*1000*1000 -> 7845320 | G196: 1 | H196: 1 | I196: 50
A197: 194 | B197: 3000 | C197: =0.2*$A$1*1000*1000 -> 1961330 | D197: =0.2*$A$1*1000*1000 -> 1961330 | E197: =0.3*$A$1*1000*1000 -> 2941995 | F197: =0.3*$A$1*1000*1000 -> 2941995 | G197: 1 | H197: 1 | I197: 50 | J197: RCS2-RA4C-20
A198: 195 | B198: 6000 | C198: =0.3*$A$1*1000*1000 -> 2941995 | D198: =0.3*$A$1*1000*1000 -> 2941995 | E198: =1*$A$1*1000*1000 -> 9806650 | F198: =0.7*$A$1*1000*1000 -> 6864655 | G198: 1 | H198: 1 | I198: 50
A199: 196 | B199: 12000 | C199: =0.3*$A$1*1000*1000 -> 2941995 | D199: =0.3*$A$1*1000*1000 -> 2941995 | E199: =1*$A$1*1000*1000 -> 9806650 | F199: =0.8*$A$1*1000*1000 -> 7845320 | G199: 1 | H199: 1 | I199: 50
A200: 197 | B200: 3000 | C200: =0.2*$A$1*1000*1000 -> 1961330 | D200: =0.2*$A$1*1000*1000 -> 1961330 | E200: =0.3*$A$1*1000*1000 -> 2941995 | F200: =0.3*$A$1*1000*1000 -> 2941995 | G200: 1 | H200: 1 | I200: 50 | J200: RCS2-RA4C-30
... 88 more rows

Sheet StrokeData (hidden)
B1: 1 | C1: 2 | D1: 4 | E1: 5 | F1: 6 | G1: 7 | H1: 8 | I1: 9 | J1: 10 | K1: 17 | L1: 18 | N1: =COUNTIF(N4:N1421,"つなぎまちがい") -> 0 | O1: =COUNTIF(O4:O1421,"つなぎまちがい") -> 0
A2: ﾃﾞｰﾀ№ | B2: ｽﾄﾛｰｸ長 | C2: 有効ｽﾄﾛｰｸ補正 | D2: 基準ｹﾞｲﾝ用搬送質量 | E2: 水平可搬質量 | F2: 垂直可搬質量 | G2: 最大速度 | H2: 位置ｹﾞｲﾝ | I2: FFｹﾞｲﾝ | J2: 速度制御帯域 | K2: 前ﾃﾞｰﾀ№ | L2: 次ﾃﾞｰﾀ№ | M2: 備考 | N2: ﾚｺｰﾄﾞﾘﾝｸのﾁｪｯｸ
A3: =ModelData!A3 -> 0 | B3: ㎜ | C3: ㎜ | D3: 1g | E3: 1g | F3: 1g | G3: ㎜/s | H3: 1/s | I3: % | J3: rad/s | N3: 前ﾃﾞｰﾀ | O3: 次ﾃﾞｰﾀ
A4: =A3+1 -> 1 | B4: 600 | C4: 0 | D4: 55000 | E4: 77000 | F4: 14000 | G4: 240 | H4: 30 | I4: 0 | J4: 120 | K4: -1 | L4: =A5 -> 2 | M4: ISB-SXM-60-4 | N4: =IF(K4=A3,"○",IF(M4<>0,"先頭","つなぎまちがい")) -> 先頭 | O4: =IF(L4=A5,"○",IF(L4<>K5,"つなぎまちがい","終端")) -> ○
A5: 2 | B5: 700 | C5: 0 | D5: 55000 | E5: 77000 | F5: 14000 | G5: 165 | H5: 30 | I5: 0 | J5: 120 | K5: =A4 -> 1 | L5: =A6 -> 3 | N5: ○ | O5: ○
A6: 3 | B6: 800 | C6: 0 | D6: 55000 | E6: 77000 | F6: 14000 | G6: 130 | H6: 30 | I6: 0 | J6: 120 | K6: =A5 -> 2 | L6: =A7 -> 4 | N6: ○ | O6: ○
A7: 4 | B7: 900 | C7: 0 | D7: 55000 | E7: 77000 | F7: 14000 | G7: 100 | H7: 30 | I7: 0 | J7: 120 | K7: =A6 -> 3 | L7: -1 | N7: ○ | O7: 終端
A8: 5 | B8: 600 | C8: 0 | D8: 27500 | E8: 40500 | F8: 7000 | G8: 480 | H8: 35 | I8: 0 | J8: 93 | K8: -1 | L8: =A9 -> 6 | M8: ISB-SXM-60-8 | N8: 先頭 | O8: ○
A9: 6 | B9: 700 | C9: 0 | D9: 27500 | E9: 40500 | F9: 7000 | G9: 330 | H9: 35 | I9: 0 | J9: 93 | K9: =A8 -> 5 | L9: =A10 -> 7 | N9: ○ | O9: ○
A10: 7 | B10: 800 | C10: 0 | D10: 27500 | E10: 40500 | F10: 7000 | G10: 260 | H10: 35 | I10: 0 | J10: 93 | K10: =A9 -> 6 | L10: =A11 -> 8 | N10: ○ | O10: ○
A11: 8 | B11: 900 | C11: 0 | D11: 27500 | E11: 40500 | F11: 7000 | G11: 210 | H11: 35 | I11: 0 | J11: 93 | K11: =A10 -> 7 | L11: -1 | N11: ○ | O11: 終端
A12: 9 | B12: 300 | C12: 0 | D12: 13000 | E12: 19500 | F12: 3500 | G12: 960 | H12: 30 | I12: 0 | J12: 85 | K12: -1 | L12: =A13 -> 10 | M12: ISB-SXM-60-16 | N12: 先頭 | O12: ○
A13: 10 | B13: 400 | C13: 0 | D13: 13000 | E13: 19500 | F13: 3500 | G13: 960 | H13: 30 | I13: 0 | J13: 85 | K13: =A12 -> 9 | L13: 11 | N13: ○ | O13: ○
A14: 11 | B14: 500 | C14: 0 | D14: 13000 | E14: 19500 | F14: 3500 | G14: 960 | H14: 30 | I14: 0 | J14: 85 | K14: 10 | L14: 12 | N14: ○ | O14: ○
A15: 12 | B15: 600 | C15: 0 | D15: 13000 | E15: 19500 | F15: 3500 | G15: 960 | H15: 30 | I15: 0 | J15: 85 | K15: 11 | L15: 13 | N15: ○ | O15: ○
A16: 13 | B16: 700 | C16: 0 | D16: 13000 | E16: 19500 | F16: 3500 | G16: 655 | H16: 20 | I16: 0 | J16: 120 | K16: 12 | L16: 14 | N16: ○ | O16: ○
A17: 14 | B17: 800 | C17: 0 | D17: 13000 | E17: 19500 | F17: 3500 | G17: 515 | H17: 20 | I17: 0 | J17: 120 | K17: 13 | L17: 15 | N17: ○ | O17: ○
A18: 15 | B18: 900 | C18: 0 | D18: 13000 | E18: 19500 | F18: 3500 | G18: 415 | H18: 20 | I18: 0 | J18: 120 | K18: 14 | L18: -1 | N18: ○ | O18: 終端
A19: 16 | B19: 700 | C19: 0 | D19: 85000 | E19: 119000 | F19: 20000 | G19: 300 | H19: 30 | I19: 0 | J19: 120 | K19: -1 | L19: =A20 -> 17 | M19: ISB-MXM-100-5 | N19: 先頭 | O19: ○
A20: 17 | B20: 800 | C20: 0 | D20: 85000 | E20: 119000 | F20: 20000 | G20: 215 | H20: 30 | I20: 0 | J20: 120 | K20: =A19 -> 16 | L20: =A21 -> 18 | N20: ○ | O20: ○
A21: 18 | B21: 900 | C21: 0 | D21: 85000 | E21: 119000 | F21: 20000 | G21: 170 | H21: 30 | I21: 0 | J21: 120 | K21: =A20 -> 17 | L21: =A22 -> 19 | N21: ○ | O21: ○
A22: 19 | B22: 1000 | C22: 0 | D22: 85000 | E22: 119000 | F22: 20000 | G22: 140 | H22: 30 | I22: 0 | J22: 120 | K22: =A21 -> 18 | L22: =A23 -> 20 | N22: ○ | O22: ○
A23: 20 | B23: 1100 | C23: 0 | D23: 85000 | E23: 119000 | F23: 20000 | G23: 115 | H23: 30 | I23: 0 | J23: 120 | K23: =A22 -> 19 | L23: -1 | N23: ○ | O23: 終端
A24: 21 | B24: 700 | C24: 0 | D24: 45000 | E24: 67500 | F24: 10000 | G24: 600 | H24: 35 | I24: 0 | J24: 93 | K24: -1 | L24: =A25 -> 22 | M24: ISB-MXM-100-10 | N24: 先頭 | O24: ○
A25: 22 | B25: 800 | C25: 0 | D25: 45000 | E25: 67500 | F25: 10000 | G25: 430 | H25: 35 | I25: 0 | J25: 93 | K25: =A24 -> 21 | L25: =A26 -> 23 | N25: ○ | O25: ○
A26: 23 | B26: 900 | C26: 0 | D26: 45000 | E26: 67500 | F26: 10000 | G26: 345 | H26: 35 | I26: 0 | J26: 93 | K26: =A25 -> 22 | L26: =A27 -> 24 | N26: ○ | O26: ○
A27: 24 | B27: 1000 | C27: 0 | D27: 45000 | E27: 67500 | F27: 10000 | G27: 280 | H27: 35 | I27: 0 | J27: 93 | K27: =A26 -> 23 | L27: =A28 -> 25 | N27: ○ | O27: ○
A28: 25 | B28: 1100 | C28: 0 | D28: 45000 | E28: 67500 | F28: 10000 | G28: 230 | H28: 35 | I28: 0 | J28: 93 | K28: =A27 -> 24 | L28: -1 | N28: ○ | O28: 終端
A29: 26 | B29: 700 | C29: 0 | D29: 23000 | E29: 34500 | F29: -1 | G29: 1200 | H29: 35 | I29: 0 | J29: 93 | K29: -1 | L29: =A30 -> 27 | M29: ISB-MXM-100-20 | N29: 先頭 | O29: ○
A30: 27 | B30: 800 | C30: 0 | D30: 23000 | E30: 34500 | F30: -1 | G30: 860 | H30: 30 | I30: 0 | J30: 85 | K30: =A29 -> 26 | L30: =A31 -> 28 | N30: ○ | O30: ○
A31: 28 | B31: 900 | C31: 0 | D31: 23000 | E31: 34500 | F31: -1 | G31: 695 | H31: 30 | I31: 0 | J31: 85 | K31: =A30 -> 27 | L31: =A32 -> 29 | N31: ○ | O31: ○
A32: 29 | B32: 1000 | C32: 0 | D32: 23000 | E32: 34500 | F32: -1 | G32: 570 | H32: 30 | I32: 0 | J32: 85 | K32: =A31 -> 28 | L32: =A33 -> 30 | N32: ○ | O32: ○
A33: 30 | B33: 1100 | C33: 0 | D33: 23000 | E33: 34500 | F33: -1 | G33: 460 | H33: 30 | I33: 0 | J33: 85 | K33: =A32 -> 29 | L33: -1 | N33: ○ | O33: 終端
A34: 31 | B34: 100 | C34: 0 | D34: 15000 | E34: 22500 | F34: -1 | G34: 1800 | H34: 30 | I34: 0 | J34: 100 | K34: -1 | L34: =A35 -> 32 | M34: ISB-MXM-100-30 | N34: 先頭 | O34: ○
A35: 32 | B35: 200 | C35: 0 | D35: 15000 | E35: 22500 | F35: -1 | G35: 1800 | H35: 30 | I35: 0 | J35: 100 | K35: =A34 -> 31 | L35: 33 | N35: ○ | O35: ○
A36: 33 | B36: 400 | C36: 0 | D36: 15000 | E36: 22500 | F36: -1 | G36: 1800 | H36: 30 | I36: 0 | J36: 100 | K36: 32 | L36: 34 | N36: ○ | O36: ○
A37: 34 | B37: 500 | C37: 0 | D37: 15000 | E37: 22500 | F37: -1 | G37: 1800 | H37: 30 | I37: 0 | J37: 100 | K37: 33 | L37: 35 | N37: ○ | O37: ○
A38: 35 | B38: 600 | C38: 0 | D38: 15000 | E38: 22500 | F38: -1 | G38: 1800 | H38: 30 | I38: 0 | J38: 100 | K38: 34 | L38: 36 | N38: ○ | O38: ○
A39: 36 | B39: 700 | C39: 0 | D39: 15000 | E39: 22500 | F39: -1 | G39: 1800 | H39: 30 | I39: 0 | J39: 100 | K39: 35 | L39: 37 | N39: ○ | O39: ○
A40: 37 | B40: 800 | C40: 0 | D40: 15000 | E40: 22500 | F40: -1 | G40: 1290 | H40: 30 | I40: 0 | J40: 100 | K40: 36 | L40: 38 | N40: ○ | O40: ○
A41: 38 | B41: 900 | C41: 0 | D41: 15000 | E41: 22500 | F41: -1 | G41: 1045 | H41: 30 | I41: 0 | J41: 100 | K41: 37 | L41: 39 | N41: ○ | O41: ○
A42: 39 | B42: 1000 | C42: 0 | D42: 15000 | E42: 22500 | F42: -1 | G42: 860 | H42: 30 | I42: 0 | J42: 100 | K42: 38 | L42: 40 | N42: ○ | O42: ○
A43: 40 | B43: 1100 | C43: 0 | D43: 15000 | E43: 22500 | F43: -1 | G43: 690 | H43: 30 | I43: 0 | J43: 100 | K43: 39 | L43: -1 | N43: ○ | O43: 終端
A44: 41 | B44: 700 | C44: 0 | D44: 110000 | E44: 154000 | F44: 40000 | G44: 300 | H44: 30 | I44: 0 | J44: 120 | K44: -1 | L44: =A45 -> 42 | M44: ISB-MXM-200-5 | N44: 先頭 | O44: ○
A45: 42 | B45: 800 | C45: 0 | D45: 110000 | E45: 154000 | F45: 40000 | G45: 215 | H45: 30 | I45: 0 | J45: 120 | K45: =A44 -> 41 | L45: =A46 -> 43 | N45: ○ | O45: ○
A46: 43 | B46: 900 | C46: 0 | D46: 110000 | E46: 154000 | F46: 40000 | G46: 170 | H46: 30 | I46: 0 | J46: 120 | K46: =A45 -> 42 | L46: =A47 -> 44 | N46: ○ | O46: ○
A47: 44 | B47: 1000 | C47: 0 | D47: 110000 | E47: 154000 | F47: 40000 | G47: 140 | H47: 30 | I47: 0 | J47: 120 | K47: =A46 -> 43 | L47: =A48 -> 45 | N47: ○ | O47: ○
A48: 45 | B48: 1100 | C48: 0 | D48: 110000 | E48: 154000 | F48: 40000 | G48: 115 | H48: 30 | I48: 0 | J48: 120 | K48: =A47 -> 44 | L48: -1 | N48: ○ | O48: 終端
A49: 46 | B49: 300 | C49: 0 | D49: 90000 | E49: 135000 | F49: 20000 | G49: 600 | H49: 30 | I49: 0 | J49: 85 | K49: -1 | L49: =A50 -> 47 | M49: ISB-MXM-200-10 | N49: 先頭 | O49: ○
A50: 47 | B50: 400 | C50: 0 | D50: 90000 | E50: 135000 | F50: 20000 | G50: 600 | H50: 30 | I50: 0 | J50: 85 | K50: =A49 -> 46 | L50: 48 | N50: ○ | O50: ○
A51: 48 | B51: 500 | C51: 0 | D51: 90000 | E51: 135000 | F51: 20000 | G51: 600 | H51: 30 | I51: 0 | J51: 85 | K51: 47 | L51: 49 | N51: ○ | O51: ○
A52: 49 | B52: 600 | C52: 0 | D52: 90000 | E52: 135000 | F52: 20000 | G52: 600 | H52: 30 | I52: 0 | J52: 85 | K52: 48 | L52: 50 | N52: ○ | O52: ○
A53: 50 | B53: 700 | C53: 0 | D53: 90000 | E53: 135000 | F53: 20000 | G53: 600 | H53: 30 | I53: 0 | J53: 85 | K53: 49 | L53: 51 | N53: ○ | O53: ○
A54: 51 | B54: 800 | C54: 0 | D54: 90000 | E54: 135000 | F54: 20000 | G54: 430 | H54: 30 | I54: 0 | J54: 85 | K54: 50 | L54: 52 | N54: ○ | O54: ○
A55: 52 | B55: 900 | C55: 0 | D55: 90000 | E55: 135000 | F55: 20000 | G55: 345 | H55: 30 | I55: 0 | J55: 85 | K55: 51 | L55: 53 | N55: ○ | O55: ○
A56: 53 | B56: 1000 | C56: 0 | D56: 90000 | E56: 135000 | F56: 20000 | G56: 280 | H56: 30 | I56: 0 | J56: 85 | K56: 52 | L56: 54 | N56: ○ | O56: ○
A57: 54 | B57: 1100 | C57: 0 | D57: 90000 | E57: 135000 | F57: 20000 | G57: 230 | H57: 30 | I57: 0 | J57: 85 | K57: 53 | L57: -1 | N57: ○ | O57: 終端
A58: 55 | B58: 700 | C58: 0 | D58: 45000 | E58: 67500 | F58: -1 | G58: 1200 | H58: 30 | I58: 0 | J58: 85 | K58: -1 | L58: =A59 -> 56 | M58: ISB-MXM-200-20 | N58: 先頭 | O58: ○
A59: 56 | B59: 800 | C59: 0 | D59: 45000 | E59: 67500 | F59: -1 | G59: 860 | H59: 30 | I59: 0 | J59: 85 | K59: =A58 -> 55 | L59: =A60 -> 57 | N59: ○ | O59: ○
A60: 57 | B60: 900 | C60: 0 | D60: 45000 | E60: 67500 | F60: -1 | G60: 695 | H60: 30 | I60: 0 | J60: 85 | K60: =A59 -> 56 | L60: =A61 -> 58 | N60: ○ | O60: ○
A61: 58 | B61: 1000 | C61: 0 | D61: 45000 | E61: 67500 | F61: -1 | G61: 570 | H61: 30 | I61: 0 | J61: 85 | K61: =A60 -> 57 | L61: =A62 -> 59 | N61: ○ | O61: ○
A62: 59 | B62: 1100 | C62: 0 | D62: 45000 | E62: 67500 | F62: -1 | G62: 460 | H62: 30 | I62: 0 | J62: 85 | K62: =A61 -> 58 | L62: -1 | N62: ○ | O62: 終端
A63: 60 | B63: 700 | C63: 0 | D63: 30000 | E63: 45000 | F63: -1 | G63: 1800 | H63: 30 | I63: 0 | J63: 80 | K63: -1 | L63: =A64 -> 61 | M63: ISB-MXM-200-30 | N63: 先頭 | O63: ○
A64: 61 | B64: 800 | C64: 0 | D64: 30000 | E64: 45000 | F64: -1 | G64: 1290 | H64: 30 | I64: 0 | J64: 80 | K64: =A63 -> 60 | L64: =A65 -> 62 | N64: ○ | O64: ○
A65: 62 | B65: 900 | C65: 0 | D65: 30000 | E65: 45000 | F65: -1 | G65: 1045 | H65: 30 | I65: 0 | J65: 80 | K65: =A64 -> 61 | L65: =A66 -> 63 | N65: ○ | O65: ○
A66: 63 | B66: 1000 | C66: 0 | D66: 30000 | E66: 45000 | F66: -1 | G66: 860 | H66: 30 | I66: 0 | J66: 80 | K66: =A65 -> 62 | L66: =A67 -> 64 | N66: ○ | O66: ○
A67: 64 | B67: 1100 | C67: 0 | D67: 30000 | E67: 45000 | F67: -1 | G67: 690 | H67: 30 | I67: 0 | J67: 80 | K67: =A66 -> 63 | L67: -1 | N67: ○ | O67: 終端
A68: =A67+1 -> 65 | B68: 600 | C68: 0 | D68: 90000 | E68: 135000 | F68: 20000 | G68: 600 | H68: 35 | I68: 0 | J68: 93 | K68: -1 | L68: =A69 -> 66 | M68: ISB-LXM-200-10 | N68: =IF(K68=A67,"○",IF(M68<>0,"先頭","つなぎまちがい")) -> 先頭 | O68: =IF(L68=A69,"○",IF(L68<>K69,"つなぎまちがい","終端")) -> ○
A69: 66 | B69: 800 | C69: 0 | D69: 90000 | E69: 135000 | F69: 20000 | G69: 600 | H69: 35 | I69: 0 | J69: 93 | K69: =A68 -> 65 | L69: 67 | N69: ○ | O69: ○
A70: 67 | B70: 900 | C70: 0 | D70: 90000 | E70: 135000 | F70: 20000 | G70: 460 | H70: 35 | I70: 0 | J70: 93 | K70: 66 | L70: 68 | N70: ○ | O70: ○
A71: 68 | B71: 1000 | C71: 0 | D71: 90000 | E71: 135000 | F71: 20000 | G71: 380 | H71: 35 | I71: 0 | J71: 93 | K71: 67 | L71: 69 | N71: ○ | O71: ○
A72: 69 | B72: 1100 | C72: 0 | D72: 90000 | E72: 135000 | F72: 20000 | G72: 320 | H72: 35 | I72: 0 | J72: 93 | K72: 68 | L72: 70 | N72: ○ | O72: ○
A73: 70 | B73: 1200 | C73: 0 | D73: 90000 | E73: 135000 | F73: 20000 | G73: 270 | H73: 35 | I73: 0 | J73: 93 | K73: 69 | L73: 71 | N73: ○ | O73: ○
A74: 71 | B74: 1300 | C74: 0 | D74: 90000 | E74: 135000 | F74: 20000 | G74: 220 | H74: 35 | I74: 0 | J74: 93 | K74: 70 | L74: -1 | N74: ○ | O74: 終端
A75: 72 | B75: 500 | C75: 0 | D75: 45000 | E75: 67500 | F75: 10000 | G75: 1200 | H75: 35 | I75: 0 | J75: 93 | K75: -1 | L75: =A76 -> 73 | M75: ISB-LXM-200-20 | N75: 先頭 | O75: ○
A76: 73 | B76: 800 | C76: 0 | D76: 45000 | E76: 67500 | F76: 10000 | G76: 1200 | H76: 35 | I76: 0 | J76: 93 | K76: =A75 -> 72 | L76: 74 | N76: ○ | O76: ○
A77: 74 | B77: 900 | C77: 0 | D77: 45000 | E77: 67500 | F77: 10000 | G77: 920 | H77: 35 | I77: 0 | J77: 93 | K77: 73 | L77: 75 | N77: ○ | O77: ○
A78: 75 | B78: 1000 | C78: 0 | D78: 45000 | E78: 67500 | F78: 10000 | G78: 765 | H78: 35 | I78: 0 | J78: 93 | K78: 74 | L78: 76 | N78: ○ | O78: ○
A79: 76 | B79: 1100 | C79: 0 | D79: 45000 | E79: 67500 | F79: 10000 | G79: 645 | H79: 35 | I79: 0 | J79: 93 | K79: 75 | L79: 77 | N79: ○ | O79: ○
A80: 77 | B80: 1200 | C80: 0 | D80: 45000 | E80: 67500 | F80: 10000 | G80: 550 | H80: 35 | I80: 0 | J80: 93 | K80: 76 | L80: 78 | N80: ○ | O80: ○
A81: 78 | B81: 1300 | C81: 0 | D81: 45000 | E81: 67500 | F81: 10000 | G81: 440 | H81: 35 | I81: 0 | J81: 93 | K81: 77 | L81: -1 | N81: ○ | O81: 終端
A82: 79 | B82: 100 | C82: 0 | D82: 15000 | E82: 22500 | F82: -1 | G82: 2400 | H82: 30 | I82: 0 | J82: 80 | K82: -1 | L82: =A83 -> 80 | M82: ISB-LXM-200-40 | N82: 先頭 | O82: ○
A83: 80 | B83: 300 | C83: 0 | D83: 15000 | E83: 22500 | F83: -1 | G83: 2400 | H83: 30 | I83: 0 | J83: 80 | K83: =A82 -> 79 | L83: 81 | N83: ○ | O83: ○
A84: 81 | B84: 500 | C84: 0 | D84: 15000 | E84: 22500 | F84: -1 | G84: 2400 | H84: 30 | I84: 0 | J84: 80 | K84: 80 | L84: 82 | N84: ○ | O84: ○
A85: 82 | B85: 700 | C85: 0 | D85: 15000 | E85: 22500 | F85: -1 | G85: 2400 | H85: 30 | I85: 0 | J85: 80 | K85: 81 | L85: 83 | N85: ○ | O85: ○
A86: 83 | B86: 800 | C86: 0 | D86: 15000 | E86: 22500 | F86: -1 | G86: 2400 | H86: 30 | I86: 0 | J86: 80 | K86: 82 | L86: 84 | N86: ○ | O86: ○
A87: 84 | B87: 900 | C87: 0 | D87: 15000 | E87: 22500 | F87: -1 | G87: 1840 | H87: 30 | I87: 0 | J87: 80 | K87: 83 | L87: 85 | N87: ○ | O87: ○
A88: 85 | B88: 1000 | C88: 0 | D88: 15000 | E88: 22500 | F88: -1 | G88: 1530 | H88: 30 | I88: 0 | J88: 80 | K88: 84 | L88: 86 | N88: ○ | O88: ○
A89: 86 | B89: 1100 | C89: 0 | D89: 15000 | E89: 22500 | F89: -1 | G89: 1290 | H89: 30 | I89: 0 | J89: 80 | K89: 85 | L89: 87 | N89: ○ | O89: ○
A90: 87 | B90: 1200 | C90: 0 | D90: 15000 | E90: 22500 | F90: -1 | G90: 1100 | H90: 30 | I90: 0 | J90: 80 | K90: 86 | L90: 88 | N90: ○ | O90: ○
A91: 88 | B91: 1300 | C91: 0 | D91: 15000 | E91: 22500 | F91: -1 | G91: 880 | H91: 30 | I91: 0 | J91: 80 | K91: 87 | L91: -1 | N91: ○ | O91: 終端
A92: 89 | B92: 500 | C92: 0 | D92: 120000 | E92: 180000 | F92: 40000 | G92: 600 | H92: 25 | I92: 0 | J92: 120 | K92: -1 | L92: =A93 -> 90 | M92: ISB-LXM-400-10 | N92: 先頭 | O92: ○
A93: 90 | B93: 800 | C93: 0 | D93: 120000 | E93: 180000 | F93: 40000 | G93: 600 | H93: 25 | I93: 0 | J93: 120 | K93: =A92 -> 89 | L93: 91 | N93: ○ | O93: ○
A94: 91 | B94: 900 | C94: 0 | D94: 120000 | E94: 180000 | F94: 40000 | G94: 460 | H94: 25 | I94: 0 | J94: 120 | K94: 90 | L94: 92 | N94: ○ | O94: ○
A95: 92 | B95: 1000 | C95: 0 | D95: 120000 | E95: 180000 | F95: 40000 | G95: 380 | H95: 25 | I95: 0 | J95: 120 | K95: 91 | L95: 93 | N95: ○ | O95: ○
A96: 93 | B96: 1100 | C96: 0 | D96: 120000 | E96: 180000 | F96: 40000 | G96: 320 | H96: 25 | I96: 0 | J96: 120 | K96: 92 | L96: 94 | N96: ○ | O96: ○
A97: 94 | B97: 1200 | C97: 0 | D97: 120000 | E97: 180000 | F97: 40000 | G97: 270 | H97: 25 | I97: 0 | J97: 120 | K97: 93 | L97: 95 | N97: ○ | O97: ○
A98: 95 | B98: 1300 | C98: 0 | D98: 120000 | E98: 180000 | F98: 40000 | G98: 220 | H98: 25 | I98: 0 | J98: 120 | K98: 94 | L98: -1 | N98: ○ | O98: 終端
A99: 96 | B99: 500 | C99: 0 | D99: 90000 | E99: 135000 | F99: 20000 | G99: 1200 | H99: 25 | I99: 0 | J99: 120 | K99: -1 | L99: =A100 -> 97 | M99: ISB-LXM-400-20 | N99: 先頭 | O99: ○
A100: 97 | B100: 700 | C100: 0 | D100: 90000 | E100: 135000 | F100: 20000 | G100: 1200 | H100: 25 | I100: 0 | J100: 120 | K100: =A99 -> 96 | L100: 98 | N100: ○ | O100: ○
A101: 98 | B101: 800 | C101: 0 | D101: 90000 | E101: 135000 | F101: 20000 | G101: 1200 | H101: 25 | I101: 0 | J101: 120 | K101: 97 | L101: 99 | N101: ○ | O101: ○
A102: 99 | B102: 900 | C102: 0 | D102: 90000 | E102: 135000 | F102: 20000 | G102: 920 | H102: 25 | I102: 0 | J102: 120 | K102: 98 | L102: 100 | N102: ○ | O102: ○
A103: 100 | B103: 1000 | C103: 0 | D103: 90000 | E103: 135000 | F103: 20000 | G103: 765 | H103: 25 | I103: 0 | J103: 120 | K103: 99 | L103: 101 | N103: ○ | O103: ○
A104: 101 | B104: 1100 | C104: 0 | D104: 90000 | E104: 135000 | F104: 20000 | G104: 645 | H104: 25 | I104: 0 | J104: 120 | K104: 100 | L104: 102 | N104: ○ | O104: ○
A105: 102 | B105: 1200 | C105: 0 | D105: 90000 | E105: 135000 | F105: 20000 | G105: 550 | H105: 25 | I105: 0 | J105: 120 | K105: 101 | L105: 103 | N105: ○ | O105: ○
A106: 103 | B106: 1300 | C106: 0 | D106: 90000 | E106: 135000 | F106: 20000 | G106: 440 | H106: 25 | I106: 0 | J106: 120 | K106: 102 | L106: -1 | N106: ○ | O106: 終端
A107: 104 | B107: 100 | C107: 0 | D107: 40000 | E107: 60000 | F107: -1 | G107: 2400 | H107: 30 | I107: 0 | J107: 80 | K107: -1 | L107: =A108 -> 105 | M107: ISB-LXM-400-40 | N107: 先頭 | O107: ○
A108: 105 | B108: 300 | C108: 0 | D108: 40000 | E108: 60000 | F108: -1 | G108: 2400 | H108: 30 | I108: 0 | J108: 80 | K108: =A107 -> 104 | L108: 106 | N108: ○ | O108: ○
A109: 106 | B109: 500 | C109: 0 | D109: 40000 | E109: 60000 | F109: -1 | G109: 2400 | H109: 30 | I109: 0 | J109: 80 | K109: 105 | L109: 107 | N109: ○ | O109: ○
A110: 107 | B110: 700 | C110: 0 | D110: 40000 | E110: 60000 | F110: -1 | G110: 2400 | H110: 30 | I110: 0 | J110: 80 | K110: 106 | L110: 108 | N110: ○ | O110: ○
A111: 108 | B111: 800 | C111: 0 | D111: 40000 | E111: 60000 | F111: -1 | G111: 2400 | H111: 30 | I111: 0 | J111: 80 | K111: 107 | L111: 109 | N111: ○ | O111: ○
A112: 109 | B112: 900 | C112: 0 | D112: 40000 | E112: 60000 | F112: -1 | G112: 1840 | H112: 30 | I112: 0 | J112: 80 | K112: 108 | L112: 110 | N112: ○ | O112: ○
A113: 110 | B113: 1000 | C113: 0 | D113: 40000 | E113: 60000 | F113: -1 | G113: 1530 | H113: 30 | I113: 0 | J113: 80 | K113: 109 | L113: 111 | N113: ○ | O113: ○
A114: 111 | B114: 1100 | C114: 0 | D114: 40000 | E114: 60000 | F114: -1 | G114: 1290 | H114: 30 | I114: 0 | J114: 80 | K114: 110 | L114: 112 | N114: ○ | O114: ○
A115: 112 | B115: 1200 | C115: 0 | D115: 40000 | E115: 60000 | F115: -1 | G115: 1100 | H115: 30 | I115: 0 | J115: 80 | K115: 111 | L115: 113 | N115: ○ | O115: ○
A116: 113 | B116: 1300 | C116: 0 | D116: 40000 | E116: 60000 | F116: -1 | G116: 880 | H116: 30 | I116: 0 | J116: 80 | K116: 112 | L116: -1 | N116: ○ | O116: 終端
A117: 114 | B117: 580 | C117: 0 | D117: 55000 | E117: 77000 | F117: 14000 | G117: 240 | H117: 30 | I117: 0 | J117: 120 | K117: -1 | L117: =A118 -> 115 | M117: ISB-SXL-60-4 | N117: 先頭 | O117: ○
A118: 115 | B118: 680 | C118: 0 | D118: 55000 | E118: 77000 | F118: 14000 | G118: 165 | H118: 30 | I118: 0 | J118: 120 | K118: =A117 -> 114 | L118: =A119 -> 116 | N118: ○ | O118: ○
A119: 116 | B119: 780 | C119: 0 | D119: 55000 | E119: 77000 | F119: 14000 | G119: 130 | H119: 30 | I119: 0 | J119: 120 | K119: =A118 -> 115 | L119: =A120 -> 117 | N119: ○ | O119: ○
A120: 117 | B120: 880 | C120: 0 | D120: 55000 | E120: 77000 | F120: 14000 | G120: 100 | H120: 30 | I120: 0 | J120: 120 | K120: =A119 -> 116 | L120: -1 | N120: ○ | O120: 終端
A121: 118 | B121: 580 | C121: 0 | D121: 27500 | E121: 40500 | F121: 7000 | G121: 480 | H121: 35 | I121: 0 | J121: 93 | K121: -1 | L121: =A122 -> 119 | M121: ISB-SXL-60-8 | N121: 先頭 | O121: ○
A122: 119 | B122: 680 | C122: 0 | D122: 27500 | E122: 40500 | F122: 7000 | G122: 330 | H122: 35 | I122: 0 | J122: 93 | K122: =A121 -> 118 | L122: =A123 -> 120 | N122: ○ | O122: ○
A123: 120 | B123: 780 | C123: 0 | D123: 27500 | E123: 40500 | F123: 7000 | G123: 260 | H123: 35 | I123: 0 | J123: 93 | K123: =A122 -> 119 | L123: =A124 -> 121 | N123: ○ | O123: ○
A124: 121 | B124: 880 | C124: 0 | D124: 27500 | E124: 40500 | F124: 7000 | G124: 210 | H124: 35 | I124: 0 | J124: 93 | K124: =A123 -> 120 | L124: -1 | N124: ○ | O124: 終端
A125: 122 | B125: 280 | C125: 0 | D125: 13000 | E125: 19500 | F125: 3500 | G125: 960 | H125: 30 | I125: 0 | J125: 85 | K125: -1 | L125: =A126 -> 123 | M125: ISB-SXL-60-16 | N125: 先頭 | O125: ○
A126: 123 | B126: 380 | C126: 0 | D126: 13000 | E126: 19500 | F126: 3500 | G126: 960 | H126: 30 | I126: 0 | J126: 85 | K126: =A125 -> 122 | L126: 124 | N126: ○ | O126: ○
A127: 124 | B127: 480 | C127: 0 | D127: 13000 | E127: 19500 | F127: 3500 | G127: 960 | H127: 30 | I127: 0 | J127: 85 | K127: 123 | L127: 125 | N127: ○ | O127: ○
A128: 125 | B128: 580 | C128: 0 | D128: 13000 | E128: 19500 | F128: 3500 | G128: 960 | H128: 30 | I128: 0 | J128: 85 | K128: 124 | L128: 126 | N128: ○ | O128: ○
A129: 126 | B129: 680 | C129: 0 | D129: 13000 | E129: 19500 | F129: 3500 | G129: 655 | H129: 20 | I129: 0 | J129: 120 | K129: 125 | L129: 127 | N129: ○ | O129: ○
A130: 127 | B130: 780 | C130: 0 | D130: 13000 | E130: 19500 | F130: 3500 | G130: 515 | H130: 20 | I130: 0 | J130: 120 | K130: 126 | L130: 128 | N130: ○ | O130: ○
A131: 128 | B131: 880 | C131: 0 | D131: 13000 | E131: 19500 | F131: 3500 | G131: 415 | H131: 20 | I131: 0 | J131: 120 | K131: 127 | L131: -1 | N131: ○ | O131: 終端
A132: =A131+1 -> 129 | B132: 670 | C132: 0 | D132: 85000 | E132: 119000 | F132: 20000 | G132: 300 | H132: 30 | I132: 0 | J132: 120 | K132: -1 | L132: =A133 -> 130 | M132: ISB-MXL-100-5 | N132: =IF(K132=A131,"○",IF(M132<>0,"先頭","つなぎまちがい")) -> 先頭 | O132: =IF(L132=A133,"○",IF(L132<>K133,"つなぎまちがい","終端")) -> ○
A133: 130 | B133: 770 | C133: 0 | D133: 85000 | E133: 119000 | F133: 20000 | G133: 215 | H133: 30 | I133: 0 | J133: 120 | K133: =A132 -> 129 | L133: =A134 -> 131 | N133: ○ | O133: ○
A134: 131 | B134: 870 | C134: 0 | D134: 85000 | E134: 119000 | F134: 20000 | G134: 170 | H134: 30 | I134: 0 | J134: 120 | K134: =A133 -> 130 | L134: =A135 -> 132 | N134: ○ | O134: ○
A135: 132 | B135: 970 | C135: 0 | D135: 85000 | E135: 119000 | F135: 20000 | G135: 140 | H135: 30 | I135: 0 | J135: 120 | K135: =A134 -> 131 | L135: =A136 -> 133 | N135: ○ | O135: ○
A136: 133 | B136: 1070 | C136: 0 | D136: 85000 | E136: 119000 | F136: 20000 | G136: 115 | H136: 30 | I136: 0 | J136: 120 | K136: =A135 -> 132 | L136: -1 | N136: ○ | O136: 終端
A137: 134 | B137: 670 | C137: 0 | D137: 45000 | E137: 67500 | F137: 10000 | G137: 600 | H137: 35 | I137: 0 | J137: 93 | K137: -1 | L137: =A138 -> 135 | M137: ISB-MXL-100-10 | N137: 先頭 | O137: ○
A138: 135 | B138: 770 | C138: 0 | D138: 45000 | E138: 67500 | F138: 10000 | G138: 430 | H138: 35 | I138: 0 | J138: 93 | K138: =A137 -> 134 | L138: =A139 -> 136 | N138: ○ | O138: ○
A139: 136 | B139: 870 | C139: 0 | D139: 45000 | E139: 67500 | F139: 10000 | G139: 345 | H139: 35 | I139: 0 | J139: 93 | K139: =A138 -> 135 | L139: =A140 -> 137 | N139: ○ | O139: ○
A140: 137 | B140: 970 | C140: 0 | D140: 45000 | E140: 67500 | F140: 10000 | G140: 280 | H140: 35 | I140: 0 | J140: 93 | K140: =A139 -> 136 | L140: =A141 -> 138 | N140: ○ | O140: ○
A141: 138 | B141: 1070 | C141: 0 | D141: 45000 | E141: 67500 | F141: 10000 | G141: 230 | H141: 35 | I141: 0 | J141: 93 | K141: =A140 -> 137 | L141: -1 | N141: ○ | O141: 終端
A142: 139 | B142: 670 | C142: 0 | D142: 23000 | E142: 34500 | F142: -1 | G142: 1200 | H142: 35 | I142: 0 | J142: 93 | K142: -1 | L142: =A143 -> 140 | M142: ISB-MXL-100-20 | N142: 先頭 | O142: ○
A143: 140 | B143: 770 | C143: 0 | D143: 23000 | E143: 34500 | F143: -1 | G143: 860 | H143: 30 | I143: 0 | J143: 85 | K143: =A142 -> 139 | L143: =A144 -> 141 | N143: ○ | O143: ○
A144: 141 | B144: 870 | C144: 0 | D144: 23000 | E144: 34500 | F144: -1 | G144: 695 | H144: 30 | I144: 0 | J144: 85 | K144: =A143 -> 140 | L144: =A145 -> 142 | N144: ○ | O144: ○
A145: 142 | B145: 970 | C145: 0 | D145: 23000 | E145: 34500 | F145: -1 | G145: 570 | H145: 30 | I145: 0 | J145: 85 | K145: =A144 -> 141 | L145: =A146 -> 143 | N145: ○ | O145: ○
A146: 143 | B146: 1070 | C146: 0 | D146: 23000 | E146: 34500 | F146: -1 | G146: 460 | H146: 30 | I146: 0 | J146: 85 | K146: =A145 -> 142 | L146: -1 | N146: ○ | O146: 終端
A147: 144 | B147: 170 | C147: 0 | D147: 15000 | E147: 22500 | F147: -1 | G147: 1800 | H147: 30 | I147: 0 | J147: 100 | K147: -1 | L147: =A148 -> 145 | M147: ISB-MXL-100-30 | N147: 先頭 | O147: ○
A148: 145 | B148: 370 | C148: 0 | D148: 15000 | E148: 22500 | F148: -1 | G148: 1800 | H148: 30 | I148: 0 | J148: 100 | K148: =A147 -> 144 | L148: 146 | N148: ○ | O148: ○
A149: 146 | B149: 470 | C149: 0 | D149: 15000 | E149: 22500 | F149: -1 | G149: 1800 | H149: 30 | I149: 0 | J149: 100 | K149: 145 | L149: 147 | N149: ○ | O149: ○
A150: 147 | B150: 570 | C150: 0 | D150: 15000 | E150: 22500 | F150: -1 | G150: 1800 | H150: 30 | I150: 0 | J150: 100 | K150: 146 | L150: 148 | N150: ○ | O150: ○
A151: 148 | B151: 670 | C151: 0 | D151: 15000 | E151: 22500 | F151: -1 | G151: 1800 | H151: 30 | I151: 0 | J151: 100 | K151: 147 | L151: 149 | N151: ○ | O151: ○
A152: 149 | B152: 770 | C152: 0 | D152: 15000 | E152: 22500 | F152: -1 | G152: 1290 | H152: 30 | I152: 0 | J152: 100 | K152: 148 | L152: 150 | N152: ○ | O152: ○
A153: 150 | B153: 870 | C153: 0 | D153: 15000 | E153: 22500 | F153: -1 | G153: 1045 | H153: 30 | I153: 0 | J153: 100 | K153: 149 | L153: 151 | N153: ○ | O153: ○
A154: 151 | B154: 970 | C154: 0 | D154: 15000 | E154: 22500 | F154: -1 | G154: 860 | H154: 30 | I154: 0 | J154: 100 | K154: 150 | L154: 152 | N154: ○ | O154: ○
A155: 152 | B155: 1070 | C155: 0 | D155: 15000 | E155: 22500 | F155: -1 | G155: 690 | H155: 30 | I155: 0 | J155: 100 | K155: 151 | L155: -1 | N155: ○ | O155: 終端
A156: 153 | B156: 670 | C156: 0 | D156: 110000 | E156: 154000 | F156: 40000 | G156: 300 | H156: 30 | I156: 0 | J156: 120 | K156: -1 | L156: =A157 -> 154 | M156: ISB-MXL-200-5 | N156: 先頭 | O156: ○
A157: 154 | B157: 770 | C157: 0 | D157: 110000 | E157: 154000 | F157: 40000 | G157: 215 | H157: 30 | I157: 0 | J157: 120 | K157: =A156 -> 153 | L157: =A158 -> 155 | N157: ○ | O157: ○
A158: 155 | B158: 870 | C158: 0 | D158: 110000 | E158: 154000 | F158: 40000 | G158: 170 | H158: 30 | I158: 0 | J158: 120 | K158: =A157 -> 154 | L158: =A159 -> 156 | N158: ○ | O158: ○
A159: 156 | B159: 970 | C159: 0 | D159: 110000 | E159: 154000 | F159: 40000 | G159: 140 | H159: 30 | I159: 0 | J159: 120 | K159: =A158 -> 155 | L159: =A160 -> 157 | N159: ○ | O159: ○
A160: 157 | B160: 1070 | C160: 0 | D160: 110000 | E160: 154000 | F160: 40000 | G160: 115 | H160: 30 | I160: 0 | J160: 120 | K160: =A159 -> 156 | L160: -1 | N160: ○ | O160: 終端
A161: 158 | B161: 270 | C161: 0 | D161: 90000 | E161: 135000 | F161: 20000 | G161: 600 | H161: 30 | I161: 0 | J161: 85 | K161: -1 | L161: =A162 -> 159 | M161: ISB-MXL-200-10 | N161: 先頭 | O161: ○
A162: 159 | B162: 370 | C162: 0 | D162: 90000 | E162: 135000 | F162: 20000 | G162: 600 | H162: 30 | I162: 0 | J162: 85 | K162: =A161 -> 158 | L162: 160 | N162: ○ | O162: ○
A163: 160 | B163: 470 | C163: 0 | D163: 90000 | E163: 135000 | F163: 20000 | G163: 600 | H163: 30 | I163: 0 | J163: 85 | K163: 159 | L163: 161 | N163: ○ | O163: ○
A164: 161 | B164: 570 | C164: 0 | D164: 90000 | E164: 135000 | F164: 20000 | G164: 600 | H164: 30 | I164: 0 | J164: 85 | K164: 160 | L164: 162 | N164: ○ | O164: ○
A165: 162 | B165: 670 | C165: 0 | D165: 90000 | E165: 135000 | F165: 20000 | G165: 600 | H165: 30 | I165: 0 | J165: 85 | K165: 161 | L165: 163 | N165: ○ | O165: ○
A166: 163 | B166: 770 | C166: 0 | D166: 90000 | E166: 135000 | F166: 20000 | G166: 430 | H166: 30 | I166: 0 | J166: 85 | K166: 162 | L166: 164 | N166: ○ | O166: ○
A167: 164 | B167: 870 | C167: 0 | D167: 90000 | E167: 135000 | F167: 20000 | G167: 345 | H167: 30 | I167: 0 | J167: 85 | K167: 163 | L167: 165 | N167: ○ | O167: ○
A168: 165 | B168: 970 | C168: 0 | D168: 90000 | E168: 135000 | F168: 20000 | G168: 280 | H168: 30 | I168: 0 | J168: 85 | K168: 164 | L168: 166 | N168: ○ | O168: ○
A169: 166 | B169: 1070 | C169: 0 | D169: 90000 | E169: 135000 | F169: 20000 | G169: 230 | H169: 30 | I169: 0 | J169: 85 | K169: 165 | L169: -1 | N169: ○ | O169: 終端
A170: 167 | B170: 670 | C170: 0 | D170: 45000 | E170: 67500 | F170: -1 | G170: 1200 | H170: 30 | I170: 0 | J170: 85 | K170: -1 | L170: =A171 -> 168 | M170: ISB-MXL-200-20 | N170: 先頭 | O170: ○
A171: 168 | B171: 770 | C171: 0 | D171: 45000 | E171: 67500 | F171: -1 | G171: 860 | H171: 30 | I171: 0 | J171: 85 | K171: =A170 -> 167 | L171: =A172 -> 169 | N171: ○ | O171: ○
A172: 169 | B172: 870 | C172: 0 | D172: 45000 | E172: 67500 | F172: -1 | G172: 695 | H172: 30 | I172: 0 | J172: 85 | K172: =A171 -> 168 | L172: =A173 -> 170 | N172: ○ | O172: ○
A173: 170 | B173: 970 | C173: 0 | D173: 45000 | E173: 67500 | F173: -1 | G173: 570 | H173: 30 | I173: 0 | J173: 85 | K173: =A172 -> 169 | L173: =A174 -> 171 | N173: ○ | O173: ○
A174: 171 | B174: 1070 | C174: 0 | D174: 45000 | E174: 67500 | F174: -1 | G174: 460 | H174: 30 | I174: 0 | J174: 85 | K174: =A173 -> 170 | L174: -1 | N174: ○ | O174: 終端
A175: 172 | B175: 670 | C175: 0 | D175: 30000 | E175: 45000 | F175: -1 | G175: 1800 | H175: 30 | I175: 0 | J175: 80 | K175: -1 | L175: =A176 -> 173 | M175: ISB-MXL-200-30 | N175: 先頭 | O175: ○
A176: 173 | B176: 770 | C176: 0 | D176: 30000 | E176: 45000 | F176: -1 | G176: 1290 | H176: 30 | I176: 0 | J176: 80 | K176: =A175 -> 172 | L176: =A177 -> 174 | N176: ○ | O176: ○
A177: 174 | B177: 870 | C177: 0 | D177: 30000 | E177: 45000 | F177: -1 | G177: 1045 | H177: 30 | I177: 0 | J177: 80 | K177: =A176 -> 173 | L177: =A178 -> 175 | N177: ○ | O177: ○
A178: 175 | B178: 970 | C178: 0 | D178: 30000 | E178: 45000 | F178: -1 | G178: 860 | H178: 30 | I178: 0 | J178: 80 | K178: =A177 -> 174 | L178: =A179 -> 176 | N178: ○ | O178: ○
A179: 176 | B179: 1070 | C179: 0 | D179: 30000 | E179: 45000 | F179: -1 | G179: 690 | H179: 30 | I179: 0 | J179: 80 | K179: =A178 -> 175 | L179: -1 | N179: ○ | O179: 終端
A180: 177 | B180: 570 | C180: 0 | D180: 90000 | E180: 135000 | F180: 20000 | G180: 600 | H180: 35 | I180: 0 | J180: 93 | K180: -1 | L180: =A181 -> 178 | M180: ISB-LXL-200-10 | N180: 先頭 | O180: ○
A181: 178 | B181: 770 | C181: 0 | D181: 90000 | E181: 135000 | F181: 20000 | G181: 600 | H181: 35 | I181: 0 | J181: 93 | K181: =A180 -> 177 | L181: 179 | N181: ○ | O181: ○
A182: 179 | B182: 870 | C182: 0 | D182: 90000 | E182: 135000 | F182: 20000 | G182: 460 | H182: 35 | I182: 0 | J182: 93 | K182: 178 | L182: 180 | N182: ○ | O182: ○
A183: 180 | B183: 970 | C183: 0 | D183: 90000 | E183: 135000 | F183: 20000 | G183: 380 | H183: 35 | I183: 0 | J183: 93 | K183: 179 | L183: 181 | N183: ○ | O183: ○
A184: 181 | B184: 1070 | C184: 0 | D184: 90000 | E184: 135000 | F184: 20000 | G184: 320 | H184: 35 | I184: 0 | J184: 93 | K184: 180 | L184: 182 | N184: ○ | O184: ○
A185: 182 | B185: 1170 | C185: 0 | D185: 90000 | E185: 135000 | F185: 20000 | G185: 270 | H185: 35 | I185: 0 | J185: 93 | K185: 181 | L185: 183 | N185: ○ | O185: ○
A186: 183 | B186: 1270 | C186: 0 | D186: 90000 | E186: 135000 | F186: 20000 | G186: 220 | H186: 35 | I186: 0 | J186: 93 | K186: 182 | L186: -1 | N186: ○ | O186: 終端
A187: 184 | B187: 470 | C187: 0 | D187: 45000 | E187: 67500 | F187: 10000 | G187: 1200 | H187: 35 | I187: 0 | J187: 93 | K187: -1 | L187: =A188 -> 185 | M187: ISB-LXL-200-20 | N187: 先頭 | O187: ○
A188: 185 | B188: 770 | C188: 0 | D188: 45000 | E188: 67500 | F188: 10000 | G188: 1200 | H188: 35 | I188: 0 | J188: 93 | K188: =A187 -> 184 | L188: 186 | N188: ○ | O188: ○
A189: 186 | B189: 870 | C189: 0 | D189: 45000 | E189: 67500 | F189: 10000 | G189: 920 | H189: 35 | I189: 0 | J189: 93 | K189: 185 | L189: 187 | N189: ○ | O189: ○
A190: 187 | B190: 970 | C190: 0 | D190: 45000 | E190: 67500 | F190: 10000 | G190: 765 | H190: 35 | I190: 0 | J190: 93 | K190: 186 | L190: 188 | N190: ○ | O190: ○
A191: 188 | B191: 1070 | C191: 0 | D191: 45000 | E191: 67500 | F191: 10000 | G191: 645 | H191: 35 | I191: 0 | J191: 93 | K191: 187 | L191: 189 | N191: ○ | O191: ○
A192: 189 | B192: 1170 | C192: 0 | D192: 45000 | E192: 67500 | F192: 10000 | G192: 550 | H192: 35 | I192: 0 | J192: 93 | K192: 188 | L192: 190 | N192: ○ | O192: ○
A193: 190 | B193: 1270 | C193: 0 | D193: 45000 | E193: 67500 | F193: 10000 | G193: 440 | H193: 35 | I193: 0 | J193: 93 | K193: 189 | L193: -1 | N193: ○ | O193: 終端
A194: 191 | B194: 270 | C194: 0 | D194: 15000 | E194: 22500 | F194: -1 | G194: 2400 | H194: 30 | I194: 0 | J194: 80 | K194: -1 | L194: =A195 -> 192 | M194: ISB-LXL-200-40 | N194: 先頭 | O194: ○
A195: 192 | B195: 470 | C195: 0 | D195: 15000 | E195: 22500 | F195: -1 | G195: 2400 | H195: 30 | I195: 0 | J195: 80 | K195: =A194 -> 191 | L195: 193 | N195: ○ | O195: ○
A196: =A195+1 -> 193 | B196: 670 | C196: 0 | D196: 15000 | E196: 22500 | F196: -1 | G196: 2400 | H196: 30 | I196: 0 | J196: 80 | K196: 192 | L196: 194 | N196: =IF(K196=A195,"○",IF(M196<>0,"先頭","つなぎまちがい")) -> ○ | O196: =IF(L196=A197,"○",IF(L196<>K197,"つなぎまちがい","終端")) -> ○
A197: 194 | B197: 770 | C197: 0 | D197: 15000 | E197: 22500 | F197: -1 | G197: 2400 | H197: 30 | I197: 0 | J197: 80 | K197: 193 | L197: 195 | N197: ○ | O197: ○
A198: 195 | B198: 870 | C198: 0 | D198: 15000 | E198: 22500 | F198: -1 | G198: 1840 | H198: 30 | I198: 0 | J198: 80 | K198: 194 | L198: 196 | N198: ○ | O198: ○
A199: 196 | B199: 970 | C199: 0 | D199: 15000 | E199: 22500 | F199: -1 | G199: 1530 | H199: 30 | I199: 0 | J199: 80 | K199: 195 | L199: 197 | N199: ○ | O199: ○
A200: 197 | B200: 1070 | C200: 0 | D200: 15000 | E200: 22500 | F200: -1 | G200: 1290 | H200: 30 | I200: 0 | J200: 80 | K200: 196 | L200: 198 | N200: ○ | O200: ○
... 1836 more rows

Sheet MassDataLink (hidden)
B1: 1 | C1: 2 | D1: 3 | E1: 4 | F1: 5 | H1: 1000 | I1: =COUNTIF(I4:I2811,"つなぎまちがい") -> 0 | J1: =COUNTIF(J4:J2811,"つなぎまちがい") -> 0
A2: ﾃﾞｰﾀ№ | B2: ｱｸﾁｭｴｰﾀ姿勢 | C2: 搬送負荷質量 | D2: 加減速・速度ﾃﾞｰﾀ | E2: 前ﾃﾞｰﾀ№ | F2: 次ﾃﾞｰﾀ№ | G2: 備考 | I2: ﾚｺｰﾄﾞﾘﾝｸのﾁｪｯｸ
A3: =ModelData!A3 -> 0 | B3: 0/1 | C3: 1g | D3: ﾚｺｰﾄﾞ№ | E3: ﾚｺｰﾄﾞ№ | F3: ﾚｺｰﾄﾞ№ | G3: 型式-姿勢 | H3: 質量 | I3: 前ﾃﾞｰﾀ | J3: 次ﾃﾞｰﾀ
A4: =A3+1 -> 1 | B4: 0 | C4: =H4*$H$1 -> 30000 | D4: =AccVelDataLink!A4 -> 1 | E4: -1 | F4: =A5 -> 2 | G4: =AccVelDataLink!F4 -> ISB-SXM-60-4-水平 | H4: =AccVelDataLink!G4 -> 30 | I4: =IF(E4=A3,"○",IF(G4=0,"つなぎまちがい","先頭")) -> 先頭 | J4: =IF(F4=A5,"○",IF(F4<>E5,"つなぎまちがい","終端")) -> ○
A5: 2 | B5: 0 | C5: 38000 | D5: =AccVelDataLink!A5 -> 2 | E5: =A4 -> 1 | F5: 3 | H5: =AccVelDataLink!G5 -> 38 | I5: ○ | J5: ○
A6: 3 | B6: 0 | C6: 50000 | D6: =AccVelDataLink!A6 -> 3 | E6: 2 | F6: 4 | H6: =AccVelDataLink!G6 -> 50 | I6: ○ | J6: ○
A7: 4 | B7: 0 | C7: 55000 | D7: =AccVelDataLink!A7 -> 4 | E7: 3 | F7: 5 | H7: =AccVelDataLink!G7 -> 55 | I7: ○ | J7: ○
A8: 5 | B8: 0 | C8: 77000 | D8: =AccVelDataLink!A8 -> 5 | E8: 4 | F8: 6 | H8: =AccVelDataLink!G8 -> 77 | I8: ○ | J8: ○
A9: 6 | B9: 1 | C9: 12000 | D9: =AccVelDataLink!A9 -> 6 | E9: 5 | F9: 7 | G9: =AccVelDataLink!F9 -> ISB-SXM-60-4-垂直 | H9: =AccVelDataLink!G9 -> 12 | I9: ○ | J9: ○
A10: 7 | B10: 1 | C10: 13000 | D10: =AccVelDataLink!A10 -> 7 | E10: 6 | F10: 8 | H10: =AccVelDataLink!G10 -> 13 | I10: ○ | J10: ○
A11: 8 | B11: 1 | C11: 14000 | D11: =AccVelDataLink!A11 -> 8 | E11: 7 | F11: -1 | H11: =AccVelDataLink!G11 -> 14 | I11: ○ | J11: 終端
A12: 9 | B12: 0 | C12: 4000 | D12: =AccVelDataLink!A12 -> 9 | E12: -1 | F12: =A13 -> 10 | G12: =AccVelDataLink!F12 -> ISB-SXM-60-8-水平 | H12: =AccVelDataLink!G12 -> 4 | I12: 先頭 | J12: ○
A13: 10 | B13: 0 | C13: 8000 | D13: =AccVelDataLink!A13 -> 10 | E13: =A12 -> 9 | F13: 11 | H13: =AccVelDataLink!G13 -> 8 | I13: ○ | J13: ○
A14: 11 | B14: 0 | C14: 10200 | D14: =AccVelDataLink!A14 -> 11 | E14: 10 | F14: 12 | H14: =AccVelDataLink!G14 -> 10.2 | I14: ○ | J14: ○
A15: 12 | B15: 0 | C15: 12000 | D15: =AccVelDataLink!A15 -> 12 | E15: 11 | F15: 13 | H15: =AccVelDataLink!G15 -> 12 | I15: ○ | J15: ○
A16: 13 | B16: 0 | C16: 15000 | D16: =AccVelDataLink!A16 -> 13 | E16: 12 | F16: 14 | H16: =AccVelDataLink!G16 -> 15 | I16: ○ | J16: ○
A17: 14 | B17: 0 | C17: 20000 | D17: =AccVelDataLink!A17 -> 14 | E17: 13 | F17: 15 | H17: =AccVelDataLink!G17 -> 20 | I17: ○ | J17: ○
A18: 15 | B18: 0 | C18: 27000 | D18: =AccVelDataLink!A18 -> 15 | E18: 14 | F18: 16 | H18: =AccVelDataLink!G18 -> 27 | I18: ○ | J18: ○
A19: 16 | B19: 0 | C19: 31000 | D19: =AccVelDataLink!A19 -> 16 | E19: 15 | F19: 17 | H19: =AccVelDataLink!G19 -> 31 | I19: ○ | J19: ○
A20: 17 | B20: 0 | C20: 35000 | D20: =AccVelDataLink!A20 -> 17 | E20: 16 | F20: 18 | H20: =AccVelDataLink!G20 -> 35 | I20: ○ | J20: ○
A21: 18 | B21: 0 | C21: 40500 | D21: =AccVelDataLink!A21 -> 18 | E21: 17 | F21: 19 | H21: =AccVelDataLink!G21 -> 40.5 | I21: ○ | J21: ○
A22: 19 | B22: 1 | C22: 2000 | D22: =AccVelDataLink!A22 -> 19 | E22: 18 | F22: 20 | G22: =AccVelDataLink!F22 -> ISB-SXM-60-8-垂直 | H22: =AccVelDataLink!G22 -> 2 | I22: ○ | J22: ○
A23: 20 | B23: 1 | C23: 4000 | D23: =AccVelDataLink!A23 -> 20 | E23: 19 | F23: 21 | H23: =AccVelDataLink!G23 -> 4 | I23: ○ | J23: ○
A24: 21 | B24: 1 | C24: 5000 | D24: =AccVelDataLink!A24 -> 21 | E24: 20 | F24: 22 | H24: =AccVelDataLink!G24 -> 5 | I24: ○ | J24: ○
A25: 22 | B25: 1 | C25: 6000 | D25: =AccVelDataLink!A25 -> 22 | E25: 21 | F25: 23 | H25: =AccVelDataLink!G25 -> 6 | I25: ○ | J25: ○
A26: 23 | B26: 1 | C26: 7000 | D26: =AccVelDataLink!A26 -> 23 | E26: 22 | F26: -1 | H26: =AccVelDataLink!G26 -> 7 | I26: ○ | J26: 終端
A27: 24 | B27: 0 | C27: 1500 | D27: =AccVelDataLink!A27 -> 24 | E27: -1 | F27: =A28 -> 25 | G27: =AccVelDataLink!F27 -> ISB-SXM-60-16-水平 | H27: =AccVelDataLink!G27 -> 1.5 | I27: 先頭 | J27: ○
A28: 25 | B28: 0 | C28: 1600 | D28: =AccVelDataLink!A28 -> 25 | E28: =A27 -> 24 | F28: 26 | H28: =AccVelDataLink!G28 -> 1.6 | I28: ○ | J28: ○
A29: 26 | B29: 0 | C29: 1800 | D29: =AccVelDataLink!A29 -> 26 | E29: 25 | F29: 27 | H29: =AccVelDataLink!G29 -> 1.8 | I29: ○ | J29: ○
A30: 27 | B30: 0 | C30: 2000 | D30: =AccVelDataLink!A30 -> 27 | E30: 26 | F30: 28 | H30: =AccVelDataLink!G30 -> 2 | I30: ○ | J30: ○
A31: 28 | B31: 0 | C31: 2200 | D31: =AccVelDataLink!A31 -> 28 | E31: 27 | F31: 29 | H31: =AccVelDataLink!G31 -> 2.2 | I31: ○ | J31: ○
A32: 29 | B32: 0 | C32: 2500 | D32: =AccVelDataLink!A32 -> 29 | E32: 28 | F32: 30 | H32: =AccVelDataLink!G32 -> 2.5 | I32: ○ | J32: ○
A33: 30 | B33: 0 | C33: 2800 | D33: =AccVelDataLink!A33 -> 30 | E33: 29 | F33: 31 | H33: =AccVelDataLink!G33 -> 2.8 | I33: ○ | J33: ○
A34: 31 | B34: 0 | C34: 3100 | D34: =AccVelDataLink!A34 -> 31 | E34: 30 | F34: 32 | H34: =AccVelDataLink!G34 -> 3.1 | I34: ○ | J34: ○
A35: 32 | B35: 0 | C35: 3500 | D35: =AccVelDataLink!A35 -> 32 | E35: 31 | F35: 33 | H35: =AccVelDataLink!G35 -> 3.5 | I35: ○ | J35: ○
A36: 33 | B36: 0 | C36: 4000 | D36: =AccVelDataLink!A36 -> 33 | E36: 32 | F36: 34 | H36: =AccVelDataLink!G36 -> 4 | I36: ○ | J36: ○
A37: 34 | B37: 0 | C37: 4500 | D37: =AccVelDataLink!A37 -> 34 | E37: 33 | F37: 35 | H37: =AccVelDataLink!G37 -> 4.5 | I37: ○ | J37: ○
A38: 35 | B38: 0 | C38: 5500 | D38: =AccVelDataLink!A38 -> 35 | E38: 34 | F38: 36 | H38: =AccVelDataLink!G38 -> 5.5 | I38: ○ | J38: ○
A39: 36 | B39: 0 | C39: 6000 | D39: =AccVelDataLink!A39 -> 36 | E39: 35 | F39: 37 | H39: =AccVelDataLink!G39 -> 6 | I39: ○ | J39: ○
A40: 37 | B40: 0 | C40: 7000 | D40: =AccVelDataLink!A40 -> 37 | E40: 36 | F40: 38 | H40: =AccVelDataLink!G40 -> 7 | I40: ○ | J40: ○
A41: 38 | B41: 0 | C41: 8500 | D41: =AccVelDataLink!A41 -> 38 | E41: 37 | F41: 39 | H41: =AccVelDataLink!G41 -> 8.5 | I41: ○ | J41: ○
A42: 39 | B42: 0 | C42: 10500 | D42: =AccVelDataLink!A42 -> 39 | E42: 38 | F42: 40 | H42: =AccVelDataLink!G42 -> 10.5 | I42: ○ | J42: ○
A43: 40 | B43: 0 | C43: 13000 | D43: =AccVelDataLink!A43 -> 40 | E43: 39 | F43: 41 | H43: =AccVelDataLink!G43 -> 13 | I43: ○ | J43: ○
A44: 41 | B44: 0 | C44: 15000 | D44: =AccVelDataLink!A44 -> 41 | E44: 40 | F44: 42 | H44: =AccVelDataLink!G44 -> 15 | I44: ○ | J44: ○
A45: 42 | B45: 0 | C45: 16900 | D45: =AccVelDataLink!A45 -> 42 | E45: 41 | F45: 43 | H45: =AccVelDataLink!G45 -> 16.9 | I45: ○ | J45: ○
A46: 43 | B46: 0 | C46: 19500 | D46: =AccVelDataLink!A46 -> 43 | E46: 42 | F46: 44 | H46: =AccVelDataLink!G46 -> 19.5 | I46: ○ | J46: ○
A47: 44 | B47: 1 | C47: 500 | D47: =AccVelDataLink!A47 -> 44 | E47: 43 | F47: 45 | G47: =AccVelDataLink!F47 -> ISB-SXM-60-16-垂直 | H47: =AccVelDataLink!G47 -> 0.5 | I47: ○ | J47: ○
A48: 45 | B48: 1 | C48: 600 | D48: =AccVelDataLink!A48 -> 45 | E48: 44 | F48: 46 | H48: =AccVelDataLink!G48 -> 0.6 | I48: ○ | J48: ○
A49: 46 | B49: 1 | C49: 800 | D49: =AccVelDataLink!A49 -> 46 | E49: 45 | F49: 47 | H49: =AccVelDataLink!G49 -> 0.8 | I49: ○ | J49: ○
A50: 47 | B50: 1 | C50: 1000 | D50: =AccVelDataLink!A50 -> 47 | E50: 46 | F50: 48 | H50: =AccVelDataLink!G50 -> 1 | I50: ○ | J50: ○
A51: 48 | B51: 1 | C51: 1200 | D51: =AccVelDataLink!A51 -> 48 | E51: 47 | F51: 49 | H51: =AccVelDataLink!G51 -> 1.2 | I51: ○ | J51: ○
A52: 49 | B52: 1 | C52: 1400 | D52: =AccVelDataLink!A52 -> 49 | E52: 48 | F52: 50 | H52: =AccVelDataLink!G52 -> 1.4 | I52: ○ | J52: ○
A53: 50 | B53: 1 | C53: 1600 | D53: =AccVelDataLink!A53 -> 50 | E53: 49 | F53: 51 | H53: =AccVelDataLink!G53 -> 1.6 | I53: ○ | J53: ○
A54: 51 | B54: 1 | C54: 1800 | D54: =AccVelDataLink!A54 -> 51 | E54: 50 | F54: 52 | H54: =AccVelDataLink!G54 -> 1.8 | I54: ○ | J54: ○
A55: 52 | B55: 1 | C55: 2000 | D55: =AccVelDataLink!A55 -> 52 | E55: 51 | F55: 53 | H55: =AccVelDataLink!G55 -> 2 | I55: ○ | J55: ○
A56: 53 | B56: 1 | C56: 2300 | D56: =AccVelDataLink!A56 -> 53 | E56: 52 | F56: 54 | H56: =AccVelDataLink!G56 -> 2.3 | I56: ○ | J56: ○
A57: 54 | B57: 1 | C57: 2600 | D57: =AccVelDataLink!A57 -> 54 | E57: 53 | F57: 55 | H57: =AccVelDataLink!G57 -> 2.6 | I57: ○ | J57: ○
A58: 55 | B58: 1 | C58: 3000 | D58: =AccVelDataLink!A58 -> 55 | E58: 54 | F58: 56 | H58: =AccVelDataLink!G58 -> 3 | I58: ○ | J58: ○
A59: 56 | B59: 1 | C59: 3500 | D59: =AccVelDataLink!A59 -> 56 | E59: 55 | F59: -1 | H59: =AccVelDataLink!G59 -> 3.5 | I59: ○ | J59: 終端
A60: 57 | B60: 0 | C60: 45000 | D60: =AccVelDataLink!A60 -> 57 | E60: -1 | F60: =A61 -> 58 | G60: =AccVelDataLink!F60 -> ISB-MXM-100-5-水平 | H60: =AccVelDataLink!G60 -> 45 | I60: 先頭 | J60: ○
A61: 58 | B61: 0 | C61: 60000 | D61: =AccVelDataLink!A61 -> 58 | E61: =A60 -> 57 | F61: 59 | H61: =AccVelDataLink!G61 -> 60 | I61: ○ | J61: ○
A62: 59 | B62: 0 | C62: 80000 | D62: =AccVelDataLink!A62 -> 59 | E62: 58 | F62: 60 | H62: =AccVelDataLink!G62 -> 80 | I62: ○ | J62: ○
A63: 60 | B63: 0 | C63: 85000 | D63: =AccVelDataLink!A63 -> 60 | E63: 59 | F63: 61 | H63: =AccVelDataLink!G63 -> 85 | I63: ○ | J63: ○
A64: 61 | B64: 0 | C64: 119000 | D64: =AccVelDataLink!A64 -> 61 | E64: 60 | F64: 62 | H64: =AccVelDataLink!G64 -> 119 | I64: ○ | J64: ○
A65: 62 | B65: 1 | C65: 15000 | D65: =AccVelDataLink!A65 -> 62 | E65: 61 | F65: 63 | G65: =AccVelDataLink!F65 -> ISB-MXM-100-5-垂直 | H65: =AccVelDataLink!G65 -> 15 | I65: ○ | J65: ○
A66: 63 | B66: 1 | C66: 17000 | D66: =AccVelDataLink!A66 -> 63 | E66: 62 | F66: 64 | H66: =AccVelDataLink!G66 -> 17 | I66: ○ | J66: ○
A67: 64 | B67: 1 | C67: 20000 | D67: =AccVelDataLink!A67 -> 64 | E67: 63 | F67: -1 | H67: =AccVelDataLink!G67 -> 20 | I67: ○ | J67: 終端
A68: =A67+1 -> 65 | B68: 0 | C68: =H68*$H$1 -> 20000 | D68: =AccVelDataLink!A68 -> 65 | E68: -1 | F68: =A69 -> 66 | G68: =AccVelDataLink!F68 -> ISB-MXM-100-10-水平 | H68: =AccVelDataLink!G68 -> 20 | I68: =IF(E68=A67,"○",IF(G68=0,"つなぎまちがい","先頭")) -> 先頭 | J68: =IF(F68=A69,"○",IF(F68<>E69,"つなぎまちがい","終端")) -> ○
A69: 66 | B69: 0 | C69: 23000 | D69: =AccVelDataLink!A69 -> 66 | E69: =A68 -> 65 | F69: 67 | H69: =AccVelDataLink!G69 -> 23 | I69: ○ | J69: ○
A70: 67 | B70: 0 | C70: 30000 | D70: =AccVelDataLink!A70 -> 67 | E70: 66 | F70: 68 | H70: =AccVelDataLink!G70 -> 30 | I70: ○ | J70: ○
A71: 68 | B71: 0 | C71: 45000 | D71: =AccVelDataLink!A71 -> 68 | E71: 67 | F71: 69 | H71: =AccVelDataLink!G71 -> 45 | I71: ○ | J71: ○
A72: 69 | B72: 0 | C72: 52000 | D72: =AccVelDataLink!A72 -> 69 | E72: 68 | F72: 70 | H72: =AccVelDataLink!G72 -> 52 | I72: ○ | J72: ○
A73: 70 | B73: 0 | C73: 58500 | D73: =AccVelDataLink!A73 -> 70 | E73: 69 | F73: 71 | H73: =AccVelDataLink!G73 -> 58.5 | I73: ○ | J73: ○
A74: 71 | B74: 0 | C74: 67500 | D74: =AccVelDataLink!A74 -> 71 | E74: 70 | F74: 72 | H74: =AccVelDataLink!G74 -> 67.5 | I74: ○ | J74: ○
A75: 72 | B75: 1 | C75: 7000 | D75: =AccVelDataLink!A75 -> 72 | E75: 71 | F75: 73 | G75: =AccVelDataLink!F75 -> ISB-MXM-100-10-垂直 | H75: =AccVelDataLink!G75 -> 7 | I75: ○ | J75: ○
A76: 73 | B76: 1 | C76: 8000 | D76: =AccVelDataLink!A76 -> 73 | E76: 72 | F76: 74 | H76: =AccVelDataLink!G76 -> 8 | I76: ○ | J76: ○
A77: 74 | B77: 1 | C77: 10000 | D77: =AccVelDataLink!A77 -> 74 | E77: 73 | F77: -1 | H77: =AccVelDataLink!G77 -> 10 | I77: ○ | J77: 終端
A78: 75 | B78: 0 | C78: 500 | D78: =AccVelDataLink!A78 -> 75 | E78: -1 | F78: =A79 -> 76 | G78: =AccVelDataLink!F78 -> ISB-MXM-100-20-水平 | H78: =AccVelDataLink!G78 -> 0.5 | I78: 先頭 | J78: ○
A79: 76 | B79: 0 | C79: 1000 | D79: =AccVelDataLink!A79 -> 76 | E79: =A78 -> 75 | F79: 77 | H79: =AccVelDataLink!G79 -> 1 | I79: ○ | J79: ○
A80: 77 | B80: 0 | C80: 1500 | D80: =AccVelDataLink!A80 -> 77 | E80: 76 | F80: 78 | H80: =AccVelDataLink!G80 -> 1.5 | I80: ○ | J80: ○
A81: 78 | B81: 0 | C81: 2000 | D81: =AccVelDataLink!A81 -> 78 | E81: 77 | F81: 79 | H81: =AccVelDataLink!G81 -> 2 | I81: ○ | J81: ○
A82: 79 | B82: 0 | C82: 2500 | D82: =AccVelDataLink!A82 -> 79 | E82: 78 | F82: 80 | H82: =AccVelDataLink!G82 -> 2.5 | I82: ○ | J82: ○
A83: 80 | B83: 0 | C83: 3000 | D83: =AccVelDataLink!A83 -> 80 | E83: 79 | F83: 81 | H83: =AccVelDataLink!G83 -> 3 | I83: ○ | J83: ○
A84: 81 | B84: 0 | C84: 4000 | D84: =AccVelDataLink!A84 -> 81 | E84: 80 | F84: 82 | H84: =AccVelDataLink!G84 -> 4 | I84: ○ | J84: ○
A85: 82 | B85: 0 | C85: 5000 | D85: =AccVelDataLink!A85 -> 82 | E85: 81 | F85: 83 | H85: =AccVelDataLink!G85 -> 5 | I85: ○ | J85: ○
A86: 83 | B86: 0 | C86: 6000 | D86: =AccVelDataLink!A86 -> 83 | E86: 82 | F86: 84 | H86: =AccVelDataLink!G86 -> 6 | I86: ○ | J86: ○
A87: 84 | B87: 0 | C87: 7000 | D87: =AccVelDataLink!A87 -> 84 | E87: 83 | F87: 85 | H87: =AccVelDataLink!G87 -> 7 | I87: ○ | J87: ○
A88: 85 | B88: 0 | C88: 8000 | D88: =AccVelDataLink!A88 -> 85 | E88: 84 | F88: 86 | H88: =AccVelDataLink!G88 -> 8 | I88: ○ | J88: ○
A89: 86 | B89: 0 | C89: 9000 | D89: =AccVelDataLink!A89 -> 86 | E89: 85 | F89: 87 | H89: =AccVelDataLink!G89 -> 9 | I89: ○ | J89: ○
A90: 87 | B90: 0 | C90: 11000 | D90: =AccVelDataLink!A90 -> 87 | E90: 86 | F90: 88 | H90: =AccVelDataLink!G90 -> 11 | I90: ○ | J90: ○
A91: 88 | B91: 0 | C91: 13000 | D91: =AccVelDataLink!A91 -> 88 | E91: 87 | F91: 89 | H91: =AccVelDataLink!G91 -> 13 | I91: ○ | J91: ○
A92: 89 | B92: 0 | C92: 15000 | D92: =AccVelDataLink!A92 -> 89 | E92: 88 | F92: 90 | H92: =AccVelDataLink!G92 -> 15 | I92: ○ | J92: ○
A93: 90 | B93: 0 | C93: 18000 | D93: =AccVelDataLink!A93 -> 90 | E93: 89 | F93: 91 | H93: =AccVelDataLink!G93 -> 18 | I93: ○ | J93: ○
A94: 91 | B94: 0 | C94: 23000 | D94: =AccVelDataLink!A94 -> 91 | E94: 90 | F94: 92 | H94: =AccVelDataLink!G94 -> 23 | I94: ○ | J94: ○
A95: 92 | B95: 0 | C95: 26500 | D95: =AccVelDataLink!A95 -> 92 | E95: 91 | F95: 93 | H95: =AccVelDataLink!G95 -> 26.5 | I95: ○ | J95: ○
A96: 93 | B96: 0 | C96: 30000 | D96: =AccVelDataLink!A96 -> 93 | E96: 92 | F96: 94 | H96: =AccVelDataLink!G96 -> 30 | I96: ○ | J96: ○
A97: 94 | B97: 0 | C97: 34500 | D97: =AccVelDataLink!A97 -> 94 | E97: 93 | F97: -1 | H97: =AccVelDataLink!G97 -> 34.5 | I97: ○ | J97: 終端
A98: 95 | B98: 0 | C98: 750 | D98: =AccVelDataLink!A98 -> 95 | E98: -1 | F98: =A99 -> 96 | G98: =AccVelDataLink!F98 -> ISB-MXM-100-30-水平 | H98: =AccVelDataLink!G98 -> 0.75 | I98: 先頭 | J98: ○
A99: 96 | B99: 0 | C99: 1000 | D99: =AccVelDataLink!A99 -> 96 | E99: =A98 -> 95 | F99: 97 | H99: =AccVelDataLink!G99 -> 1 | I99: ○ | J99: ○
A100: 97 | B100: 0 | C100: 1250 | D100: =AccVelDataLink!A100 -> 97 | E100: 96 | F100: 98 | H100: =AccVelDataLink!G100 -> 1.25 | I100: ○ | J100: ○
A101: 98 | B101: 0 | C101: 1500 | D101: =AccVelDataLink!A101 -> 98 | E101: 97 | F101: 99 | H101: =AccVelDataLink!G101 -> 1.5 | I101: ○ | J101: ○
A102: 99 | B102: 0 | C102: 1750 | D102: =AccVelDataLink!A102 -> 99 | E102: 98 | F102: 100 | H102: =AccVelDataLink!G102 -> 1.75 | I102: ○ | J102: ○
A103: 100 | B103: 0 | C103: 2000 | D103: =AccVelDataLink!A103 -> 100 | E103: 99 | F103: 101 | H103: =AccVelDataLink!G103 -> 2 | I103: ○ | J103: ○
A104: 101 | B104: 0 | C104: 2250 | D104: =AccVelDataLink!A104 -> 101 | E104: 100 | F104: 102 | H104: =AccVelDataLink!G104 -> 2.25 | I104: ○ | J104: ○
A105: 102 | B105: 0 | C105: 2500 | D105: =AccVelDataLink!A105 -> 102 | E105: 101 | F105: 103 | H105: =AccVelDataLink!G105 -> 2.5 | I105: ○ | J105: ○
A106: 103 | B106: 0 | C106: 3000 | D106: =AccVelDataLink!A106 -> 103 | E106: 102 | F106: 104 | H106: =AccVelDataLink!G106 -> 3 | I106: ○ | J106: ○
A107: 104 | B107: 0 | C107: 3500 | D107: =AccVelDataLink!A107 -> 104 | E107: 103 | F107: 105 | H107: =AccVelDataLink!G107 -> 3.5 | I107: ○ | J107: ○
A108: 105 | B108: 0 | C108: 4000 | D108: =AccVelDataLink!A108 -> 105 | E108: 104 | F108: 106 | H108: =AccVelDataLink!G108 -> 4 | I108: ○ | J108: ○
A109: 106 | B109: 0 | C109: 5000 | D109: =AccVelDataLink!A109 -> 106 | E109: 105 | F109: 107 | H109: =AccVelDataLink!G109 -> 5 | I109: ○ | J109: ○
A110: 107 | B110: 0 | C110: 6000 | D110: =AccVelDataLink!A110 -> 107 | E110: 106 | F110: 108 | H110: =AccVelDataLink!G110 -> 6 | I110: ○ | J110: ○
A111: 108 | B111: 0 | C111: 7000 | D111: =AccVelDataLink!A111 -> 108 | E111: 107 | F111: 109 | H111: =AccVelDataLink!G111 -> 7 | I111: ○ | J111: ○
A112: 109 | B112: 0 | C112: 9000 | D112: =AccVelDataLink!A112 -> 109 | E112: 108 | F112: 110 | H112: =AccVelDataLink!G112 -> 9 | I112: ○ | J112: ○
A113: 110 | B113: 0 | C113: 11000 | D113: =AccVelDataLink!A113 -> 110 | E113: 109 | F113: 111 | H113: =AccVelDataLink!G113 -> 11 | I113: ○ | J113: ○
A114: 111 | B114: 0 | C114: 15000 | D114: =AccVelDataLink!A114 -> 111 | E114: 110 | F114: 112 | H114: =AccVelDataLink!G114 -> 15 | I114: ○ | J114: ○
A115: 112 | B115: 0 | C115: 17500 | D115: =AccVelDataLink!A115 -> 112 | E115: 111 | F115: 113 | H115: =AccVelDataLink!G115 -> 17.5 | I115: ○ | J115: ○
A116: 113 | B116: 0 | C116: 19500 | D116: =AccVelDataLink!A116 -> 113 | E116: 112 | F116: 114 | H116: =AccVelDataLink!G116 -> 19.5 | I116: ○ | J116: ○
A117: 114 | B117: 0 | C117: 22500 | D117: =AccVelDataLink!A117 -> 114 | E117: 113 | F117: -1 | H117: =AccVelDataLink!G117 -> 22.5 | I117: ○ | J117: 終端
A118: 115 | B118: 0 | C118: 80000 | D118: =AccVelDataLink!A118 -> 115 | E118: -1 | F118: =A119 -> 116 | G118: =AccVelDataLink!F118 -> ISB-MXM-200-5-水平 | H118: =AccVelDataLink!G118 -> 80 | I118: 先頭 | J118: ○
A119: 116 | B119: 0 | C119: 90000 | D119: =AccVelDataLink!A119 -> 116 | E119: =A118 -> 115 | F119: 117 | H119: =AccVelDataLink!G119 -> 90 | I119: ○ | J119: ○
A120: 117 | B120: 0 | C120: 100000 | D120: =AccVelDataLink!A120 -> 117 | E120: 116 | F120: 118 | H120: =AccVelDataLink!G120 -> 100 | I120: ○ | J120: ○
A121: 118 | B121: 0 | C121: 110000 | D121: =AccVelDataLink!A121 -> 118 | E121: 117 | F121: 119 | H121: =AccVelDataLink!G121 -> 110 | I121: ○ | J121: ○
A122: 119 | B122: 0 | C122: 154000 | D122: =AccVelDataLink!A122 -> 119 | E122: 118 | F122: 120 | H122: =AccVelDataLink!G122 -> 154 | I122: ○ | J122: ○
A123: 120 | B123: 1 | C123: 30000 | D123: =AccVelDataLink!A123 -> 120 | E123: 119 | F123: 121 | G123: =AccVelDataLink!F123 -> ISB-MXM-200-5-垂直 | H123: =AccVelDataLink!G123 -> 30 | I123: ○ | J123: ○
A124: 121 | B124: 1 | C124: 34000 | D124: =AccVelDataLink!A124 -> 121 | E124: 120 | F124: 122 | H124: =AccVelDataLink!G124 -> 34 | I124: ○ | J124: ○
A125: 122 | B125: 1 | C125: 40000 | D125: =AccVelDataLink!A125 -> 122 | E125: 121 | F125: -1 | H125: =AccVelDataLink!G125 -> 40 | I125: ○ | J125: 終端
A126: 123 | B126: 0 | C126: 40000 | D126: =AccVelDataLink!A126 -> 123 | E126: -1 | F126: =A127 -> 124 | G126: =AccVelDataLink!F126 -> ISB-MXM-200-10-水平 | H126: =AccVelDataLink!G126 -> 40 | I126: 先頭 | J126: ○
A127: 124 | B127: 0 | C127: 51000 | D127: =AccVelDataLink!A127 -> 124 | E127: =A126 -> 123 | F127: 125 | H127: =AccVelDataLink!G127 -> 51 | I127: ○ | J127: ○
A128: 125 | B128: 0 | C128: 66000 | D128: =AccVelDataLink!A128 -> 125 | E128: 124 | F128: 126 | H128: =AccVelDataLink!G128 -> 66 | I128: ○ | J128: ○
A129: 126 | B129: 0 | C129: 90000 | D129: =AccVelDataLink!A129 -> 126 | E129: 125 | F129: 127 | H129: =AccVelDataLink!G129 -> 90 | I129: ○ | J129: ○
A130: 127 | B130: 0 | C130: 103500 | D130: =AccVelDataLink!A130 -> 127 | E130: 126 | F130: 128 | H130: =AccVelDataLink!G130 -> 103.5 | I130: ○ | J130: ○
A131: 128 | B131: 0 | C131: 117000 | D131: =AccVelDataLink!A131 -> 128 | E131: 127 | F131: 129 | H131: =AccVelDataLink!G131 -> 117 | I131: ○ | J131: ○
A132: =A131+1 -> 129 | B132: 0 | C132: =H132*$H$1 -> 135000 | D132: =AccVelDataLink!A132 -> 129 | E132: 128 | F132: 130 | H132: =AccVelDataLink!G132 -> 135 | I132: =IF(E132=A131,"○",IF(G132=0,"つなぎまちがい","先頭")) -> ○ | J132: =IF(F132=A133,"○",IF(F132<>E133,"つなぎまちがい","終端")) -> ○
A133: 130 | B133: 1 | C133: 15000 | D133: =AccVelDataLink!A133 -> 130 | E133: 129 | F133: 131 | G133: =AccVelDataLink!F133 -> ISB-MXM-200-10-垂直 | H133: =AccVelDataLink!G133 -> 15 | I133: ○ | J133: ○
A134: 131 | B134: 1 | C134: 17000 | D134: =AccVelDataLink!A134 -> 131 | E134: 130 | F134: 132 | H134: =AccVelDataLink!G134 -> 17 | I134: ○ | J134: ○
A135: 132 | B135: 1 | C135: 20000 | D135: =AccVelDataLink!A135 -> 132 | E135: 131 | F135: -1 | H135: =AccVelDataLink!G135 -> 20 | I135: ○ | J135: 終端
A136: 133 | B136: 0 | C136: 4000 | D136: =AccVelDataLink!A136 -> 133 | E136: -1 | F136: =A137 -> 134 | G136: =AccVelDataLink!F136 -> ISB-MXM-200-20-水平 | H136: =AccVelDataLink!G136 -> 4 | I136: 先頭 | J136: ○
A137: 134 | B137: 0 | C137: 5000 | D137: =AccVelDataLink!A137 -> 134 | E137: =A136 -> 133 | F137: 135 | H137: =AccVelDataLink!G137 -> 5 | I137: ○ | J137: ○
A138: 135 | B138: 0 | C138: 6000 | D138: =AccVelDataLink!A138 -> 135 | E138: 134 | F138: 136 | H138: =AccVelDataLink!G138 -> 6 | I138: ○ | J138: ○
A139: 136 | B139: 0 | C139: 7000 | D139: =AccVelDataLink!A139 -> 136 | E139: 135 | F139: 137 | H139: =AccVelDataLink!G139 -> 7 | I139: ○ | J139: ○
A140: 137 | B140: 0 | C140: 8000 | D140: =AccVelDataLink!A140 -> 137 | E140: 136 | F140: 138 | H140: =AccVelDataLink!G140 -> 8 | I140: ○ | J140: ○
A141: 138 | B141: 0 | C141: 9000 | D141: =AccVelDataLink!A141 -> 138 | E141: 137 | F141: 139 | H141: =AccVelDataLink!G141 -> 9 | I141: ○ | J141: ○
A142: 139 | B142: 0 | C142: 10000 | D142: =AccVelDataLink!A142 -> 139 | E142: 138 | F142: 140 | H142: =AccVelDataLink!G142 -> 10 | I142: ○ | J142: ○
A143: 140 | B143: 0 | C143: 11000 | D143: =AccVelDataLink!A143 -> 140 | E143: 139 | F143: 141 | H143: =AccVelDataLink!G143 -> 11 | I143: ○ | J143: ○
A144: 141 | B144: 0 | C144: 12000 | D144: =AccVelDataLink!A144 -> 141 | E144: 140 | F144: 142 | H144: =AccVelDataLink!G144 -> 12 | I144: ○ | J144: ○
A145: 142 | B145: 0 | C145: 13000 | D145: =AccVelDataLink!A145 -> 142 | E145: 141 | F145: 143 | H145: =AccVelDataLink!G145 -> 13 | I145: ○ | J145: ○
A146: 143 | B146: 0 | C146: 15000 | D146: =AccVelDataLink!A146 -> 143 | E146: 142 | F146: 144 | H146: =AccVelDataLink!G146 -> 15 | I146: ○ | J146: ○
A147: 144 | B147: 0 | C147: 17000 | D147: =AccVelDataLink!A147 -> 144 | E147: 143 | F147: 145 | H147: =AccVelDataLink!G147 -> 17 | I147: ○ | J147: ○
A148: 145 | B148: 0 | C148: 20000 | D148: =AccVelDataLink!A148 -> 145 | E148: 144 | F148: 146 | H148: =AccVelDataLink!G148 -> 20 | I148: ○ | J148: ○
A149: 146 | B149: 0 | C149: 23000 | D149: =AccVelDataLink!A149 -> 146 | E149: 145 | F149: 147 | H149: =AccVelDataLink!G149 -> 23 | I149: ○ | J149: ○
A150: 147 | B150: 0 | C150: 28000 | D150: =AccVelDataLink!A150 -> 147 | E150: 146 | F150: 148 | H150: =AccVelDataLink!G150 -> 28 | I150: ○ | J150: ○
A151: 148 | B151: 0 | C151: 35000 | D151: =AccVelDataLink!A151 -> 148 | E151: 147 | F151: 149 | H151: =AccVelDataLink!G151 -> 35 | I151: ○ | J151: ○
A152: 149 | B152: 0 | C152: 45000 | D152: =AccVelDataLink!A152 -> 149 | E152: 148 | F152: 150 | H152: =AccVelDataLink!G152 -> 45 | I152: ○ | J152: ○
A153: 150 | B153: 0 | C153: 52000 | D153: =AccVelDataLink!A153 -> 150 | E153: 149 | F153: 151 | H153: =AccVelDataLink!G153 -> 52 | I153: ○ | J153: ○
A154: 151 | B154: 0 | C154: 58500 | D154: =AccVelDataLink!A154 -> 151 | E154: 150 | F154: 152 | H154: =AccVelDataLink!G154 -> 58.5 | I154: ○ | J154: ○
A155: 152 | B155: 0 | C155: 67500 | D155: =AccVelDataLink!A155 -> 152 | E155: 151 | F155: -1 | H155: =AccVelDataLink!G155 -> 67.5 | I155: ○ | J155: 終端
A156: 153 | B156: 0 | C156: 4500 | D156: =AccVelDataLink!A156 -> 153 | E156: -1 | F156: =A157 -> 154 | G156: =AccVelDataLink!F156 -> ISB-MXM-200-30-水平 | H156: =AccVelDataLink!G156 -> 4.5 | I156: 先頭 | J156: ○
A157: 154 | B157: 0 | C157: 5000 | D157: =AccVelDataLink!A157 -> 154 | E157: =A156 -> 153 | F157: 155 | H157: =AccVelDataLink!G157 -> 5 | I157: ○ | J157: ○
A158: 155 | B158: 0 | C158: 5500 | D158: =AccVelDataLink!A158 -> 155 | E158: 154 | F158: 156 | H158: =AccVelDataLink!G158 -> 5.5 | I158: ○ | J158: ○
A159: 156 | B159: 0 | C159: 6000 | D159: =AccVelDataLink!A159 -> 156 | E159: 155 | F159: 157 | H159: =AccVelDataLink!G159 -> 6 | I159: ○ | J159: ○
A160: 157 | B160: 0 | C160: 6500 | D160: =AccVelDataLink!A160 -> 157 | E160: 156 | F160: 158 | H160: =AccVelDataLink!G160 -> 6.5 | I160: ○ | J160: ○
A161: 158 | B161: 0 | C161: 7000 | D161: =AccVelDataLink!A161 -> 158 | E161: 157 | F161: 159 | H161: =AccVelDataLink!G161 -> 7 | I161: ○ | J161: ○
A162: 159 | B162: 0 | C162: 7500 | D162: =AccVelDataLink!A162 -> 159 | E162: 158 | F162: 160 | H162: =AccVelDataLink!G162 -> 7.5 | I162: ○ | J162: ○
A163: 160 | B163: 0 | C163: 8000 | D163: =AccVelDataLink!A163 -> 160 | E163: 159 | F163: 161 | H163: =AccVelDataLink!G163 -> 8 | I163: ○ | J163: ○
A164: 161 | B164: 0 | C164: 9000 | D164: =AccVelDataLink!A164 -> 161 | E164: 160 | F164: 162 | H164: =AccVelDataLink!G164 -> 9 | I164: ○ | J164: ○
A165: 162 | B165: 0 | C165: 10000 | D165: =AccVelDataLink!A165 -> 162 | E165: 161 | F165: 163 | H165: =AccVelDataLink!G165 -> 10 | I165: ○ | J165: ○
A166: 163 | B166: 0 | C166: 12000 | D166: =AccVelDataLink!A166 -> 163 | E166: 162 | F166: 164 | H166: =AccVelDataLink!G166 -> 12 | I166: ○ | J166: ○
A167: 164 | B167: 0 | C167: 13000 | D167: =AccVelDataLink!A167 -> 164 | E167: 163 | F167: 165 | H167: =AccVelDataLink!G167 -> 13 | I167: ○ | J167: ○
A168: 165 | B168: 0 | C168: 15000 | D168: =AccVelDataLink!A168 -> 165 | E168: 164 | F168: 166 | H168: =AccVelDataLink!G168 -> 15 | I168: ○ | J168: ○
A169: 166 | B169: 0 | C169: 17000 | D169: =AccVelDataLink!A169 -> 166 | E169: 165 | F169: 167 | H169: =AccVelDataLink!G169 -> 17 | I169: ○ | J169: ○
A170: 167 | B170: 0 | C170: 20000 | D170: =AccVelDataLink!A170 -> 167 | E170: 166 | F170: 168 | H170: =AccVelDataLink!G170 -> 20 | I170: ○ | J170: ○
A171: 168 | B171: 0 | C171: 24000 | D171: =AccVelDataLink!A171 -> 168 | E171: 167 | F171: 169 | H171: =AccVelDataLink!G171 -> 24 | I171: ○ | J171: ○
A172: 169 | B172: 0 | C172: 30000 | D172: =AccVelDataLink!A172 -> 169 | E172: 168 | F172: 170 | H172: =AccVelDataLink!G172 -> 30 | I172: ○ | J172: ○
A173: 170 | B173: 0 | C173: 34500 | D173: =AccVelDataLink!A173 -> 170 | E173: 169 | F173: 171 | H173: =AccVelDataLink!G173 -> 34.5 | I173: ○ | J173: ○
A174: 171 | B174: 0 | C174: 39000 | D174: =AccVelDataLink!A174 -> 171 | E174: 170 | F174: 172 | H174: =AccVelDataLink!G174 -> 39 | I174: ○ | J174: ○
A175: 172 | B175: 0 | C175: 45000 | D175: =AccVelDataLink!A175 -> 172 | E175: 171 | F175: -1 | H175: =AccVelDataLink!G175 -> 45 | I175: ○ | J175: 終端
A176: 173 | B176: 0 | C176: 40000 | D176: =AccVelDataLink!A176 -> 173 | E176: -1 | F176: =A177 -> 174 | G176: =AccVelDataLink!F176 -> ISB-LXM-200-10-水平 | H176: =AccVelDataLink!G176 -> 40 | I176: 先頭 | J176: ○
A177: 174 | B177: 0 | C177: 51000 | D177: =AccVelDataLink!A177 -> 174 | E177: =A176 -> 173 | F177: 175 | H177: =AccVelDataLink!G177 -> 51 | I177: ○ | J177: ○
A178: 175 | B178: 0 | C178: 66000 | D178: =AccVelDataLink!A178 -> 175 | E178: 174 | F178: 176 | H178: =AccVelDataLink!G178 -> 66 | I178: ○ | J178: ○
A179: 176 | B179: 0 | C179: 90000 | D179: =AccVelDataLink!A179 -> 176 | E179: 175 | F179: 177 | H179: =AccVelDataLink!G179 -> 90 | I179: ○ | J179: ○
A180: 177 | B180: 0 | C180: 103500 | D180: =AccVelDataLink!A180 -> 177 | E180: 176 | F180: 178 | H180: =AccVelDataLink!G180 -> 103.5 | I180: ○ | J180: ○
A181: 178 | B181: 0 | C181: 117000 | D181: =AccVelDataLink!A181 -> 178 | E181: 177 | F181: 179 | H181: =AccVelDataLink!G181 -> 117 | I181: ○ | J181: ○
A182: 179 | B182: 0 | C182: 135000 | D182: =AccVelDataLink!A182 -> 179 | E182: 178 | F182: 180 | H182: =AccVelDataLink!G182 -> 135 | I182: ○ | J182: ○
A183: 180 | B183: 1 | C183: 14000 | D183: =AccVelDataLink!A183 -> 180 | E183: 179 | F183: 181 | G183: =AccVelDataLink!F183 -> ISB-LXM-200-10-垂直 | H183: =AccVelDataLink!G183 -> 14 | I183: ○ | J183: ○
A184: 181 | B184: 1 | C184: 16000 | D184: =AccVelDataLink!A184 -> 181 | E184: 180 | F184: 182 | H184: =AccVelDataLink!G184 -> 16 | I184: ○ | J184: ○
A185: 182 | B185: 1 | C185: 20000 | D185: =AccVelDataLink!A185 -> 182 | E185: 181 | F185: -1 | H185: =AccVelDataLink!G185 -> 20 | I185: ○ | J185: 終端
A186: 183 | B186: 0 | C186: 1500 | D186: =AccVelDataLink!A186 -> 183 | E186: -1 | F186: =A187 -> 184 | G186: =AccVelDataLink!F186 -> ISB-LXM-200-20-水平 | H186: =AccVelDataLink!G186 -> 1.5 | I186: 先頭 | J186: ○
A187: 184 | B187: 0 | C187: 3000 | D187: =AccVelDataLink!A187 -> 184 | E187: =A186 -> 183 | F187: 185 | H187: =AccVelDataLink!G187 -> 3 | I187: ○ | J187: ○
A188: 185 | B188: 0 | C188: 4500 | D188: =AccVelDataLink!A188 -> 185 | E188: 184 | F188: 186 | H188: =AccVelDataLink!G188 -> 4.5 | I188: ○ | J188: ○
A189: 186 | B189: 0 | C189: 6000 | D189: =AccVelDataLink!A189 -> 186 | E189: 185 | F189: 187 | H189: =AccVelDataLink!G189 -> 6 | I189: ○ | J189: ○
A190: 187 | B190: 0 | C190: 8000 | D190: =AccVelDataLink!A190 -> 187 | E190: 186 | F190: 188 | H190: =AccVelDataLink!G190 -> 8 | I190: ○ | J190: ○
A191: 188 | B191: 0 | C191: 10000 | D191: =AccVelDataLink!A191 -> 188 | E191: 187 | F191: 189 | H191: =AccVelDataLink!G191 -> 10 | I191: ○ | J191: ○
A192: 189 | B192: 0 | C192: 12000 | D192: =AccVelDataLink!A192 -> 189 | E192: 188 | F192: 190 | H192: =AccVelDataLink!G192 -> 12 | I192: ○ | J192: ○
A193: 190 | B193: 0 | C193: 13000 | D193: =AccVelDataLink!A193 -> 190 | E193: 189 | F193: 191 | H193: =AccVelDataLink!G193 -> 13 | I193: ○ | J193: ○
A194: 191 | B194: 0 | C194: 15000 | D194: =AccVelDataLink!A194 -> 191 | E194: 190 | F194: 192 | H194: =AccVelDataLink!G194 -> 15 | I194: ○ | J194: ○
A195: 192 | B195: 0 | C195: 17000 | D195: =AccVelDataLink!A195 -> 192 | E195: 191 | F195: 193 | H195: =AccVelDataLink!G195 -> 17 | I195: ○ | J195: ○
A196: =A195+1 -> 193 | B196: 0 | C196: =H196*$H$1 -> 20000 | D196: =AccVelDataLink!A196 -> 193 | E196: 192 | F196: 194 | H196: =AccVelDataLink!G196 -> 20 | I196: =IF(E196=A195,"○",IF(G196=0,"つなぎまちがい","先頭")) -> ○ | J196: =IF(F196=A197,"○",IF(F196<>E197,"つなぎまちがい","終端")) -> ○
A197: 194 | B197: 0 | C197: 23000 | D197: =AccVelDataLink!A197 -> 194 | E197: 193 | F197: 195 | H197: =AccVelDataLink!G197 -> 23 | I197: ○ | J197: ○
A198: 195 | B198: 0 | C198: 28000 | D198: =AccVelDataLink!A198 -> 195 | E198: 194 | F198: 196 | H198: =AccVelDataLink!G198 -> 28 | I198: ○ | J198: ○
A199: 196 | B199: 0 | C199: 35000 | D199: =AccVelDataLink!A199 -> 196 | E199: 195 | F199: 197 | H199: =AccVelDataLink!G199 -> 35 | I199: ○ | J199: ○
A200: 197 | B200: 0 | C200: 45000 | D200: =AccVelDataLink!A200 -> 197 | E200: 196 | F200: 198 | H200: =AccVelDataLink!G200 -> 45 | I200: ○ | J200: ○
... 3856 more rows

Sheet AccVelDataLink (hidden)
A1: =LeadData!A1 -> 9.80665 | B1: 1 | C1: 2 | D1: 3 | E1: 4
A2: ﾃﾞｰﾀ№ | B2: 水平定格加速度 | C2: 最高速度 | D2: 前ﾃﾞｰﾀ№ | E2: 次ﾃﾞｰﾀ№ | F2: 備考
A3: =ModelData!A3 -> 0 | B3: 0.001mm/s^2 | C3: ㎜/s | D3: ﾚｺｰﾄﾞ№ | E3: ﾚｺｰﾄﾞ№ | F3: 型式-姿勢 | G3: kg | H3: G | I3: mm/s
A4: =A3+1 -> 1 | B4: =H4*$A$1*1000*1000 -> 4903325 | C4: =I4 -> 240 | D4: -1 | E4: -1 | F4: ISB-SXM-60-4-水平 | G4: 30 | H4: 0.5 | I4: 240
A5: 2 | B5: 3922660 | C5: 240 | D5: -1 | E5: -1 | F5: ISB-SXM-60-4-水平 | G5: 38 | H5: 0.4 | I5: 240
A6: 3 | B6: 2941995 | C6: 240 | D6: -1 | E6: -1 | F6: ISB-SXM-60-4-水平 | G6: 50 | H6: 0.3 | I6: 240
A7: 4 | B7: 1961330 | C7: 240 | D7: -1 | E7: -1 | F7: ISB-SXM-60-4-水平 | G7: 55 | H7: 0.2 | I7: 240
A8: 5 | B8: 980665 | C8: 240 | D8: -1 | E8: -1 | F8: ISB-SXM-60-4-水平 | G8: 77 | H8: 0.1 | I8: 240
A9: 6 | B9: 3922660 | C9: 240 | D9: -1 | E9: -1 | F9: ISB-SXM-60-4-垂直 | G9: 12 | H9: 0.4 | I9: 240
A10: 7 | B10: 2941995 | C10: 240 | D10: -1 | E10: -1 | F10: ISB-SXM-60-4-垂直 | G10: 13 | H10: 0.3 | I10: 240
A11: 8 | B11: 1961330 | C11: 240 | D11: -1 | E11: -1 | F11: ISB-SXM-60-4-垂直 | G11: 14 | H11: 0.2 | I11: 240
A12: 9 | B12: 9806650 | C12: 480 | D12: -1 | E12: -1 | F12: ISB-SXM-60-8-水平 | G12: 4 | H12: 1 | I12: 480
A13: 10 | B13: 8825985 | C13: 480 | D13: -1 | E13: -1 | F13: ISB-SXM-60-8-水平 | G13: 8 | H13: 0.9 | I13: 480
A14: 11 | B14: 7845320 | C14: 480 | D14: -1 | E14: -1 | F14: ISB-SXM-60-8-水平 | G14: 10.2 | H14: 0.8 | I14: 480
A15: 12 | B15: 6864655 | C15: 480 | D15: -1 | E15: -1 | F15: ISB-SXM-60-8-水平 | G15: 12 | H15: 0.7 | I15: 480
A16: 13 | B16: 5883990 | C16: 480 | D16: -1 | E16: -1 | F16: ISB-SXM-60-8-水平 | G16: 15 | H16: 0.6 | I16: 480
A17: 14 | B17: 4903325 | C17: 480 | D17: -1 | E17: -1 | F17: ISB-SXM-60-8-水平 | G17: 20 | H17: 0.5 | I17: 480
A18: 15 | B18: 3922660 | C18: 480 | D18: -1 | E18: -1 | F18: ISB-SXM-60-8-水平 | G18: 27 | H18: 0.4 | I18: 480
A19: 16 | B19: 2941995 | C19: 480 | D19: -1 | E19: -1 | F19: ISB-SXM-60-8-水平 | G19: 31 | H19: 0.3 | I19: 480
A20: 17 | B20: 1961330 | C20: 480 | D20: -1 | E20: -1 | F20: ISB-SXM-60-8-水平 | G20: 35 | H20: 0.2 | I20: 480
A21: 18 | B21: 980665 | C21: 480 | D21: -1 | E21: -1 | F21: ISB-SXM-60-8-水平 | G21: 40.5 | H21: 0.1 | I21: 480
A22: 19 | B22: 7845320 | C22: 480 | D22: -1 | E22: -1 | F22: ISB-SXM-60-8-垂直 | G22: 2 | H22: 0.8 | I22: 480
A23: 20 | B23: 6864655 | C23: 480 | D23: -1 | E23: -1 | F23: ISB-SXM-60-8-垂直 | G23: 4 | H23: 0.7 | I23: 480
A24: 21 | B24: 5883990 | C24: 480 | D24: -1 | E24: -1 | F24: ISB-SXM-60-8-垂直 | G24: 5 | H24: 0.6 | I24: 480
A25: 22 | B25: 4903325 | C25: 480 | D25: -1 | E25: -1 | F25: ISB-SXM-60-8-垂直 | G25: 6 | H25: 0.5 | I25: 480
A26: 23 | B26: 3922660 | C26: 480 | D26: -1 | E26: -1 | F26: ISB-SXM-60-8-垂直 | G26: 7 | H26: 0.4 | I26: 480
A27: 24 | B27: 19613300 | C27: 960 | D27: -1 | E27: -1 | F27: ISB-SXM-60-16-水平 | G27: 1.5 | H27: 2 | I27: 960
A28: 25 | B28: 18632635 | C28: 960 | D28: -1 | E28: -1 | F28: ISB-SXM-60-16-水平 | G28: 1.6 | H28: 1.9 | I28: 960
A29: 26 | B29: 17651970 | C29: 960 | D29: -1 | E29: -1 | F29: ISB-SXM-60-16-水平 | G29: 1.8 | H29: 1.8 | I29: 960
A30: 27 | B30: 16671305 | C30: 960 | D30: -1 | E30: -1 | F30: ISB-SXM-60-16-水平 | G30: 2 | H30: 1.7 | I30: 960
A31: 28 | B31: 15690640 | C31: 960 | D31: -1 | E31: -1 | F31: ISB-SXM-60-16-水平 | G31: 2.2 | H31: 1.6 | I31: 960
A32: 29 | B32: 14709975 | C32: 960 | D32: -1 | E32: -1 | F32: ISB-SXM-60-16-水平 | G32: 2.5 | H32: 1.5 | I32: 960
A33: 30 | B33: 13729310 | C33: 960 | D33: -1 | E33: -1 | F33: ISB-SXM-60-16-水平 | G33: 2.8 | H33: 1.4 | I33: 960
A34: 31 | B34: 12748645 | C34: 960 | D34: -1 | E34: -1 | F34: ISB-SXM-60-16-水平 | G34: 3.1 | H34: 1.3 | I34: 960
A35: 32 | B35: 11767980 | C35: 960 | D35: -1 | E35: -1 | F35: ISB-SXM-60-16-水平 | G35: 3.5 | H35: 1.2 | I35: 960
A36: 33 | B36: 10787315 | C36: 960 | D36: -1 | E36: -1 | F36: ISB-SXM-60-16-水平 | G36: 4 | H36: 1.1 | I36: 960
A37: 34 | B37: 9806650 | C37: 960 | D37: -1 | E37: -1 | F37: ISB-SXM-60-16-水平 | G37: 4.5 | H37: 1 | I37: 960
A38: 35 | B38: 8825985 | C38: 960 | D38: -1 | E38: -1 | F38: ISB-SXM-60-16-水平 | G38: 5.5 | H38: 0.9 | I38: 960
A39: 36 | B39: 7845320 | C39: 960 | D39: -1 | E39: -1 | F39: ISB-SXM-60-16-水平 | G39: 6 | H39: 0.8 | I39: 960
A40: 37 | B40: 6864655 | C40: 960 | D40: -1 | E40: -1 | F40: ISB-SXM-60-16-水平 | G40: 7 | H40: 0.7 | I40: 960
A41: 38 | B41: 5883990 | C41: 960 | D41: -1 | E41: -1 | F41: ISB-SXM-60-16-水平 | G41: 8.5 | H41: 0.6 | I41: 960
A42: 39 | B42: 4903325 | C42: 960 | D42: -1 | E42: -1 | F42: ISB-SXM-60-16-水平 | G42: 10.5 | H42: 0.5 | I42: 960
A43: 40 | B43: 3922660 | C43: 960 | D43: -1 | E43: -1 | F43: ISB-SXM-60-16-水平 | G43: 13 | H43: 0.4 | I43: 960
A44: 41 | B44: 2941995 | C44: 960 | D44: -1 | E44: -1 | F44: ISB-SXM-60-16-水平 | G44: 15 | H44: 0.3 | I44: 960
A45: 42 | B45: 1961330 | C45: 960 | D45: -1 | E45: -1 | F45: ISB-SXM-60-16-水平 | G45: 16.9 | H45: 0.2 | I45: 960
A46: 43 | B46: 980665 | C46: 960 | D46: -1 | E46: -1 | F46: ISB-SXM-60-16-水平 | G46: 19.5 | H46: 0.1 | I46: 960
A47: 44 | B47: 15690640 | C47: 960 | D47: -1 | E47: -1 | F47: ISB-SXM-60-16-垂直 | G47: 0.5 | H47: 1.6 | I47: 960
A48: 45 | B48: 14709975 | C48: 960 | D48: -1 | E48: -1 | F48: ISB-SXM-60-16-垂直 | G48: 0.6 | H48: 1.5 | I48: 960
A49: 46 | B49: 13729310 | C49: 960 | D49: -1 | E49: -1 | F49: ISB-SXM-60-16-垂直 | G49: 0.8 | H49: 1.4 | I49: 960
A50: 47 | B50: 12748645 | C50: 960 | D50: -1 | E50: -1 | F50: ISB-SXM-60-16-垂直 | G50: 1 | H50: 1.3 | I50: 960
A51: 48 | B51: 11767980 | C51: 960 | D51: -1 | E51: -1 | F51: ISB-SXM-60-16-垂直 | G51: 1.2 | H51: 1.2 | I51: 960
A52: 49 | B52: 10787315 | C52: 960 | D52: -1 | E52: -1 | F52: ISB-SXM-60-16-垂直 | G52: 1.4 | H52: 1.1 | I52: 960
A53: 50 | B53: 9806650 | C53: 960 | D53: -1 | E53: -1 | F53: ISB-SXM-60-16-垂直 | G53: 1.6 | H53: 1 | I53: 960
A54: 51 | B54: 8825985 | C54: 960 | D54: -1 | E54: -1 | F54: ISB-SXM-60-16-垂直 | G54: 1.8 | H54: 0.9 | I54: 960
A55: 52 | B55: 7845320 | C55: 960 | D55: -1 | E55: -1 | F55: ISB-SXM-60-16-垂直 | G55: 2 | H55: 0.8 | I55: 960
A56: 53 | B56: 6864655 | C56: 960 | D56: -1 | E56: -1 | F56: ISB-SXM-60-16-垂直 | G56: 2.3 | H56: 0.7 | I56: 960
A57: 54 | B57: 5883990 | C57: 960 | D57: -1 | E57: -1 | F57: ISB-SXM-60-16-垂直 | G57: 2.6 | H57: 0.6 | I57: 960
A58: 55 | B58: 4903325 | C58: 960 | D58: -1 | E58: -1 | F58: ISB-SXM-60-16-垂直 | G58: 3 | H58: 0.5 | I58: 960
A59: 56 | B59: 3922660 | C59: 960 | D59: -1 | E59: -1 | F59: ISB-SXM-60-16-垂直 | G59: 3.5 | H59: 0.4 | I59: 960
A60: 57 | B60: 4903325 | C60: 300 | D60: -1 | E60: -1 | F60: ISB-MXM-100-5-水平 | G60: 45 | H60: 0.5 | I60: 300
A61: 58 | B61: 3922660 | C61: 300 | D61: -1 | E61: -1 | F61: ISB-MXM-100-5-水平 | G61: 60 | H61: 0.4 | I61: 300
A62: 59 | B62: 2941995 | C62: 300 | D62: -1 | E62: -1 | F62: ISB-MXM-100-5-水平 | G62: 80 | H62: 0.3 | I62: 300
A63: 60 | B63: 1961330 | C63: 300 | D63: -1 | E63: -1 | F63: ISB-MXM-100-5-水平 | G63: 85 | H63: 0.2 | I63: 300
A64: 61 | B64: 980665 | C64: 300 | D64: -1 | E64: -1 | F64: ISB-MXM-100-5-水平 | G64: 119 | H64: 0.1 | I64: 300
A65: 62 | B65: 3922660 | C65: 300 | D65: -1 | E65: -1 | F65: ISB-MXM-100-5-垂直 | G65: 15 | H65: 0.4 | I65: 300
A66: 63 | B66: 2941995 | C66: 300 | D66: -1 | E66: -1 | F66: ISB-MXM-100-5-垂直 | G66: 17 | H66: 0.3 | I66: 300
A67: 64 | B67: 1961330 | C67: 300 | D67: -1 | E67: -1 | F67: ISB-MXM-100-5-垂直 | G67: 20 | H67: 0.2 | I67: 300
A68: =A67+1 -> 65 | B68: =H68*$A$1*1000*1000 -> 6864655 | C68: =I68 -> 600 | D68: -1 | E68: -1 | F68: ISB-MXM-100-10-水平 | G68: 20 | H68: 0.7 | I68: 600
A69: 66 | B69: 5883990 | C69: 600 | D69: -1 | E69: -1 | F69: ISB-MXM-100-10-水平 | G69: 23 | H69: 0.6 | I69: 600
A70: 67 | B70: 4903325 | C70: 600 | D70: -1 | E70: -1 | F70: ISB-MXM-100-10-水平 | G70: 30 | H70: 0.5 | I70: 600
A71: 68 | B71: 3922660 | C71: 600 | D71: -1 | E71: -1 | F71: ISB-MXM-100-10-水平 | G71: 45 | H71: 0.4 | I71: 600
A72: 69 | B72: 2941995 | C72: 600 | D72: -1 | E72: -1 | F72: ISB-MXM-100-10-水平 | G72: 52 | H72: 0.3 | I72: 600
A73: 70 | B73: 1961330 | C73: 600 | D73: -1 | E73: -1 | F73: ISB-MXM-100-10-水平 | G73: 58.5 | H73: 0.2 | I73: 600
A74: 71 | B74: 980665 | C74: 600 | D74: -1 | E74: -1 | F74: ISB-MXM-100-10-水平 | G74: 67.5 | H74: 0.1 | I74: 600
A75: 72 | B75: 5883990 | C75: 600 | D75: -1 | E75: -1 | F75: ISB-MXM-100-10-垂直 | G75: 7 | H75: 0.6 | I75: 600
A76: 73 | B76: 4903325 | C76: 600 | D76: -1 | E76: -1 | F76: ISB-MXM-100-10-垂直 | G76: 8 | H76: 0.5 | I76: 600
A77: 74 | B77: 3922660 | C77: 600 | D77: -1 | E77: -1 | F77: ISB-MXM-100-10-垂直 | G77: 10 | H77: 0.4 | I77: 600
